Workbook

Sheet Velkomst

Sheet Tabel 1 F
A1: Tabel 1. Forsikrede medlemmer
A3: Fyn
C5: Mænd | E5: Kvinder | G5: I alt
A7: Civ. ing. | C7: 1003 | E7: 259 | G7: 1262
A8: Diplom ing. | C8: 2516 | E8: 557 | G8: 3073
A9: Cand. Scient. Tek. | C9: 573 | E9: 557 | G9: 1130
A10: MA. Hum. | C10: 1032 | E10: 2141 | G10: 3173
A11: MA. Nat. | C11: 592 | E11: 563 | G11: 1155
A12: MA. Ph.d. | C12: 91 | E12: 66 | G12: 157
A13: MA. Samf. | C13: 56 | E13: 109 | G13: 165
A14: Øvrige Mag. | C14: 80 | E14: 143 | G14: 223
A15: Agronom | C15: 86 | E15: 68 | G15: 154
A16: Landsk. Arkt. | C16: 8 | E16: 20 | G16: 28
A17: Hortonom | C17: 20 | E17: 22 | G17: 42
A18: Forstkand. | C18: 19 | E18: 7 | G18: 26
A19: Jordbrugsakad. | C19: 133 | E19: 117 | G19: 250
A20: Mejeriing. | C20: 7 | E20: 7 | G20: 14
A21: Levn.m.kand. | C21: 3 | E21: 10 | G21: 13
A22: Dyrlæge | C22: 21 | E22: 103 | G22: 124
A23: Farmaceut | C23: 58 | E23: 184 | G23: 242
A24: Læge | C24: 427 | E24: 821 | G24: 1248
A25: Tandlæge | C25: 17 | E25: 89 | G25: 106
A26: Arkitekt | C26: 87 | E26: 73 | G26: 160
A27: Landinspek. | C27: 48 | E27: 16 | G27: 64
A28: Bibliotekar | C28: 65 | E28: 151 | G28: 216
A29: Musikudd. | C29: 46 | E29: 47 | G29: 93
A30: Teolog | C30: 46 | E30: 83 | G30: 129
A31: Psykolog | C31: 114 | E31: 407 | G31: 521
A32: Jurist | C32: 200 | E32: 387 | G32: 587
A33: Økonom | C33: 309 | E33: 251 | G33: 560
A34: Samf. Adm. | C34: 536 | E34: 841 | G34: 1377
A35: Cand. Merc. | C35: 900 | E35: 808 | G35: 1708
A36: HA | C36: 222 | E36: 159 | G36: 381
A37: HD | C37: 157 | E37: 143 | G37: 300
A38: Komm. og Sprog | C38: 72 | E38: 350 | G38: 422
A39: Cand. IT. | C39: 93 | E39: 63 | G39: 156
A40: Bac. Samf. | C40: 26 | E40: 30 | G40: 56
A41: Bac. Hum. | C41: 107 | E41: 210 | G41: 317
A42: Bac. Nat. | C42: 91 | E42: 42 | G42: 133
A43: Andre | C43: 642 | E43: 553 | G43: 1195
A45: Total | C45: 10370 | E45: 10340 | G45: 20710
A47: Ingeniører i alt | C47: 3519 | E47: 816 | G47: 4335
A48: Magistre i alt | C48: 1851 | E48: 3022 | G48: 4873
A49: DJØF'ere i alt | C49: 2167 | E49: 2446 | G49: 4613
A56: Middelfart
C58: Mænd | E58: Kvinder | G58: I alt
A60: Civ. ing. | C60: 74 | E60: 26 | G60: 100
A61: Diplom ing. | C61: 239 | E61: 49 | G61: 288
A62: Cand. Scient. Tek. | C62: 27 | E62: 26 | G62: 53
A63: MA. Hum. | C63: 56 | E63: 105 | G63: 161
A64: MA. Nat. | C64: 29 | E64: 34 | G64: 63
A65: MA. Ph.d. | C65: 4 | E65: 2 | G65: 6
A66: MA. Samf. | C66: 0 | E66: 11 | G66: 11
A67: Øvrige Mag. | C67: 3 | E67: 6 | G67: 9
A68: Agronom | C68: 19 | E68: 10 | G68: 29
A69: Landsk. Arkt. | C69: 2 | E69: 0 | G69: 2
A70: Hortonom | C70: 1 | E70: 3 | G70: 4
A71: Forstkand. | C71: 1 | E71: 0 | G71: 1
A72: Jordbrugsakad. | C72: 23 | E72: 13 | G72: 36
A73: Mejeriing. | C73: 3 | E73: 0 | G73: 3
A74: Levn.m.kand. | C74: 0 | E74: 1 | G74: 1
A75: Dyrlæge | C75: 2 | E75: 15 | G75: 17
A76: Farmaceut | C76: 2 | E76: 7 | G76: 9
A77: Læge | C77: 21 | E77: 80 | G77: 101
A78: Tandlæge | C78: 1 | E78: 9 | G78: 10
A79: Arkitekt | C79: 7 | E79: 7 | G79: 14
A80: Landinspek. | C80: 9 | E80: 3 | G80: 12
A81: Bibliotekar | C81: 4 | E81: 15 | G81: 19
A82: Musikudd. | C82: 4 | E82: 2 | G82: 6
A83: Teolog | C83: 5 | E83: 10 | G83: 15
A84: Psykolog | C84: 8 | E84: 30 | G84: 38
A85: Jurist | C85: 9 | E85: 25 | G85: 34
A86: Økonom | C86: 23 | E86: 22 | G86: 45
A87: Samf. Adm. | C87: 30 | E87: 55 | G87: 85
A88: Cand. Merc. | C88: 70 | E88: 64 | G88: 134
A89: HA | C89: 22 | E89: 11 | G89: 33
A90: HD | C90: 8 | E90: 9 | G90: 17
A91: Komm. og Sprog | C91: 2 | E91: 29 | G91: 31
A92: Cand. IT. | C92: 5 | E92: 5 | G92: 10
A93: Bac. Samf. | C93: 2 | E93: 3 | G93: 5
A94: Bac. Hum. | C94: 2 | E94: 8 | G94: 10
A95: Bac. Nat. | C95: 4 | E95: 2 | G95: 6
A96: Andre | C96: 41 | E96: 38 | G96: 79
A98: Total | C98: 739 | E98: 722 | G98: 1461
A100: Ingeniører i alt | C100: 313 | E100: 75 | G100: 388
A101: Magistre i alt | C101: 92 | E101: 158 | G101: 250
A102: DJØF'ere i alt | C102: 154 | E102: 177 | G102: 331
A109: Assens
C111: Mænd | E111: Kvinder | G111: I alt
A113: Civ. ing. | C113: 50 | E113: 11 | G113: 61
A114: Diplom ing. | C114: 192 | E114: 42 | G114: 234
A115: Cand. Scient. Tek. | C115: 21 | E115: 13 | G115: 34
A116: MA. Hum. | C116: 39 | E116: 103 | G116: 142
A117: MA. Nat. | C117: 32 | E117: 28 | G117: 60
A118: MA. Ph.d. | C118: 1 | E118: 1 | G118: 2
A119: MA. Samf. | C119: 1 | E119: 2 | G119: 3
A120: Øvrige Mag. | C120: 3 | E120: 3 | G120: 6
A121: Agronom | C121: 9 | E121: 9 | G121: 18
A122: Landsk. Arkt. | C122: 1 | E122: 6 | G122: 7
A123: Hortonom | C123: 1 | E123: 3 | G123: 4
A124: Forstkand. | C124: 5 | E124: 1 | G124: 6
A125: Jordbrugsakad. | C125: 16 | E125: 19 | G125: 35
A126: Mejeriing. | C126: 2 | E126: 0 | G126: 2
A127: Levn.m.kand. | C127: 0 | E127: 1 | G127: 1
A128: Dyrlæge | C128: 3 | E128: 13 | G128: 16
A129: Farmaceut | C129: 0 | E129: 11 | G129: 11
A130: Læge | C130: 8 | E130: 26 | G130: 34
A131: Tandlæge | C131: 2 | E131: 2 | G131: 4
A132: Arkitekt | C132: 2 | E132: 3 | G132: 5
A133: Landinspek. | C133: 2 | E133: 1 | G133: 3
A134: Bibliotekar | C134: 6 | E134: 9 | G134: 15
A135: Musikudd. | C135: 3 | E135: 8 | G135: 11
A136: Teolog | C136: 4 | E136: 9 | G136: 13
A137: Psykolog | C137: 5 | E137: 17 | G137: 22
A138: Jurist | C138: 5 | E138: 17 | G138: 22
A139: Økonom | C139: 9 | E139: 11 | G139: 20
A140: Samf. Adm. | C140: 18 | E140: 38 | G140: 56
A141: Cand. Merc. | C141: 31 | E141: 26 | G141: 57
A142: HA | C142: 9 | E142: 10 | G142: 19
A143: HD | C143: 10 | E143: 8 | G143: 18
A144: Komm. og Sprog | C144: 2 | E144: 19 | G144: 21
A145: Cand. IT. | C145: 3 | E145: 2 | G145: 5
A146: Bac. Samf. | C146: 1 | E146: 3 | G146: 4
A147: Bac. Hum. | C147: 2 | E147: 11 | G147: 13
A148: Bac. Nat. | C148: 3 | E148: 3 | G148: 6
A149: Andre | C149: 45 | E149: 21 | G149: 66
A151: Total | C151: 530 | E151: 491 | G151: 1021
A153: Ingeniører i alt | C153: 242 | E153: 53 | G153: 295
A154: Magistre i alt | C154: 76 | E154: 137 | G154: 213
A155: DJØF'ere i alt | C155: 72 | E155: 102 | G155: 174
A162: Faarborg-Midtfyn
C164: Mænd | E164: Kvinder | G164: I alt
A166: Civ. ing. | C166: 62 | E166: 12 | G166: 74
A167: Diplom ing. | C167: 223 | E167: 38 | G167: 261
A168: Cand. Scient. Tek. | C168: 25 | E168: 29 | G168: 54
A169: MA. Hum. | C169: 66 | E169: 107 | G169: 173
A170: MA. Nat. | C170: 30 | E170: 39 | G170: 69
A171: MA. Ph.d. | C171: 5 | E171: 4 | G171: 9
A172: MA. Samf. | C172: 3 | E172: 3 | G172: 6
A173: Øvrige Mag. | C173: 7 | E173: 9 | G173: 16
A174: Agronom | C174: 10 | E174: 14 | G174: 24
A175: Landsk. Arkt. | C175: 1 | E175: 4 | G175: 5
A176: Hortonom | C176: 3 | E176: 2 | G176: 5
A177: Forstkand. | C177: 6 | E177: 2 | G177: 8
A178: Jordbrugsakad. | C178: 20 | E178: 22 | G178: 42
A179: Mejeriing. | C179: 1 | E179: 2 | G179: 3
A180: Levn.m.kand. | C180: 0 | E180: 2 | G180: 2
A181: Dyrlæge | C181: 0 | E181: 15 | G181: 15
A182: Farmaceut | C182: 3 | E182: 17 | G182: 20
A183: Læge | C183: 14 | E183: 32 | G183: 46
A184: Tandlæge | C184: 2 | E184: 1 | G184: 3
A185: Arkitekt | C185: 8 | E185: 6 | G185: 14
A186: Landinspek. | C186: 3 | E186: 0 | G186: 3
A187: Bibliotekar | C187: 2 | E187: 12 | G187: 14
A188: Musikudd. | C188: 5 | E188: 4 | G188: 9
A189: Teolog | C189: 4 | E189: 12 | G189: 16
A190: Psykolog | C190: 2 | E190: 18 | G190: 20
A191: Jurist | C191: 8 | E191: 24 | G191: 32
A192: Økonom | C192: 13 | E192: 12 | G192: 25
A193: Samf. Adm. | C193: 31 | E193: 52 | G193: 83
A194: Cand. Merc. | C194: 31 | E194: 45 | G194: 76
A195: HA | C195: 11 | E195: 13 | G195: 24
A196: HD | C196: 12 | E196: 15 | G196: 27
A197: Komm. og Sprog | C197: 3 | E197: 12 | G197: 15
A198: Cand. IT. | C198: 4 | E198: 4 | G198: 8
A199: Bac. Samf. | C199: 4 | E199: 2 | G199: 6
A200: Bac. Hum. | C200: 3 | E200: 15 | G200: 18
A201: Bac. Nat. | C201: 3 | E201: 2 | G201: 5
A202: Andre | C202: 49 | E202: 39 | G202: 88
A204: Total | C204: 657 | E204: 619 | G204: 1276
A206: Ingeniører i alt | C206: 285 | E206: 50 | G206: 335
A207: Magistre i alt | C207: 111 | E207: 162 | G207: 273
A208: DJØF'ere i alt | C208: 94 | E208: 146 | G208: 240
A215: Kerteminde
C217: Mænd | E217: Kvinder | G217: I alt
A219: Civ. ing. | C219: 22 | E219: 9 | G219: 31
A220: Diplom ing. | C220: 110 | E220: 29 | G220: 139
A221: Cand. Scient. Tek. | C221: 14 | E221: 12 | G221: 26
A222: MA. Hum. | C222: 23 | E222: 64 | G222: 87
A223: MA. Nat. | C223: 17 | E223: 15 | G223: 32
A224: MA. Ph.d. | C224: 4 | E224: 3 | G224: 7
A225: MA. Samf. | C225: 1 | E225: 1 | G225: 2
A226: Øvrige Mag. | C226: 2 | E226: 4 | G226: 6
A227: Agronom | C227: 1 | E227: 3 | G227: 4
A228: Landsk. Arkt. | C228: 1 | E228: 1 | G228: 2
A229: Hortonom | C229: 1 | E229: 2 | G229: 3
A230: Forstkand. | C230: 0 | E230: 1 | G230: 1
A231: Jordbrugsakad. | C231: 3 | E231: 7 | G231: 10
A232: Mejeriing. | C232: 0 | E232: 0 | G232: 0
A233: Levn.m.kand. | C233: 0 | E233: 0 | G233: 0
A234: Dyrlæge | C234: 0 | E234: 2 | G234: 2
A235: Farmaceut | C235: 1 | E235: 2 | G235: 3
A236: Læge | C236: 7 | E236: 10 | G236: 17
A237: Tandlæge | C237: 0 | E237: 3 | G237: 3
A238: Arkitekt | C238: 2 | E238: 2 | G238: 4
A239: Landinspek. | C239: 3 | E239: 1 | G239: 4
A240: Bibliotekar | C240: 1 | E240: 2 | G240: 3
A241: Musikudd. | C241: 2 | E241: 3 | G241: 5
A242: Teolog | C242: 1 | E242: 4 | G242: 5
A243: Psykolog | C243: 2 | E243: 9 | G243: 11
... 275 more rows

Sheet Tabel 2 F
A1: Tabel 2. Antal bruttoledighedsberørte og gennemsnitlig antal ledige brutto
A3: Fyn
C5: Mænd | F5: Kvinder | I5: I alt
C6: Ledigheds- berørte | D6: Gns. brutto- ledighed | F6: Ledigheds- berørte | G6: Gns. brutto- ledighed | I6: Ledigheds- berørte | J6: Gns. brutto- ledighed
A9: Civ. ing. | C9: 69 | D9: 63.58198715 | F9: 30 | G9: 26.29888355 | I9: 99 | J9: 89.8808707
A10: Diplom ing. | C10: 61 | D10: 56.39930144 | F10: 26 | G10: 19.96943803 | I10: 87 | J10: 76.36873947
A11: Cand. Scient. Tek. | C11: 86 | D11: 78.34466413 | F11: 88 | G11: 79.37192041 | I11: 174 | J11: 157.7165845
A12: MA. Hum. | C12: 118 | D12: 106.7473336 | F12: 276 | G12: 239.5577871 | I12: 394 | J12: 346.3051207
A13: MA. Nat. | C13: 33 | D13: 28.99083141 | F13: 40 | G13: 35.34335433 | I13: 73 | J13: 64.33418574
A14: MA. Ph.d. | C14: 5 | D14: 4.599264018 | F14: 2 | G14: 1.307303686 | I14: 7 | J14: 5.906567704
A15: MA. Samf. | C15: 11 | D15: 10.38233643 | F15: 17 | G15: 16.60699807 | I15: 28 | J15: 26.9893345
A16: Øvrige Mag. | C16: 6 | D16: 5.56539637 | F16: 13 | G16: 12.10939936 | I16: 19 | J16: 17.67479573
A17: Agronom | C17: 4 | D17: 3.168465041 | F17: 2 | G17: 0.7160232021 | I17: 6 | J17: 3.884488243
A18: Landsk. Arkt. | C18: 0 | D18: 0 | F18: 2 | G18: 1.399613298 | I18: 2 | J18: 1.399613298
A19: Hortonom | C19: 0 | D19: 0 | F19: 2 | G19: 1.70398553 | I19: 2 | J19: 1.70398553
A20: Forstkand. | C20: 0 | D20: 0 | F20: 1 | G20: 0.9998128859 | I20: 1 | J20: 0.9998128859
A21: Jordbrugsakad. | C21: 4 | D21: 3.168465041 | F21: 7 | G21: 4.819434915 | I21: 11 | J21: 7.987899956
A22: Mejeriing. | C22: 0 | D22: 0 | F22: 0 | G22: 0 | I22: 0 | J22: 0
A23: Levn.m.kand. | C23: 0 | D23: 0 | F23: 2 | G23: 1.861161355 | I23: 2 | J23: 1.861161355
A24: Dyrlæge | C24: 0 | D24: 0 | F24: 3 | G24: 1.984032932 | I24: 3 | J24: 1.984032932
A25: Farmaceut | C25: 5 | D25: 3.70672987 | F25: 27 | G25: 22.12312106 | I25: 32 | J25: 25.82985093
A26: Læge | C26: 5 | D26: 4.583671178 | F26: 12 | G26: 9.505395123 | I26: 17 | J26: 14.0890663
A27: Tandlæge | C27: 0 | D27: 0 | F27: 0 | G27: 0 | I27: 0 | J27: 0
A28: Arkitekt | C28: 6 | D28: 5.357076031 | F28: 7 | G28: 6.25148132 | I28: 13 | J28: 11.60855735
A29: Landinspek. | C29: 0 | D29: 0 | F29: 0 | G29: 0 | I29: 0 | J29: 0
A30: Bibliotekar | C30: 4 | D30: 3.399239069 | F30: 7 | G30: 6.411775713 | I30: 11 | J30: 9.811014782
A31: Musikudd. | C31: 1 | D31: 0.9998128859 | F31: 2 | G31: 1.079024512 | I31: 3 | J31: 2.078837398
A32: Teolog | C32: 1 | D32: 0.9998128859 | F32: 2 | G32: 0.632445581 | I32: 3 | J32: 1.632258467
A33: Psykolog | C33: 20 | D33: 19.26776024 | F33: 45 | G33: 39.39936381 | I33: 65 | J33: 58.66712406
A34: Jurist | C34: 7 | D34: 5.73567018 | F34: 19 | G34: 16.98060251 | I34: 26 | J34: 22.71627269
A35: Økonom | C35: 14 | D35: 12.4187613 | F35: 14 | G35: 11.40522672 | I35: 28 | J35: 23.82398802
A36: Samf. Adm. | C36: 44 | D36: 34.13334997 | F36: 89 | G36: 76.09742406 | I36: 133 | J36: 110.230774
A37: Cand. Merc. | C37: 73 | D37: 62.40254475 | F37: 55 | G37: 48.73074284 | I37: 128 | J37: 111.1332876
A38: HA | C38: 28 | D38: 25.02650783 | F38: 20 | G38: 17.68727001 | I38: 48 | J38: 42.71377783
A39: HD | C39: 12 | D39: 10.23202146 | F39: 25 | G39: 22.17364186 | I39: 37 | J39: 32.40566332
A40: Komm. og Sprog | C40: 9 | D40: 8.675232333 | F40: 30 | G40: 26.59826608 | I40: 39 | J40: 35.27349841
A41: Cand. IT. | C41: 8 | D41: 7.313665565 | F41: 10 | G41: 9.028877939 | I41: 18 | J41: 16.3425435
A42: Bac. Samf. | C42: 3 | D42: 2.092559097 | F42: 3 | G42: 2.291523732 | I42: 6 | J42: 4.384082829
A43: Bac. Hum. | C43: 18 | D43: 15.1493794 | F43: 34 | G43: 29.02950165 | I43: 52 | J43: 44.17888106
A44: Bac. Nat. | C44: 5 | D44: 4.99906443 | F44: 5 | G44: 3.19777958 | I44: 10 | J44: 8.196844009
A45: Andre | C45: 50 | D45: 42.17676043 | F45: 54 | G45: 48.00785879 | I45: 104 | J45: 90.18461922
A47: Total | C47: =SUM(C9:C45)-C21 -> 706 | D47: 626.4491985 | E47: 0 | F47: 964 | G47: 835.8610366 | H47: 0 | I47: 1670 | J47: =SUM(J9:J45)-J21 -> 1462.310235
A49: Ingeniører i alt | C49: 130 | D49: 119.9812886 | F49: 56 | G49: 46.26832159 | I49: 186 | J49: 166.2496102
A50: Magistre i alt | C50: 173 | D50: 156.2851619 | F50: 348 | G50: 304.9248425 | I50: 521 | J50: 461.2100044
A51: DJØF'ere i alt | C51: 166 | D51: 139.716834 | F51: 197 | G51: 170.9012661 | I51: 363 | J51: 310.6181002
A56: Middelfart
C58: Mænd | F58: Kvinder | I58: I alt
C59: Ledigheds- berørte | D59: Gns. brutto- ledighed | F59: Ledigheds- berørte | G59: Gns. brutto- ledighed | I59: Ledigheds- berørte | J59: Gns. brutto- ledighed
A62: Civ. ing. | C62: 1 | D62: 0.9998128859 | F62: 0 | G62: 0 | I62: 1 | J62: 0.9998128859
A63: Diplom ing. | C63: 3 | D63: 2.307116572 | F63: 3 | G63: 2.307116572 | I63: 6 | J63: 4.614233144
A64: Cand. Scient. Tek. | C64: 1 | D64: 0.6779766731 | F64: 1 | G64: 0.9075032745 | I64: 2 | J64: 1.585479948
A65: MA. Hum. | C65: 4 | D65: 3.601322273 | F65: 9 | G65: 6.92197343 | I65: 13 | J65: 10.5232957
A66: MA. Nat. | C66: 0 | D66: 0 | F66: 2 | G66: 1.937254413 | I66: 2 | J66: 1.937254413
A67: MA. Ph.d. | C67: 1 | D67: 0.7596831535 | F67: 0 | G67: 0 | I67: 1 | J67: 0.7596831535
A68: MA. Samf. | C68: 0 | D68: 0 | F68: 3 | G68: 2.907129046 | I68: 3 | J68: 2.907129046
A69: Øvrige Mag. | C69: 0 | D69: 0 | F69: 0 | G69: 0 | I69: 0 | J69: 0
A70: Agronom | C70: 0 | D70: 0 | F70: 0 | G70: 0 | I70: 0 | J70: 0
A71: Landsk. Arkt. | C71: 0 | D71: 0 | F71: 0 | G71: 0 | I71: 0 | J71: 0
A72: Hortonom | C72: 0 | D72: 0 | F72: 1 | G72: 0.9998128859 | I72: 1 | J72: 0.9998128859
A73: Forstkand. | C73: 0 | D73: 0 | F73: 0 | G73: 0 | I73: 0 | J73: 0
A74: Jordbrugsakad. | C74: 0 | D74: 0 | F74: 1 | G74: 0.9998128859 | I74: 1 | J74: 0.9998128859
A75: Mejeriing. | C75: 0 | D75: 0 | F75: 0 | G75: 0 | I75: 0 | J75: 0
A76: Levn.m.kand. | C76: 0 | D76: 0 | F76: 0 | G76: 0 | I76: 0 | J76: 0
A77: Dyrlæge | C77: 0 | D77: 0 | F77: 0 | G77: 0 | I77: 0 | J77: 0
A78: Farmaceut | C78: 0 | D78: 0 | F78: 0 | G78: 0 | I78: 0 | J78: 0
A79: Læge | C79: 0 | D79: 0 | F79: 1 | G79: 0.4921100231 | I79: 1 | J79: 0.4921100231
A80: Tandlæge | C80: 0 | D80: 0 | F80: 0 | G80: 0 | I80: 0 | J80: 0
A81: Arkitekt | C81: 1 | D81: 0.9998128859 | F81: 0 | G81: 0 | I81: 1 | J81: 0.9998128859
A82: Landinspek. | C82: 0 | D82: 0 | F82: 0 | G82: 0 | I82: 0 | J82: 0
A83: Bibliotekar | C83: 1 | D83: 0.9998128859 | F83: 0 | G83: 0 | I83: 1 | J83: 0.9998128859
A84: Musikudd. | C84: 0 | D84: 0 | F84: 0 | G84: 0 | I84: 0 | J84: 0
A85: Teolog | C85: 0 | D85: 0 | F85: 2 | G85: 0.632445581 | I85: 2 | J85: 0.632445581
A86: Psykolog | C86: 0 | D86: 0 | F86: 2 | G86: 1.475706356 | I86: 2 | J86: 1.475706356
A87: Jurist | C87: 0 | D87: 0 | F87: 0 | G87: 0 | I87: 0 | J87: 0
A88: Økonom | C88: 0 | D88: 0 | F88: 0 | G88: 0 | I88: 0 | J88: 0
A89: Samf. Adm. | C89: 0 | D89: 0 | F89: 1 | G89: 0.9998128859 | I89: 1 | J89: 0.9998128859
A90: Cand. Merc. | C90: 1 | D90: 0.9998128859 | F90: 1 | G90: 0.9998128859 | I90: 2 | J90: 1.999625772
A91: HA | C91: 2 | D91: 1.999625772 | F91: 1 | G91: 0.9998128859 | I91: 3 | J91: 2.999438658
A92: HD | C92: 1 | D92: 0.9998128859 | F92: 1 | G92: 0.9998128859 | I92: 2 | J92: 1.999625772
A93: Komm. og Sprog | C93: 0 | D93: 0 | F93: 1 | G93: 0.8482504834 | I93: 1 | J93: 0.8482504834
A94: Cand. IT. | C94: 0 | D94: 0 | F94: 0 | G94: 0 | I94: 0 | J94: 0
A95: Bac. Samf. | C95: 0 | D95: 0 | F95: 0 | G95: 0 | I95: 0 | J95: 0
A96: Bac. Hum. | C96: 0 | D96: 0 | F96: 1 | G96: 0.9998128859 | I96: 1 | J96: 0.9998128859
A97: Bac. Nat. | C97: 0 | D97: 0 | F97: 1 | G97: 0.9998128859 | I97: 1 | J97: 0.9998128859
A98: Andre | C98: 2 | D98: 1.307303686 | F98: 2 | G98: 1.999625772 | I98: 4 | J98: 3.306929458
A100: Total | C100: 18 | D100: 15.65209256 | F100: 33 | G100: 27.42780515 | I100: 51 | J100: 43.07989771
A102: Ingeniører i alt | C102: 4 | D102: 3.306929458 | F102: 3 | G102: 2.307116572 | I102: 7 | J102: 5.61404603
A103: Magistre i alt | C103: 5 | D103: 4.361005426 | F103: 14 | G103: 11.76635689 | I103: 19 | J103: 16.12736232
A104: DJØF'ere i alt | C104: 3 | D104: 2.999438658 | F104: 3 | G104: 2.999438658 | I104: 6 | J104: 5.998877316
A109: Assens
C111: Mænd | F111: Kvinder | I111: I alt
C112: Ledigheds- berørte | D112: Gns. brutto- ledighed | F112: Ledigheds- berørte | G112: Gns. brutto- ledighed | I112: Ledigheds- berørte | J112: Gns. brutto- ledighed
A115: Civ. ing. | C115: 3 | D115: 2.445580989 | F115: 0 | G115: 0 | I115: 3 | J115: 2.445580989
A116: Diplom ing. | C116: 3 | D116: 1.748269195 | F116: 2 | G116: 0.7946111146 | I116: 5 | J116: 2.542880309
A117: Cand. Scient. Tek. | C117: 1 | D117: 0.9998128859 | F117: 1 | G117: 0.9998128859 | I117: 2 | J117: 1.999625772
A118: MA. Hum. | C118: 5 | D118: 4.645418824 | F118: 7 | G118: 6.36437348 | I118: 12 | J118: 11.0097923
A119: MA. Nat. | C119: 0 | D119: 0 | F119: 5 | G119: 3.803405476 | I119: 5 | J119: 3.803405476
A120: MA. Ph.d. | C120: 0 | D120: 0 | F120: 0 | G120: 0 | I120: 0 | J120: 0
A121: MA. Samf. | C121: 0 | D121: 0 | F121: 0 | G121: 0 | I121: 0 | J121: 0
A122: Øvrige Mag. | C122: 0 | D122: 0 | F122: 0 | G122: 0 | I122: 0 | J122: 0
A123: Agronom | C123: 0 | D123: 0 | F123: 0 | G123: 0 | I123: 0 | J123: 0
A124: Landsk. Arkt. | C124: 0 | D124: 0 | F124: 0 | G124: 0 | I124: 0 | J124: 0
A125: Hortonom | C125: 0 | D125: 0 | F125: 0 | G125: 0 | I125: 0 | J125: 0
A126: Forstkand. | C126: 0 | D126: 0 | F126: 1 | G126: 0.9998128859 | I126: 1 | J126: 0.9998128859
A127: Jordbrugsakad. | C127: 0 | D127: 0 | F127: 1 | G127: 0.9998128859 | I127: 1 | J127: 0.9998128859
A128: Mejeriing. | C128: 0 | D128: 0 | F128: 0 | G128: 0 | I128: 0 | J128: 0
A129: Levn.m.kand. | C129: 0 | D129: 0 | F129: 0 | G129: 0 | I129: 0 | J129: 0
A130: Dyrlæge | C130: 0 | D130: 0 | F130: 0 | G130: 0 | I130: 0 | J130: 0
A131: Farmaceut | C131: 0 | D131: 0 | F131: 1 | G131: 0.9998128859 | I131: 1 | J131: 0.9998128859
A132: Læge | C132: 0 | D132: 0 | F132: 0 | G132: 0 | I132: 0 | J132: 0
A133: Tandlæge | C133: 0 | D133: 0 | F133: 0 | G133: 0 | I133: 0 | J133: 0
A134: Arkitekt | C134: 1 | D134: 0.9998128859 | F134: 0 | G134: 0 | I134: 1 | J134: 0.9998128859
A135: Landinspek. | C135: 0 | D135: 0 | F135: 0 | G135: 0 | I135: 0 | J135: 0
A136: Bibliotekar | C136: 0 | D136: 0 | F136: 0 | G136: 0 | I136: 0 | J136: 0
A137: Musikudd. | C137: 0 | D137: 0 | F137: 1 | G137: 0.4528160669 | I137: 1 | J137: 0.4528160669
A138: Teolog | C138: 0 | D138: 0 | F138: 0 | G138: 0 | I138: 0 | J138: 0
A139: Psykolog | C139: 0 | D139: 0 | F139: 1 | G139: 0.9312043909 | I139: 1 | J139: 0.9312043909
A140: Jurist | C140: 0 | D140: 0 | F140: 2 | G140: 1.999625772 | I140: 2 | J140: 1.999625772
A141: Økonom | C141: 0 | D141: 0 | F141: 0 | G141: 0 | I141: 0 | J141: 0
A142: Samf. Adm. | C142: 0 | D142: 0 | F142: 2 | G142: 1.999625772 | I142: 2 | J142: 1.999625772
A143: Cand. Merc. | C143: 3 | D143: 2.231647228 | F143: 1 | G143: 0.6879560906 | I143: 4 | J143: 2.919603318
A144: HA | C144: 0 | D144: 0 | F144: 0 | G144: 0 | I144: 0 | J144: 0
A145: HD | C145: 0 | D145: 0 | F145: 1 | G145: 0.9998128859 | I145: 1 | J145: 0.9998128859
A146: Komm. og Sprog | C146: 0 | D146: 0 | F146: 1 | G146: 0.9998128859 | I146: 1 | J146: 0.9998128859
A147: Cand. IT. | C147: 0 | D147: 0 | F147: 1 | G147: 0.9998128859 | I147: 1 | J147: 0.9998128859
A148: Bac. Samf. | C148: 0 | D148: 0 | F148: 0 | G148: 0 | I148: 0 | J148: 0
A149: Bac. Hum. | C149: 0 | D149: 0 | F149: 0 | G149: 0 | I149: 0 | J149: 0
A150: Bac. Nat. | C150: 0 | D150: 0 | F150: 1 | G150: 0.1958460675 | I150: 1 | J150: 0.1958460675
A151: Andre | C151: 2 | D151: 1.399613298 | F151: 2 | G151: 1.999625772 | I151: 4 | J151: 3.399239069
A153: Total | C153: 18 | D153: 14.4701553 | F153: 30 | G153: 25.22796732 | I153: 48 | J153: 39.69812262
A155: Ingeniører i alt | C155: 6 | D155: 4.193850184 | F155: 2 | G155: 0.7946111146 | I155: 8 | J155: 4.988461299
A156: Magistre i alt | C156: 5 | D156: 4.645418824 | F156: 12 | G156: 10.16777896 | I156: 17 | J156: 14.81319778
A157: DJØF'ere i alt | C157: 3 | D157: 2.231647228 | F157: 5 | G157: 4.687207634 | I157: 8 | J157: 6.918854862
A162: Faaborg-Midtfyn
C164: Mænd | F164: Kvinder | I164: I alt
C165: Ledigheds- berørte | D165: Gns. brutto- ledighed | F165: Ledigheds- berørte | G165: Gns. brutto- ledighed | I165: Ledigheds- berørte | J165: Gns. brutto- ledighed
A168: Civ. ing. | C168: 2 | D168: 1.924780141 | F168: 1 | G168: 0.9998128859 | I168: 3 | J168: 2.924593027
A169: Diplom ing. | C169: 3 | D169: 2.814819435 | F169: 0 | G169: 0 | I169: 3 | J169: 2.814819435
A170: Cand. Scient. Tek. | C170: 2 | D170: 1.999625772 | F170: 1 | G170: 0.9998128859 | I170: 3 | J170: 2.999438658
A171: MA. Hum. | C171: 8 | D171: 6.279548431 | F171: 13 | G171: 10.81456995 | I171: 21 | J171: 17.09411838
A172: MA. Nat. | C172: 2 | D172: 1.748269195 | F172: 2 | G172: 1.491922909 | I172: 4 | J172: 3.240192104
A173: MA. Ph.d. | C173: 0 | D173: 0 | F173: 0 | G173: 0 | I173: 0 | J173: 0
A174: MA. Samf. | C174: 0 | D174: 0 | F174: 0 | G174: 0 | I174: 0 | J174: 0
A175: Øvrige Mag. | C175: 1 | D175: 0.9998128859 | F175: 2 | G175: 1.953470966 | I175: 3 | J175: 2.953283852
A176: Agronom | C176: 1 | D176: 0.6305744402 | F176: 1 | G176: 0.5008420133 | I176: 2 | J176: 1.131416454
A177: Landsk. Arkt. | C177: 0 | D177: 0 | F177: 0 | G177: 0 | I177: 0 | J177: 0
A178: Hortonom | C178: 0 | D178: 0 | F178: 0 | G178: 0 | I178: 0 | J178: 0
A179: Forstkand. | C179: 0 | D179: 0 | F179: 0 | G179: 0 | I179: 0 | J179: 0
A180: Jordbrugsakad. | C180: 1 | D180: 0.6305744402 | F180: 1 | G180: 0.5008420133 | I180: 2 | J180: 1.131416454
A181: Mejeriing. | C181: 0 | D181: 0 | F181: 0 | G181: 0 | I181: 0 | J181: 0
A182: Levn.m.kand. | C182: 0 | D182: 0 | F182: 0 | G182: 0 | I182: 0 | J182: 0
A183: Dyrlæge | C183: 0 | D183: 0 | F183: 0 | G183: 0 | I183: 0 | J183: 0
A184: Farmaceut | C184: 1 | D184: 0.3536456059 | F184: 2 | G184: 1.999625772 | I184: 3 | J184: 2.353271378
A185: Læge | C185: 0 | D185: 0 | F185: 0 | G185: 0 | I185: 0 | J185: 0
A186: Tandlæge | C186: 0 | D186: 0 | F186: 0 | G186: 0 | I186: 0 | J186: 0
A187: Arkitekt | C187: 2 | D187: 1.357824487 | F187: 0 | G187: 0 | I187: 2 | J187: 1.357824487
A188: Landinspek. | C188: 0 | D188: 0 | F188: 0 | G188: 0 | I188: 0 | J188: 0
A189: Bibliotekar | C189: 0 | D189: 0 | F189: 2 | G189: 1.54244371 | I189: 2 | J189: 1.54244371
A190: Musikudd. | C190: 0 | D190: 0 | F190: 0 | G190: 0 | I190: 0 | J190: 0
A191: Teolog | C191: 0 | D191: 0 | F191: 0 | G191: 0 | I191: 0 | J191: 0
A192: Psykolog | C192: 0 | D192: 0 | F192: 0 | G192: 0 | I192: 0 | J192: 0
A193: Jurist | C193: 0 | D193: 0 | F193: 0 | G193: 0 | I193: 0 | J193: 0
A194: Økonom | C194: 0 | D194: 0 | F194: 1 | G194: 0.9075032745 | I194: 1 | J194: 0.9075032745
A195: Samf. Adm. | C195: 5 | D195: 4.214432732 | F195: 9 | G195: 7.27811389 | I195: 14 | J195: 11.49254662
A196: Cand. Merc. | C196: 1 | D196: 0.9998128859 | F196: 0 | G196: 0 | I196: 1 | J196: 0.9998128859
A197: HA | C197: 1 | D197: 0.9998128859 | F197: 0 | G197: 0 | I197: 1 | J197: 0.9998128859
A198: HD | C198: 0 | D198: 0 | F198: 2 | G198: 1.26114888 | I198: 2 | J198: 1.26114888
A199: Komm. og Sprog | C199: 0 | D199: 0 | F199: 1 | G199: 0.9998128859 | I199: 1 | J199: 0.9998128859
A200: Cand. IT. | C200: 0 | D200: 0 | F200: 0 | G200: 0 | I200: 0 | J200: 0
A201: Bac. Samf. | C201: 0 | D201: 0 | F201: 0 | G201: 0 | I201: 0 | J201: 0
A202: Bac. Hum. | C202: 0 | D202: 0 | F202: 3 | G202: 2.427493295 | I202: 3 | J202: 2.427493295
A203: Bac. Nat. | C203: 0 | D203: 0 | F203: 0 | G203: 0 | I203: 0 | J203: 0
A204: Andre | C204: 3 | D204: 2.537890601 | F204: 1 | G204: 0.9998128859 | I204: 4 | J204: 3.537703487
A206: Total | C206: 32 | D206: 26.8608495 | F206: 41 | G206: 34.1763862 | I206: 73 | J206: 61.0372357
A208: Ingeniører i alt | C208: 5 | D208: 4.739599576 | F208: 1 | G208: 0.9998128859 | I208: 6 | J208: 5.739412462
A209: Magistre i alt | C209: 11 | D209: 9.027630512 | F209: 17 | G209: 14.25996382 | I209: 28 | J209: 23.28759434
A210: DJØF'ere i alt | C210: 7 | D210: 6.214058504 | F210: 10 | G210: 8.185617165 | I210: 17 | J210: 14.39967567
A215: Kerteminde
C217: Mænd | F217: Kvinder | I217: I alt
C218: Ledigheds- berørte | D218: Gns. brutto- ledighed | F218: Ledigheds- berørte | G218: Gns. brutto- ledighed | I218: Ledigheds- berørte | J218: Gns. brutto- ledighed
A221: Civ. ing. | C221: 1 | D221: 0.8463793426 | F221: 0 | G221: 0 | I221: 1 | J221: 0.8463793426
A222: Diplom ing. | C222: 2 | D222: 1.308551113 | F222: 1 | G222: 0.9998128859 | I222: 3 | J222: 2.308363999
A223: Cand. Scient. Tek. | C223: 1 | D223: 0.9998128859 | F223: 1 | G223: 0.9998128859 | I223: 2 | J223: 1.999625772
A224: MA. Hum. | C224: 2 | D224: 1.999625772 | F224: 4 | G224: 3.744776399 | I224: 6 | J224: 5.744402171
A225: MA. Nat. | C225: 1 | D225: 0.5382648288 | F225: 1 | G225: 0.9075032745 | I225: 2 | J225: 1.445768103
A226: MA. Ph.d. | C226: 0 | D226: 0 | F226: 0 | G226: 0 | I226: 0 | J226: 0
A227: MA. Samf. | C227: 0 | D227: 0 | F227: 0 | G227: 0 | I227: 0 | J227: 0
A228: Øvrige Mag. | C228: 0 | D228: 0 | F228: 0 | G228: 0 | I228: 0 | J228: 0
A229: Agronom | C229: 0 | D229: 0 | F229: 0 | G229: 0 | I229: 0 | J229: 0
A230: Landsk. Arkt. | C230: 0 | D230: 0 | F230: 0 | G230: 0 | I230: 0 | J230: 0
A231: Hortonom | C231: 0 | D231: 0 | F231: 0 | G231: 0 | I231: 0 | J231: 0
A232: Forstkand. | C232: 0 | D232: 0 | F232: 0 | G232: 0 | I232: 0 | J232: 0
A233: Jordbrugsakad. | C233: 0 | D233: 0 | F233: 0 | G233: 0 | I233: 0 | J233: 0
A234: Mejeriing. | C234: 0 | D234: 0 | F234: 0 | G234: 0 | I234: 0 | J234: 0
A235: Levn.m.kand. | C235: 0 | D235: 0 | F235: 0 | G235: 0 | I235: 0 | J235: 0
A236: Dyrlæge | C236: 0 | D236: 0 | F236: 0 | G236: 0 | I236: 0 | J236: 0
A237: Farmaceut | C237: 0 | D237: 0 | F237: 0 | G237: 0 | I237: 0 | J237: 0
A238: Læge | C238: 0 | D238: 0 | F238: 0 | G238: 0 | I238: 0 | J238: 0
A239: Tandlæge | C239: 0 | D239: 0 | F239: 0 | G239: 0 | I239: 0 | J239: 0
A240: Arkitekt | C240: 0 | D240: 0 | F240: 0 | G240: 0 | I240: 0 | J240: 0
... 285 more rows

Sheet Tabel 3 F
A1: Tabel 3. Ledige i procent af forsikrede
A3: Fyn
C5: Mænd | F5: Kvinder | I5: I alt
C6: Ledigheds- berørte | D6: Gns. brutto- ledighed | F6: Ledigheds- berørte | G6: Gns. brutto- ledighed | I6: Ledigheds- berørte | J6: Gns. brutto- ledighed
A9: Civ. ing. | C9: =IF(OR('Tabel 1 F'!C7<5,'Tabel 2 F'!C9<0.5),"-",IFERROR('Tabel 2 F'!C9/'Tabel 1 F'!C7*100,"-")) -> 6.879361914 | D9: =IF(OR('Tabel 1 F'!C7<5,'Tabel 2 F'!D9<0.5),"-",IFERROR('Tabel 2 F'!D9/'Tabel 1 F'!C7*100,"-")) -> 6.339181172 | F9: =IF(OR('Tabel 1 F'!E7<5,'Tabel 2 F'!F9<0.5),"-",IFERROR('Tabel 2 F'!F9/'Tabel 1 F'!E7*100,"-")) -> 11.58301158 | G9: =IF(OR('Tabel 1 F'!E7<5,'Tabel 2 F'!G9<0.5),"-",IFERROR('Tabel 2 F'!G9/'Tabel 1 F'!E7*100,"-")) -> 10.15400909 | I9: =IF(OR('Tabel 1 F'!G7<5,'Tabel 2 F'!I9<0.5),"-",IFERROR('Tabel 2 F'!I9/'Tabel 1 F'!G7*100,"-")) -> 7.844690967 | J9: =IF(OR('Tabel 1 F'!G7<5,'Tabel 2 F'!J9<0.5),"-",IFERROR('Tabel 2 F'!J9/'Tabel 1 F'!G7*100,"-")) -> 7.12209752
A10: Diplom ing. | C10: =IF(OR('Tabel 1 F'!C8<5,'Tabel 2 F'!C10<0.5),"-",IFERROR('Tabel 2 F'!C10/'Tabel 1 F'!C8*100,"-")) -> 2.424483307 | D10: =IF(OR('Tabel 1 F'!C8<5,'Tabel 2 F'!D10<0.5),"-",IFERROR('Tabel 2 F'!D10/'Tabel 1 F'!C8*100,"-")) -> 2.241625653 | F10: =IF(OR('Tabel 1 F'!E8<5,'Tabel 2 F'!F10<0.5),"-",IFERROR('Tabel 2 F'!F10/'Tabel 1 F'!E8*100,"-")) -> 4.667863555 | G10: =IF(OR('Tabel 1 F'!E8<5,'Tabel 2 F'!G10<0.5),"-",IFERROR('Tabel 2 F'!G10/'Tabel 1 F'!E8*100,"-")) -> 3.585177385 | I10: =IF(OR('Tabel 1 F'!G8<5,'Tabel 2 F'!I10<0.5),"-",IFERROR('Tabel 2 F'!I10/'Tabel 1 F'!G8*100,"-")) -> 2.831109665 | J10: =IF(OR('Tabel 1 F'!G8<5,'Tabel 2 F'!J10<0.5),"-",IFERROR('Tabel 2 F'!J10/'Tabel 1 F'!G8*100,"-")) -> 2.485152603
A11: Cand. Scient. Tek. | C11: =IF(OR('Tabel 1 F'!C9<5,'Tabel 2 F'!C11<0.5),"-",IFERROR('Tabel 2 F'!C11/'Tabel 1 F'!C9*100,"-")) -> 15.008726 | D11: =IF(OR('Tabel 1 F'!C9<5,'Tabel 2 F'!D11<0.5),"-",IFERROR('Tabel 2 F'!D11/'Tabel 1 F'!C9*100,"-")) -> 13.67271625 | F11: =IF(OR('Tabel 1 F'!E9<5,'Tabel 2 F'!F11<0.5),"-",IFERROR('Tabel 2 F'!F11/'Tabel 1 F'!E9*100,"-")) -> 15.7989228 | G11: =IF(OR('Tabel 1 F'!E9<5,'Tabel 2 F'!G11<0.5),"-",IFERROR('Tabel 2 F'!G11/'Tabel 1 F'!E9*100,"-")) -> 14.24989595 | I11: =IF(OR('Tabel 1 F'!G9<5,'Tabel 2 F'!I11<0.5),"-",IFERROR('Tabel 2 F'!I11/'Tabel 1 F'!G9*100,"-")) -> 15.39823009 | J11: =IF(OR('Tabel 1 F'!G9<5,'Tabel 2 F'!J11<0.5),"-",IFERROR('Tabel 2 F'!J11/'Tabel 1 F'!G9*100,"-")) -> 13.95721987
A12: MA. Hum. | C12: =IF(OR('Tabel 1 F'!C10<5,'Tabel 2 F'!C12<0.5),"-",IFERROR('Tabel 2 F'!C12/'Tabel 1 F'!C10*100,"-")) -> 11.43410853 | D12: =IF(OR('Tabel 1 F'!C10<5,'Tabel 2 F'!D12<0.5),"-",IFERROR('Tabel 2 F'!D12/'Tabel 1 F'!C10*100,"-")) -> 10.34373388 | F12: =IF(OR('Tabel 1 F'!E10<5,'Tabel 2 F'!F12<0.5),"-",IFERROR('Tabel 2 F'!F12/'Tabel 1 F'!E10*100,"-")) -> 12.89117235 | G12: =IF(OR('Tabel 1 F'!E10<5,'Tabel 2 F'!G12<0.5),"-",IFERROR('Tabel 2 F'!G12/'Tabel 1 F'!E10*100,"-")) -> 11.18906058 | I12: =IF(OR('Tabel 1 F'!G10<5,'Tabel 2 F'!I12<0.5),"-",IFERROR('Tabel 2 F'!I12/'Tabel 1 F'!G10*100,"-")) -> 12.41727072 | J12: =IF(OR('Tabel 1 F'!G10<5,'Tabel 2 F'!J12<0.5),"-",IFERROR('Tabel 2 F'!J12/'Tabel 1 F'!G10*100,"-")) -> 10.91412293
A13: MA. Nat. | C13: =IF(OR('Tabel 1 F'!C11<5,'Tabel 2 F'!C13<0.5),"-",IFERROR('Tabel 2 F'!C13/'Tabel 1 F'!C11*100,"-")) -> 5.574324324 | D13: =IF(OR('Tabel 1 F'!C11<5,'Tabel 2 F'!D13<0.5),"-",IFERROR('Tabel 2 F'!D13/'Tabel 1 F'!C11*100,"-")) -> 4.8970999 | F13: =IF(OR('Tabel 1 F'!E11<5,'Tabel 2 F'!F13<0.5),"-",IFERROR('Tabel 2 F'!F13/'Tabel 1 F'!E11*100,"-")) -> 7.104795737 | G13: =IF(OR('Tabel 1 F'!E11<5,'Tabel 2 F'!G13<0.5),"-",IFERROR('Tabel 2 F'!G13/'Tabel 1 F'!E11*100,"-")) -> 6.27768283 | I13: =IF(OR('Tabel 1 F'!G11<5,'Tabel 2 F'!I13<0.5),"-",IFERROR('Tabel 2 F'!I13/'Tabel 1 F'!G11*100,"-")) -> 6.32034632 | J13: =IF(OR('Tabel 1 F'!G11<5,'Tabel 2 F'!J13<0.5),"-",IFERROR('Tabel 2 F'!J13/'Tabel 1 F'!G11*100,"-")) -> 5.570059372
A14: MA. Ph.d. | C14: =IF(OR('Tabel 1 F'!C12<5,'Tabel 2 F'!C14<0.5),"-",IFERROR('Tabel 2 F'!C14/'Tabel 1 F'!C12*100,"-")) -> 5.494505495 | D14: =IF(OR('Tabel 1 F'!C12<5,'Tabel 2 F'!D14<0.5),"-",IFERROR('Tabel 2 F'!D14/'Tabel 1 F'!C12*100,"-")) -> 5.054136283 | F14: =IF(OR('Tabel 1 F'!E12<5,'Tabel 2 F'!F14<0.5),"-",IFERROR('Tabel 2 F'!F14/'Tabel 1 F'!E12*100,"-")) -> 3.03030303 | G14: =IF(OR('Tabel 1 F'!E12<5,'Tabel 2 F'!G14<0.5),"-",IFERROR('Tabel 2 F'!G14/'Tabel 1 F'!E12*100,"-")) -> 1.980763161 | I14: =IF(OR('Tabel 1 F'!G12<5,'Tabel 2 F'!I14<0.5),"-",IFERROR('Tabel 2 F'!I14/'Tabel 1 F'!G12*100,"-")) -> 4.458598726 | J14: =IF(OR('Tabel 1 F'!G12<5,'Tabel 2 F'!J14<0.5),"-",IFERROR('Tabel 2 F'!J14/'Tabel 1 F'!G12*100,"-")) -> 3.762145034
A15: MA. Samf. | C15: =IF(OR('Tabel 1 F'!C13<5,'Tabel 2 F'!C15<0.5),"-",IFERROR('Tabel 2 F'!C15/'Tabel 1 F'!C13*100,"-")) -> 19.64285714 | D15: =IF(OR('Tabel 1 F'!C13<5,'Tabel 2 F'!D15<0.5),"-",IFERROR('Tabel 2 F'!D15/'Tabel 1 F'!C13*100,"-")) -> 18.53988648 | F15: =IF(OR('Tabel 1 F'!E13<5,'Tabel 2 F'!F15<0.5),"-",IFERROR('Tabel 2 F'!F15/'Tabel 1 F'!E13*100,"-")) -> 15.59633028 | G15: =IF(OR('Tabel 1 F'!E13<5,'Tabel 2 F'!G15<0.5),"-",IFERROR('Tabel 2 F'!G15/'Tabel 1 F'!E13*100,"-")) -> 15.23577804 | I15: =IF(OR('Tabel 1 F'!G13<5,'Tabel 2 F'!I15<0.5),"-",IFERROR('Tabel 2 F'!I15/'Tabel 1 F'!G13*100,"-")) -> 16.96969697 | J15: =IF(OR('Tabel 1 F'!G13<5,'Tabel 2 F'!J15<0.5),"-",IFERROR('Tabel 2 F'!J15/'Tabel 1 F'!G13*100,"-")) -> 16.35717242
A16: Øvrige Mag. | C16: =IF(OR('Tabel 1 F'!C14<5,'Tabel 2 F'!C16<0.5),"-",IFERROR('Tabel 2 F'!C16/'Tabel 1 F'!C14*100,"-")) -> 7.5 | D16: =IF(OR('Tabel 1 F'!C14<5,'Tabel 2 F'!D16<0.5),"-",IFERROR('Tabel 2 F'!D16/'Tabel 1 F'!C14*100,"-")) -> 6.956745462 | F16: =IF(OR('Tabel 1 F'!E14<5,'Tabel 2 F'!F16<0.5),"-",IFERROR('Tabel 2 F'!F16/'Tabel 1 F'!E14*100,"-")) -> 9.090909091 | G16: =IF(OR('Tabel 1 F'!E14<5,'Tabel 2 F'!G16<0.5),"-",IFERROR('Tabel 2 F'!G16/'Tabel 1 F'!E14*100,"-")) -> 8.468111443 | I16: =IF(OR('Tabel 1 F'!G14<5,'Tabel 2 F'!I16<0.5),"-",IFERROR('Tabel 2 F'!I16/'Tabel 1 F'!G14*100,"-")) -> 8.520179372 | J16: =IF(OR('Tabel 1 F'!G14<5,'Tabel 2 F'!J16<0.5),"-",IFERROR('Tabel 2 F'!J16/'Tabel 1 F'!G14*100,"-")) -> 7.925917369
A17: Agronom | C17: =IF(OR('Tabel 1 F'!C15<5,'Tabel 2 F'!C17<0.5),"-",IFERROR('Tabel 2 F'!C17/'Tabel 1 F'!C15*100,"-")) -> 4.651162791 | D17: =IF(OR('Tabel 1 F'!C15<5,'Tabel 2 F'!D17<0.5),"-",IFERROR('Tabel 2 F'!D17/'Tabel 1 F'!C15*100,"-")) -> 3.684261675 | F17: =IF(OR('Tabel 1 F'!E15<5,'Tabel 2 F'!F17<0.5),"-",IFERROR('Tabel 2 F'!F17/'Tabel 1 F'!E15*100,"-")) -> 2.941176471 | G17: =IF(OR('Tabel 1 F'!E15<5,'Tabel 2 F'!G17<0.5),"-",IFERROR('Tabel 2 F'!G17/'Tabel 1 F'!E15*100,"-")) -> 1.052975297 | I17: =IF(OR('Tabel 1 F'!G15<5,'Tabel 2 F'!I17<0.5),"-",IFERROR('Tabel 2 F'!I17/'Tabel 1 F'!G15*100,"-")) -> 3.896103896 | J17: =IF(OR('Tabel 1 F'!G15<5,'Tabel 2 F'!J17<0.5),"-",IFERROR('Tabel 2 F'!J17/'Tabel 1 F'!G15*100,"-")) -> 2.522394963
A18: Landsk. Arkt. | C18: =IF(OR('Tabel 1 F'!C16<5,'Tabel 2 F'!C18<0.5),"-",IFERROR('Tabel 2 F'!C18/'Tabel 1 F'!C16*100,"-")) -> - | D18: =IF(OR('Tabel 1 F'!C16<5,'Tabel 2 F'!D18<0.5),"-",IFERROR('Tabel 2 F'!D18/'Tabel 1 F'!C16*100,"-")) -> - | F18: =IF(OR('Tabel 1 F'!E16<5,'Tabel 2 F'!F18<0.5),"-",IFERROR('Tabel 2 F'!F18/'Tabel 1 F'!E16*100,"-")) -> 10 | G18: =IF(OR('Tabel 1 F'!E16<5,'Tabel 2 F'!G18<0.5),"-",IFERROR('Tabel 2 F'!G18/'Tabel 1 F'!E16*100,"-")) -> 6.998066488 | I18: =IF(OR('Tabel 1 F'!G16<5,'Tabel 2 F'!I18<0.5),"-",IFERROR('Tabel 2 F'!I18/'Tabel 1 F'!G16*100,"-")) -> 7.142857143 | J18: =IF(OR('Tabel 1 F'!G16<5,'Tabel 2 F'!J18<0.5),"-",IFERROR('Tabel 2 F'!J18/'Tabel 1 F'!G16*100,"-")) -> 4.99861892
A19: Hortonom | C19: =IF(OR('Tabel 1 F'!C17<5,'Tabel 2 F'!C19<0.5),"-",IFERROR('Tabel 2 F'!C19/'Tabel 1 F'!C17*100,"-")) -> - | D19: =IF(OR('Tabel 1 F'!C17<5,'Tabel 2 F'!D19<0.5),"-",IFERROR('Tabel 2 F'!D19/'Tabel 1 F'!C17*100,"-")) -> - | F19: =IF(OR('Tabel 1 F'!E17<5,'Tabel 2 F'!F19<0.5),"-",IFERROR('Tabel 2 F'!F19/'Tabel 1 F'!E17*100,"-")) -> 9.090909091 | G19: =IF(OR('Tabel 1 F'!E17<5,'Tabel 2 F'!G19<0.5),"-",IFERROR('Tabel 2 F'!G19/'Tabel 1 F'!E17*100,"-")) -> 7.745388772 | I19: =IF(OR('Tabel 1 F'!G17<5,'Tabel 2 F'!I19<0.5),"-",IFERROR('Tabel 2 F'!I19/'Tabel 1 F'!G17*100,"-")) -> 4.761904762 | J19: =IF(OR('Tabel 1 F'!G17<5,'Tabel 2 F'!J19<0.5),"-",IFERROR('Tabel 2 F'!J19/'Tabel 1 F'!G17*100,"-")) -> 4.057108404
A20: Forstkand. | C20: =IF(OR('Tabel 1 F'!C18<5,'Tabel 2 F'!C20<0.5),"-",IFERROR('Tabel 2 F'!C20/'Tabel 1 F'!C18*100,"-")) -> - | D20: =IF(OR('Tabel 1 F'!C18<5,'Tabel 2 F'!D20<0.5),"-",IFERROR('Tabel 2 F'!D20/'Tabel 1 F'!C18*100,"-")) -> - | F20: =IF(OR('Tabel 1 F'!E18<5,'Tabel 2 F'!F20<0.5),"-",IFERROR('Tabel 2 F'!F20/'Tabel 1 F'!E18*100,"-")) -> 14.28571429 | G20: =IF(OR('Tabel 1 F'!E18<5,'Tabel 2 F'!G20<0.5),"-",IFERROR('Tabel 2 F'!G20/'Tabel 1 F'!E18*100,"-")) -> 14.28304123 | I20: =IF(OR('Tabel 1 F'!G18<5,'Tabel 2 F'!I20<0.5),"-",IFERROR('Tabel 2 F'!I20/'Tabel 1 F'!G18*100,"-")) -> 3.846153846 | J20: =IF(OR('Tabel 1 F'!G18<5,'Tabel 2 F'!J20<0.5),"-",IFERROR('Tabel 2 F'!J20/'Tabel 1 F'!G18*100,"-")) -> 3.845434177
A21: Jordbrugsakad. | C21: =IF(OR('Tabel 1 F'!C19<5,'Tabel 2 F'!C21<0.5),"-",IFERROR('Tabel 2 F'!C21/'Tabel 1 F'!C19*100,"-")) -> 3.007518797 | D21: =IF(OR('Tabel 1 F'!C19<5,'Tabel 2 F'!D21<0.5),"-",IFERROR('Tabel 2 F'!D21/'Tabel 1 F'!C19*100,"-")) -> 2.382304542 | F21: =IF(OR('Tabel 1 F'!E19<5,'Tabel 2 F'!F21<0.5),"-",IFERROR('Tabel 2 F'!F21/'Tabel 1 F'!E19*100,"-")) -> 5.982905983 | G21: =IF(OR('Tabel 1 F'!E19<5,'Tabel 2 F'!G21<0.5),"-",IFERROR('Tabel 2 F'!G21/'Tabel 1 F'!E19*100,"-")) -> 4.119175141 | I21: =IF(OR('Tabel 1 F'!G19<5,'Tabel 2 F'!I21<0.5),"-",IFERROR('Tabel 2 F'!I21/'Tabel 1 F'!G19*100,"-")) -> 4.4 | J21: =IF(OR('Tabel 1 F'!G19<5,'Tabel 2 F'!J21<0.5),"-",IFERROR('Tabel 2 F'!J21/'Tabel 1 F'!G19*100,"-")) -> 3.195159983
A22: Mejeriing. | C22: =IF(OR('Tabel 1 F'!C20<5,'Tabel 2 F'!C22<0.5),"-",IFERROR('Tabel 2 F'!C22/'Tabel 1 F'!C20*100,"-")) -> - | D22: =IF(OR('Tabel 1 F'!C20<5,'Tabel 2 F'!D22<0.5),"-",IFERROR('Tabel 2 F'!D22/'Tabel 1 F'!C20*100,"-")) -> - | F22: =IF(OR('Tabel 1 F'!E20<5,'Tabel 2 F'!F22<0.5),"-",IFERROR('Tabel 2 F'!F22/'Tabel 1 F'!E20*100,"-")) -> - | G22: =IF(OR('Tabel 1 F'!E20<5,'Tabel 2 F'!G22<0.5),"-",IFERROR('Tabel 2 F'!G22/'Tabel 1 F'!E20*100,"-")) -> - | I22: =IF(OR('Tabel 1 F'!G20<5,'Tabel 2 F'!I22<0.5),"-",IFERROR('Tabel 2 F'!I22/'Tabel 1 F'!G20*100,"-")) -> - | J22: =IF(OR('Tabel 1 F'!G20<5,'Tabel 2 F'!J22<0.5),"-",IFERROR('Tabel 2 F'!J22/'Tabel 1 F'!G20*100,"-")) -> -
A23: Levn.m.kand. | C23: =IF(OR('Tabel 1 F'!C21<5,'Tabel 2 F'!C23<0.5),"-",IFERROR('Tabel 2 F'!C23/'Tabel 1 F'!C21*100,"-")) -> - | D23: =IF(OR('Tabel 1 F'!C21<5,'Tabel 2 F'!D23<0.5),"-",IFERROR('Tabel 2 F'!D23/'Tabel 1 F'!C21*100,"-")) -> - | F23: =IF(OR('Tabel 1 F'!E21<5,'Tabel 2 F'!F23<0.5),"-",IFERROR('Tabel 2 F'!F23/'Tabel 1 F'!E21*100,"-")) -> 20 | G23: =IF(OR('Tabel 1 F'!E21<5,'Tabel 2 F'!G23<0.5),"-",IFERROR('Tabel 2 F'!G23/'Tabel 1 F'!E21*100,"-")) -> 18.61161355 | I23: =IF(OR('Tabel 1 F'!G21<5,'Tabel 2 F'!I23<0.5),"-",IFERROR('Tabel 2 F'!I23/'Tabel 1 F'!G21*100,"-")) -> 15.38461538 | J23: =IF(OR('Tabel 1 F'!G21<5,'Tabel 2 F'!J23<0.5),"-",IFERROR('Tabel 2 F'!J23/'Tabel 1 F'!G21*100,"-")) -> 14.31662581
A24: Dyrlæge | C24: =IF(OR('Tabel 1 F'!C22<5,'Tabel 2 F'!C24<0.5),"-",IFERROR('Tabel 2 F'!C24/'Tabel 1 F'!C22*100,"-")) -> - | D24: =IF(OR('Tabel 1 F'!C22<5,'Tabel 2 F'!D24<0.5),"-",IFERROR('Tabel 2 F'!D24/'Tabel 1 F'!C22*100,"-")) -> - | F24: =IF(OR('Tabel 1 F'!E22<5,'Tabel 2 F'!F24<0.5),"-",IFERROR('Tabel 2 F'!F24/'Tabel 1 F'!E22*100,"-")) -> 2.912621359 | G24: =IF(OR('Tabel 1 F'!E22<5,'Tabel 2 F'!G24<0.5),"-",IFERROR('Tabel 2 F'!G24/'Tabel 1 F'!E22*100,"-")) -> 1.926245565 | I24: =IF(OR('Tabel 1 F'!G22<5,'Tabel 2 F'!I24<0.5),"-",IFERROR('Tabel 2 F'!I24/'Tabel 1 F'!G22*100,"-")) -> 2.419354839 | J24: =IF(OR('Tabel 1 F'!G22<5,'Tabel 2 F'!J24<0.5),"-",IFERROR('Tabel 2 F'!J24/'Tabel 1 F'!G22*100,"-")) -> 1.600026558
A25: Farmaceut | C25: =IF(OR('Tabel 1 F'!C23<5,'Tabel 2 F'!C25<0.5),"-",IFERROR('Tabel 2 F'!C25/'Tabel 1 F'!C23*100,"-")) -> 8.620689655 | D25: =IF(OR('Tabel 1 F'!C23<5,'Tabel 2 F'!D25<0.5),"-",IFERROR('Tabel 2 F'!D25/'Tabel 1 F'!C23*100,"-")) -> 6.390913568 | F25: =IF(OR('Tabel 1 F'!E23<5,'Tabel 2 F'!F25<0.5),"-",IFERROR('Tabel 2 F'!F25/'Tabel 1 F'!E23*100,"-")) -> 14.67391304 | G25: =IF(OR('Tabel 1 F'!E23<5,'Tabel 2 F'!G25<0.5),"-",IFERROR('Tabel 2 F'!G25/'Tabel 1 F'!E23*100,"-")) -> 12.02343536 | I25: =IF(OR('Tabel 1 F'!G23<5,'Tabel 2 F'!I25<0.5),"-",IFERROR('Tabel 2 F'!I25/'Tabel 1 F'!G23*100,"-")) -> 13.2231405 | J25: =IF(OR('Tabel 1 F'!G23<5,'Tabel 2 F'!J25<0.5),"-",IFERROR('Tabel 2 F'!J25/'Tabel 1 F'!G23*100,"-")) -> 10.67349212
A26: Læge | C26: =IF(OR('Tabel 1 F'!C24<5,'Tabel 2 F'!C26<0.5),"-",IFERROR('Tabel 2 F'!C26/'Tabel 1 F'!C24*100,"-")) -> 1.170960187 | D26: =IF(OR('Tabel 1 F'!C24<5,'Tabel 2 F'!D26<0.5),"-",IFERROR('Tabel 2 F'!D26/'Tabel 1 F'!C24*100,"-")) -> 1.073459292 | F26: =IF(OR('Tabel 1 F'!E24<5,'Tabel 2 F'!F26<0.5),"-",IFERROR('Tabel 2 F'!F26/'Tabel 1 F'!E24*100,"-")) -> 1.461632156 | G26: =IF(OR('Tabel 1 F'!E24<5,'Tabel 2 F'!G26<0.5),"-",IFERROR('Tabel 2 F'!G26/'Tabel 1 F'!E24*100,"-")) -> 1.157782597 | I26: =IF(OR('Tabel 1 F'!G24<5,'Tabel 2 F'!I26<0.5),"-",IFERROR('Tabel 2 F'!I26/'Tabel 1 F'!G24*100,"-")) -> 1.362179487 | J26: =IF(OR('Tabel 1 F'!G24<5,'Tabel 2 F'!J26<0.5),"-",IFERROR('Tabel 2 F'!J26/'Tabel 1 F'!G24*100,"-")) -> 1.128931595
A27: Tandlæge | C27: =IF(OR('Tabel 1 F'!C25<5,'Tabel 2 F'!C27<0.5),"-",IFERROR('Tabel 2 F'!C27/'Tabel 1 F'!C25*100,"-")) -> - | D27: =IF(OR('Tabel 1 F'!C25<5,'Tabel 2 F'!D27<0.5),"-",IFERROR('Tabel 2 F'!D27/'Tabel 1 F'!C25*100,"-")) -> - | F27: =IF(OR('Tabel 1 F'!E25<5,'Tabel 2 F'!F27<0.5),"-",IFERROR('Tabel 2 F'!F27/'Tabel 1 F'!E25*100,"-")) -> - | G27: =IF(OR('Tabel 1 F'!E25<5,'Tabel 2 F'!G27<0.5),"-",IFERROR('Tabel 2 F'!G27/'Tabel 1 F'!E25*100,"-")) -> - | I27: =IF(OR('Tabel 1 F'!G25<5,'Tabel 2 F'!I27<0.5),"-",IFERROR('Tabel 2 F'!I27/'Tabel 1 F'!G25*100,"-")) -> - | J27: =IF(OR('Tabel 1 F'!G25<5,'Tabel 2 F'!J27<0.5),"-",IFERROR('Tabel 2 F'!J27/'Tabel 1 F'!G25*100,"-")) -> -
A28: Arkitekt | C28: =IF(OR('Tabel 1 F'!C26<5,'Tabel 2 F'!C28<0.5),"-",IFERROR('Tabel 2 F'!C28/'Tabel 1 F'!C26*100,"-")) -> 6.896551724 | D28: =IF(OR('Tabel 1 F'!C26<5,'Tabel 2 F'!D28<0.5),"-",IFERROR('Tabel 2 F'!D28/'Tabel 1 F'!C26*100,"-")) -> 6.157558656 | F28: =IF(OR('Tabel 1 F'!E26<5,'Tabel 2 F'!F28<0.5),"-",IFERROR('Tabel 2 F'!F28/'Tabel 1 F'!E26*100,"-")) -> 9.589041096 | G28: =IF(OR('Tabel 1 F'!E26<5,'Tabel 2 F'!G28<0.5),"-",IFERROR('Tabel 2 F'!G28/'Tabel 1 F'!E26*100,"-")) -> 8.563673041 | I28: =IF(OR('Tabel 1 F'!G26<5,'Tabel 2 F'!I28<0.5),"-",IFERROR('Tabel 2 F'!I28/'Tabel 1 F'!G26*100,"-")) -> 8.125 | J28: =IF(OR('Tabel 1 F'!G26<5,'Tabel 2 F'!J28<0.5),"-",IFERROR('Tabel 2 F'!J28/'Tabel 1 F'!G26*100,"-")) -> 7.255348344
A29: Landinspek. | C29: =IF(OR('Tabel 1 F'!C27<5,'Tabel 2 F'!C29<0.5),"-",IFERROR('Tabel 2 F'!C29/'Tabel 1 F'!C27*100,"-")) -> - | D29: =IF(OR('Tabel 1 F'!C27<5,'Tabel 2 F'!D29<0.5),"-",IFERROR('Tabel 2 F'!D29/'Tabel 1 F'!C27*100,"-")) -> - | F29: =IF(OR('Tabel 1 F'!E27<5,'Tabel 2 F'!F29<0.5),"-",IFERROR('Tabel 2 F'!F29/'Tabel 1 F'!E27*100,"-")) -> - | G29: =IF(OR('Tabel 1 F'!E27<5,'Tabel 2 F'!G29<0.5),"-",IFERROR('Tabel 2 F'!G29/'Tabel 1 F'!E27*100,"-")) -> - | I29: =IF(OR('Tabel 1 F'!G27<5,'Tabel 2 F'!I29<0.5),"-",IFERROR('Tabel 2 F'!I29/'Tabel 1 F'!G27*100,"-")) -> - | J29: =IF(OR('Tabel 1 F'!G27<5,'Tabel 2 F'!J29<0.5),"-",IFERROR('Tabel 2 F'!J29/'Tabel 1 F'!G27*100,"-")) -> -
A30: Bibliotekar | C30: =IF(OR('Tabel 1 F'!C28<5,'Tabel 2 F'!C30<0.5),"-",IFERROR('Tabel 2 F'!C30/'Tabel 1 F'!C28*100,"-")) -> 6.153846154 | D30: =IF(OR('Tabel 1 F'!C28<5,'Tabel 2 F'!D30<0.5),"-",IFERROR('Tabel 2 F'!D30/'Tabel 1 F'!C28*100,"-")) -> 5.229598568 | F30: =IF(OR('Tabel 1 F'!E28<5,'Tabel 2 F'!F30<0.5),"-",IFERROR('Tabel 2 F'!F30/'Tabel 1 F'!E28*100,"-")) -> 4.635761589 | G30: =IF(OR('Tabel 1 F'!E28<5,'Tabel 2 F'!G30<0.5),"-",IFERROR('Tabel 2 F'!G30/'Tabel 1 F'!E28*100,"-")) -> 4.246209081 | I30: =IF(OR('Tabel 1 F'!G28<5,'Tabel 2 F'!I30<0.5),"-",IFERROR('Tabel 2 F'!I30/'Tabel 1 F'!G28*100,"-")) -> 5.092592593 | J30: =IF(OR('Tabel 1 F'!G28<5,'Tabel 2 F'!J30<0.5),"-",IFERROR('Tabel 2 F'!J30/'Tabel 1 F'!G28*100,"-")) -> 4.542136473
A31: Musikudd. | C31: =IF(OR('Tabel 1 F'!C29<5,'Tabel 2 F'!C31<0.5),"-",IFERROR('Tabel 2 F'!C31/'Tabel 1 F'!C29*100,"-")) -> 2.173913043 | D31: =IF(OR('Tabel 1 F'!C29<5,'Tabel 2 F'!D31<0.5),"-",IFERROR('Tabel 2 F'!D31/'Tabel 1 F'!C29*100,"-")) -> 2.173506274 | F31: =IF(OR('Tabel 1 F'!E29<5,'Tabel 2 F'!F31<0.5),"-",IFERROR('Tabel 2 F'!F31/'Tabel 1 F'!E29*100,"-")) -> 4.255319149 | G31: =IF(OR('Tabel 1 F'!E29<5,'Tabel 2 F'!G31<0.5),"-",IFERROR('Tabel 2 F'!G31/'Tabel 1 F'!E29*100,"-")) -> 2.295796834 | I31: =IF(OR('Tabel 1 F'!G29<5,'Tabel 2 F'!I31<0.5),"-",IFERROR('Tabel 2 F'!I31/'Tabel 1 F'!G29*100,"-")) -> 3.225806452 | J31: =IF(OR('Tabel 1 F'!G29<5,'Tabel 2 F'!J31<0.5),"-",IFERROR('Tabel 2 F'!J31/'Tabel 1 F'!G29*100,"-")) -> 2.23530903
A32: Teolog | C32: =IF(OR('Tabel 1 F'!C30<5,'Tabel 2 F'!C32<0.5),"-",IFERROR('Tabel 2 F'!C32/'Tabel 1 F'!C30*100,"-")) -> 2.173913043 | D32: =IF(OR('Tabel 1 F'!C30<5,'Tabel 2 F'!D32<0.5),"-",IFERROR('Tabel 2 F'!D32/'Tabel 1 F'!C30*100,"-")) -> 2.173506274 | F32: =IF(OR('Tabel 1 F'!E30<5,'Tabel 2 F'!F32<0.5),"-",IFERROR('Tabel 2 F'!F32/'Tabel 1 F'!E30*100,"-")) -> 2.409638554 | G32: =IF(OR('Tabel 1 F'!E30<5,'Tabel 2 F'!G32<0.5),"-",IFERROR('Tabel 2 F'!G32/'Tabel 1 F'!E30*100,"-")) -> 0.7619826277 | I32: =IF(OR('Tabel 1 F'!G30<5,'Tabel 2 F'!I32<0.5),"-",IFERROR('Tabel 2 F'!I32/'Tabel 1 F'!G30*100,"-")) -> 2.325581395 | J32: =IF(OR('Tabel 1 F'!G30<5,'Tabel 2 F'!J32<0.5),"-",IFERROR('Tabel 2 F'!J32/'Tabel 1 F'!G30*100,"-")) -> 1.265316641
A33: Psykolog | C33: =IF(OR('Tabel 1 F'!C31<5,'Tabel 2 F'!C33<0.5),"-",IFERROR('Tabel 2 F'!C33/'Tabel 1 F'!C31*100,"-")) -> 17.54385965 | D33: =IF(OR('Tabel 1 F'!C31<5,'Tabel 2 F'!D33<0.5),"-",IFERROR('Tabel 2 F'!D33/'Tabel 1 F'!C31*100,"-")) -> 16.90154407 | F33: =IF(OR('Tabel 1 F'!E31<5,'Tabel 2 F'!F33<0.5),"-",IFERROR('Tabel 2 F'!F33/'Tabel 1 F'!E31*100,"-")) -> 11.05651106 | G33: =IF(OR('Tabel 1 F'!E31<5,'Tabel 2 F'!G33<0.5),"-",IFERROR('Tabel 2 F'!G33/'Tabel 1 F'!E31*100,"-")) -> 9.680433369 | I33: =IF(OR('Tabel 1 F'!G31<5,'Tabel 2 F'!I33<0.5),"-",IFERROR('Tabel 2 F'!I33/'Tabel 1 F'!G31*100,"-")) -> 12.47600768 | J33: =IF(OR('Tabel 1 F'!G31<5,'Tabel 2 F'!J33<0.5),"-",IFERROR('Tabel 2 F'!J33/'Tabel 1 F'!G31*100,"-")) -> 11.26048446
A34: Jurist | C34: =IF(OR('Tabel 1 F'!C32<5,'Tabel 2 F'!C34<0.5),"-",IFERROR('Tabel 2 F'!C34/'Tabel 1 F'!C32*100,"-")) -> 3.5 | D34: =IF(OR('Tabel 1 F'!C32<5,'Tabel 2 F'!D34<0.5),"-",IFERROR('Tabel 2 F'!D34/'Tabel 1 F'!C32*100,"-")) -> 2.86783509 | F34: =IF(OR('Tabel 1 F'!E32<5,'Tabel 2 F'!F34<0.5),"-",IFERROR('Tabel 2 F'!F34/'Tabel 1 F'!E32*100,"-")) -> 4.909560724 | G34: =IF(OR('Tabel 1 F'!E32<5,'Tabel 2 F'!G34<0.5),"-",IFERROR('Tabel 2 F'!G34/'Tabel 1 F'!E32*100,"-")) -> 4.387752586 | I34: =IF(OR('Tabel 1 F'!G32<5,'Tabel 2 F'!I34<0.5),"-",IFERROR('Tabel 2 F'!I34/'Tabel 1 F'!G32*100,"-")) -> 4.429301533 | J34: =IF(OR('Tabel 1 F'!G32<5,'Tabel 2 F'!J34<0.5),"-",IFERROR('Tabel 2 F'!J34/'Tabel 1 F'!G32*100,"-")) -> 3.869893132
A35: Økonom | C35: =IF(OR('Tabel 1 F'!C33<5,'Tabel 2 F'!C35<0.5),"-",IFERROR('Tabel 2 F'!C35/'Tabel 1 F'!C33*100,"-")) -> 4.530744337 | D35: =IF(OR('Tabel 1 F'!C33<5,'Tabel 2 F'!D35<0.5),"-",IFERROR('Tabel 2 F'!D35/'Tabel 1 F'!C33*100,"-")) -> 4.019016603 | F35: =IF(OR('Tabel 1 F'!E33<5,'Tabel 2 F'!F35<0.5),"-",IFERROR('Tabel 2 F'!F35/'Tabel 1 F'!E33*100,"-")) -> 5.577689243 | G35: =IF(OR('Tabel 1 F'!E33<5,'Tabel 2 F'!G35<0.5),"-",IFERROR('Tabel 2 F'!G35/'Tabel 1 F'!E33*100,"-")) -> 4.543915028 | I35: =IF(OR('Tabel 1 F'!G33<5,'Tabel 2 F'!I35<0.5),"-",IFERROR('Tabel 2 F'!I35/'Tabel 1 F'!G33*100,"-")) -> 5 | J35: =IF(OR('Tabel 1 F'!G33<5,'Tabel 2 F'!J35<0.5),"-",IFERROR('Tabel 2 F'!J35/'Tabel 1 F'!G33*100,"-")) -> 4.254283576
A36: Samf. Adm. | C36: =IF(OR('Tabel 1 F'!C34<5,'Tabel 2 F'!C36<0.5),"-",IFERROR('Tabel 2 F'!C36/'Tabel 1 F'!C34*100,"-")) -> 8.208955224 | D36: =IF(OR('Tabel 1 F'!C34<5,'Tabel 2 F'!D36<0.5),"-",IFERROR('Tabel 2 F'!D36/'Tabel 1 F'!C34*100,"-")) -> 6.368162307 | F36: =IF(OR('Tabel 1 F'!E34<5,'Tabel 2 F'!F36<0.5),"-",IFERROR('Tabel 2 F'!F36/'Tabel 1 F'!E34*100,"-")) -> 10.58263971 | G36: =IF(OR('Tabel 1 F'!E34<5,'Tabel 2 F'!G36<0.5),"-",IFERROR('Tabel 2 F'!G36/'Tabel 1 F'!E34*100,"-")) -> 9.048445192 | I36: =IF(OR('Tabel 1 F'!G34<5,'Tabel 2 F'!I36<0.5),"-",IFERROR('Tabel 2 F'!I36/'Tabel 1 F'!G34*100,"-")) -> 9.658678286 | J36: =IF(OR('Tabel 1 F'!G34<5,'Tabel 2 F'!J36<0.5),"-",IFERROR('Tabel 2 F'!J36/'Tabel 1 F'!G34*100,"-")) -> 8.005139726
A37: Cand. Merc. | C37: =IF(OR('Tabel 1 F'!C35<5,'Tabel 2 F'!C37<0.5),"-",IFERROR('Tabel 2 F'!C37/'Tabel 1 F'!C35*100,"-")) -> 8.111111111 | D37: =IF(OR('Tabel 1 F'!C35<5,'Tabel 2 F'!D37<0.5),"-",IFERROR('Tabel 2 F'!D37/'Tabel 1 F'!C35*100,"-")) -> 6.933616083 | F37: =IF(OR('Tabel 1 F'!E35<5,'Tabel 2 F'!F37<0.5),"-",IFERROR('Tabel 2 F'!F37/'Tabel 1 F'!E35*100,"-")) -> 6.806930693 | G37: =IF(OR('Tabel 1 F'!E35<5,'Tabel 2 F'!G37<0.5),"-",IFERROR('Tabel 2 F'!G37/'Tabel 1 F'!E35*100,"-")) -> 6.03103253 | I37: =IF(OR('Tabel 1 F'!G35<5,'Tabel 2 F'!I37<0.5),"-",IFERROR('Tabel 2 F'!I37/'Tabel 1 F'!G35*100,"-")) -> 7.494145199 | J37: =IF(OR('Tabel 1 F'!G35<5,'Tabel 2 F'!J37<0.5),"-",IFERROR('Tabel 2 F'!J37/'Tabel 1 F'!G35*100,"-")) -> 6.506632763
A38: HA | C38: =IF(OR('Tabel 1 F'!C36<5,'Tabel 2 F'!C38<0.5),"-",IFERROR('Tabel 2 F'!C38/'Tabel 1 F'!C36*100,"-")) -> 12.61261261 | D38: =IF(OR('Tabel 1 F'!C36<5,'Tabel 2 F'!D38<0.5),"-",IFERROR('Tabel 2 F'!D38/'Tabel 1 F'!C36*100,"-")) -> 11.27320172 | F38: =IF(OR('Tabel 1 F'!E36<5,'Tabel 2 F'!F38<0.5),"-",IFERROR('Tabel 2 F'!F38/'Tabel 1 F'!E36*100,"-")) -> 12.57861635 | G38: =IF(OR('Tabel 1 F'!E36<5,'Tabel 2 F'!G38<0.5),"-",IFERROR('Tabel 2 F'!G38/'Tabel 1 F'!E36*100,"-")) -> 11.12406919 | I38: =IF(OR('Tabel 1 F'!G36<5,'Tabel 2 F'!I38<0.5),"-",IFERROR('Tabel 2 F'!I38/'Tabel 1 F'!G36*100,"-")) -> 12.5984252 | J38: =IF(OR('Tabel 1 F'!G36<5,'Tabel 2 F'!J38<0.5),"-",IFERROR('Tabel 2 F'!J38/'Tabel 1 F'!G36*100,"-")) -> 11.21096531
A39: HD | C39: =IF(OR('Tabel 1 F'!C37<5,'Tabel 2 F'!C39<0.5),"-",IFERROR('Tabel 2 F'!C39/'Tabel 1 F'!C37*100,"-")) -> 7.643312102 | D39: =IF(OR('Tabel 1 F'!C37<5,'Tabel 2 F'!D39<0.5),"-",IFERROR('Tabel 2 F'!D39/'Tabel 1 F'!C37*100,"-")) -> 6.517211118 | F39: =IF(OR('Tabel 1 F'!E37<5,'Tabel 2 F'!F39<0.5),"-",IFERROR('Tabel 2 F'!F39/'Tabel 1 F'!E37*100,"-")) -> 17.48251748 | G39: =IF(OR('Tabel 1 F'!E37<5,'Tabel 2 F'!G39<0.5),"-",IFERROR('Tabel 2 F'!G39/'Tabel 1 F'!E37*100,"-")) -> 15.50604326 | I39: =IF(OR('Tabel 1 F'!G37<5,'Tabel 2 F'!I39<0.5),"-",IFERROR('Tabel 2 F'!I39/'Tabel 1 F'!G37*100,"-")) -> 12.33333333 | J39: =IF(OR('Tabel 1 F'!G37<5,'Tabel 2 F'!J39<0.5),"-",IFERROR('Tabel 2 F'!J39/'Tabel 1 F'!G37*100,"-")) -> 10.80188777
A40: Komm. og Sprog | C40: =IF(OR('Tabel 1 F'!C38<5,'Tabel 2 F'!C40<0.5),"-",IFERROR('Tabel 2 F'!C40/'Tabel 1 F'!C38*100,"-")) -> 12.5 | D40: =IF(OR('Tabel 1 F'!C38<5,'Tabel 2 F'!D40<0.5),"-",IFERROR('Tabel 2 F'!D40/'Tabel 1 F'!C38*100,"-")) -> 12.0489338 | F40: =IF(OR('Tabel 1 F'!E38<5,'Tabel 2 F'!F40<0.5),"-",IFERROR('Tabel 2 F'!F40/'Tabel 1 F'!E38*100,"-")) -> 8.571428571 | G40: =IF(OR('Tabel 1 F'!E38<5,'Tabel 2 F'!G40<0.5),"-",IFERROR('Tabel 2 F'!G40/'Tabel 1 F'!E38*100,"-")) -> 7.599504593 | I40: =IF(OR('Tabel 1 F'!G38<5,'Tabel 2 F'!I40<0.5),"-",IFERROR('Tabel 2 F'!I40/'Tabel 1 F'!G38*100,"-")) -> 9.241706161 | J40: =IF(OR('Tabel 1 F'!G38<5,'Tabel 2 F'!J40<0.5),"-",IFERROR('Tabel 2 F'!J40/'Tabel 1 F'!G38*100,"-")) -> 8.358648912
A41: Cand. IT. | C41: =IF(OR('Tabel 1 F'!C39<5,'Tabel 2 F'!C41<0.5),"-",IFERROR('Tabel 2 F'!C41/'Tabel 1 F'!C39*100,"-")) -> 8.602150538 | D41: =IF(OR('Tabel 1 F'!C39<5,'Tabel 2 F'!D41<0.5),"-",IFERROR('Tabel 2 F'!D41/'Tabel 1 F'!C39*100,"-")) -> 7.864156521 | F41: =IF(OR('Tabel 1 F'!E39<5,'Tabel 2 F'!F41<0.5),"-",IFERROR('Tabel 2 F'!F41/'Tabel 1 F'!E39*100,"-")) -> 15.87301587 | G41: =IF(OR('Tabel 1 F'!E39<5,'Tabel 2 F'!G41<0.5),"-",IFERROR('Tabel 2 F'!G41/'Tabel 1 F'!E39*100,"-")) -> 14.33155228 | I41: =IF(OR('Tabel 1 F'!G39<5,'Tabel 2 F'!I41<0.5),"-",IFERROR('Tabel 2 F'!I41/'Tabel 1 F'!G39*100,"-")) -> 11.53846154 | J41: =IF(OR('Tabel 1 F'!G39<5,'Tabel 2 F'!J41<0.5),"-",IFERROR('Tabel 2 F'!J41/'Tabel 1 F'!G39*100,"-")) -> 10.47598943
A42: Bac. Samf. | C42: =IF(OR('Tabel 1 F'!C40<5,'Tabel 2 F'!C42<0.5),"-",IFERROR('Tabel 2 F'!C42/'Tabel 1 F'!C40*100,"-")) -> 11.53846154 | D42: =IF(OR('Tabel 1 F'!C40<5,'Tabel 2 F'!D42<0.5),"-",IFERROR('Tabel 2 F'!D42/'Tabel 1 F'!C40*100,"-")) -> 8.048304219 | F42: =IF(OR('Tabel 1 F'!E40<5,'Tabel 2 F'!F42<0.5),"-",IFERROR('Tabel 2 F'!F42/'Tabel 1 F'!E40*100,"-")) -> 10 | G42: =IF(OR('Tabel 1 F'!E40<5,'Tabel 2 F'!G42<0.5),"-",IFERROR('Tabel 2 F'!G42/'Tabel 1 F'!E40*100,"-")) -> 7.638412441 | I42: =IF(OR('Tabel 1 F'!G40<5,'Tabel 2 F'!I42<0.5),"-",IFERROR('Tabel 2 F'!I42/'Tabel 1 F'!G40*100,"-")) -> 10.71428571 | J42: =IF(OR('Tabel 1 F'!G40<5,'Tabel 2 F'!J42<0.5),"-",IFERROR('Tabel 2 F'!J42/'Tabel 1 F'!G40*100,"-")) -> 7.828719338
A43: Bac. Hum. | C43: =IF(OR('Tabel 1 F'!C41<5,'Tabel 2 F'!C43<0.5),"-",IFERROR('Tabel 2 F'!C43/'Tabel 1 F'!C41*100,"-")) -> 16.82242991 | D43: =IF(OR('Tabel 1 F'!C41<5,'Tabel 2 F'!D43<0.5),"-",IFERROR('Tabel 2 F'!D43/'Tabel 1 F'!C41*100,"-")) -> 14.15829851 | F43: =IF(OR('Tabel 1 F'!E41<5,'Tabel 2 F'!F43<0.5),"-",IFERROR('Tabel 2 F'!F43/'Tabel 1 F'!E41*100,"-")) -> 16.19047619 | G43: =IF(OR('Tabel 1 F'!E41<5,'Tabel 2 F'!G43<0.5),"-",IFERROR('Tabel 2 F'!G43/'Tabel 1 F'!E41*100,"-")) -> 13.82357222 | I43: =IF(OR('Tabel 1 F'!G41<5,'Tabel 2 F'!I43<0.5),"-",IFERROR('Tabel 2 F'!I43/'Tabel 1 F'!G41*100,"-")) -> 16.40378549 | J43: =IF(OR('Tabel 1 F'!G41<5,'Tabel 2 F'!J43<0.5),"-",IFERROR('Tabel 2 F'!J43/'Tabel 1 F'!G41*100,"-")) -> 13.93655554
A44: Bac. Nat. | C44: =IF(OR('Tabel 1 F'!C42<5,'Tabel 2 F'!C44<0.5),"-",IFERROR('Tabel 2 F'!C44/'Tabel 1 F'!C42*100,"-")) -> 5.494505495 | D44: =IF(OR('Tabel 1 F'!C42<5,'Tabel 2 F'!D44<0.5),"-",IFERROR('Tabel 2 F'!D44/'Tabel 1 F'!C42*100,"-")) -> 5.493477395 | F44: =IF(OR('Tabel 1 F'!E42<5,'Tabel 2 F'!F44<0.5),"-",IFERROR('Tabel 2 F'!F44/'Tabel 1 F'!E42*100,"-")) -> 11.9047619 | G44: =IF(OR('Tabel 1 F'!E42<5,'Tabel 2 F'!G44<0.5),"-",IFERROR('Tabel 2 F'!G44/'Tabel 1 F'!E42*100,"-")) -> 7.613760904 | I44: =IF(OR('Tabel 1 F'!G42<5,'Tabel 2 F'!I44<0.5),"-",IFERROR('Tabel 2 F'!I44/'Tabel 1 F'!G42*100,"-")) -> 7.518796992 | J44: =IF(OR('Tabel 1 F'!G42<5,'Tabel 2 F'!J44<0.5),"-",IFERROR('Tabel 2 F'!J44/'Tabel 1 F'!G42*100,"-")) -> 6.163040608
A45: Andre | C45: =IF(OR('Tabel 1 F'!C43<5,'Tabel 2 F'!C45<0.5),"-",IFERROR('Tabel 2 F'!C45/'Tabel 1 F'!C43*100,"-")) -> 7.788161994 | D45: =IF(OR('Tabel 1 F'!C43<5,'Tabel 2 F'!D45<0.5),"-",IFERROR('Tabel 2 F'!D45/'Tabel 1 F'!C43*100,"-")) -> 6.569588852 | F45: =IF(OR('Tabel 1 F'!E43<5,'Tabel 2 F'!F45<0.5),"-",IFERROR('Tabel 2 F'!F45/'Tabel 1 F'!E43*100,"-")) -> 9.764918626 | G45: =IF(OR('Tabel 1 F'!E43<5,'Tabel 2 F'!G45<0.5),"-",IFERROR('Tabel 2 F'!G45/'Tabel 1 F'!E43*100,"-")) -> 8.681348787 | I45: =IF(OR('Tabel 1 F'!G43<5,'Tabel 2 F'!I45<0.5),"-",IFERROR('Tabel 2 F'!I45/'Tabel 1 F'!G43*100,"-")) -> 8.70292887 | J45: =IF(OR('Tabel 1 F'!G43<5,'Tabel 2 F'!J45<0.5),"-",IFERROR('Tabel 2 F'!J45/'Tabel 1 F'!G43*100,"-")) -> 7.54683006
A47: Total | C47: =IF(OR('Tabel 1 F'!C45<5,'Tabel 2 F'!C47<0.5),"-",IFERROR('Tabel 2 F'!C47/'Tabel 1 F'!C45*100,"-")) -> 6.808100289 | D47: =IF(OR('Tabel 1 F'!C45<5,'Tabel 2 F'!D47<0.5),"-",IFERROR('Tabel 2 F'!D47/'Tabel 1 F'!C45*100,"-")) -> 6.040975878 | F47: =IF(OR('Tabel 1 F'!E45<5,'Tabel 2 F'!F47<0.5),"-",IFERROR('Tabel 2 F'!F47/'Tabel 1 F'!E45*100,"-")) -> 9.323017408 | G47: =IF(OR('Tabel 1 F'!E45<5,'Tabel 2 F'!G47<0.5),"-",IFERROR('Tabel 2 F'!G47/'Tabel 1 F'!E45*100,"-")) -> 8.083762443 | I47: =IF(OR('Tabel 1 F'!G45<5,'Tabel 2 F'!I47<0.5),"-",IFERROR('Tabel 2 F'!I47/'Tabel 1 F'!G45*100,"-")) -> 8.063737325 | J47: =IF(OR('Tabel 1 F'!G45<5,'Tabel 2 F'!J47<0.5),"-",IFERROR('Tabel 2 F'!J47/'Tabel 1 F'!G45*100,"-")) -> 7.060889595
A49: Ingeniører i alt | C49: =IF(OR('Tabel 1 F'!C47<5,'Tabel 2 F'!C49<0.5),"-",IFERROR('Tabel 2 F'!C49/'Tabel 1 F'!C47*100,"-")) -> 3.694231316 | D49: =IF(OR('Tabel 1 F'!C47<5,'Tabel 2 F'!D49<0.5),"-",IFERROR('Tabel 2 F'!D49/'Tabel 1 F'!C47*100,"-")) -> 3.409527951 | F49: =IF(OR('Tabel 1 F'!E47<5,'Tabel 2 F'!F49<0.5),"-",IFERROR('Tabel 2 F'!F49/'Tabel 1 F'!E47*100,"-")) -> 6.862745098 | G49: =IF(OR('Tabel 1 F'!E47<5,'Tabel 2 F'!G49<0.5),"-",IFERROR('Tabel 2 F'!G49/'Tabel 1 F'!E47*100,"-")) -> 5.670137449 | I49: =IF(OR('Tabel 1 F'!G47<5,'Tabel 2 F'!I49<0.5),"-",IFERROR('Tabel 2 F'!I49/'Tabel 1 F'!G47*100,"-")) -> 4.290657439 | J49: =IF(OR('Tabel 1 F'!G47<5,'Tabel 2 F'!J49<0.5),"-",IFERROR('Tabel 2 F'!J49/'Tabel 1 F'!G47*100,"-")) -> 3.835054445
A50: Magistre i alt | C50: =IF(OR('Tabel 1 F'!C48<5,'Tabel 2 F'!C50<0.5),"-",IFERROR('Tabel 2 F'!C50/'Tabel 1 F'!C48*100,"-")) -> 9.346299298 | D50: =IF(OR('Tabel 1 F'!C48<5,'Tabel 2 F'!D50<0.5),"-",IFERROR('Tabel 2 F'!D50/'Tabel 1 F'!C48*100,"-")) -> 8.44328265 | F50: =IF(OR('Tabel 1 F'!E48<5,'Tabel 2 F'!F50<0.5),"-",IFERROR('Tabel 2 F'!F50/'Tabel 1 F'!E48*100,"-")) -> 11.51555261 | G50: =IF(OR('Tabel 1 F'!E48<5,'Tabel 2 F'!G50<0.5),"-",IFERROR('Tabel 2 F'!G50/'Tabel 1 F'!E48*100,"-")) -> 10.09016686 | I50: =IF(OR('Tabel 1 F'!G48<5,'Tabel 2 F'!I50<0.5),"-",IFERROR('Tabel 2 F'!I50/'Tabel 1 F'!G48*100,"-")) -> 10.69156577 | J50: =IF(OR('Tabel 1 F'!G48<5,'Tabel 2 F'!J50<0.5),"-",IFERROR('Tabel 2 F'!J50/'Tabel 1 F'!G48*100,"-")) -> 9.464600951
A51: DJØF'ere i alt | C51: =IF(OR('Tabel 1 F'!C49<5,'Tabel 2 F'!C51<0.5),"-",IFERROR('Tabel 2 F'!C51/'Tabel 1 F'!C49*100,"-")) -> 7.660359945 | D51: =IF(OR('Tabel 1 F'!C49<5,'Tabel 2 F'!D51<0.5),"-",IFERROR('Tabel 2 F'!D51/'Tabel 1 F'!C49*100,"-")) -> 6.447477343 | F51: =IF(OR('Tabel 1 F'!E49<5,'Tabel 2 F'!F51<0.5),"-",IFERROR('Tabel 2 F'!F51/'Tabel 1 F'!E49*100,"-")) -> 8.053965658 | G51: =IF(OR('Tabel 1 F'!E49<5,'Tabel 2 F'!G51<0.5),"-",IFERROR('Tabel 2 F'!G51/'Tabel 1 F'!E49*100,"-")) -> 6.98696918 | I51: =IF(OR('Tabel 1 F'!G49<5,'Tabel 2 F'!I51<0.5),"-",IFERROR('Tabel 2 F'!I51/'Tabel 1 F'!G49*100,"-")) -> 7.869065684 | J51: =IF(OR('Tabel 1 F'!G49<5,'Tabel 2 F'!J51<0.5),"-",IFERROR('Tabel 2 F'!J51/'Tabel 1 F'!G49*100,"-")) -> 6.733537832
A56: Middelfart
C58: Mænd | F58: Kvinder | I58: I alt
C59: Ledigheds- berørte | D59: Gns. brutto- ledighed | F59: Ledigheds- berørte | G59: Gns. brutto- ledighed | I59: Ledigheds- berørte | J59: Gns. brutto- ledighed
A62: Civ. ing. | C62: =IF(OR('Tabel 1 F'!C60<5,'Tabel 2 F'!C62<0.5),"-",IFERROR('Tabel 2 F'!C62/'Tabel 1 F'!C60*100,"-")) -> 1.351351351 | D62: =IF(OR('Tabel 1 F'!C60<5,'Tabel 2 F'!D62<0.5),"-",IFERROR('Tabel 2 F'!D62/'Tabel 1 F'!C60*100,"-")) -> 1.351098494 | F62: =IF(OR('Tabel 1 F'!E60<5,'Tabel 2 F'!F62<0.5),"-",IFERROR('Tabel 2 F'!F62/'Tabel 1 F'!E60*100,"-")) -> - | G62: =IF(OR('Tabel 1 F'!E60<5,'Tabel 2 F'!G62<0.5),"-",IFERROR('Tabel 2 F'!G62/'Tabel 1 F'!E60*100,"-")) -> - | I62: =IF(OR('Tabel 1 F'!G60<5,'Tabel 2 F'!I62<0.5),"-",IFERROR('Tabel 2 F'!I62/'Tabel 1 F'!G60*100,"-")) -> 1 | J62: =IF(OR('Tabel 1 F'!G60<5,'Tabel 2 F'!J62<0.5),"-",IFERROR('Tabel 2 F'!J62/'Tabel 1 F'!G60*100,"-")) -> 0.9998128859
A63: Diplom ing. | C63: =IF(OR('Tabel 1 F'!C61<5,'Tabel 2 F'!C63<0.5),"-",IFERROR('Tabel 2 F'!C63/'Tabel 1 F'!C61*100,"-")) -> 1.255230126 | D63: =IF(OR('Tabel 1 F'!C61<5,'Tabel 2 F'!D63<0.5),"-",IFERROR('Tabel 2 F'!D63/'Tabel 1 F'!C61*100,"-")) -> 0.9653207415 | F63: =IF(OR('Tabel 1 F'!E61<5,'Tabel 2 F'!F63<0.5),"-",IFERROR('Tabel 2 F'!F63/'Tabel 1 F'!E61*100,"-")) -> 6.12244898 | G63: =IF(OR('Tabel 1 F'!E61<5,'Tabel 2 F'!G63<0.5),"-",IFERROR('Tabel 2 F'!G63/'Tabel 1 F'!E61*100,"-")) -> 4.708401167 | I63: =IF(OR('Tabel 1 F'!G61<5,'Tabel 2 F'!I63<0.5),"-",IFERROR('Tabel 2 F'!I63/'Tabel 1 F'!G61*100,"-")) -> 2.083333333 | J63: =IF(OR('Tabel 1 F'!G61<5,'Tabel 2 F'!J63<0.5),"-",IFERROR('Tabel 2 F'!J63/'Tabel 1 F'!G61*100,"-")) -> 1.602164286
A64: Cand. Scient. Tek. | C64: =IF(OR('Tabel 1 F'!C62<5,'Tabel 2 F'!C64<0.5),"-",IFERROR('Tabel 2 F'!C64/'Tabel 1 F'!C62*100,"-")) -> 3.703703704 | D64: =IF(OR('Tabel 1 F'!C62<5,'Tabel 2 F'!D64<0.5),"-",IFERROR('Tabel 2 F'!D64/'Tabel 1 F'!C62*100,"-")) -> 2.511024715 | F64: =IF(OR('Tabel 1 F'!E62<5,'Tabel 2 F'!F64<0.5),"-",IFERROR('Tabel 2 F'!F64/'Tabel 1 F'!E62*100,"-")) -> 3.846153846 | G64: =IF(OR('Tabel 1 F'!E62<5,'Tabel 2 F'!G64<0.5),"-",IFERROR('Tabel 2 F'!G64/'Tabel 1 F'!E62*100,"-")) -> 3.49039721 | I64: =IF(OR('Tabel 1 F'!G62<5,'Tabel 2 F'!I64<0.5),"-",IFERROR('Tabel 2 F'!I64/'Tabel 1 F'!G62*100,"-")) -> 3.773584906 | J64: =IF(OR('Tabel 1 F'!G62<5,'Tabel 2 F'!J64<0.5),"-",IFERROR('Tabel 2 F'!J64/'Tabel 1 F'!G62*100,"-")) -> 2.991471599
A65: MA. Hum. | C65: =IF(OR('Tabel 1 F'!C63<5,'Tabel 2 F'!C65<0.5),"-",IFERROR('Tabel 2 F'!C65/'Tabel 1 F'!C63*100,"-")) -> 7.142857143 | D65: =IF(OR('Tabel 1 F'!C63<5,'Tabel 2 F'!D65<0.5),"-",IFERROR('Tabel 2 F'!D65/'Tabel 1 F'!C63*100,"-")) -> 6.43093263 | F65: =IF(OR('Tabel 1 F'!E63<5,'Tabel 2 F'!F65<0.5),"-",IFERROR('Tabel 2 F'!F65/'Tabel 1 F'!E63*100,"-")) -> 8.571428571 | G65: =IF(OR('Tabel 1 F'!E63<5,'Tabel 2 F'!G65<0.5),"-",IFERROR('Tabel 2 F'!G65/'Tabel 1 F'!E63*100,"-")) -> 6.592355647 | I65: =IF(OR('Tabel 1 F'!G63<5,'Tabel 2 F'!I65<0.5),"-",IFERROR('Tabel 2 F'!I65/'Tabel 1 F'!G63*100,"-")) -> 8.074534161 | J65: =IF(OR('Tabel 1 F'!G63<5,'Tabel 2 F'!J65<0.5),"-",IFERROR('Tabel 2 F'!J65/'Tabel 1 F'!G63*100,"-")) -> 6.536208511
A66: MA. Nat. | C66: =IF(OR('Tabel 1 F'!C64<5,'Tabel 2 F'!C66<0.5),"-",IFERROR('Tabel 2 F'!C66/'Tabel 1 F'!C64*100,"-")) -> - | D66: =IF(OR('Tabel 1 F'!C64<5,'Tabel 2 F'!D66<0.5),"-",IFERROR('Tabel 2 F'!D66/'Tabel 1 F'!C64*100,"-")) -> - | F66: =IF(OR('Tabel 1 F'!E64<5,'Tabel 2 F'!F66<0.5),"-",IFERROR('Tabel 2 F'!F66/'Tabel 1 F'!E64*100,"-")) -> 5.882352941 | G66: =IF(OR('Tabel 1 F'!E64<5,'Tabel 2 F'!G66<0.5),"-",IFERROR('Tabel 2 F'!G66/'Tabel 1 F'!E64*100,"-")) -> 5.697807096 | I66: =IF(OR('Tabel 1 F'!G64<5,'Tabel 2 F'!I66<0.5),"-",IFERROR('Tabel 2 F'!I66/'Tabel 1 F'!G64*100,"-")) -> 3.174603175 | J66: =IF(OR('Tabel 1 F'!G64<5,'Tabel 2 F'!J66<0.5),"-",IFERROR('Tabel 2 F'!J66/'Tabel 1 F'!G64*100,"-")) -> 3.075007004
A67: MA. Ph.d. | C67: =IF(OR('Tabel 1 F'!C65<5,'Tabel 2 F'!C67<0.5),"-",IFERROR('Tabel 2 F'!C67/'Tabel 1 F'!C65*100,"-")) -> - | D67: =IF(OR('Tabel 1 F'!C65<5,'Tabel 2 F'!D67<0.5),"-",IFERROR('Tabel 2 F'!D67/'Tabel 1 F'!C65*100,"-")) -> - | F67: =IF(OR('Tabel 1 F'!E65<5,'Tabel 2 F'!F67<0.5),"-",IFERROR('Tabel 2 F'!F67/'Tabel 1 F'!E65*100,"-")) -> - | G67: =IF(OR('Tabel 1 F'!E65<5,'Tabel 2 F'!G67<0.5),"-",IFERROR('Tabel 2 F'!G67/'Tabel 1 F'!E65*100,"-")) -> - | I67: =IF(OR('Tabel 1 F'!G65<5,'Tabel 2 F'!I67<0.5),"-",IFERROR('Tabel 2 F'!I67/'Tabel 1 F'!G65*100,"-")) -> 16.66666667 | J67: =IF(OR('Tabel 1 F'!G65<5,'Tabel 2 F'!J67<0.5),"-",IFERROR('Tabel 2 F'!J67/'Tabel 1 F'!G65*100,"-")) -> 12.66138589
A68: MA. Samf. | C68: =IF(OR('Tabel 1 F'!C66<5,'Tabel 2 F'!C68<0.5),"-",IFERROR('Tabel 2 F'!C68/'Tabel 1 F'!C66*100,"-")) -> - | D68: =IF(OR('Tabel 1 F'!C66<5,'Tabel 2 F'!D68<0.5),"-",IFERROR('Tabel 2 F'!D68/'Tabel 1 F'!C66*100,"-")) -> - | F68: =IF(OR('Tabel 1 F'!E66<5,'Tabel 2 F'!F68<0.5),"-",IFERROR('Tabel 2 F'!F68/'Tabel 1 F'!E66*100,"-")) -> 27.27272727 | G68: =IF(OR('Tabel 1 F'!E66<5,'Tabel 2 F'!G68<0.5),"-",IFERROR('Tabel 2 F'!G68/'Tabel 1 F'!E66*100,"-")) -> 26.42844588 | I68: =IF(OR('Tabel 1 F'!G66<5,'Tabel 2 F'!I68<0.5),"-",IFERROR('Tabel 2 F'!I68/'Tabel 1 F'!G66*100,"-")) -> 27.27272727 | J68: =IF(OR('Tabel 1 F'!G66<5,'Tabel 2 F'!J68<0.5),"-",IFERROR('Tabel 2 F'!J68/'Tabel 1 F'!G66*100,"-")) -> 26.42844588
A69: Øvrige Mag. | C69: =IF(OR('Tabel 1 F'!C67<5,'Tabel 2 F'!C69<0.5),"-",IFERROR('Tabel 2 F'!C69/'Tabel 1 F'!C67*100,"-")) -> - | D69: =IF(OR('Tabel 1 F'!C67<5,'Tabel 2 F'!D69<0.5),"-",IFERROR('Tabel 2 F'!D69/'Tabel 1 F'!C67*100,"-")) -> - | F69: =IF(OR('Tabel 1 F'!E67<5,'Tabel 2 F'!F69<0.5),"-",IFERROR('Tabel 2 F'!F69/'Tabel 1 F'!E67*100,"-")) -> - | G69: =IF(OR('Tabel 1 F'!E67<5,'Tabel 2 F'!G69<0.5),"-",IFERROR('Tabel 2 F'!G69/'Tabel 1 F'!E67*100,"-")) -> - | I69: =IF(OR('Tabel 1 F'!G67<5,'Tabel 2 F'!I69<0.5),"-",IFERROR('Tabel 2 F'!I69/'Tabel 1 F'!G67*100,"-")) -> - | J69: =IF(OR('Tabel 1 F'!G67<5,'Tabel 2 F'!J69<0.5),"-",IFERROR('Tabel 2 F'!J69/'Tabel 1 F'!G67*100,"-")) -> -
A70: Agronom | C70: =IF(OR('Tabel 1 F'!C68<5,'Tabel 2 F'!C70<0.5),"-",IFERROR('Tabel 2 F'!C70/'Tabel 1 F'!C68*100,"-")) -> - | D70: =IF(OR('Tabel 1 F'!C68<5,'Tabel 2 F'!D70<0.5),"-",IFERROR('Tabel 2 F'!D70/'Tabel 1 F'!C68*100,"-")) -> - | F70: =IF(OR('Tabel 1 F'!E68<5,'Tabel 2 F'!F70<0.5),"-",IFERROR('Tabel 2 F'!F70/'Tabel 1 F'!E68*100,"-")) -> - | G70: =IF(OR('Tabel 1 F'!E68<5,'Tabel 2 F'!G70<0.5),"-",IFERROR('Tabel 2 F'!G70/'Tabel 1 F'!E68*100,"-")) -> - | I70: =IF(OR('Tabel 1 F'!G68<5,'Tabel 2 F'!I70<0.5),"-",IFERROR('Tabel 2 F'!I70/'Tabel 1 F'!G68*100,"-")) -> - | J70: =IF(OR('Tabel 1 F'!G68<5,'Tabel 2 F'!J70<0.5),"-",IFERROR('Tabel 2 F'!J70/'Tabel 1 F'!G68*100,"-")) -> -
A71: Landsk. Arkt. | C71: =IF(OR('Tabel 1 F'!C69<5,'Tabel 2 F'!C71<0.5),"-",IFERROR('Tabel 2 F'!C71/'Tabel 1 F'!C69*100,"-")) -> - | D71: =IF(OR('Tabel 1 F'!C69<5,'Tabel 2 F'!D71<0.5),"-",IFERROR('Tabel 2 F'!D71/'Tabel 1 F'!C69*100,"-")) -> - | F71: =IF(OR('Tabel 1 F'!E69<5,'Tabel 2 F'!F71<0.5),"-",IFERROR('Tabel 2 F'!F71/'Tabel 1 F'!E69*100,"-")) -> - | G71: =IF(OR('Tabel 1 F'!E69<5,'Tabel 2 F'!G71<0.5),"-",IFERROR('Tabel 2 F'!G71/'Tabel 1 F'!E69*100,"-")) -> - | I71: =IF(OR('Tabel 1 F'!G69<5,'Tabel 2 F'!I71<0.5),"-",IFERROR('Tabel 2 F'!I71/'Tabel 1 F'!G69*100,"-")) -> - | J71: =IF(OR('Tabel 1 F'!G69<5,'Tabel 2 F'!J71<0.5),"-",IFERROR('Tabel 2 F'!J71/'Tabel 1 F'!G69*100,"-")) -> -
A72: Hortonom | C72: =IF(OR('Tabel 1 F'!C70<5,'Tabel 2 F'!C72<0.5),"-",IFERROR('Tabel 2 F'!C72/'Tabel 1 F'!C70*100,"-")) -> - | D72: =IF(OR('Tabel 1 F'!C70<5,'Tabel 2 F'!D72<0.5),"-",IFERROR('Tabel 2 F'!D72/'Tabel 1 F'!C70*100,"-")) -> - | F72: =IF(OR('Tabel 1 F'!E70<5,'Tabel 2 F'!F72<0.5),"-",IFERROR('Tabel 2 F'!F72/'Tabel 1 F'!E70*100,"-")) -> - | G72: =IF(OR('Tabel 1 F'!E70<5,'Tabel 2 F'!G72<0.5),"-",IFERROR('Tabel 2 F'!G72/'Tabel 1 F'!E70*100,"-")) -> - | I72: =IF(OR('Tabel 1 F'!G70<5,'Tabel 2 F'!I72<0.5),"-",IFERROR('Tabel 2 F'!I72/'Tabel 1 F'!G70*100,"-")) -> - | J72: =IF(OR('Tabel 1 F'!G70<5,'Tabel 2 F'!J72<0.5),"-",IFERROR('Tabel 2 F'!J72/'Tabel 1 F'!G70*100,"-")) -> -
A73: Forstkand. | C73: =IF(OR('Tabel 1 F'!C71<5,'Tabel 2 F'!C73<0.5),"-",IFERROR('Tabel 2 F'!C73/'Tabel 1 F'!C71*100,"-")) -> - | D73: =IF(OR('Tabel 1 F'!C71<5,'Tabel 2 F'!D73<0.5),"-",IFERROR('Tabel 2 F'!D73/'Tabel 1 F'!C71*100,"-")) -> - | F73: =IF(OR('Tabel 1 F'!E71<5,'Tabel 2 F'!F73<0.5),"-",IFERROR('Tabel 2 F'!F73/'Tabel 1 F'!E71*100,"-")) -> - | G73: =IF(OR('Tabel 1 F'!E71<5,'Tabel 2 F'!G73<0.5),"-",IFERROR('Tabel 2 F'!G73/'Tabel 1 F'!E71*100,"-")) -> - | I73: =IF(OR('Tabel 1 F'!G71<5,'Tabel 2 F'!I73<0.5),"-",IFERROR('Tabel 2 F'!I73/'Tabel 1 F'!G71*100,"-")) -> - | J73: =IF(OR('Tabel 1 F'!G71<5,'Tabel 2 F'!J73<0.5),"-",IFERROR('Tabel 2 F'!J73/'Tabel 1 F'!G71*100,"-")) -> -
A74: Jordbrugsakad. | C74: =IF(OR('Tabel 1 F'!C72<5,'Tabel 2 F'!C74<0.5),"-",IFERROR('Tabel 2 F'!C74/'Tabel 1 F'!C72*100,"-")) -> - | D74: =IF(OR('Tabel 1 F'!C72<5,'Tabel 2 F'!D74<0.5),"-",IFERROR('Tabel 2 F'!D74/'Tabel 1 F'!C72*100,"-")) -> - | F74: =IF(OR('Tabel 1 F'!E72<5,'Tabel 2 F'!F74<0.5),"-",IFERROR('Tabel 2 F'!F74/'Tabel 1 F'!E72*100,"-")) -> 7.692307692 | G74: =IF(OR('Tabel 1 F'!E72<5,'Tabel 2 F'!G74<0.5),"-",IFERROR('Tabel 2 F'!G74/'Tabel 1 F'!E72*100,"-")) -> 7.690868353 | I74: =IF(OR('Tabel 1 F'!G72<5,'Tabel 2 F'!I74<0.5),"-",IFERROR('Tabel 2 F'!I74/'Tabel 1 F'!G72*100,"-")) -> 2.777777778 | J74: =IF(OR('Tabel 1 F'!G72<5,'Tabel 2 F'!J74<0.5),"-",IFERROR('Tabel 2 F'!J74/'Tabel 1 F'!G72*100,"-")) -> 2.777258016
A75: Mejeriing. | C75: =IF(OR('Tabel 1 F'!C73<5,'Tabel 2 F'!C75<0.5),"-",IFERROR('Tabel 2 F'!C75/'Tabel 1 F'!C73*100,"-")) -> - | D75: =IF(OR('Tabel 1 F'!C73<5,'Tabel 2 F'!D75<0.5),"-",IFERROR('Tabel 2 F'!D75/'Tabel 1 F'!C73*100,"-")) -> - | F75: =IF(OR('Tabel 1 F'!E73<5,'Tabel 2 F'!F75<0.5),"-",IFERROR('Tabel 2 F'!F75/'Tabel 1 F'!E73*100,"-")) -> - | G75: =IF(OR('Tabel 1 F'!E73<5,'Tabel 2 F'!G75<0.5),"-",IFERROR('Tabel 2 F'!G75/'Tabel 1 F'!E73*100,"-")) -> - | I75: =IF(OR('Tabel 1 F'!G73<5,'Tabel 2 F'!I75<0.5),"-",IFERROR('Tabel 2 F'!I75/'Tabel 1 F'!G73*100,"-")) -> - | J75: =IF(OR('Tabel 1 F'!G73<5,'Tabel 2 F'!J75<0.5),"-",IFERROR('Tabel 2 F'!J75/'Tabel 1 F'!G73*100,"-")) -> -
A76: Levn.m.kand. | C76: =IF(OR('Tabel 1 F'!C74<5,'Tabel 2 F'!C76<0.5),"-",IFERROR('Tabel 2 F'!C76/'Tabel 1 F'!C74*100,"-")) -> - | D76: =IF(OR('Tabel 1 F'!C74<5,'Tabel 2 F'!D76<0.5),"-",IFERROR('Tabel 2 F'!D76/'Tabel 1 F'!C74*100,"-")) -> - | F76: =IF(OR('Tabel 1 F'!E74<5,'Tabel 2 F'!F76<0.5),"-",IFERROR('Tabel 2 F'!F76/'Tabel 1 F'!E74*100,"-")) -> - | G76: =IF(OR('Tabel 1 F'!E74<5,'Tabel 2 F'!G76<0.5),"-",IFERROR('Tabel 2 F'!G76/'Tabel 1 F'!E74*100,"-")) -> - | I76: =IF(OR('Tabel 1 F'!G74<5,'Tabel 2 F'!I76<0.5),"-",IFERROR('Tabel 2 F'!I76/'Tabel 1 F'!G74*100,"-")) -> - | J76: =IF(OR('Tabel 1 F'!G74<5,'Tabel 2 F'!J76<0.5),"-",IFERROR('Tabel 2 F'!J76/'Tabel 1 F'!G74*100,"-")) -> -
A77: Dyrlæge | C77: =IF(OR('Tabel 1 F'!C75<5,'Tabel 2 F'!C77<0.5),"-",IFERROR('Tabel 2 F'!C77/'Tabel 1 F'!C75*100,"-")) -> - | D77: =IF(OR('Tabel 1 F'!C75<5,'Tabel 2 F'!D77<0.5),"-",IFERROR('Tabel 2 F'!D77/'Tabel 1 F'!C75*100,"-")) -> - | F77: =IF(OR('Tabel 1 F'!E75<5,'Tabel 2 F'!F77<0.5),"-",IFERROR('Tabel 2 F'!F77/'Tabel 1 F'!E75*100,"-")) -> - | G77: =IF(OR('Tabel 1 F'!E75<5,'Tabel 2 F'!G77<0.5),"-",IFERROR('Tabel 2 F'!G77/'Tabel 1 F'!E75*100,"-")) -> - | I77: =IF(OR('Tabel 1 F'!G75<5,'Tabel 2 F'!I77<0.5),"-",IFERROR('Tabel 2 F'!I77/'Tabel 1 F'!G75*100,"-")) -> - | J77: =IF(OR('Tabel 1 F'!G75<5,'Tabel 2 F'!J77<0.5),"-",IFERROR('Tabel 2 F'!J77/'Tabel 1 F'!G75*100,"-")) -> -
A78: Farmaceut | C78: =IF(OR('Tabel 1 F'!C76<5,'Tabel 2 F'!C78<0.5),"-",IFERROR('Tabel 2 F'!C78/'Tabel 1 F'!C76*100,"-")) -> - | D78: =IF(OR('Tabel 1 F'!C76<5,'Tabel 2 F'!D78<0.5),"-",IFERROR('Tabel 2 F'!D78/'Tabel 1 F'!C76*100,"-")) -> - | F78: =IF(OR('Tabel 1 F'!E76<5,'Tabel 2 F'!F78<0.5),"-",IFERROR('Tabel 2 F'!F78/'Tabel 1 F'!E76*100,"-")) -> - | G78: =IF(OR('Tabel 1 F'!E76<5,'Tabel 2 F'!G78<0.5),"-",IFERROR('Tabel 2 F'!G78/'Tabel 1 F'!E76*100,"-")) -> - | I78: =IF(OR('Tabel 1 F'!G76<5,'Tabel 2 F'!I78<0.5),"-",IFERROR('Tabel 2 F'!I78/'Tabel 1 F'!G76*100,"-")) -> - | J78: =IF(OR('Tabel 1 F'!G76<5,'Tabel 2 F'!J78<0.5),"-",IFERROR('Tabel 2 F'!J78/'Tabel 1 F'!G76*100,"-")) -> -
A79: Læge | C79: =IF(OR('Tabel 1 F'!C77<5,'Tabel 2 F'!C79<0.5),"-",IFERROR('Tabel 2 F'!C79/'Tabel 1 F'!C77*100,"-")) -> - | D79: =IF(OR('Tabel 1 F'!C77<5,'Tabel 2 F'!D79<0.5),"-",IFERROR('Tabel 2 F'!D79/'Tabel 1 F'!C77*100,"-")) -> - | F79: =IF(OR('Tabel 1 F'!E77<5,'Tabel 2 F'!F79<0.5),"-",IFERROR('Tabel 2 F'!F79/'Tabel 1 F'!E77*100,"-")) -> 1.25 | G79: =IF(OR('Tabel 1 F'!E77<5,'Tabel 2 F'!G79<0.5),"-",IFERROR('Tabel 2 F'!G79/'Tabel 1 F'!E77*100,"-")) -> - | I79: =IF(OR('Tabel 1 F'!G77<5,'Tabel 2 F'!I79<0.5),"-",IFERROR('Tabel 2 F'!I79/'Tabel 1 F'!G77*100,"-")) -> 0.9900990099 | J79: =IF(OR('Tabel 1 F'!G77<5,'Tabel 2 F'!J79<0.5),"-",IFERROR('Tabel 2 F'!J79/'Tabel 1 F'!G77*100,"-")) -> -
A80: Tandlæge | C80: =IF(OR('Tabel 1 F'!C78<5,'Tabel 2 F'!C80<0.5),"-",IFERROR('Tabel 2 F'!C80/'Tabel 1 F'!C78*100,"-")) -> - | D80: =IF(OR('Tabel 1 F'!C78<5,'Tabel 2 F'!D80<0.5),"-",IFERROR('Tabel 2 F'!D80/'Tabel 1 F'!C78*100,"-")) -> - | F80: =IF(OR('Tabel 1 F'!E78<5,'Tabel 2 F'!F80<0.5),"-",IFERROR('Tabel 2 F'!F80/'Tabel 1 F'!E78*100,"-")) -> - | G80: =IF(OR('Tabel 1 F'!E78<5,'Tabel 2 F'!G80<0.5),"-",IFERROR('Tabel 2 F'!G80/'Tabel 1 F'!E78*100,"-")) -> - | I80: =IF(OR('Tabel 1 F'!G78<5,'Tabel 2 F'!I80<0.5),"-",IFERROR('Tabel 2 F'!I80/'Tabel 1 F'!G78*100,"-")) -> - | J80: =IF(OR('Tabel 1 F'!G78<5,'Tabel 2 F'!J80<0.5),"-",IFERROR('Tabel 2 F'!J80/'Tabel 1 F'!G78*100,"-")) -> -
A81: Arkitekt | C81: =IF(OR('Tabel 1 F'!C79<5,'Tabel 2 F'!C81<0.5),"-",IFERROR('Tabel 2 F'!C81/'Tabel 1 F'!C79*100,"-")) -> 14.28571429 | D81: =IF(OR('Tabel 1 F'!C79<5,'Tabel 2 F'!D81<0.5),"-",IFERROR('Tabel 2 F'!D81/'Tabel 1 F'!C79*100,"-")) -> 14.28304123 | F81: =IF(OR('Tabel 1 F'!E79<5,'Tabel 2 F'!F81<0.5),"-",IFERROR('Tabel 2 F'!F81/'Tabel 1 F'!E79*100,"-")) -> - | G81: =IF(OR('Tabel 1 F'!E79<5,'Tabel 2 F'!G81<0.5),"-",IFERROR('Tabel 2 F'!G81/'Tabel 1 F'!E79*100,"-")) -> - | I81: =IF(OR('Tabel 1 F'!G79<5,'Tabel 2 F'!I81<0.5),"-",IFERROR('Tabel 2 F'!I81/'Tabel 1 F'!G79*100,"-")) -> 7.142857143 | J81: =IF(OR('Tabel 1 F'!G79<5,'Tabel 2 F'!J81<0.5),"-",IFERROR('Tabel 2 F'!J81/'Tabel 1 F'!G79*100,"-")) -> 7.141520614
A82: Landinspek. | C82: =IF(OR('Tabel 1 F'!C80<5,'Tabel 2 F'!C82<0.5),"-",IFERROR('Tabel 2 F'!C82/'Tabel 1 F'!C80*100,"-")) -> - | D82: =IF(OR('Tabel 1 F'!C80<5,'Tabel 2 F'!D82<0.5),"-",IFERROR('Tabel 2 F'!D82/'Tabel 1 F'!C80*100,"-")) -> - | F82: =IF(OR('Tabel 1 F'!E80<5,'Tabel 2 F'!F82<0.5),"-",IFERROR('Tabel 2 F'!F82/'Tabel 1 F'!E80*100,"-")) -> - | G82: =IF(OR('Tabel 1 F'!E80<5,'Tabel 2 F'!G82<0.5),"-",IFERROR('Tabel 2 F'!G82/'Tabel 1 F'!E80*100,"-")) -> - | I82: =IF(OR('Tabel 1 F'!G80<5,'Tabel 2 F'!I82<0.5),"-",IFERROR('Tabel 2 F'!I82/'Tabel 1 F'!G80*100,"-")) -> - | J82: =IF(OR('Tabel 1 F'!G80<5,'Tabel 2 F'!J82<0.5),"-",IFERROR('Tabel 2 F'!J82/'Tabel 1 F'!G80*100,"-")) -> -
A83: Bibliotekar | C83: =IF(OR('Tabel 1 F'!C81<5,'Tabel 2 F'!C83<0.5),"-",IFERROR('Tabel 2 F'!C83/'Tabel 1 F'!C81*100,"-")) -> - | D83: =IF(OR('Tabel 1 F'!C81<5,'Tabel 2 F'!D83<0.5),"-",IFERROR('Tabel 2 F'!D83/'Tabel 1 F'!C81*100,"-")) -> - | F83: =IF(OR('Tabel 1 F'!E81<5,'Tabel 2 F'!F83<0.5),"-",IFERROR('Tabel 2 F'!F83/'Tabel 1 F'!E81*100,"-")) -> - | G83: =IF(OR('Tabel 1 F'!E81<5,'Tabel 2 F'!G83<0.5),"-",IFERROR('Tabel 2 F'!G83/'Tabel 1 F'!E81*100,"-")) -> - | I83: =IF(OR('Tabel 1 F'!G81<5,'Tabel 2 F'!I83<0.5),"-",IFERROR('Tabel 2 F'!I83/'Tabel 1 F'!G81*100,"-")) -> 5.263157895 | J83: =IF(OR('Tabel 1 F'!G81<5,'Tabel 2 F'!J83<0.5),"-",IFERROR('Tabel 2 F'!J83/'Tabel 1 F'!G81*100,"-")) -> 5.262173084
A84: Musikudd. | C84: =IF(OR('Tabel 1 F'!C82<5,'Tabel 2 F'!C84<0.5),"-",IFERROR('Tabel 2 F'!C84/'Tabel 1 F'!C82*100,"-")) -> - | D84: =IF(OR('Tabel 1 F'!C82<5,'Tabel 2 F'!D84<0.5),"-",IFERROR('Tabel 2 F'!D84/'Tabel 1 F'!C82*100,"-")) -> - | F84: =IF(OR('Tabel 1 F'!E82<5,'Tabel 2 F'!F84<0.5),"-",IFERROR('Tabel 2 F'!F84/'Tabel 1 F'!E82*100,"-")) -> - | G84: =IF(OR('Tabel 1 F'!E82<5,'Tabel 2 F'!G84<0.5),"-",IFERROR('Tabel 2 F'!G84/'Tabel 1 F'!E82*100,"-")) -> - | I84: =IF(OR('Tabel 1 F'!G82<5,'Tabel 2 F'!I84<0.5),"-",IFERROR('Tabel 2 F'!I84/'Tabel 1 F'!G82*100,"-")) -> - | J84: =IF(OR('Tabel 1 F'!G82<5,'Tabel 2 F'!J84<0.5),"-",IFERROR('Tabel 2 F'!J84/'Tabel 1 F'!G82*100,"-")) -> -
A85: Teolog | C85: =IF(OR('Tabel 1 F'!C83<5,'Tabel 2 F'!C85<0.5),"-",IFERROR('Tabel 2 F'!C85/'Tabel 1 F'!C83*100,"-")) -> - | D85: =IF(OR('Tabel 1 F'!C83<5,'Tabel 2 F'!D85<0.5),"-",IFERROR('Tabel 2 F'!D85/'Tabel 1 F'!C83*100,"-")) -> - | F85: =IF(OR('Tabel 1 F'!E83<5,'Tabel 2 F'!F85<0.5),"-",IFERROR('Tabel 2 F'!F85/'Tabel 1 F'!E83*100,"-")) -> 20 | G85: =IF(OR('Tabel 1 F'!E83<5,'Tabel 2 F'!G85<0.5),"-",IFERROR('Tabel 2 F'!G85/'Tabel 1 F'!E83*100,"-")) -> 6.32445581 | I85: =IF(OR('Tabel 1 F'!G83<5,'Tabel 2 F'!I85<0.5),"-",IFERROR('Tabel 2 F'!I85/'Tabel 1 F'!G83*100,"-")) -> 13.33333333 | J85: =IF(OR('Tabel 1 F'!G83<5,'Tabel 2 F'!J85<0.5),"-",IFERROR('Tabel 2 F'!J85/'Tabel 1 F'!G83*100,"-")) -> 4.216303873
A86: Psykolog | C86: =IF(OR('Tabel 1 F'!C84<5,'Tabel 2 F'!C86<0.5),"-",IFERROR('Tabel 2 F'!C86/'Tabel 1 F'!C84*100,"-")) -> - | D86: =IF(OR('Tabel 1 F'!C84<5,'Tabel 2 F'!D86<0.5),"-",IFERROR('Tabel 2 F'!D86/'Tabel 1 F'!C84*100,"-")) -> - | F86: =IF(OR('Tabel 1 F'!E84<5,'Tabel 2 F'!F86<0.5),"-",IFERROR('Tabel 2 F'!F86/'Tabel 1 F'!E84*100,"-")) -> 6.666666667 | G86: =IF(OR('Tabel 1 F'!E84<5,'Tabel 2 F'!G86<0.5),"-",IFERROR('Tabel 2 F'!G86/'Tabel 1 F'!E84*100,"-")) -> 4.919021185 | I86: =IF(OR('Tabel 1 F'!G84<5,'Tabel 2 F'!I86<0.5),"-",IFERROR('Tabel 2 F'!I86/'Tabel 1 F'!G84*100,"-")) -> 5.263157895 | J86: =IF(OR('Tabel 1 F'!G84<5,'Tabel 2 F'!J86<0.5),"-",IFERROR('Tabel 2 F'!J86/'Tabel 1 F'!G84*100,"-")) -> 3.883437778
A87: Jurist | C87: =IF(OR('Tabel 1 F'!C85<5,'Tabel 2 F'!C87<0.5),"-",IFERROR('Tabel 2 F'!C87/'Tabel 1 F'!C85*100,"-")) -> - | D87: =IF(OR('Tabel 1 F'!C85<5,'Tabel 2 F'!D87<0.5),"-",IFERROR('Tabel 2 F'!D87/'Tabel 1 F'!C85*100,"-")) -> - | F87: =IF(OR('Tabel 1 F'!E85<5,'Tabel 2 F'!F87<0.5),"-",IFERROR('Tabel 2 F'!F87/'Tabel 1 F'!E85*100,"-")) -> - | G87: =IF(OR('Tabel 1 F'!E85<5,'Tabel 2 F'!G87<0.5),"-",IFERROR('Tabel 2 F'!G87/'Tabel 1 F'!E85*100,"-")) -> - | I87: =IF(OR('Tabel 1 F'!G85<5,'Tabel 2 F'!I87<0.5),"-",IFERROR('Tabel 2 F'!I87/'Tabel 1 F'!G85*100,"-")) -> - | J87: =IF(OR('Tabel 1 F'!G85<5,'Tabel 2 F'!J87<0.5),"-",IFERROR('Tabel 2 F'!J87/'Tabel 1 F'!G85*100,"-")) -> -
A88: Økonom | C88: =IF(OR('Tabel 1 F'!C86<5,'Tabel 2 F'!C88<0.5),"-",IFERROR('Tabel 2 F'!C88/'Tabel 1 F'!C86*100,"-")) -> - | D88: =IF(OR('Tabel 1 F'!C86<5,'Tabel 2 F'!D88<0.5),"-",IFERROR('Tabel 2 F'!D88/'Tabel 1 F'!C86*100,"-")) -> - | F88: =IF(OR('Tabel 1 F'!E86<5,'Tabel 2 F'!F88<0.5),"-",IFERROR('Tabel 2 F'!F88/'Tabel 1 F'!E86*100,"-")) -> - | G88: =IF(OR('Tabel 1 F'!E86<5,'Tabel 2 F'!G88<0.5),"-",IFERROR('Tabel 2 F'!G88/'Tabel 1 F'!E86*100,"-")) -> - | I88: =IF(OR('Tabel 1 F'!G86<5,'Tabel 2 F'!I88<0.5),"-",IFERROR('Tabel 2 F'!I88/'Tabel 1 F'!G86*100,"-")) -> - | J88: =IF(OR('Tabel 1 F'!G86<5,'Tabel 2 F'!J88<0.5),"-",IFERROR('Tabel 2 F'!J88/'Tabel 1 F'!G86*100,"-")) -> -
A89: Samf. Adm. | C89: =IF(OR('Tabel 1 F'!C87<5,'Tabel 2 F'!C89<0.5),"-",IFERROR('Tabel 2 F'!C89/'Tabel 1 F'!C87*100,"-")) -> - | D89: =IF(OR('Tabel 1 F'!C87<5,'Tabel 2 F'!D89<0.5),"-",IFERROR('Tabel 2 F'!D89/'Tabel 1 F'!C87*100,"-")) -> - | F89: =IF(OR('Tabel 1 F'!E87<5,'Tabel 2 F'!F89<0.5),"-",IFERROR('Tabel 2 F'!F89/'Tabel 1 F'!E87*100,"-")) -> 1.818181818 | G89: =IF(OR('Tabel 1 F'!E87<5,'Tabel 2 F'!G89<0.5),"-",IFERROR('Tabel 2 F'!G89/'Tabel 1 F'!E87*100,"-")) -> 1.817841611 | I89: =IF(OR('Tabel 1 F'!G87<5,'Tabel 2 F'!I89<0.5),"-",IFERROR('Tabel 2 F'!I89/'Tabel 1 F'!G87*100,"-")) -> 1.176470588 | J89: =IF(OR('Tabel 1 F'!G87<5,'Tabel 2 F'!J89<0.5),"-",IFERROR('Tabel 2 F'!J89/'Tabel 1 F'!G87*100,"-")) -> 1.176250454
A90: Cand. Merc. | C90: =IF(OR('Tabel 1 F'!C88<5,'Tabel 2 F'!C90<0.5),"-",IFERROR('Tabel 2 F'!C90/'Tabel 1 F'!C88*100,"-")) -> 1.428571429 | D90: =IF(OR('Tabel 1 F'!C88<5,'Tabel 2 F'!D90<0.5),"-",IFERROR('Tabel 2 F'!D90/'Tabel 1 F'!C88*100,"-")) -> 1.428304123 | F90: =IF(OR('Tabel 1 F'!E88<5,'Tabel 2 F'!F90<0.5),"-",IFERROR('Tabel 2 F'!F90/'Tabel 1 F'!E88*100,"-")) -> 1.5625 | G90: =IF(OR('Tabel 1 F'!E88<5,'Tabel 2 F'!G90<0.5),"-",IFERROR('Tabel 2 F'!G90/'Tabel 1 F'!E88*100,"-")) -> 1.562207634 | I90: =IF(OR('Tabel 1 F'!G88<5,'Tabel 2 F'!I90<0.5),"-",IFERROR('Tabel 2 F'!I90/'Tabel 1 F'!G88*100,"-")) -> 1.492537313 | J90: =IF(OR('Tabel 1 F'!G88<5,'Tabel 2 F'!J90<0.5),"-",IFERROR('Tabel 2 F'!J90/'Tabel 1 F'!G88*100,"-")) -> 1.492258039
A91: HA | C91: =IF(OR('Tabel 1 F'!C89<5,'Tabel 2 F'!C91<0.5),"-",IFERROR('Tabel 2 F'!C91/'Tabel 1 F'!C89*100,"-")) -> 9.090909091 | D91: =IF(OR('Tabel 1 F'!C89<5,'Tabel 2 F'!D91<0.5),"-",IFERROR('Tabel 2 F'!D91/'Tabel 1 F'!C89*100,"-")) -> 9.089208054 | F91: =IF(OR('Tabel 1 F'!E89<5,'Tabel 2 F'!F91<0.5),"-",IFERROR('Tabel 2 F'!F91/'Tabel 1 F'!E89*100,"-")) -> 9.090909091 | G91: =IF(OR('Tabel 1 F'!E89<5,'Tabel 2 F'!G91<0.5),"-",IFERROR('Tabel 2 F'!G91/'Tabel 1 F'!E89*100,"-")) -> 9.089208054 | I91: =IF(OR('Tabel 1 F'!G89<5,'Tabel 2 F'!I91<0.5),"-",IFERROR('Tabel 2 F'!I91/'Tabel 1 F'!G89*100,"-")) -> 9.090909091 | J91: =IF(OR('Tabel 1 F'!G89<5,'Tabel 2 F'!J91<0.5),"-",IFERROR('Tabel 2 F'!J91/'Tabel 1 F'!G89*100,"-")) -> 9.089208054
A92: HD | C92: =IF(OR('Tabel 1 F'!C90<5,'Tabel 2 F'!C92<0.5),"-",IFERROR('Tabel 2 F'!C92/'Tabel 1 F'!C90*100,"-")) -> 12.5 | D92: =IF(OR('Tabel 1 F'!C90<5,'Tabel 2 F'!D92<0.5),"-",IFERROR('Tabel 2 F'!D92/'Tabel 1 F'!C90*100,"-")) -> 12.49766107 | F92: =IF(OR('Tabel 1 F'!E90<5,'Tabel 2 F'!F92<0.5),"-",IFERROR('Tabel 2 F'!F92/'Tabel 1 F'!E90*100,"-")) -> 11.11111111 | G92: =IF(OR('Tabel 1 F'!E90<5,'Tabel 2 F'!G92<0.5),"-",IFERROR('Tabel 2 F'!G92/'Tabel 1 F'!E90*100,"-")) -> 11.10903207 | I92: =IF(OR('Tabel 1 F'!G90<5,'Tabel 2 F'!I92<0.5),"-",IFERROR('Tabel 2 F'!I92/'Tabel 1 F'!G90*100,"-")) -> 11.76470588 | J92: =IF(OR('Tabel 1 F'!G90<5,'Tabel 2 F'!J92<0.5),"-",IFERROR('Tabel 2 F'!J92/'Tabel 1 F'!G90*100,"-")) -> 11.76250454
A93: Komm. og Sprog | C93: =IF(OR('Tabel 1 F'!C91<5,'Tabel 2 F'!C93<0.5),"-",IFERROR('Tabel 2 F'!C93/'Tabel 1 F'!C91*100,"-")) -> - | D93: =IF(OR('Tabel 1 F'!C91<5,'Tabel 2 F'!D93<0.5),"-",IFERROR('Tabel 2 F'!D93/'Tabel 1 F'!C91*100,"-")) -> - | F93: =IF(OR('Tabel 1 F'!E91<5,'Tabel 2 F'!F93<0.5),"-",IFERROR('Tabel 2 F'!F93/'Tabel 1 F'!E91*100,"-")) -> 3.448275862 | G93: =IF(OR('Tabel 1 F'!E91<5,'Tabel 2 F'!G93<0.5),"-",IFERROR('Tabel 2 F'!G93/'Tabel 1 F'!E91*100,"-")) -> 2.925001667 | I93: =IF(OR('Tabel 1 F'!G91<5,'Tabel 2 F'!I93<0.5),"-",IFERROR('Tabel 2 F'!I93/'Tabel 1 F'!G91*100,"-")) -> 3.225806452 | J93: =IF(OR('Tabel 1 F'!G91<5,'Tabel 2 F'!J93<0.5),"-",IFERROR('Tabel 2 F'!J93/'Tabel 1 F'!G91*100,"-")) -> 2.736291882
A94: Cand. IT. | C94: =IF(OR('Tabel 1 F'!C92<5,'Tabel 2 F'!C94<0.5),"-",IFERROR('Tabel 2 F'!C94/'Tabel 1 F'!C92*100,"-")) -> - | D94: =IF(OR('Tabel 1 F'!C92<5,'Tabel 2 F'!D94<0.5),"-",IFERROR('Tabel 2 F'!D94/'Tabel 1 F'!C92*100,"-")) -> - | F94: =IF(OR('Tabel 1 F'!E92<5,'Tabel 2 F'!F94<0.5),"-",IFERROR('Tabel 2 F'!F94/'Tabel 1 F'!E92*100,"-")) -> - | G94: =IF(OR('Tabel 1 F'!E92<5,'Tabel 2 F'!G94<0.5),"-",IFERROR('Tabel 2 F'!G94/'Tabel 1 F'!E92*100,"-")) -> - | I94: =IF(OR('Tabel 1 F'!G92<5,'Tabel 2 F'!I94<0.5),"-",IFERROR('Tabel 2 F'!I94/'Tabel 1 F'!G92*100,"-")) -> - | J94: =IF(OR('Tabel 1 F'!G92<5,'Tabel 2 F'!J94<0.5),"-",IFERROR('Tabel 2 F'!J94/'Tabel 1 F'!G92*100,"-")) -> -
A95: Bac. Samf. | C95: =IF(OR('Tabel 1 F'!C93<5,'Tabel 2 F'!C95<0.5),"-",IFERROR('Tabel 2 F'!C95/'Tabel 1 F'!C93*100,"-")) -> - | D95: =IF(OR('Tabel 1 F'!C93<5,'Tabel 2 F'!D95<0.5),"-",IFERROR('Tabel 2 F'!D95/'Tabel 1 F'!C93*100,"-")) -> - | F95: =IF(OR('Tabel 1 F'!E93<5,'Tabel 2 F'!F95<0.5),"-",IFERROR('Tabel 2 F'!F95/'Tabel 1 F'!E93*100,"-")) -> - | G95: =IF(OR('Tabel 1 F'!E93<5,'Tabel 2 F'!G95<0.5),"-",IFERROR('Tabel 2 F'!G95/'Tabel 1 F'!E93*100,"-")) -> - | I95: =IF(OR('Tabel 1 F'!G93<5,'Tabel 2 F'!I95<0.5),"-",IFERROR('Tabel 2 F'!I95/'Tabel 1 F'!G93*100,"-")) -> - | J95: =IF(OR('Tabel 1 F'!G93<5,'Tabel 2 F'!J95<0.5),"-",IFERROR('Tabel 2 F'!J95/'Tabel 1 F'!G93*100,"-")) -> -
A96: Bac. Hum. | C96: =IF(OR('Tabel 1 F'!C94<5,'Tabel 2 F'!C96<0.5),"-",IFERROR('Tabel 2 F'!C96/'Tabel 1 F'!C94*100,"-")) -> - | D96: =IF(OR('Tabel 1 F'!C94<5,'Tabel 2 F'!D96<0.5),"-",IFERROR('Tabel 2 F'!D96/'Tabel 1 F'!C94*100,"-")) -> - | F96: =IF(OR('Tabel 1 F'!E94<5,'Tabel 2 F'!F96<0.5),"-",IFERROR('Tabel 2 F'!F96/'Tabel 1 F'!E94*100,"-")) -> 12.5 | G96: =IF(OR('Tabel 1 F'!E94<5,'Tabel 2 F'!G96<0.5),"-",IFERROR('Tabel 2 F'!G96/'Tabel 1 F'!E94*100,"-")) -> 12.49766107 | I96: =IF(OR('Tabel 1 F'!G94<5,'Tabel 2 F'!I96<0.5),"-",IFERROR('Tabel 2 F'!I96/'Tabel 1 F'!G94*100,"-")) -> 10 | J96: =IF(OR('Tabel 1 F'!G94<5,'Tabel 2 F'!J96<0.5),"-",IFERROR('Tabel 2 F'!J96/'Tabel 1 F'!G94*100,"-")) -> 9.998128859
A97: Bac. Nat. | C97: =IF(OR('Tabel 1 F'!C95<5,'Tabel 2 F'!C97<0.5),"-",IFERROR('Tabel 2 F'!C97/'Tabel 1 F'!C95*100,"-")) -> - | D97: =IF(OR('Tabel 1 F'!C95<5,'Tabel 2 F'!D97<0.5),"-",IFERROR('Tabel 2 F'!D97/'Tabel 1 F'!C95*100,"-")) -> - | F97: =IF(OR('Tabel 1 F'!E95<5,'Tabel 2 F'!F97<0.5),"-",IFERROR('Tabel 2 F'!F97/'Tabel 1 F'!E95*100,"-")) -> - | G97: =IF(OR('Tabel 1 F'!E95<5,'Tabel 2 F'!G97<0.5),"-",IFERROR('Tabel 2 F'!G97/'Tabel 1 F'!E95*100,"-")) -> - | I97: =IF(OR('Tabel 1 F'!G95<5,'Tabel 2 F'!I97<0.5),"-",IFERROR('Tabel 2 F'!I97/'Tabel 1 F'!G95*100,"-")) -> 16.66666667 | J97: =IF(OR('Tabel 1 F'!G95<5,'Tabel 2 F'!J97<0.5),"-",IFERROR('Tabel 2 F'!J97/'Tabel 1 F'!G95*100,"-")) -> 16.6635481
A98: Andre | C98: =IF(OR('Tabel 1 F'!C96<5,'Tabel 2 F'!C98<0.5),"-",IFERROR('Tabel 2 F'!C98/'Tabel 1 F'!C96*100,"-")) -> 4.87804878 | D98: =IF(OR('Tabel 1 F'!C96<5,'Tabel 2 F'!D98<0.5),"-",IFERROR('Tabel 2 F'!D98/'Tabel 1 F'!C96*100,"-")) -> 3.188545576 | F98: =IF(OR('Tabel 1 F'!E96<5,'Tabel 2 F'!F98<0.5),"-",IFERROR('Tabel 2 F'!F98/'Tabel 1 F'!E96*100,"-")) -> 5.263157895 | G98: =IF(OR('Tabel 1 F'!E96<5,'Tabel 2 F'!G98<0.5),"-",IFERROR('Tabel 2 F'!G98/'Tabel 1 F'!E96*100,"-")) -> 5.262173084 | I98: =IF(OR('Tabel 1 F'!G96<5,'Tabel 2 F'!I98<0.5),"-",IFERROR('Tabel 2 F'!I98/'Tabel 1 F'!G96*100,"-")) -> 5.063291139 | J98: =IF(OR('Tabel 1 F'!G96<5,'Tabel 2 F'!J98<0.5),"-",IFERROR('Tabel 2 F'!J98/'Tabel 1 F'!G96*100,"-")) -> 4.185986656
A100: Total | C100: =IF(OR('Tabel 1 F'!C98<5,'Tabel 2 F'!C100<0.5),"-",IFERROR('Tabel 2 F'!C100/'Tabel 1 F'!C98*100,"-")) -> 2.435723951 | D100: =IF(OR('Tabel 1 F'!C98<5,'Tabel 2 F'!D100<0.5),"-",IFERROR('Tabel 2 F'!D100/'Tabel 1 F'!C98*100,"-")) -> 2.118009819 | F100: =IF(OR('Tabel 1 F'!E98<5,'Tabel 2 F'!F100<0.5),"-",IFERROR('Tabel 2 F'!F100/'Tabel 1 F'!E98*100,"-")) -> 4.570637119 | G100: =IF(OR('Tabel 1 F'!E98<5,'Tabel 2 F'!G100<0.5),"-",IFERROR('Tabel 2 F'!G100/'Tabel 1 F'!E98*100,"-")) -> 3.798864979 | I100: =IF(OR('Tabel 1 F'!G98<5,'Tabel 2 F'!I100<0.5),"-",IFERROR('Tabel 2 F'!I100/'Tabel 1 F'!G98*100,"-")) -> 3.490759754 | J100: =IF(OR('Tabel 1 F'!G98<5,'Tabel 2 F'!J100<0.5),"-",IFERROR('Tabel 2 F'!J100/'Tabel 1 F'!G98*100,"-")) -> 2.948658296
A102: Ingeniører i alt | C102: =IF(OR('Tabel 1 F'!C100<5,'Tabel 2 F'!C102<0.5),"-",IFERROR('Tabel 2 F'!C102/'Tabel 1 F'!C100*100,"-")) -> 1.277955272 | D102: =IF(OR('Tabel 1 F'!C100<5,'Tabel 2 F'!D102<0.5),"-",IFERROR('Tabel 2 F'!D102/'Tabel 1 F'!C100*100,"-")) -> 1.056526983 | F102: =IF(OR('Tabel 1 F'!E100<5,'Tabel 2 F'!F102<0.5),"-",IFERROR('Tabel 2 F'!F102/'Tabel 1 F'!E100*100,"-")) -> 4 | G102: =IF(OR('Tabel 1 F'!E100<5,'Tabel 2 F'!G102<0.5),"-",IFERROR('Tabel 2 F'!G102/'Tabel 1 F'!E100*100,"-")) -> 3.076155429 | I102: =IF(OR('Tabel 1 F'!G100<5,'Tabel 2 F'!I102<0.5),"-",IFERROR('Tabel 2 F'!I102/'Tabel 1 F'!G100*100,"-")) -> 1.804123711 | J102: =IF(OR('Tabel 1 F'!G100<5,'Tabel 2 F'!J102<0.5),"-",IFERROR('Tabel 2 F'!J102/'Tabel 1 F'!G100*100,"-")) -> 1.44691908
A103: Magistre i alt | C103: =IF(OR('Tabel 1 F'!C101<5,'Tabel 2 F'!C103<0.5),"-",IFERROR('Tabel 2 F'!C103/'Tabel 1 F'!C101*100,"-")) -> 5.434782609 | D103: =IF(OR('Tabel 1 F'!C101<5,'Tabel 2 F'!D103<0.5),"-",IFERROR('Tabel 2 F'!D103/'Tabel 1 F'!C101*100,"-")) -> 4.740223289 | F103: =IF(OR('Tabel 1 F'!E101<5,'Tabel 2 F'!F103<0.5),"-",IFERROR('Tabel 2 F'!F103/'Tabel 1 F'!E101*100,"-")) -> 8.860759494 | G103: =IF(OR('Tabel 1 F'!E101<5,'Tabel 2 F'!G103<0.5),"-",IFERROR('Tabel 2 F'!G103/'Tabel 1 F'!E101*100,"-")) -> 7.447061322 | I103: =IF(OR('Tabel 1 F'!G101<5,'Tabel 2 F'!I103<0.5),"-",IFERROR('Tabel 2 F'!I103/'Tabel 1 F'!G101*100,"-")) -> 7.6 | J103: =IF(OR('Tabel 1 F'!G101<5,'Tabel 2 F'!J103<0.5),"-",IFERROR('Tabel 2 F'!J103/'Tabel 1 F'!G101*100,"-")) -> 6.450944926
A104: DJØF'ere i alt | C104: =IF(OR('Tabel 1 F'!C102<5,'Tabel 2 F'!C104<0.5),"-",IFERROR('Tabel 2 F'!C104/'Tabel 1 F'!C102*100,"-")) -> 1.948051948 | D104: =IF(OR('Tabel 1 F'!C102<5,'Tabel 2 F'!D104<0.5),"-",IFERROR('Tabel 2 F'!D104/'Tabel 1 F'!C102*100,"-")) -> 1.94768744 | F104: =IF(OR('Tabel 1 F'!E102<5,'Tabel 2 F'!F104<0.5),"-",IFERROR('Tabel 2 F'!F104/'Tabel 1 F'!E102*100,"-")) -> 1.694915254 | G104: =IF(OR('Tabel 1 F'!E102<5,'Tabel 2 F'!G104<0.5),"-",IFERROR('Tabel 2 F'!G104/'Tabel 1 F'!E102*100,"-")) -> 1.694598112 | I104: =IF(OR('Tabel 1 F'!G102<5,'Tabel 2 F'!I104<0.5),"-",IFERROR('Tabel 2 F'!I104/'Tabel 1 F'!G102*100,"-")) -> 1.812688822 | J104: =IF(OR('Tabel 1 F'!G102<5,'Tabel 2 F'!J104<0.5),"-",IFERROR('Tabel 2 F'!J104/'Tabel 1 F'!G102*100,"-")) -> 1.812349642
A109: Assens
C111: Mænd | F111: Kvinder | I111: I alt
C112: Ledigheds- berørte | D112: Gns. brutto- ledighed | F112: Ledigheds- berørte | G112: Gns. brutto- ledighed | I112: Ledigheds- berørte | J112: Gns. brutto- ledighed
A115: Civ. ing. | C115: =IF(OR('Tabel 1 F'!C113<5,'Tabel 2 F'!C115<0.5),"-",IFERROR('Tabel 2 F'!C115/'Tabel 1 F'!C113*100,"-")) -> 6 | D115: =IF(OR('Tabel 1 F'!C113<5,'Tabel 2 F'!D115<0.5),"-",IFERROR('Tabel 2 F'!D115/'Tabel 1 F'!C113*100,"-")) -> 4.891161978 | F115: =IF(OR('Tabel 1 F'!E113<5,'Tabel 2 F'!F115<0.5),"-",IFERROR('Tabel 2 F'!F115/'Tabel 1 F'!E113*100,"-")) -> - | G115: =IF(OR('Tabel 1 F'!E113<5,'Tabel 2 F'!G115<0.5),"-",IFERROR('Tabel 2 F'!G115/'Tabel 1 F'!E113*100,"-")) -> - | I115: =IF(OR('Tabel 1 F'!G113<5,'Tabel 2 F'!I115<0.5),"-",IFERROR('Tabel 2 F'!I115/'Tabel 1 F'!G113*100,"-")) -> 4.918032787 | J115: =IF(OR('Tabel 1 F'!G113<5,'Tabel 2 F'!J115<0.5),"-",IFERROR('Tabel 2 F'!J115/'Tabel 1 F'!G113*100,"-")) -> 4.009149163
A116: Diplom ing. | C116: =IF(OR('Tabel 1 F'!C114<5,'Tabel 2 F'!C116<0.5),"-",IFERROR('Tabel 2 F'!C116/'Tabel 1 F'!C114*100,"-")) -> 1.5625 | D116: =IF(OR('Tabel 1 F'!C114<5,'Tabel 2 F'!D116<0.5),"-",IFERROR('Tabel 2 F'!D116/'Tabel 1 F'!C114*100,"-")) -> 0.9105568723 | F116: =IF(OR('Tabel 1 F'!E114<5,'Tabel 2 F'!F116<0.5),"-",IFERROR('Tabel 2 F'!F116/'Tabel 1 F'!E114*100,"-")) -> 4.761904762 | G116: =IF(OR('Tabel 1 F'!E114<5,'Tabel 2 F'!G116<0.5),"-",IFERROR('Tabel 2 F'!G116/'Tabel 1 F'!E114*100,"-")) -> 1.891931225 | I116: =IF(OR('Tabel 1 F'!G114<5,'Tabel 2 F'!I116<0.5),"-",IFERROR('Tabel 2 F'!I116/'Tabel 1 F'!G114*100,"-")) -> 2.136752137 | J116: =IF(OR('Tabel 1 F'!G114<5,'Tabel 2 F'!J116<0.5),"-",IFERROR('Tabel 2 F'!J116/'Tabel 1 F'!G114*100,"-")) -> 1.086700987
A117: Cand. Scient. Tek. | C117: =IF(OR('Tabel 1 F'!C115<5,'Tabel 2 F'!C117<0.5),"-",IFERROR('Tabel 2 F'!C117/'Tabel 1 F'!C115*100,"-")) -> 4.761904762 | D117: =IF(OR('Tabel 1 F'!C115<5,'Tabel 2 F'!D117<0.5),"-",IFERROR('Tabel 2 F'!D117/'Tabel 1 F'!C115*100,"-")) -> 4.761013742 | F117: =IF(OR('Tabel 1 F'!E115<5,'Tabel 2 F'!F117<0.5),"-",IFERROR('Tabel 2 F'!F117/'Tabel 1 F'!E115*100,"-")) -> 7.692307692 | G117: =IF(OR('Tabel 1 F'!E115<5,'Tabel 2 F'!G117<0.5),"-",IFERROR('Tabel 2 F'!G117/'Tabel 1 F'!E115*100,"-")) -> 7.690868353 | I117: =IF(OR('Tabel 1 F'!G115<5,'Tabel 2 F'!I117<0.5),"-",IFERROR('Tabel 2 F'!I117/'Tabel 1 F'!G115*100,"-")) -> 5.882352941 | J117: =IF(OR('Tabel 1 F'!G115<5,'Tabel 2 F'!J117<0.5),"-",IFERROR('Tabel 2 F'!J117/'Tabel 1 F'!G115*100,"-")) -> 5.88125227
A118: MA. Hum. | C118: =IF(OR('Tabel 1 F'!C116<5,'Tabel 2 F'!C118<0.5),"-",IFERROR('Tabel 2 F'!C118/'Tabel 1 F'!C116*100,"-")) -> 12.82051282 | D118: =IF(OR('Tabel 1 F'!C116<5,'Tabel 2 F'!D118<0.5),"-",IFERROR('Tabel 2 F'!D118/'Tabel 1 F'!C116*100,"-")) -> 11.91133032 | F118: =IF(OR('Tabel 1 F'!E116<5,'Tabel 2 F'!F118<0.5),"-",IFERROR('Tabel 2 F'!F118/'Tabel 1 F'!E116*100,"-")) -> 6.796116505 | G118: =IF(OR('Tabel 1 F'!E116<5,'Tabel 2 F'!G118<0.5),"-",IFERROR('Tabel 2 F'!G118/'Tabel 1 F'!E116*100,"-")) -> 6.179003378 | I118: =IF(OR('Tabel 1 F'!G116<5,'Tabel 2 F'!I118<0.5),"-",IFERROR('Tabel 2 F'!I118/'Tabel 1 F'!G116*100,"-")) -> 8.450704225 | J118: =IF(OR('Tabel 1 F'!G116<5,'Tabel 2 F'!J118<0.5),"-",IFERROR('Tabel 2 F'!J118/'Tabel 1 F'!G116*100,"-")) -> 7.753374862
A119: MA. Nat. | C119: =IF(OR('Tabel 1 F'!C117<5,'Tabel 2 F'!C119<0.5),"-",IFERROR('Tabel 2 F'!C119/'Tabel 1 F'!C117*100,"-")) -> - | D119: =IF(OR('Tabel 1 F'!C117<5,'Tabel 2 F'!D119<0.5),"-",IFERROR('Tabel 2 F'!D119/'Tabel 1 F'!C117*100,"-")) -> - | F119: =IF(OR('Tabel 1 F'!E117<5,'Tabel 2 F'!F119<0.5),"-",IFERROR('Tabel 2 F'!F119/'Tabel 1 F'!E117*100,"-")) -> 17.85714286 | G119: =IF(OR('Tabel 1 F'!E117<5,'Tabel 2 F'!G119<0.5),"-",IFERROR('Tabel 2 F'!G119/'Tabel 1 F'!E117*100,"-")) -> 13.58359099 | I119: =IF(OR('Tabel 1 F'!G117<5,'Tabel 2 F'!I119<0.5),"-",IFERROR('Tabel 2 F'!I119/'Tabel 1 F'!G117*100,"-")) -> 8.333333333 | J119: =IF(OR('Tabel 1 F'!G117<5,'Tabel 2 F'!J119<0.5),"-",IFERROR('Tabel 2 F'!J119/'Tabel 1 F'!G117*100,"-")) -> 6.339009127
A120: MA. Ph.d. | C120: =IF(OR('Tabel 1 F'!C118<5,'Tabel 2 F'!C120<0.5),"-",IFERROR('Tabel 2 F'!C120/'Tabel 1 F'!C118*100,"-")) -> - | D120: =IF(OR('Tabel 1 F'!C118<5,'Tabel 2 F'!D120<0.5),"-",IFERROR('Tabel 2 F'!D120/'Tabel 1 F'!C118*100,"-")) -> - | F120: =IF(OR('Tabel 1 F'!E118<5,'Tabel 2 F'!F120<0.5),"-",IFERROR('Tabel 2 F'!F120/'Tabel 1 F'!E118*100,"-")) -> - | G120: =IF(OR('Tabel 1 F'!E118<5,'Tabel 2 F'!G120<0.5),"-",IFERROR('Tabel 2 F'!G120/'Tabel 1 F'!E118*100,"-")) -> - | I120: =IF(OR('Tabel 1 F'!G118<5,'Tabel 2 F'!I120<0.5),"-",IFERROR('Tabel 2 F'!I120/'Tabel 1 F'!G118*100,"-")) -> - | J120: =IF(OR('Tabel 1 F'!G118<5,'Tabel 2 F'!J120<0.5),"-",IFERROR('Tabel 2 F'!J120/'Tabel 1 F'!G118*100,"-")) -> -
A121: MA. Samf. | C121: =IF(OR('Tabel 1 F'!C119<5,'Tabel 2 F'!C121<0.5),"-",IFERROR('Tabel 2 F'!C121/'Tabel 1 F'!C119*100,"-")) -> - | D121: =IF(OR('Tabel 1 F'!C119<5,'Tabel 2 F'!D121<0.5),"-",IFERROR('Tabel 2 F'!D121/'Tabel 1 F'!C119*100,"-")) -> - | F121: =IF(OR('Tabel 1 F'!E119<5,'Tabel 2 F'!F121<0.5),"-",IFERROR('Tabel 2 F'!F121/'Tabel 1 F'!E119*100,"-")) -> - | G121: =IF(OR('Tabel 1 F'!E119<5,'Tabel 2 F'!G121<0.5),"-",IFERROR('Tabel 2 F'!G121/'Tabel 1 F'!E119*100,"-")) -> - | I121: =IF(OR('Tabel 1 F'!G119<5,'Tabel 2 F'!I121<0.5),"-",IFERROR('Tabel 2 F'!I121/'Tabel 1 F'!G119*100,"-")) -> - | J121: =IF(OR('Tabel 1 F'!G119<5,'Tabel 2 F'!J121<0.5),"-",IFERROR('Tabel 2 F'!J121/'Tabel 1 F'!G119*100,"-")) -> -
A122: Øvrige Mag. | C122: =IF(OR('Tabel 1 F'!C120<5,'Tabel 2 F'!C122<0.5),"-",IFERROR('Tabel 2 F'!C122/'Tabel 1 F'!C120*100,"-")) -> - | D122: =IF(OR('Tabel 1 F'!C120<5,'Tabel 2 F'!D122<0.5),"-",IFERROR('Tabel 2 F'!D122/'Tabel 1 F'!C120*100,"-")) -> - | F122: =IF(OR('Tabel 1 F'!E120<5,'Tabel 2 F'!F122<0.5),"-",IFERROR('Tabel 2 F'!F122/'Tabel 1 F'!E120*100,"-")) -> - | G122: =IF(OR('Tabel 1 F'!E120<5,'Tabel 2 F'!G122<0.5),"-",IFERROR('Tabel 2 F'!G122/'Tabel 1 F'!E120*100,"-")) -> - | I122: =IF(OR('Tabel 1 F'!G120<5,'Tabel 2 F'!I122<0.5),"-",IFERROR('Tabel 2 F'!I122/'Tabel 1 F'!G120*100,"-")) -> - | J122: =IF(OR('Tabel 1 F'!G120<5,'Tabel 2 F'!J122<0.5),"-",IFERROR('Tabel 2 F'!J122/'Tabel 1 F'!G120*100,"-")) -> -
A123: Agronom | C123: =IF(OR('Tabel 1 F'!C121<5,'Tabel 2 F'!C123<0.5),"-",IFERROR('Tabel 2 F'!C123/'Tabel 1 F'!C121*100,"-")) -> - | D123: =IF(OR('Tabel 1 F'!C121<5,'Tabel 2 F'!D123<0.5),"-",IFERROR('Tabel 2 F'!D123/'Tabel 1 F'!C121*100,"-")) -> - | F123: =IF(OR('Tabel 1 F'!E121<5,'Tabel 2 F'!F123<0.5),"-",IFERROR('Tabel 2 F'!F123/'Tabel 1 F'!E121*100,"-")) -> - | G123: =IF(OR('Tabel 1 F'!E121<5,'Tabel 2 F'!G123<0.5),"-",IFERROR('Tabel 2 F'!G123/'Tabel 1 F'!E121*100,"-")) -> - | I123: =IF(OR('Tabel 1 F'!G121<5,'Tabel 2 F'!I123<0.5),"-",IFERROR('Tabel 2 F'!I123/'Tabel 1 F'!G121*100,"-")) -> - | J123: =IF(OR('Tabel 1 F'!G121<5,'Tabel 2 F'!J123<0.5),"-",IFERROR('Tabel 2 F'!J123/'Tabel 1 F'!G121*100,"-")) -> -
A124: Landsk. Arkt. | C124: =IF(OR('Tabel 1 F'!C122<5,'Tabel 2 F'!C124<0.5),"-",IFERROR('Tabel 2 F'!C124/'Tabel 1 F'!C122*100,"-")) -> - | D124: =IF(OR('Tabel 1 F'!C122<5,'Tabel 2 F'!D124<0.5),"-",IFERROR('Tabel 2 F'!D124/'Tabel 1 F'!C122*100,"-")) -> - | F124: =IF(OR('Tabel 1 F'!E122<5,'Tabel 2 F'!F124<0.5),"-",IFERROR('Tabel 2 F'!F124/'Tabel 1 F'!E122*100,"-")) -> - | G124: =IF(OR('Tabel 1 F'!E122<5,'Tabel 2 F'!G124<0.5),"-",IFERROR('Tabel 2 F'!G124/'Tabel 1 F'!E122*100,"-")) -> - | I124: =IF(OR('Tabel 1 F'!G122<5,'Tabel 2 F'!I124<0.5),"-",IFERROR('Tabel 2 F'!I124/'Tabel 1 F'!G122*100,"-")) -> - | J124: =IF(OR('Tabel 1 F'!G122<5,'Tabel 2 F'!J124<0.5),"-",IFERROR('Tabel 2 F'!J124/'Tabel 1 F'!G122*100,"-")) -> -
A125: Hortonom | C125: =IF(OR('Tabel 1 F'!C123<5,'Tabel 2 F'!C125<0.5),"-",IFERROR('Tabel 2 F'!C125/'Tabel 1 F'!C123*100,"-")) -> - | D125: =IF(OR('Tabel 1 F'!C123<5,'Tabel 2 F'!D125<0.5),"-",IFERROR('Tabel 2 F'!D125/'Tabel 1 F'!C123*100,"-")) -> - | F125: =IF(OR('Tabel 1 F'!E123<5,'Tabel 2 F'!F125<0.5),"-",IFERROR('Tabel 2 F'!F125/'Tabel 1 F'!E123*100,"-")) -> - | G125: =IF(OR('Tabel 1 F'!E123<5,'Tabel 2 F'!G125<0.5),"-",IFERROR('Tabel 2 F'!G125/'Tabel 1 F'!E123*100,"-")) -> - | I125: =IF(OR('Tabel 1 F'!G123<5,'Tabel 2 F'!I125<0.5),"-",IFERROR('Tabel 2 F'!I125/'Tabel 1 F'!G123*100,"-")) -> - | J125: =IF(OR('Tabel 1 F'!G123<5,'Tabel 2 F'!J125<0.5),"-",IFERROR('Tabel 2 F'!J125/'Tabel 1 F'!G123*100,"-")) -> -
A126: Forstkand. | C126: =IF(OR('Tabel 1 F'!C124<5,'Tabel 2 F'!C126<0.5),"-",IFERROR('Tabel 2 F'!C126/'Tabel 1 F'!C124*100,"-")) -> - | D126: =IF(OR('Tabel 1 F'!C124<5,'Tabel 2 F'!D126<0.5),"-",IFERROR('Tabel 2 F'!D126/'Tabel 1 F'!C124*100,"-")) -> - | F126: =IF(OR('Tabel 1 F'!E124<5,'Tabel 2 F'!F126<0.5),"-",IFERROR('Tabel 2 F'!F126/'Tabel 1 F'!E124*100,"-")) -> - | G126: =IF(OR('Tabel 1 F'!E124<5,'Tabel 2 F'!G126<0.5),"-",IFERROR('Tabel 2 F'!G126/'Tabel 1 F'!E124*100,"-")) -> - | I126: =IF(OR('Tabel 1 F'!G124<5,'Tabel 2 F'!I126<0.5),"-",IFERROR('Tabel 2 F'!I126/'Tabel 1 F'!G124*100,"-")) -> 16.66666667 | J126: =IF(OR('Tabel 1 F'!G124<5,'Tabel 2 F'!J126<0.5),"-",IFERROR('Tabel 2 F'!J126/'Tabel 1 F'!G124*100,"-")) -> 16.6635481
A127: Jordbrugsakad. | C127: =IF(OR('Tabel 1 F'!C125<5,'Tabel 2 F'!C127<0.5),"-",IFERROR('Tabel 2 F'!C127/'Tabel 1 F'!C125*100,"-")) -> - | D127: =IF(OR('Tabel 1 F'!C125<5,'Tabel 2 F'!D127<0.5),"-",IFERROR('Tabel 2 F'!D127/'Tabel 1 F'!C125*100,"-")) -> - | F127: =IF(OR('Tabel 1 F'!E125<5,'Tabel 2 F'!F127<0.5),"-",IFERROR('Tabel 2 F'!F127/'Tabel 1 F'!E125*100,"-")) -> 5.263157895 | G127: =IF(OR('Tabel 1 F'!E125<5,'Tabel 2 F'!G127<0.5),"-",IFERROR('Tabel 2 F'!G127/'Tabel 1 F'!E125*100,"-")) -> 5.262173084 | I127: =IF(OR('Tabel 1 F'!G125<5,'Tabel 2 F'!I127<0.5),"-",IFERROR('Tabel 2 F'!I127/'Tabel 1 F'!G125*100,"-")) -> 2.857142857 | J127: =IF(OR('Tabel 1 F'!G125<5,'Tabel 2 F'!J127<0.5),"-",IFERROR('Tabel 2 F'!J127/'Tabel 1 F'!G125*100,"-")) -> 2.856608245
A128: Mejeriing. | C128: =IF(OR('Tabel 1 F'!C126<5,'Tabel 2 F'!C128<0.5),"-",IFERROR('Tabel 2 F'!C128/'Tabel 1 F'!C126*100,"-")) -> - | D128: =IF(OR('Tabel 1 F'!C126<5,'Tabel 2 F'!D128<0.5),"-",IFERROR('Tabel 2 F'!D128/'Tabel 1 F'!C126*100,"-")) -> - | F128: =IF(OR('Tabel 1 F'!E126<5,'Tabel 2 F'!F128<0.5),"-",IFERROR('Tabel 2 F'!F128/'Tabel 1 F'!E126*100,"-")) -> - | G128: =IF(OR('Tabel 1 F'!E126<5,'Tabel 2 F'!G128<0.5),"-",IFERROR('Tabel 2 F'!G128/'Tabel 1 F'!E126*100,"-")) -> - | I128: =IF(OR('Tabel 1 F'!G126<5,'Tabel 2 F'!I128<0.5),"-",IFERROR('Tabel 2 F'!I128/'Tabel 1 F'!G126*100,"-")) -> - | J128: =IF(OR('Tabel 1 F'!G126<5,'Tabel 2 F'!J128<0.5),"-",IFERROR('Tabel 2 F'!J128/'Tabel 1 F'!G126*100,"-")) -> -
A129: Levn.m.kand. | C129: =IF(OR('Tabel 1 F'!C127<5,'Tabel 2 F'!C129<0.5),"-",IFERROR('Tabel 2 F'!C129/'Tabel 1 F'!C127*100,"-")) -> - | D129: =IF(OR('Tabel 1 F'!C127<5,'Tabel 2 F'!D129<0.5),"-",IFERROR('Tabel 2 F'!D129/'Tabel 1 F'!C127*100,"-")) -> - | F129: =IF(OR('Tabel 1 F'!E127<5,'Tabel 2 F'!F129<0.5),"-",IFERROR('Tabel 2 F'!F129/'Tabel 1 F'!E127*100,"-")) -> - | G129: =IF(OR('Tabel 1 F'!E127<5,'Tabel 2 F'!G129<0.5),"-",IFERROR('Tabel 2 F'!G129/'Tabel 1 F'!E127*100,"-")) -> - | I129: =IF(OR('Tabel 1 F'!G127<5,'Tabel 2 F'!I129<0.5),"-",IFERROR('Tabel 2 F'!I129/'Tabel 1 F'!G127*100,"-")) -> - | J129: =IF(OR('Tabel 1 F'!G127<5,'Tabel 2 F'!J129<0.5),"-",IFERROR('Tabel 2 F'!J129/'Tabel 1 F'!G127*100,"-")) -> -
A130: Dyrlæge | C130: =IF(OR('Tabel 1 F'!C128<5,'Tabel 2 F'!C130<0.5),"-",IFERROR('Tabel 2 F'!C130/'Tabel 1 F'!C128*100,"-")) -> - | D130: =IF(OR('Tabel 1 F'!C128<5,'Tabel 2 F'!D130<0.5),"-",IFERROR('Tabel 2 F'!D130/'Tabel 1 F'!C128*100,"-")) -> - | F130: =IF(OR('Tabel 1 F'!E128<5,'Tabel 2 F'!F130<0.5),"-",IFERROR('Tabel 2 F'!F130/'Tabel 1 F'!E128*100,"-")) -> - | G130: =IF(OR('Tabel 1 F'!E128<5,'Tabel 2 F'!G130<0.5),"-",IFERROR('Tabel 2 F'!G130/'Tabel 1 F'!E128*100,"-")) -> - | I130: =IF(OR('Tabel 1 F'!G128<5,'Tabel 2 F'!I130<0.5),"-",IFERROR('Tabel 2 F'!I130/'Tabel 1 F'!G128*100,"-")) -> - | J130: =IF(OR('Tabel 1 F'!G128<5,'Tabel 2 F'!J130<0.5),"-",IFERROR('Tabel 2 F'!J130/'Tabel 1 F'!G128*100,"-")) -> -
A131: Farmaceut | C131: =IF(OR('Tabel 1 F'!C129<5,'Tabel 2 F'!C131<0.5),"-",IFERROR('Tabel 2 F'!C131/'Tabel 1 F'!C129*100,"-")) -> - | D131: =IF(OR('Tabel 1 F'!C129<5,'Tabel 2 F'!D131<0.5),"-",IFERROR('Tabel 2 F'!D131/'Tabel 1 F'!C129*100,"-")) -> - | F131: =IF(OR('Tabel 1 F'!E129<5,'Tabel 2 F'!F131<0.5),"-",IFERROR('Tabel 2 F'!F131/'Tabel 1 F'!E129*100,"-")) -> 9.090909091 | G131: =IF(OR('Tabel 1 F'!E129<5,'Tabel 2 F'!G131<0.5),"-",IFERROR('Tabel 2 F'!G131/'Tabel 1 F'!E129*100,"-")) -> 9.089208054 | I131: =IF(OR('Tabel 1 F'!G129<5,'Tabel 2 F'!I131<0.5),"-",IFERROR('Tabel 2 F'!I131/'Tabel 1 F'!G129*100,"-")) -> 9.090909091 | J131: =IF(OR('Tabel 1 F'!G129<5,'Tabel 2 F'!J131<0.5),"-",IFERROR('Tabel 2 F'!J131/'Tabel 1 F'!G129*100,"-")) -> 9.089208054
A132: Læge | C132: =IF(OR('Tabel 1 F'!C130<5,'Tabel 2 F'!C132<0.5),"-",IFERROR('Tabel 2 F'!C132/'Tabel 1 F'!C130*100,"-")) -> - | D132: =IF(OR('Tabel 1 F'!C130<5,'Tabel 2 F'!D132<0.5),"-",IFERROR('Tabel 2 F'!D132/'Tabel 1 F'!C130*100,"-")) -> - | F132: =IF(OR('Tabel 1 F'!E130<5,'Tabel 2 F'!F132<0.5),"-",IFERROR('Tabel 2 F'!F132/'Tabel 1 F'!E130*100,"-")) -> - | G132: =IF(OR('Tabel 1 F'!E130<5,'Tabel 2 F'!G132<0.5),"-",IFERROR('Tabel 2 F'!G132/'Tabel 1 F'!E130*100,"-")) -> - | I132: =IF(OR('Tabel 1 F'!G130<5,'Tabel 2 F'!I132<0.5),"-",IFERROR('Tabel 2 F'!I132/'Tabel 1 F'!G130*100,"-")) -> - | J132: =IF(OR('Tabel 1 F'!G130<5,'Tabel 2 F'!J132<0.5),"-",IFERROR('Tabel 2 F'!J132/'Tabel 1 F'!G130*100,"-")) -> -
A133: Tandlæge | C133: =IF(OR('Tabel 1 F'!C131<5,'Tabel 2 F'!C133<0.5),"-",IFERROR('Tabel 2 F'!C133/'Tabel 1 F'!C131*100,"-")) -> - | D133: =IF(OR('Tabel 1 F'!C131<5,'Tabel 2 F'!D133<0.5),"-",IFERROR('Tabel 2 F'!D133/'Tabel 1 F'!C131*100,"-")) -> - | F133: =IF(OR('Tabel 1 F'!E131<5,'Tabel 2 F'!F133<0.5),"-",IFERROR('Tabel 2 F'!F133/'Tabel 1 F'!E131*100,"-")) -> - | G133: =IF(OR('Tabel 1 F'!E131<5,'Tabel 2 F'!G133<0.5),"-",IFERROR('Tabel 2 F'!G133/'Tabel 1 F'!E131*100,"-")) -> - | I133: =IF(OR('Tabel 1 F'!G131<5,'Tabel 2 F'!I133<0.5),"-",IFERROR('Tabel 2 F'!I133/'Tabel 1 F'!G131*100,"-")) -> - | J133: =IF(OR('Tabel 1 F'!G131<5,'Tabel 2 F'!J133<0.5),"-",IFERROR('Tabel 2 F'!J133/'Tabel 1 F'!G131*100,"-")) -> -
A134: Arkitekt | C134: =IF(OR('Tabel 1 F'!C132<5,'Tabel 2 F'!C134<0.5),"-",IFERROR('Tabel 2 F'!C134/'Tabel 1 F'!C132*100,"-")) -> - | D134: =IF(OR('Tabel 1 F'!C132<5,'Tabel 2 F'!D134<0.5),"-",IFERROR('Tabel 2 F'!D134/'Tabel 1 F'!C132*100,"-")) -> - | F134: =IF(OR('Tabel 1 F'!E132<5,'Tabel 2 F'!F134<0.5),"-",IFERROR('Tabel 2 F'!F134/'Tabel 1 F'!E132*100,"-")) -> - | G134: =IF(OR('Tabel 1 F'!E132<5,'Tabel 2 F'!G134<0.5),"-",IFERROR('Tabel 2 F'!G134/'Tabel 1 F'!E132*100,"-")) -> - | I134: =IF(OR('Tabel 1 F'!G132<5,'Tabel 2 F'!I134<0.5),"-",IFERROR('Tabel 2 F'!I134/'Tabel 1 F'!G132*100,"-")) -> 20 | J134: =IF(OR('Tabel 1 F'!G132<5,'Tabel 2 F'!J134<0.5),"-",IFERROR('Tabel 2 F'!J134/'Tabel 1 F'!G132*100,"-")) -> 19.99625772
A135: Landinspek. | C135: =IF(OR('Tabel 1 F'!C133<5,'Tabel 2 F'!C135<0.5),"-",IFERROR('Tabel 2 F'!C135/'Tabel 1 F'!C133*100,"-")) -> - | D135: =IF(OR('Tabel 1 F'!C133<5,'Tabel 2 F'!D135<0.5),"-",IFERROR('Tabel 2 F'!D135/'Tabel 1 F'!C133*100,"-")) -> - | F135: =IF(OR('Tabel 1 F'!E133<5,'Tabel 2 F'!F135<0.5),"-",IFERROR('Tabel 2 F'!F135/'Tabel 1 F'!E133*100,"-")) -> - | G135: =IF(OR('Tabel 1 F'!E133<5,'Tabel 2 F'!G135<0.5),"-",IFERROR('Tabel 2 F'!G135/'Tabel 1 F'!E133*100,"-")) -> - | I135: =IF(OR('Tabel 1 F'!G133<5,'Tabel 2 F'!I135<0.5),"-",IFERROR('Tabel 2 F'!I135/'Tabel 1 F'!G133*100,"-")) -> - | J135: =IF(OR('Tabel 1 F'!G133<5,'Tabel 2 F'!J135<0.5),"-",IFERROR('Tabel 2 F'!J135/'Tabel 1 F'!G133*100,"-")) -> -
A136: Bibliotekar | C136: =IF(OR('Tabel 1 F'!C134<5,'Tabel 2 F'!C136<0.5),"-",IFERROR('Tabel 2 F'!C136/'Tabel 1 F'!C134*100,"-")) -> - | D136: =IF(OR('Tabel 1 F'!C134<5,'Tabel 2 F'!D136<0.5),"-",IFERROR('Tabel 2 F'!D136/'Tabel 1 F'!C134*100,"-")) -> - | F136: =IF(OR('Tabel 1 F'!E134<5,'Tabel 2 F'!F136<0.5),"-",IFERROR('Tabel 2 F'!F136/'Tabel 1 F'!E134*100,"-")) -> - | G136: =IF(OR('Tabel 1 F'!E134<5,'Tabel 2 F'!G136<0.5),"-",IFERROR('Tabel 2 F'!G136/'Tabel 1 F'!E134*100,"-")) -> - | I136: =IF(OR('Tabel 1 F'!G134<5,'Tabel 2 F'!I136<0.5),"-",IFERROR('Tabel 2 F'!I136/'Tabel 1 F'!G134*100,"-")) -> - | J136: =IF(OR('Tabel 1 F'!G134<5,'Tabel 2 F'!J136<0.5),"-",IFERROR('Tabel 2 F'!J136/'Tabel 1 F'!G134*100,"-")) -> -
A137: Musikudd. | C137: =IF(OR('Tabel 1 F'!C135<5,'Tabel 2 F'!C137<0.5),"-",IFERROR('Tabel 2 F'!C137/'Tabel 1 F'!C135*100,"-")) -> - | D137: =IF(OR('Tabel 1 F'!C135<5,'Tabel 2 F'!D137<0.5),"-",IFERROR('Tabel 2 F'!D137/'Tabel 1 F'!C135*100,"-")) -> - | F137: =IF(OR('Tabel 1 F'!E135<5,'Tabel 2 F'!F137<0.5),"-",IFERROR('Tabel 2 F'!F137/'Tabel 1 F'!E135*100,"-")) -> 12.5 | G137: =IF(OR('Tabel 1 F'!E135<5,'Tabel 2 F'!G137<0.5),"-",IFERROR('Tabel 2 F'!G137/'Tabel 1 F'!E135*100,"-")) -> - | I137: =IF(OR('Tabel 1 F'!G135<5,'Tabel 2 F'!I137<0.5),"-",IFERROR('Tabel 2 F'!I137/'Tabel 1 F'!G135*100,"-")) -> 9.090909091 | J137: =IF(OR('Tabel 1 F'!G135<5,'Tabel 2 F'!J137<0.5),"-",IFERROR('Tabel 2 F'!J137/'Tabel 1 F'!G135*100,"-")) -> -
A138: Teolog | C138: =IF(OR('Tabel 1 F'!C136<5,'Tabel 2 F'!C138<0.5),"-",IFERROR('Tabel 2 F'!C138/'Tabel 1 F'!C136*100,"-")) -> - | D138: =IF(OR('Tabel 1 F'!C136<5,'Tabel 2 F'!D138<0.5),"-",IFERROR('Tabel 2 F'!D138/'Tabel 1 F'!C136*100,"-")) -> - | F138: =IF(OR('Tabel 1 F'!E136<5,'Tabel 2 F'!F138<0.5),"-",IFERROR('Tabel 2 F'!F138/'Tabel 1 F'!E136*100,"-")) -> - | G138: =IF(OR('Tabel 1 F'!E136<5,'Tabel 2 F'!G138<0.5),"-",IFERROR('Tabel 2 F'!G138/'Tabel 1 F'!E136*100,"-")) -> - | I138: =IF(OR('Tabel 1 F'!G136<5,'Tabel 2 F'!I138<0.5),"-",IFERROR('Tabel 2 F'!I138/'Tabel 1 F'!G136*100,"-")) -> - | J138: =IF(OR('Tabel 1 F'!G136<5,'Tabel 2 F'!J138<0.5),"-",IFERROR('Tabel 2 F'!J138/'Tabel 1 F'!G136*100,"-")) -> -
A139: Psykolog | C139: =IF(OR('Tabel 1 F'!C137<5,'Tabel 2 F'!C139<0.5),"-",IFERROR('Tabel 2 F'!C139/'Tabel 1 F'!C137*100,"-")) -> - | D139: =IF(OR('Tabel 1 F'!C137<5,'Tabel 2 F'!D139<0.5),"-",IFERROR('Tabel 2 F'!D139/'Tabel 1 F'!C137*100,"-")) -> - | F139: =IF(OR('Tabel 1 F'!E137<5,'Tabel 2 F'!F139<0.5),"-",IFERROR('Tabel 2 F'!F139/'Tabel 1 F'!E137*100,"-")) -> 5.882352941 | G139: =IF(OR('Tabel 1 F'!E137<5,'Tabel 2 F'!G139<0.5),"-",IFERROR('Tabel 2 F'!G139/'Tabel 1 F'!E137*100,"-")) -> 5.477672888 | I139: =IF(OR('Tabel 1 F'!G137<5,'Tabel 2 F'!I139<0.5),"-",IFERROR('Tabel 2 F'!I139/'Tabel 1 F'!G137*100,"-")) -> 4.545454545 | J139: =IF(OR('Tabel 1 F'!G137<5,'Tabel 2 F'!J139<0.5),"-",IFERROR('Tabel 2 F'!J139/'Tabel 1 F'!G137*100,"-")) -> 4.232747232
A140: Jurist | C140: =IF(OR('Tabel 1 F'!C138<5,'Tabel 2 F'!C140<0.5),"-",IFERROR('Tabel 2 F'!C140/'Tabel 1 F'!C138*100,"-")) -> - | D140: =IF(OR('Tabel 1 F'!C138<5,'Tabel 2 F'!D140<0.5),"-",IFERROR('Tabel 2 F'!D140/'Tabel 1 F'!C138*100,"-")) -> - | F140: =IF(OR('Tabel 1 F'!E138<5,'Tabel 2 F'!F140<0.5),"-",IFERROR('Tabel 2 F'!F140/'Tabel 1 F'!E138*100,"-")) -> 11.76470588 | G140: =IF(OR('Tabel 1 F'!E138<5,'Tabel 2 F'!G140<0.5),"-",IFERROR('Tabel 2 F'!G140/'Tabel 1 F'!E138*100,"-")) -> 11.76250454 | I140: =IF(OR('Tabel 1 F'!G138<5,'Tabel 2 F'!I140<0.5),"-",IFERROR('Tabel 2 F'!I140/'Tabel 1 F'!G138*100,"-")) -> 9.090909091 | J140: =IF(OR('Tabel 1 F'!G138<5,'Tabel 2 F'!J140<0.5),"-",IFERROR('Tabel 2 F'!J140/'Tabel 1 F'!G138*100,"-")) -> 9.089208054
A141: Økonom | C141: =IF(OR('Tabel 1 F'!C139<5,'Tabel 2 F'!C141<0.5),"-",IFERROR('Tabel 2 F'!C141/'Tabel 1 F'!C139*100,"-")) -> - | D141: =IF(OR('Tabel 1 F'!C139<5,'Tabel 2 F'!D141<0.5),"-",IFERROR('Tabel 2 F'!D141/'Tabel 1 F'!C139*100,"-")) -> - | F141: =IF(OR('Tabel 1 F'!E139<5,'Tabel 2 F'!F141<0.5),"-",IFERROR('Tabel 2 F'!F141/'Tabel 1 F'!E139*100,"-")) -> - | G141: =IF(OR('Tabel 1 F'!E139<5,'Tabel 2 F'!G141<0.5),"-",IFERROR('Tabel 2 F'!G141/'Tabel 1 F'!E139*100,"-")) -> - | I141: =IF(OR('Tabel 1 F'!G139<5,'Tabel 2 F'!I141<0.5),"-",IFERROR('Tabel 2 F'!I141/'Tabel 1 F'!G139*100,"-")) -> - | J141: =IF(OR('Tabel 1 F'!G139<5,'Tabel 2 F'!J141<0.5),"-",IFERROR('Tabel 2 F'!J141/'Tabel 1 F'!G139*100,"-")) -> -
A142: Samf. Adm. | C142: =IF(OR('Tabel 1 F'!C140<5,'Tabel 2 F'!C142<0.5),"-",IFERROR('Tabel 2 F'!C142/'Tabel 1 F'!C140*100,"-")) -> - | D142: =IF(OR('Tabel 1 F'!C140<5,'Tabel 2 F'!D142<0.5),"-",IFERROR('Tabel 2 F'!D142/'Tabel 1 F'!C140*100,"-")) -> - | F142: =IF(OR('Tabel 1 F'!E140<5,'Tabel 2 F'!F142<0.5),"-",IFERROR('Tabel 2 F'!F142/'Tabel 1 F'!E140*100,"-")) -> 5.263157895 | G142: =IF(OR('Tabel 1 F'!E140<5,'Tabel 2 F'!G142<0.5),"-",IFERROR('Tabel 2 F'!G142/'Tabel 1 F'!E140*100,"-")) -> 5.262173084 | I142: =IF(OR('Tabel 1 F'!G140<5,'Tabel 2 F'!I142<0.5),"-",IFERROR('Tabel 2 F'!I142/'Tabel 1 F'!G140*100,"-")) -> 3.571428571 | J142: =IF(OR('Tabel 1 F'!G140<5,'Tabel 2 F'!J142<0.5),"-",IFERROR('Tabel 2 F'!J142/'Tabel 1 F'!G140*100,"-")) -> 3.570760307
A143: Cand. Merc. | C143: =IF(OR('Tabel 1 F'!C141<5,'Tabel 2 F'!C143<0.5),"-",IFERROR('Tabel 2 F'!C143/'Tabel 1 F'!C141*100,"-")) -> 9.677419355 | D143: =IF(OR('Tabel 1 F'!C141<5,'Tabel 2 F'!D143<0.5),"-",IFERROR('Tabel 2 F'!D143/'Tabel 1 F'!C141*100,"-")) -> 7.198862024 | F143: =IF(OR('Tabel 1 F'!E141<5,'Tabel 2 F'!F143<0.5),"-",IFERROR('Tabel 2 F'!F143/'Tabel 1 F'!E141*100,"-")) -> 3.846153846 | G143: =IF(OR('Tabel 1 F'!E141<5,'Tabel 2 F'!G143<0.5),"-",IFERROR('Tabel 2 F'!G143/'Tabel 1 F'!E141*100,"-")) -> 2.645984964 | I143: =IF(OR('Tabel 1 F'!G141<5,'Tabel 2 F'!I143<0.5),"-",IFERROR('Tabel 2 F'!I143/'Tabel 1 F'!G141*100,"-")) -> 7.01754386 | J143: =IF(OR('Tabel 1 F'!G141<5,'Tabel 2 F'!J143<0.5),"-",IFERROR('Tabel 2 F'!J143/'Tabel 1 F'!G141*100,"-")) -> 5.122111084
A144: HA | C144: =IF(OR('Tabel 1 F'!C142<5,'Tabel 2 F'!C144<0.5),"-",IFERROR('Tabel 2 F'!C144/'Tabel 1 F'!C142*100,"-")) -> - | D144: =IF(OR('Tabel 1 F'!C142<5,'Tabel 2 F'!D144<0.5),"-",IFERROR('Tabel 2 F'!D144/'Tabel 1 F'!C142*100,"-")) -> - | F144: =IF(OR('Tabel 1 F'!E142<5,'Tabel 2 F'!F144<0.5),"-",IFERROR('Tabel 2 F'!F144/'Tabel 1 F'!E142*100,"-")) -> - | G144: =IF(OR('Tabel 1 F'!E142<5,'Tabel 2 F'!G144<0.5),"-",IFERROR('Tabel 2 F'!G144/'Tabel 1 F'!E142*100,"-")) -> - | I144: =IF(OR('Tabel 1 F'!G142<5,'Tabel 2 F'!I144<0.5),"-",IFERROR('Tabel 2 F'!I144/'Tabel 1 F'!G142*100,"-")) -> - | J144: =IF(OR('Tabel 1 F'!G142<5,'Tabel 2 F'!J144<0.5),"-",IFERROR('Tabel 2 F'!J144/'Tabel 1 F'!G142*100,"-")) -> -
A145: HD | C145: =IF(OR('Tabel 1 F'!C143<5,'Tabel 2 F'!C145<0.5),"-",IFERROR('Tabel 2 F'!C145/'Tabel 1 F'!C143*100,"-")) -> - | D145: =IF(OR('Tabel 1 F'!C143<5,'Tabel 2 F'!D145<0.5),"-",IFERROR('Tabel 2 F'!D145/'Tabel 1 F'!C143*100,"-")) -> - | F145: =IF(OR('Tabel 1 F'!E143<5,'Tabel 2 F'!F145<0.5),"-",IFERROR('Tabel 2 F'!F145/'Tabel 1 F'!E143*100,"-")) -> 12.5 | G145: =IF(OR('Tabel 1 F'!E143<5,'Tabel 2 F'!G145<0.5),"-",IFERROR('Tabel 2 F'!G145/'Tabel 1 F'!E143*100,"-")) -> 12.49766107 | I145: =IF(OR('Tabel 1 F'!G143<5,'Tabel 2 F'!I145<0.5),"-",IFERROR('Tabel 2 F'!I145/'Tabel 1 F'!G143*100,"-")) -> 5.555555556 | J145: =IF(OR('Tabel 1 F'!G143<5,'Tabel 2 F'!J145<0.5),"-",IFERROR('Tabel 2 F'!J145/'Tabel 1 F'!G143*100,"-")) -> 5.554516033
A146: Komm. og Sprog | C146: =IF(OR('Tabel 1 F'!C144<5,'Tabel 2 F'!C146<0.5),"-",IFERROR('Tabel 2 F'!C146/'Tabel 1 F'!C144*100,"-")) -> - | D146: =IF(OR('Tabel 1 F'!C144<5,'Tabel 2 F'!D146<0.5),"-",IFERROR('Tabel 2 F'!D146/'Tabel 1 F'!C144*100,"-")) -> - | F146: =IF(OR('Tabel 1 F'!E144<5,'Tabel 2 F'!F146<0.5),"-",IFERROR('Tabel 2 F'!F146/'Tabel 1 F'!E144*100,"-")) -> 5.263157895 | G146: =IF(OR('Tabel 1 F'!E144<5,'Tabel 2 F'!G146<0.5),"-",IFERROR('Tabel 2 F'!G146/'Tabel 1 F'!E144*100,"-")) -> 5.262173084 | I146: =IF(OR('Tabel 1 F'!G144<5,'Tabel 2 F'!I146<0.5),"-",IFERROR('Tabel 2 F'!I146/'Tabel 1 F'!G144*100,"-")) -> 4.761904762 | J146: =IF(OR('Tabel 1 F'!G144<5,'Tabel 2 F'!J146<0.5),"-",IFERROR('Tabel 2 F'!J146/'Tabel 1 F'!G144*100,"-")) -> 4.761013742
A147: Cand. IT. | C147: =IF(OR('Tabel 1 F'!C145<5,'Tabel 2 F'!C147<0.5),"-",IFERROR('Tabel 2 F'!C147/'Tabel 1 F'!C145*100,"-")) -> - | D147: =IF(OR('Tabel 1 F'!C145<5,'Tabel 2 F'!D147<0.5),"-",IFERROR('Tabel 2 F'!D147/'Tabel 1 F'!C145*100,"-")) -> - | F147: =IF(OR('Tabel 1 F'!E145<5,'Tabel 2 F'!F147<0.5),"-",IFERROR('Tabel 2 F'!F147/'Tabel 1 F'!E145*100,"-")) -> - | G147: =IF(OR('Tabel 1 F'!E145<5,'Tabel 2 F'!G147<0.5),"-",IFERROR('Tabel 2 F'!G147/'Tabel 1 F'!E145*100,"-")) -> - | I147: =IF(OR('Tabel 1 F'!G145<5,'Tabel 2 F'!I147<0.5),"-",IFERROR('Tabel 2 F'!I147/'Tabel 1 F'!G145*100,"-")) -> 20 | J147: =IF(OR('Tabel 1 F'!G145<5,'Tabel 2 F'!J147<0.5),"-",IFERROR('Tabel 2 F'!J147/'Tabel 1 F'!G145*100,"-")) -> 19.99625772
A148: Bac. Samf. | C148: =IF(OR('Tabel 1 F'!C146<5,'Tabel 2 F'!C148<0.5),"-",IFERROR('Tabel 2 F'!C148/'Tabel 1 F'!C146*100,"-")) -> - | D148: =IF(OR('Tabel 1 F'!C146<5,'Tabel 2 F'!D148<0.5),"-",IFERROR('Tabel 2 F'!D148/'Tabel 1 F'!C146*100,"-")) -> - | F148: =IF(OR('Tabel 1 F'!E146<5,'Tabel 2 F'!F148<0.5),"-",IFERROR('Tabel 2 F'!F148/'Tabel 1 F'!E146*100,"-")) -> - | G148: =IF(OR('Tabel 1 F'!E146<5,'Tabel 2 F'!G148<0.5),"-",IFERROR('Tabel 2 F'!G148/'Tabel 1 F'!E146*100,"-")) -> - | I148: =IF(OR('Tabel 1 F'!G146<5,'Tabel 2 F'!I148<0.5),"-",IFERROR('Tabel 2 F'!I148/'Tabel 1 F'!G146*100,"-")) -> - | J148: =IF(OR('Tabel 1 F'!G146<5,'Tabel 2 F'!J148<0.5),"-",IFERROR('Tabel 2 F'!J148/'Tabel 1 F'!G146*100,"-")) -> -
A149: Bac. Hum. | C149: =IF(OR('Tabel 1 F'!C147<5,'Tabel 2 F'!C149<0.5),"-",IFERROR('Tabel 2 F'!C149/'Tabel 1 F'!C147*100,"-")) -> - | D149: =IF(OR('Tabel 1 F'!C147<5,'Tabel 2 F'!D149<0.5),"-",IFERROR('Tabel 2 F'!D149/'Tabel 1 F'!C147*100,"-")) -> - | F149: =IF(OR('Tabel 1 F'!E147<5,'Tabel 2 F'!F149<0.5),"-",IFERROR('Tabel 2 F'!F149/'Tabel 1 F'!E147*100,"-")) -> - | G149: =IF(OR('Tabel 1 F'!E147<5,'Tabel 2 F'!G149<0.5),"-",IFERROR('Tabel 2 F'!G149/'Tabel 1 F'!E147*100,"-")) -> - | I149: =IF(OR('Tabel 1 F'!G147<5,'Tabel 2 F'!I149<0.5),"-",IFERROR('Tabel 2 F'!I149/'Tabel 1 F'!G147*100,"-")) -> - | J149: =IF(OR('Tabel 1 F'!G147<5,'Tabel 2 F'!J149<0.5),"-",IFERROR('Tabel 2 F'!J149/'Tabel 1 F'!G147*100,"-")) -> -
A150: Bac. Nat. | C150: =IF(OR('Tabel 1 F'!C148<5,'Tabel 2 F'!C150<0.5),"-",IFERROR('Tabel 2 F'!C150/'Tabel 1 F'!C148*100,"-")) -> - | D150: =IF(OR('Tabel 1 F'!C148<5,'Tabel 2 F'!D150<0.5),"-",IFERROR('Tabel 2 F'!D150/'Tabel 1 F'!C148*100,"-")) -> - | F150: =IF(OR('Tabel 1 F'!E148<5,'Tabel 2 F'!F150<0.5),"-",IFERROR('Tabel 2 F'!F150/'Tabel 1 F'!E148*100,"-")) -> - | G150: =IF(OR('Tabel 1 F'!E148<5,'Tabel 2 F'!G150<0.5),"-",IFERROR('Tabel 2 F'!G150/'Tabel 1 F'!E148*100,"-")) -> - | I150: =IF(OR('Tabel 1 F'!G148<5,'Tabel 2 F'!I150<0.5),"-",IFERROR('Tabel 2 F'!I150/'Tabel 1 F'!G148*100,"-")) -> 16.66666667 | J150: =IF(OR('Tabel 1 F'!G148<5,'Tabel 2 F'!J150<0.5),"-",IFERROR('Tabel 2 F'!J150/'Tabel 1 F'!G148*100,"-")) -> -
A151: Andre | C151: =IF(OR('Tabel 1 F'!C149<5,'Tabel 2 F'!C151<0.5),"-",IFERROR('Tabel 2 F'!C151/'Tabel 1 F'!C149*100,"-")) -> 4.444444444 | D151: =IF(OR('Tabel 1 F'!C149<5,'Tabel 2 F'!D151<0.5),"-",IFERROR('Tabel 2 F'!D151/'Tabel 1 F'!C149*100,"-")) -> 3.110251772 | F151: =IF(OR('Tabel 1 F'!E149<5,'Tabel 2 F'!F151<0.5),"-",IFERROR('Tabel 2 F'!F151/'Tabel 1 F'!E149*100,"-")) -> 9.523809524 | G151: =IF(OR('Tabel 1 F'!E149<5,'Tabel 2 F'!G151<0.5),"-",IFERROR('Tabel 2 F'!G151/'Tabel 1 F'!E149*100,"-")) -> 9.522027485 | I151: =IF(OR('Tabel 1 F'!G149<5,'Tabel 2 F'!I151<0.5),"-",IFERROR('Tabel 2 F'!I151/'Tabel 1 F'!G149*100,"-")) -> 6.060606061 | J151: =IF(OR('Tabel 1 F'!G149<5,'Tabel 2 F'!J151<0.5),"-",IFERROR('Tabel 2 F'!J151/'Tabel 1 F'!G149*100,"-")) -> 5.150362226
A153: Total | C153: =IF(OR('Tabel 1 F'!C151<5,'Tabel 2 F'!C153<0.5),"-",IFERROR('Tabel 2 F'!C153/'Tabel 1 F'!C151*100,"-")) -> 3.396226415 | D153: =IF(OR('Tabel 1 F'!C151<5,'Tabel 2 F'!D153<0.5),"-",IFERROR('Tabel 2 F'!D153/'Tabel 1 F'!C151*100,"-")) -> 2.730217982 | F153: =IF(OR('Tabel 1 F'!E151<5,'Tabel 2 F'!F153<0.5),"-",IFERROR('Tabel 2 F'!F153/'Tabel 1 F'!E151*100,"-")) -> 6.109979633 | G153: =IF(OR('Tabel 1 F'!E151<5,'Tabel 2 F'!G153<0.5),"-",IFERROR('Tabel 2 F'!G153/'Tabel 1 F'!E151*100,"-")) -> 5.138078883 | I153: =IF(OR('Tabel 1 F'!G151<5,'Tabel 2 F'!I153<0.5),"-",IFERROR('Tabel 2 F'!I153/'Tabel 1 F'!G151*100,"-")) -> 4.701273262 | J153: =IF(OR('Tabel 1 F'!G151<5,'Tabel 2 F'!J153<0.5),"-",IFERROR('Tabel 2 F'!J153/'Tabel 1 F'!G151*100,"-")) -> 3.888160884
A155: Ingeniører i alt | C155: =IF(OR('Tabel 1 F'!C153<5,'Tabel 2 F'!C155<0.5),"-",IFERROR('Tabel 2 F'!C155/'Tabel 1 F'!C153*100,"-")) -> 2.479338843 | D155: =IF(OR('Tabel 1 F'!C153<5,'Tabel 2 F'!D155<0.5),"-",IFERROR('Tabel 2 F'!D155/'Tabel 1 F'!C153*100,"-")) -> 1.732995944 | F155: =IF(OR('Tabel 1 F'!E153<5,'Tabel 2 F'!F155<0.5),"-",IFERROR('Tabel 2 F'!F155/'Tabel 1 F'!E153*100,"-")) -> 3.773584906 | G155: =IF(OR('Tabel 1 F'!E153<5,'Tabel 2 F'!G155<0.5),"-",IFERROR('Tabel 2 F'!G155/'Tabel 1 F'!E153*100,"-")) -> 1.499266254 | I155: =IF(OR('Tabel 1 F'!G153<5,'Tabel 2 F'!I155<0.5),"-",IFERROR('Tabel 2 F'!I155/'Tabel 1 F'!G153*100,"-")) -> 2.711864407 | J155: =IF(OR('Tabel 1 F'!G153<5,'Tabel 2 F'!J155<0.5),"-",IFERROR('Tabel 2 F'!J155/'Tabel 1 F'!G153*100,"-")) -> 1.69100383
A156: Magistre i alt | C156: =IF(OR('Tabel 1 F'!C154<5,'Tabel 2 F'!C156<0.5),"-",IFERROR('Tabel 2 F'!C156/'Tabel 1 F'!C154*100,"-")) -> 6.578947368 | D156: =IF(OR('Tabel 1 F'!C154<5,'Tabel 2 F'!D156<0.5),"-",IFERROR('Tabel 2 F'!D156/'Tabel 1 F'!C154*100,"-")) -> 6.112393189 | F156: =IF(OR('Tabel 1 F'!E154<5,'Tabel 2 F'!F156<0.5),"-",IFERROR('Tabel 2 F'!F156/'Tabel 1 F'!E154*100,"-")) -> 8.759124088 | G156: =IF(OR('Tabel 1 F'!E154<5,'Tabel 2 F'!G156<0.5),"-",IFERROR('Tabel 2 F'!G156/'Tabel 1 F'!E154*100,"-")) -> 7.421736464 | I156: =IF(OR('Tabel 1 F'!G154<5,'Tabel 2 F'!I156<0.5),"-",IFERROR('Tabel 2 F'!I156/'Tabel 1 F'!G154*100,"-")) -> 7.981220657 | J156: =IF(OR('Tabel 1 F'!G154<5,'Tabel 2 F'!J156<0.5),"-",IFERROR('Tabel 2 F'!J156/'Tabel 1 F'!G154*100,"-")) -> 6.954552948
A157: DJØF'ere i alt | C157: =IF(OR('Tabel 1 F'!C155<5,'Tabel 2 F'!C157<0.5),"-",IFERROR('Tabel 2 F'!C157/'Tabel 1 F'!C155*100,"-")) -> 4.166666667 | D157: =IF(OR('Tabel 1 F'!C155<5,'Tabel 2 F'!D157<0.5),"-",IFERROR('Tabel 2 F'!D157/'Tabel 1 F'!C155*100,"-")) -> 3.099510038 | F157: =IF(OR('Tabel 1 F'!E155<5,'Tabel 2 F'!F157<0.5),"-",IFERROR('Tabel 2 F'!F157/'Tabel 1 F'!E155*100,"-")) -> 4.901960784 | G157: =IF(OR('Tabel 1 F'!E155<5,'Tabel 2 F'!G157<0.5),"-",IFERROR('Tabel 2 F'!G157/'Tabel 1 F'!E155*100,"-")) -> 4.595301602 | I157: =IF(OR('Tabel 1 F'!G155<5,'Tabel 2 F'!I157<0.5),"-",IFERROR('Tabel 2 F'!I157/'Tabel 1 F'!G155*100,"-")) -> 4.597701149 | J157: =IF(OR('Tabel 1 F'!G155<5,'Tabel 2 F'!J157<0.5),"-",IFERROR('Tabel 2 F'!J157/'Tabel 1 F'!G155*100,"-")) -> 3.976353369
A162: Faaborg-Midtfyn
C164: Mænd | F164: Kvinder | I164: I alt
C165: Ledigheds- berørte | D165: Gns. brutto- ledighed | F165: Ledigheds- berørte | G165: Gns. brutto- ledighed | I165: Ledigheds- berørte | J165: Gns. brutto- ledighed
A168: Civ. ing. | C168: =IF(OR('Tabel 1 F'!C166<5,'Tabel 2 F'!C168<0.5),"-",IFERROR('Tabel 2 F'!C168/'Tabel 1 F'!C166*100,"-")) -> 3.225806452 | D168: =IF(OR('Tabel 1 F'!C166<5,'Tabel 2 F'!D168<0.5),"-",IFERROR('Tabel 2 F'!D168/'Tabel 1 F'!C166*100,"-")) -> 3.104484098 | F168: =IF(OR('Tabel 1 F'!E166<5,'Tabel 2 F'!F168<0.5),"-",IFERROR('Tabel 2 F'!F168/'Tabel 1 F'!E166*100,"-")) -> 8.333333333 | G168: =IF(OR('Tabel 1 F'!E166<5,'Tabel 2 F'!G168<0.5),"-",IFERROR('Tabel 2 F'!G168/'Tabel 1 F'!E166*100,"-")) -> 8.331774049 | I168: =IF(OR('Tabel 1 F'!G166<5,'Tabel 2 F'!I168<0.5),"-",IFERROR('Tabel 2 F'!I168/'Tabel 1 F'!G166*100,"-")) -> 4.054054054 | J168: =IF(OR('Tabel 1 F'!G166<5,'Tabel 2 F'!J168<0.5),"-",IFERROR('Tabel 2 F'!J168/'Tabel 1 F'!G166*100,"-")) -> 3.952152739
A169: Diplom ing. | C169: =IF(OR('Tabel 1 F'!C167<5,'Tabel 2 F'!C169<0.5),"-",IFERROR('Tabel 2 F'!C169/'Tabel 1 F'!C167*100,"-")) -> 1.34529148 | D169: =IF(OR('Tabel 1 F'!C167<5,'Tabel 2 F'!D169<0.5),"-",IFERROR('Tabel 2 F'!D169/'Tabel 1 F'!C167*100,"-")) -> 1.262250868 | F169: =IF(OR('Tabel 1 F'!E167<5,'Tabel 2 F'!F169<0.5),"-",IFERROR('Tabel 2 F'!F169/'Tabel 1 F'!E167*100,"-")) -> - | G169: =IF(OR('Tabel 1 F'!E167<5,'Tabel 2 F'!G169<0.5),"-",IFERROR('Tabel 2 F'!G169/'Tabel 1 F'!E167*100,"-")) -> - | I169: =IF(OR('Tabel 1 F'!G167<5,'Tabel 2 F'!I169<0.5),"-",IFERROR('Tabel 2 F'!I169/'Tabel 1 F'!G167*100,"-")) -> 1.149425287 | J169: =IF(OR('Tabel 1 F'!G167<5,'Tabel 2 F'!J169<0.5),"-",IFERROR('Tabel 2 F'!J169/'Tabel 1 F'!G167*100,"-")) -> 1.078474879
A170: Cand. Scient. Tek. | C170: =IF(OR('Tabel 1 F'!C168<5,'Tabel 2 F'!C170<0.5),"-",IFERROR('Tabel 2 F'!C170/'Tabel 1 F'!C168*100,"-")) -> 8 | D170: =IF(OR('Tabel 1 F'!C168<5,'Tabel 2 F'!D170<0.5),"-",IFERROR('Tabel 2 F'!D170/'Tabel 1 F'!C168*100,"-")) -> 7.998503087 | F170: =IF(OR('Tabel 1 F'!E168<5,'Tabel 2 F'!F170<0.5),"-",IFERROR('Tabel 2 F'!F170/'Tabel 1 F'!E168*100,"-")) -> 3.448275862 | G170: =IF(OR('Tabel 1 F'!E168<5,'Tabel 2 F'!G170<0.5),"-",IFERROR('Tabel 2 F'!G170/'Tabel 1 F'!E168*100,"-")) -> 3.447630641 | I170: =IF(OR('Tabel 1 F'!G168<5,'Tabel 2 F'!I170<0.5),"-",IFERROR('Tabel 2 F'!I170/'Tabel 1 F'!G168*100,"-")) -> 5.555555556 | J170: =IF(OR('Tabel 1 F'!G168<5,'Tabel 2 F'!J170<0.5),"-",IFERROR('Tabel 2 F'!J170/'Tabel 1 F'!G168*100,"-")) -> 5.554516033
A171: MA. Hum. | C171: =IF(OR('Tabel 1 F'!C169<5,'Tabel 2 F'!C171<0.5),"-",IFERROR('Tabel 2 F'!C171/'Tabel 1 F'!C169*100,"-")) -> 12.12121212 | D171: =IF(OR('Tabel 1 F'!C169<5,'Tabel 2 F'!D171<0.5),"-",IFERROR('Tabel 2 F'!D171/'Tabel 1 F'!C169*100,"-")) -> 9.51446732 | F171: =IF(OR('Tabel 1 F'!E169<5,'Tabel 2 F'!F171<0.5),"-",IFERROR('Tabel 2 F'!F171/'Tabel 1 F'!E169*100,"-")) -> 12.14953271 | G171: =IF(OR('Tabel 1 F'!E169<5,'Tabel 2 F'!G171<0.5),"-",IFERROR('Tabel 2 F'!G171/'Tabel 1 F'!E169*100,"-")) -> 10.10707472 | I171: =IF(OR('Tabel 1 F'!G169<5,'Tabel 2 F'!I171<0.5),"-",IFERROR('Tabel 2 F'!I171/'Tabel 1 F'!G169*100,"-")) -> 12.13872832 | J171: =IF(OR('Tabel 1 F'!G169<5,'Tabel 2 F'!J171<0.5),"-",IFERROR('Tabel 2 F'!J171/'Tabel 1 F'!G169*100,"-")) -> 9.880993284
A172: MA. Nat. | C172: =IF(OR('Tabel 1 F'!C170<5,'Tabel 2 F'!C172<0.5),"-",IFERROR('Tabel 2 F'!C172/'Tabel 1 F'!C170*100,"-")) -> 6.666666667 | D172: =IF(OR('Tabel 1 F'!C170<5,'Tabel 2 F'!D172<0.5),"-",IFERROR('Tabel 2 F'!D172/'Tabel 1 F'!C170*100,"-")) -> 5.827563983 | F172: =IF(OR('Tabel 1 F'!E170<5,'Tabel 2 F'!F172<0.5),"-",IFERROR('Tabel 2 F'!F172/'Tabel 1 F'!E170*100,"-")) -> 5.128205128 | G172: =IF(OR('Tabel 1 F'!E170<5,'Tabel 2 F'!G172<0.5),"-",IFERROR('Tabel 2 F'!G172/'Tabel 1 F'!E170*100,"-")) -> 3.825443356 | I172: =IF(OR('Tabel 1 F'!G170<5,'Tabel 2 F'!I172<0.5),"-",IFERROR('Tabel 2 F'!I172/'Tabel 1 F'!G170*100,"-")) -> 5.797101449 | J172: =IF(OR('Tabel 1 F'!G170<5,'Tabel 2 F'!J172<0.5),"-",IFERROR('Tabel 2 F'!J172/'Tabel 1 F'!G170*100,"-")) -> 4.695930585
A173: MA. Ph.d. | C173: =IF(OR('Tabel 1 F'!C171<5,'Tabel 2 F'!C173<0.5),"-",IFERROR('Tabel 2 F'!C173/'Tabel 1 F'!C171*100,"-")) -> - | D173: =IF(OR('Tabel 1 F'!C171<5,'Tabel 2 F'!D173<0.5),"-",IFERROR('Tabel 2 F'!D173/'Tabel 1 F'!C171*100,"-")) -> - | F173: =IF(OR('Tabel 1 F'!E171<5,'Tabel 2 F'!F173<0.5),"-",IFERROR('Tabel 2 F'!F173/'Tabel 1 F'!E171*100,"-")) -> - | G173: =IF(OR('Tabel 1 F'!E171<5,'Tabel 2 F'!G173<0.5),"-",IFERROR('Tabel 2 F'!G173/'Tabel 1 F'!E171*100,"-")) -> - | I173: =IF(OR('Tabel 1 F'!G171<5,'Tabel 2 F'!I173<0.5),"-",IFERROR('Tabel 2 F'!I173/'Tabel 1 F'!G171*100,"-")) -> - | J173: =IF(OR('Tabel 1 F'!G171<5,'Tabel 2 F'!J173<0.5),"-",IFERROR('Tabel 2 F'!J173/'Tabel 1 F'!G171*100,"-")) -> -
A174: MA. Samf. | C174: =IF(OR('Tabel 1 F'!C172<5,'Tabel 2 F'!C174<0.5),"-",IFERROR('Tabel 2 F'!C174/'Tabel 1 F'!C172*100,"-")) -> - | D174: =IF(OR('Tabel 1 F'!C172<5,'Tabel 2 F'!D174<0.5),"-",IFERROR('Tabel 2 F'!D174/'Tabel 1 F'!C172*100,"-")) -> - | F174: =IF(OR('Tabel 1 F'!E172<5,'Tabel 2 F'!F174<0.5),"-",IFERROR('Tabel 2 F'!F174/'Tabel 1 F'!E172*100,"-")) -> - | G174: =IF(OR('Tabel 1 F'!E172<5,'Tabel 2 F'!G174<0.5),"-",IFERROR('Tabel 2 F'!G174/'Tabel 1 F'!E172*100,"-")) -> - | I174: =IF(OR('Tabel 1 F'!G172<5,'Tabel 2 F'!I174<0.5),"-",IFERROR('Tabel 2 F'!I174/'Tabel 1 F'!G172*100,"-")) -> - | J174: =IF(OR('Tabel 1 F'!G172<5,'Tabel 2 F'!J174<0.5),"-",IFERROR('Tabel 2 F'!J174/'Tabel 1 F'!G172*100,"-")) -> -
A175: Øvrige Mag. | C175: =IF(OR('Tabel 1 F'!C173<5,'Tabel 2 F'!C175<0.5),"-",IFERROR('Tabel 2 F'!C175/'Tabel 1 F'!C173*100,"-")) -> 14.28571429 | D175: =IF(OR('Tabel 1 F'!C173<5,'Tabel 2 F'!D175<0.5),"-",IFERROR('Tabel 2 F'!D175/'Tabel 1 F'!C173*100,"-")) -> 14.28304123 | F175: =IF(OR('Tabel 1 F'!E173<5,'Tabel 2 F'!F175<0.5),"-",IFERROR('Tabel 2 F'!F175/'Tabel 1 F'!E173*100,"-")) -> 22.22222222 | G175: =IF(OR('Tabel 1 F'!E173<5,'Tabel 2 F'!G175<0.5),"-",IFERROR('Tabel 2 F'!G175/'Tabel 1 F'!E173*100,"-")) -> 21.70523296 | I175: =IF(OR('Tabel 1 F'!G173<5,'Tabel 2 F'!I175<0.5),"-",IFERROR('Tabel 2 F'!I175/'Tabel 1 F'!G173*100,"-")) -> 18.75 | J175: =IF(OR('Tabel 1 F'!G173<5,'Tabel 2 F'!J175<0.5),"-",IFERROR('Tabel 2 F'!J175/'Tabel 1 F'!G173*100,"-")) -> 18.45802408
A176: Agronom | C176: =IF(OR('Tabel 1 F'!C174<5,'Tabel 2 F'!C176<0.5),"-",IFERROR('Tabel 2 F'!C176/'Tabel 1 F'!C174*100,"-")) -> 10 | D176: =IF(OR('Tabel 1 F'!C174<5,'Tabel 2 F'!D176<0.5),"-",IFERROR('Tabel 2 F'!D176/'Tabel 1 F'!C174*100,"-")) -> 6.305744402 | F176: =IF(OR('Tabel 1 F'!E174<5,'Tabel 2 F'!F176<0.5),"-",IFERROR('Tabel 2 F'!F176/'Tabel 1 F'!E174*100,"-")) -> 7.142857143 | G176: =IF(OR('Tabel 1 F'!E174<5,'Tabel 2 F'!G176<0.5),"-",IFERROR('Tabel 2 F'!G176/'Tabel 1 F'!E174*100,"-")) -> 3.577442952 | I176: =IF(OR('Tabel 1 F'!G174<5,'Tabel 2 F'!I176<0.5),"-",IFERROR('Tabel 2 F'!I176/'Tabel 1 F'!G174*100,"-")) -> 8.333333333 | J176: =IF(OR('Tabel 1 F'!G174<5,'Tabel 2 F'!J176<0.5),"-",IFERROR('Tabel 2 F'!J176/'Tabel 1 F'!G174*100,"-")) -> 4.714235223
A177: Landsk. Arkt. | C177: =IF(OR('Tabel 1 F'!C175<5,'Tabel 2 F'!C177<0.5),"-",IFERROR('Tabel 2 F'!C177/'Tabel 1 F'!C175*100,"-")) -> - | D177: =IF(OR('Tabel 1 F'!C175<5,'Tabel 2 F'!D177<0.5),"-",IFERROR('Tabel 2 F'!D177/'Tabel 1 F'!C175*100,"-")) -> - | F177: =IF(OR('Tabel 1 F'!E175<5,'Tabel 2 F'!F177<0.5),"-",IFERROR('Tabel 2 F'!F177/'Tabel 1 F'!E175*100,"-")) -> - | G177: =IF(OR('Tabel 1 F'!E175<5,'Tabel 2 F'!G177<0.5),"-",IFERROR('Tabel 2 F'!G177/'Tabel 1 F'!E175*100,"-")) -> - | I177: =IF(OR('Tabel 1 F'!G175<5,'Tabel 2 F'!I177<0.5),"-",IFERROR('Tabel 2 F'!I177/'Tabel 1 F'!G175*100,"-")) -> - | J177: =IF(OR('Tabel 1 F'!G175<5,'Tabel 2 F'!J177<0.5),"-",IFERROR('Tabel 2 F'!J177/'Tabel 1 F'!G175*100,"-")) -> -
A178: Hortonom | C178: =IF(OR('Tabel 1 F'!C176<5,'Tabel 2 F'!C178<0.5),"-",IFERROR('Tabel 2 F'!C178/'Tabel 1 F'!C176*100,"-")) -> - | D178: =IF(OR('Tabel 1 F'!C176<5,'Tabel 2 F'!D178<0.5),"-",IFERROR('Tabel 2 F'!D178/'Tabel 1 F'!C176*100,"-")) -> - | F178: =IF(OR('Tabel 1 F'!E176<5,'Tabel 2 F'!F178<0.5),"-",IFERROR('Tabel 2 F'!F178/'Tabel 1 F'!E176*100,"-")) -> - | G178: =IF(OR('Tabel 1 F'!E176<5,'Tabel 2 F'!G178<0.5),"-",IFERROR('Tabel 2 F'!G178/'Tabel 1 F'!E176*100,"-")) -> - | I178: =IF(OR('Tabel 1 F'!G176<5,'Tabel 2 F'!I178<0.5),"-",IFERROR('Tabel 2 F'!I178/'Tabel 1 F'!G176*100,"-")) -> - | J178: =IF(OR('Tabel 1 F'!G176<5,'Tabel 2 F'!J178<0.5),"-",IFERROR('Tabel 2 F'!J178/'Tabel 1 F'!G176*100,"-")) -> -
A179: Forstkand. | C179: =IF(OR('Tabel 1 F'!C177<5,'Tabel 2 F'!C179<0.5),"-",IFERROR('Tabel 2 F'!C179/'Tabel 1 F'!C177*100,"-")) -> - | D179: =IF(OR('Tabel 1 F'!C177<5,'Tabel 2 F'!D179<0.5),"-",IFERROR('Tabel 2 F'!D179/'Tabel 1 F'!C177*100,"-")) -> - | F179: =IF(OR('Tabel 1 F'!E177<5,'Tabel 2 F'!F179<0.5),"-",IFERROR('Tabel 2 F'!F179/'Tabel 1 F'!E177*100,"-")) -> - | G179: =IF(OR('Tabel 1 F'!E177<5,'Tabel 2 F'!G179<0.5),"-",IFERROR('Tabel 2 F'!G179/'Tabel 1 F'!E177*100,"-")) -> - | I179: =IF(OR('Tabel 1 F'!G177<5,'Tabel 2 F'!I179<0.5),"-",IFERROR('Tabel 2 F'!I179/'Tabel 1 F'!G177*100,"-")) -> - | J179: =IF(OR('Tabel 1 F'!G177<5,'Tabel 2 F'!J179<0.5),"-",IFERROR('Tabel 2 F'!J179/'Tabel 1 F'!G177*100,"-")) -> -
A180: Jordbrugsakad. | C180: =IF(OR('Tabel 1 F'!C178<5,'Tabel 2 F'!C180<0.5),"-",IFERROR('Tabel 2 F'!C180/'Tabel 1 F'!C178*100,"-")) -> 5 | D180: =IF(OR('Tabel 1 F'!C178<5,'Tabel 2 F'!D180<0.5),"-",IFERROR('Tabel 2 F'!D180/'Tabel 1 F'!C178*100,"-")) -> 3.152872201 | F180: =IF(OR('Tabel 1 F'!E178<5,'Tabel 2 F'!F180<0.5),"-",IFERROR('Tabel 2 F'!F180/'Tabel 1 F'!E178*100,"-")) -> 4.545454545 | G180: =IF(OR('Tabel 1 F'!E178<5,'Tabel 2 F'!G180<0.5),"-",IFERROR('Tabel 2 F'!G180/'Tabel 1 F'!E178*100,"-")) -> 2.276554606 | I180: =IF(OR('Tabel 1 F'!G178<5,'Tabel 2 F'!I180<0.5),"-",IFERROR('Tabel 2 F'!I180/'Tabel 1 F'!G178*100,"-")) -> 4.761904762 | J180: =IF(OR('Tabel 1 F'!G178<5,'Tabel 2 F'!J180<0.5),"-",IFERROR('Tabel 2 F'!J180/'Tabel 1 F'!G178*100,"-")) -> 2.693848699
A181: Mejeriing. | C181: =IF(OR('Tabel 1 F'!C179<5,'Tabel 2 F'!C181<0.5),"-",IFERROR('Tabel 2 F'!C181/'Tabel 1 F'!C179*100,"-")) -> - | D181: =IF(OR('Tabel 1 F'!C179<5,'Tabel 2 F'!D181<0.5),"-",IFERROR('Tabel 2 F'!D181/'Tabel 1 F'!C179*100,"-")) -> - | F181: =IF(OR('Tabel 1 F'!E179<5,'Tabel 2 F'!F181<0.5),"-",IFERROR('Tabel 2 F'!F181/'Tabel 1 F'!E179*100,"-")) -> - | G181: =IF(OR('Tabel 1 F'!E179<5,'Tabel 2 F'!G181<0.5),"-",IFERROR('Tabel 2 F'!G181/'Tabel 1 F'!E179*100,"-")) -> - | I181: =IF(OR('Tabel 1 F'!G179<5,'Tabel 2 F'!I181<0.5),"-",IFERROR('Tabel 2 F'!I181/'Tabel 1 F'!G179*100,"-")) -> - | J181: =IF(OR('Tabel 1 F'!G179<5,'Tabel 2 F'!J181<0.5),"-",IFERROR('Tabel 2 F'!J181/'Tabel 1 F'!G179*100,"-")) -> -
A182: Levn.m.kand. | C182: =IF(OR('Tabel 1 F'!C180<5,'Tabel 2 F'!C182<0.5),"-",IFERROR('Tabel 2 F'!C182/'Tabel 1 F'!C180*100,"-")) -> - | D182: =IF(OR('Tabel 1 F'!C180<5,'Tabel 2 F'!D182<0.5),"-",IFERROR('Tabel 2 F'!D182/'Tabel 1 F'!C180*100,"-")) -> - | F182: =IF(OR('Tabel 1 F'!E180<5,'Tabel 2 F'!F182<0.5),"-",IFERROR('Tabel 2 F'!F182/'Tabel 1 F'!E180*100,"-")) -> - | G182: =IF(OR('Tabel 1 F'!E180<5,'Tabel 2 F'!G182<0.5),"-",IFERROR('Tabel 2 F'!G182/'Tabel 1 F'!E180*100,"-")) -> - | I182: =IF(OR('Tabel 1 F'!G180<5,'Tabel 2 F'!I182<0.5),"-",IFERROR('Tabel 2 F'!I182/'Tabel 1 F'!G180*100,"-")) -> - | J182: =IF(OR('Tabel 1 F'!G180<5,'Tabel 2 F'!J182<0.5),"-",IFERROR('Tabel 2 F'!J182/'Tabel 1 F'!G180*100,"-")) -> -
A183: Dyrlæge | C183: =IF(OR('Tabel 1 F'!C181<5,'Tabel 2 F'!C183<0.5),"-",IFERROR('Tabel 2 F'!C183/'Tabel 1 F'!C181*100,"-")) -> - | D183: =IF(OR('Tabel 1 F'!C181<5,'Tabel 2 F'!D183<0.5),"-",IFERROR('Tabel 2 F'!D183/'Tabel 1 F'!C181*100,"-")) -> - | F183: =IF(OR('Tabel 1 F'!E181<5,'Tabel 2 F'!F183<0.5),"-",IFERROR('Tabel 2 F'!F183/'Tabel 1 F'!E181*100,"-")) -> - | G183: =IF(OR('Tabel 1 F'!E181<5,'Tabel 2 F'!G183<0.5),"-",IFERROR('Tabel 2 F'!G183/'Tabel 1 F'!E181*100,"-")) -> - | I183: =IF(OR('Tabel 1 F'!G181<5,'Tabel 2 F'!I183<0.5),"-",IFERROR('Tabel 2 F'!I183/'Tabel 1 F'!G181*100,"-")) -> - | J183: =IF(OR('Tabel 1 F'!G181<5,'Tabel 2 F'!J183<0.5),"-",IFERROR('Tabel 2 F'!J183/'Tabel 1 F'!G181*100,"-")) -> -
A184: Farmaceut | C184: =IF(OR('Tabel 1 F'!C182<5,'Tabel 2 F'!C184<0.5),"-",IFERROR('Tabel 2 F'!C184/'Tabel 1 F'!C182*100,"-")) -> - | D184: =IF(OR('Tabel 1 F'!C182<5,'Tabel 2 F'!D184<0.5),"-",IFERROR('Tabel 2 F'!D184/'Tabel 1 F'!C182*100,"-")) -> - | F184: =IF(OR('Tabel 1 F'!E182<5,'Tabel 2 F'!F184<0.5),"-",IFERROR('Tabel 2 F'!F184/'Tabel 1 F'!E182*100,"-")) -> 11.76470588 | G184: =IF(OR('Tabel 1 F'!E182<5,'Tabel 2 F'!G184<0.5),"-",IFERROR('Tabel 2 F'!G184/'Tabel 1 F'!E182*100,"-")) -> 11.76250454 | I184: =IF(OR('Tabel 1 F'!G182<5,'Tabel 2 F'!I184<0.5),"-",IFERROR('Tabel 2 F'!I184/'Tabel 1 F'!G182*100,"-")) -> 15 | J184: =IF(OR('Tabel 1 F'!G182<5,'Tabel 2 F'!J184<0.5),"-",IFERROR('Tabel 2 F'!J184/'Tabel 1 F'!G182*100,"-")) -> 11.76635689
A185: Læge | C185: =IF(OR('Tabel 1 F'!C183<5,'Tabel 2 F'!C185<0.5),"-",IFERROR('Tabel 2 F'!C185/'Tabel 1 F'!C183*100,"-")) -> - | D185: =IF(OR('Tabel 1 F'!C183<5,'Tabel 2 F'!D185<0.5),"-",IFERROR('Tabel 2 F'!D185/'Tabel 1 F'!C183*100,"-")) -> - | F185: =IF(OR('Tabel 1 F'!E183<5,'Tabel 2 F'!F185<0.5),"-",IFERROR('Tabel 2 F'!F185/'Tabel 1 F'!E183*100,"-")) -> - | G185: =IF(OR('Tabel 1 F'!E183<5,'Tabel 2 F'!G185<0.5),"-",IFERROR('Tabel 2 F'!G185/'Tabel 1 F'!E183*100,"-")) -> - | I185: =IF(OR('Tabel 1 F'!G183<5,'Tabel 2 F'!I185<0.5),"-",IFERROR('Tabel 2 F'!I185/'Tabel 1 F'!G183*100,"-")) -> - | J185: =IF(OR('Tabel 1 F'!G183<5,'Tabel 2 F'!J185<0.5),"-",IFERROR('Tabel 2 F'!J185/'Tabel 1 F'!G183*100,"-")) -> -
A186: Tandlæge | C186: =IF(OR('Tabel 1 F'!C184<5,'Tabel 2 F'!C186<0.5),"-",IFERROR('Tabel 2 F'!C186/'Tabel 1 F'!C184*100,"-")) -> - | D186: =IF(OR('Tabel 1 F'!C184<5,'Tabel 2 F'!D186<0.5),"-",IFERROR('Tabel 2 F'!D186/'Tabel 1 F'!C184*100,"-")) -> - | F186: =IF(OR('Tabel 1 F'!E184<5,'Tabel 2 F'!F186<0.5),"-",IFERROR('Tabel 2 F'!F186/'Tabel 1 F'!E184*100,"-")) -> - | G186: =IF(OR('Tabel 1 F'!E184<5,'Tabel 2 F'!G186<0.5),"-",IFERROR('Tabel 2 F'!G186/'Tabel 1 F'!E184*100,"-")) -> - | I186: =IF(OR('Tabel 1 F'!G184<5,'Tabel 2 F'!I186<0.5),"-",IFERROR('Tabel 2 F'!I186/'Tabel 1 F'!G184*100,"-")) -> - | J186: =IF(OR('Tabel 1 F'!G184<5,'Tabel 2 F'!J186<0.5),"-",IFERROR('Tabel 2 F'!J186/'Tabel 1 F'!G184*100,"-")) -> -
A187: Arkitekt | C187: =IF(OR('Tabel 1 F'!C185<5,'Tabel 2 F'!C187<0.5),"-",IFERROR('Tabel 2 F'!C187/'Tabel 1 F'!C185*100,"-")) -> 25 | D187: =IF(OR('Tabel 1 F'!C185<5,'Tabel 2 F'!D187<0.5),"-",IFERROR('Tabel 2 F'!D187/'Tabel 1 F'!C185*100,"-")) -> 16.97280609 | F187: =IF(OR('Tabel 1 F'!E185<5,'Tabel 2 F'!F187<0.5),"-",IFERROR('Tabel 2 F'!F187/'Tabel 1 F'!E185*100,"-")) -> - | G187: =IF(OR('Tabel 1 F'!E185<5,'Tabel 2 F'!G187<0.5),"-",IFERROR('Tabel 2 F'!G187/'Tabel 1 F'!E185*100,"-")) -> - | I187: =IF(OR('Tabel 1 F'!G185<5,'Tabel 2 F'!I187<0.5),"-",IFERROR('Tabel 2 F'!I187/'Tabel 1 F'!G185*100,"-")) -> 14.28571429 | J187: =IF(OR('Tabel 1 F'!G185<5,'Tabel 2 F'!J187<0.5),"-",IFERROR('Tabel 2 F'!J187/'Tabel 1 F'!G185*100,"-")) -> 9.698746336
A188: Landinspek. | C188: =IF(OR('Tabel 1 F'!C186<5,'Tabel 2 F'!C188<0.5),"-",IFERROR('Tabel 2 F'!C188/'Tabel 1 F'!C186*100,"-")) -> - | D188: =IF(OR('Tabel 1 F'!C186<5,'Tabel 2 F'!D188<0.5),"-",IFERROR('Tabel 2 F'!D188/'Tabel 1 F'!C186*100,"-")) -> - | F188: =IF(OR('Tabel 1 F'!E186<5,'Tabel 2 F'!F188<0.5),"-",IFERROR('Tabel 2 F'!F188/'Tabel 1 F'!E186*100,"-")) -> - | G188: =IF(OR('Tabel 1 F'!E186<5,'Tabel 2 F'!G188<0.5),"-",IFERROR('Tabel 2 F'!G188/'Tabel 1 F'!E186*100,"-")) -> - | I188: =IF(OR('Tabel 1 F'!G186<5,'Tabel 2 F'!I188<0.5),"-",IFERROR('Tabel 2 F'!I188/'Tabel 1 F'!G186*100,"-")) -> - | J188: =IF(OR('Tabel 1 F'!G186<5,'Tabel 2 F'!J188<0.5),"-",IFERROR('Tabel 2 F'!J188/'Tabel 1 F'!G186*100,"-")) -> -
A189: Bibliotekar | C189: =IF(OR('Tabel 1 F'!C187<5,'Tabel 2 F'!C189<0.5),"-",IFERROR('Tabel 2 F'!C189/'Tabel 1 F'!C187*100,"-")) -> - | D189: =IF(OR('Tabel 1 F'!C187<5,'Tabel 2 F'!D189<0.5),"-",IFERROR('Tabel 2 F'!D189/'Tabel 1 F'!C187*100,"-")) -> - | F189: =IF(OR('Tabel 1 F'!E187<5,'Tabel 2 F'!F189<0.5),"-",IFERROR('Tabel 2 F'!F189/'Tabel 1 F'!E187*100,"-")) -> 16.66666667 | G189: =IF(OR('Tabel 1 F'!E187<5,'Tabel 2 F'!G189<0.5),"-",IFERROR('Tabel 2 F'!G189/'Tabel 1 F'!E187*100,"-")) -> 12.85369758 | I189: =IF(OR('Tabel 1 F'!G187<5,'Tabel 2 F'!I189<0.5),"-",IFERROR('Tabel 2 F'!I189/'Tabel 1 F'!G187*100,"-")) -> 14.28571429 | J189: =IF(OR('Tabel 1 F'!G187<5,'Tabel 2 F'!J189<0.5),"-",IFERROR('Tabel 2 F'!J189/'Tabel 1 F'!G187*100,"-")) -> 11.01745507
A190: Musikudd. | C190: =IF(OR('Tabel 1 F'!C188<5,'Tabel 2 F'!C190<0.5),"-",IFERROR('Tabel 2 F'!C190/'Tabel 1 F'!C188*100,"-")) -> - | D190: =IF(OR('Tabel 1 F'!C188<5,'Tabel 2 F'!D190<0.5),"-",IFERROR('Tabel 2 F'!D190/'Tabel 1 F'!C188*100,"-")) -> - | F190: =IF(OR('Tabel 1 F'!E188<5,'Tabel 2 F'!F190<0.5),"-",IFERROR('Tabel 2 F'!F190/'Tabel 1 F'!E188*100,"-")) -> - | G190: =IF(OR('Tabel 1 F'!E188<5,'Tabel 2 F'!G190<0.5),"-",IFERROR('Tabel 2 F'!G190/'Tabel 1 F'!E188*100,"-")) -> - | I190: =IF(OR('Tabel 1 F'!G188<5,'Tabel 2 F'!I190<0.5),"-",IFERROR('Tabel 2 F'!I190/'Tabel 1 F'!G188*100,"-")) -> - | J190: =IF(OR('Tabel 1 F'!G188<5,'Tabel 2 F'!J190<0.5),"-",IFERROR('Tabel 2 F'!J190/'Tabel 1 F'!G188*100,"-")) -> -
A191: Teolog | C191: =IF(OR('Tabel 1 F'!C189<5,'Tabel 2 F'!C191<0.5),"-",IFERROR('Tabel 2 F'!C191/'Tabel 1 F'!C189*100,"-")) -> - | D191: =IF(OR('Tabel 1 F'!C189<5,'Tabel 2 F'!D191<0.5),"-",IFERROR('Tabel 2 F'!D191/'Tabel 1 F'!C189*100,"-")) -> - | F191: =IF(OR('Tabel 1 F'!E189<5,'Tabel 2 F'!F191<0.5),"-",IFERROR('Tabel 2 F'!F191/'Tabel 1 F'!E189*100,"-")) -> - | G191: =IF(OR('Tabel 1 F'!E189<5,'Tabel 2 F'!G191<0.5),"-",IFERROR('Tabel 2 F'!G191/'Tabel 1 F'!E189*100,"-")) -> - | I191: =IF(OR('Tabel 1 F'!G189<5,'Tabel 2 F'!I191<0.5),"-",IFERROR('Tabel 2 F'!I191/'Tabel 1 F'!G189*100,"-")) -> - | J191: =IF(OR('Tabel 1 F'!G189<5,'Tabel 2 F'!J191<0.5),"-",IFERROR('Tabel 2 F'!J191/'Tabel 1 F'!G189*100,"-")) -> -
A192: Psykolog | C192: =IF(OR('Tabel 1 F'!C190<5,'Tabel 2 F'!C192<0.5),"-",IFERROR('Tabel 2 F'!C192/'Tabel 1 F'!C190*100,"-")) -> - | D192: =IF(OR('Tabel 1 F'!C190<5,'Tabel 2 F'!D192<0.5),"-",IFERROR('Tabel 2 F'!D192/'Tabel 1 F'!C190*100,"-")) -> - | F192: =IF(OR('Tabel 1 F'!E190<5,'Tabel 2 F'!F192<0.5),"-",IFERROR('Tabel 2 F'!F192/'Tabel 1 F'!E190*100,"-")) -> - | G192: =IF(OR('Tabel 1 F'!E190<5,'Tabel 2 F'!G192<0.5),"-",IFERROR('Tabel 2 F'!G192/'Tabel 1 F'!E190*100,"-")) -> - | I192: =IF(OR('Tabel 1 F'!G190<5,'Tabel 2 F'!I192<0.5),"-",IFERROR('Tabel 2 F'!I192/'Tabel 1 F'!G190*100,"-")) -> - | J192: =IF(OR('Tabel 1 F'!G190<5,'Tabel 2 F'!J192<0.5),"-",IFERROR('Tabel 2 F'!J192/'Tabel 1 F'!G190*100,"-")) -> -
A193: Jurist | C193: =IF(OR('Tabel 1 F'!C191<5,'Tabel 2 F'!C193<0.5),"-",IFERROR('Tabel 2 F'!C193/'Tabel 1 F'!C191*100,"-")) -> - | D193: =IF(OR('Tabel 1 F'!C191<5,'Tabel 2 F'!D193<0.5),"-",IFERROR('Tabel 2 F'!D193/'Tabel 1 F'!C191*100,"-")) -> - | F193: =IF(OR('Tabel 1 F'!E191<5,'Tabel 2 F'!F193<0.5),"-",IFERROR('Tabel 2 F'!F193/'Tabel 1 F'!E191*100,"-")) -> - | G193: =IF(OR('Tabel 1 F'!E191<5,'Tabel 2 F'!G193<0.5),"-",IFERROR('Tabel 2 F'!G193/'Tabel 1 F'!E191*100,"-")) -> - | I193: =IF(OR('Tabel 1 F'!G191<5,'Tabel 2 F'!I193<0.5),"-",IFERROR('Tabel 2 F'!I193/'Tabel 1 F'!G191*100,"-")) -> - | J193: =IF(OR('Tabel 1 F'!G191<5,'Tabel 2 F'!J193<0.5),"-",IFERROR('Tabel 2 F'!J193/'Tabel 1 F'!G191*100,"-")) -> -
A194: Økonom | C194: =IF(OR('Tabel 1 F'!C192<5,'Tabel 2 F'!C194<0.5),"-",IFERROR('Tabel 2 F'!C194/'Tabel 1 F'!C192*100,"-")) -> - | D194: =IF(OR('Tabel 1 F'!C192<5,'Tabel 2 F'!D194<0.5),"-",IFERROR('Tabel 2 F'!D194/'Tabel 1 F'!C192*100,"-")) -> - | F194: =IF(OR('Tabel 1 F'!E192<5,'Tabel 2 F'!F194<0.5),"-",IFERROR('Tabel 2 F'!F194/'Tabel 1 F'!E192*100,"-")) -> 8.333333333 | G194: =IF(OR('Tabel 1 F'!E192<5,'Tabel 2 F'!G194<0.5),"-",IFERROR('Tabel 2 F'!G194/'Tabel 1 F'!E192*100,"-")) -> 7.562527287 | I194: =IF(OR('Tabel 1 F'!G192<5,'Tabel 2 F'!I194<0.5),"-",IFERROR('Tabel 2 F'!I194/'Tabel 1 F'!G192*100,"-")) -> 4 | J194: =IF(OR('Tabel 1 F'!G192<5,'Tabel 2 F'!J194<0.5),"-",IFERROR('Tabel 2 F'!J194/'Tabel 1 F'!G192*100,"-")) -> 3.630013098
A195: Samf. Adm. | C195: =IF(OR('Tabel 1 F'!C193<5,'Tabel 2 F'!C195<0.5),"-",IFERROR('Tabel 2 F'!C195/'Tabel 1 F'!C193*100,"-")) -> 16.12903226 | D195: =IF(OR('Tabel 1 F'!C193<5,'Tabel 2 F'!D195<0.5),"-",IFERROR('Tabel 2 F'!D195/'Tabel 1 F'!C193*100,"-")) -> 13.5949443 | F195: =IF(OR('Tabel 1 F'!E193<5,'Tabel 2 F'!F195<0.5),"-",IFERROR('Tabel 2 F'!F195/'Tabel 1 F'!E193*100,"-")) -> 17.30769231 | G195: =IF(OR('Tabel 1 F'!E193<5,'Tabel 2 F'!G195<0.5),"-",IFERROR('Tabel 2 F'!G195/'Tabel 1 F'!E193*100,"-")) -> 13.99637287 | I195: =IF(OR('Tabel 1 F'!G193<5,'Tabel 2 F'!I195<0.5),"-",IFERROR('Tabel 2 F'!I195/'Tabel 1 F'!G193*100,"-")) -> 16.86746988 | J195: =IF(OR('Tabel 1 F'!G193<5,'Tabel 2 F'!J195<0.5),"-",IFERROR('Tabel 2 F'!J195/'Tabel 1 F'!G193*100,"-")) -> 13.84644171
A196: Cand. Merc. | C196: =IF(OR('Tabel 1 F'!C194<5,'Tabel 2 F'!C196<0.5),"-",IFERROR('Tabel 2 F'!C196/'Tabel 1 F'!C194*100,"-")) -> 3.225806452 | D196: =IF(OR('Tabel 1 F'!C194<5,'Tabel 2 F'!D196<0.5),"-",IFERROR('Tabel 2 F'!D196/'Tabel 1 F'!C194*100,"-")) -> 3.225202858 | F196: =IF(OR('Tabel 1 F'!E194<5,'Tabel 2 F'!F196<0.5),"-",IFERROR('Tabel 2 F'!F196/'Tabel 1 F'!E194*100,"-")) -> - | G196: =IF(OR('Tabel 1 F'!E194<5,'Tabel 2 F'!G196<0.5),"-",IFERROR('Tabel 2 F'!G196/'Tabel 1 F'!E194*100,"-")) -> - | I196: =IF(OR('Tabel 1 F'!G194<5,'Tabel 2 F'!I196<0.5),"-",IFERROR('Tabel 2 F'!I196/'Tabel 1 F'!G194*100,"-")) -> 1.315789474 | J196: =IF(OR('Tabel 1 F'!G194<5,'Tabel 2 F'!J196<0.5),"-",IFERROR('Tabel 2 F'!J196/'Tabel 1 F'!G194*100,"-")) -> 1.315543271
A197: HA | C197: =IF(OR('Tabel 1 F'!C195<5,'Tabel 2 F'!C197<0.5),"-",IFERROR('Tabel 2 F'!C197/'Tabel 1 F'!C195*100,"-")) -> 9.090909091 | D197: =IF(OR('Tabel 1 F'!C195<5,'Tabel 2 F'!D197<0.5),"-",IFERROR('Tabel 2 F'!D197/'Tabel 1 F'!C195*100,"-")) -> 9.089208054 | F197: =IF(OR('Tabel 1 F'!E195<5,'Tabel 2 F'!F197<0.5),"-",IFERROR('Tabel 2 F'!F197/'Tabel 1 F'!E195*100,"-")) -> - | G197: =IF(OR('Tabel 1 F'!E195<5,'Tabel 2 F'!G197<0.5),"-",IFERROR('Tabel 2 F'!G197/'Tabel 1 F'!E195*100,"-")) -> - | I197: =IF(OR('Tabel 1 F'!G195<5,'Tabel 2 F'!I197<0.5),"-",IFERROR('Tabel 2 F'!I197/'Tabel 1 F'!G195*100,"-")) -> 4.166666667 | J197: =IF(OR('Tabel 1 F'!G195<5,'Tabel 2 F'!J197<0.5),"-",IFERROR('Tabel 2 F'!J197/'Tabel 1 F'!G195*100,"-")) -> 4.165887025
A198: HD | C198: =IF(OR('Tabel 1 F'!C196<5,'Tabel 2 F'!C198<0.5),"-",IFERROR('Tabel 2 F'!C198/'Tabel 1 F'!C196*100,"-")) -> - | D198: =IF(OR('Tabel 1 F'!C196<5,'Tabel 2 F'!D198<0.5),"-",IFERROR('Tabel 2 F'!D198/'Tabel 1 F'!C196*100,"-")) -> - | F198: =IF(OR('Tabel 1 F'!E196<5,'Tabel 2 F'!F198<0.5),"-",IFERROR('Tabel 2 F'!F198/'Tabel 1 F'!E196*100,"-")) -> 13.33333333 | G198: =IF(OR('Tabel 1 F'!E196<5,'Tabel 2 F'!G198<0.5),"-",IFERROR('Tabel 2 F'!G198/'Tabel 1 F'!E196*100,"-")) -> 8.407659203 | I198: =IF(OR('Tabel 1 F'!G196<5,'Tabel 2 F'!I198<0.5),"-",IFERROR('Tabel 2 F'!I198/'Tabel 1 F'!G196*100,"-")) -> 7.407407407 | J198: =IF(OR('Tabel 1 F'!G196<5,'Tabel 2 F'!J198<0.5),"-",IFERROR('Tabel 2 F'!J198/'Tabel 1 F'!G196*100,"-")) -> 4.670921779
A199: Komm. og Sprog | C199: =IF(OR('Tabel 1 F'!C197<5,'Tabel 2 F'!C199<0.5),"-",IFERROR('Tabel 2 F'!C199/'Tabel 1 F'!C197*100,"-")) -> - | D199: =IF(OR('Tabel 1 F'!C197<5,'Tabel 2 F'!D199<0.5),"-",IFERROR('Tabel 2 F'!D199/'Tabel 1 F'!C197*100,"-")) -> - | F199: =IF(OR('Tabel 1 F'!E197<5,'Tabel 2 F'!F199<0.5),"-",IFERROR('Tabel 2 F'!F199/'Tabel 1 F'!E197*100,"-")) -> 8.333333333 | G199: =IF(OR('Tabel 1 F'!E197<5,'Tabel 2 F'!G199<0.5),"-",IFERROR('Tabel 2 F'!G199/'Tabel 1 F'!E197*100,"-")) -> 8.331774049 | I199: =IF(OR('Tabel 1 F'!G197<5,'Tabel 2 F'!I199<0.5),"-",IFERROR('Tabel 2 F'!I199/'Tabel 1 F'!G197*100,"-")) -> 6.666666667 | J199: =IF(OR('Tabel 1 F'!G197<5,'Tabel 2 F'!J199<0.5),"-",IFERROR('Tabel 2 F'!J199/'Tabel 1 F'!G197*100,"-")) -> 6.665419239
A200: Cand. IT. | C200: =IF(OR('Tabel 1 F'!C198<5,'Tabel 2 F'!C200<0.5),"-",IFERROR('Tabel 2 F'!C200/'Tabel 1 F'!C198*100,"-")) -> - | D200: =IF(OR('Tabel 1 F'!C198<5,'Tabel 2 F'!D200<0.5),"-",IFERROR('Tabel 2 F'!D200/'Tabel 1 F'!C198*100,"-")) -> - | F200: =IF(OR('Tabel 1 F'!E198<5,'Tabel 2 F'!F200<0.5),"-",IFERROR('Tabel 2 F'!F200/'Tabel 1 F'!E198*100,"-")) -> - | G200: =IF(OR('Tabel 1 F'!E198<5,'Tabel 2 F'!G200<0.5),"-",IFERROR('Tabel 2 F'!G200/'Tabel 1 F'!E198*100,"-")) -> - | I200: =IF(OR('Tabel 1 F'!G198<5,'Tabel 2 F'!I200<0.5),"-",IFERROR('Tabel 2 F'!I200/'Tabel 1 F'!G198*100,"-")) -> - | J200: =IF(OR('Tabel 1 F'!G198<5,'Tabel 2 F'!J200<0.5),"-",IFERROR('Tabel 2 F'!J200/'Tabel 1 F'!G198*100,"-")) -> -
A201: Bac. Samf. | C201: =IF(OR('Tabel 1 F'!C199<5,'Tabel 2 F'!C201<0.5),"-",IFERROR('Tabel 2 F'!C201/'Tabel 1 F'!C199*100,"-")) -> - | D201: =IF(OR('Tabel 1 F'!C199<5,'Tabel 2 F'!D201<0.5),"-",IFERROR('Tabel 2 F'!D201/'Tabel 1 F'!C199*100,"-")) -> - | F201: =IF(OR('Tabel 1 F'!E199<5,'Tabel 2 F'!F201<0.5),"-",IFERROR('Tabel 2 F'!F201/'Tabel 1 F'!E199*100,"-")) -> - | G201: =IF(OR('Tabel 1 F'!E199<5,'Tabel 2 F'!G201<0.5),"-",IFERROR('Tabel 2 F'!G201/'Tabel 1 F'!E199*100,"-")) -> - | I201: =IF(OR('Tabel 1 F'!G199<5,'Tabel 2 F'!I201<0.5),"-",IFERROR('Tabel 2 F'!I201/'Tabel 1 F'!G199*100,"-")) -> - | J201: =IF(OR('Tabel 1 F'!G199<5,'Tabel 2 F'!J201<0.5),"-",IFERROR('Tabel 2 F'!J201/'Tabel 1 F'!G199*100,"-")) -> -
A202: Bac. Hum. | C202: =IF(OR('Tabel 1 F'!C200<5,'Tabel 2 F'!C202<0.5),"-",IFERROR('Tabel 2 F'!C202/'Tabel 1 F'!C200*100,"-")) -> - | D202: =IF(OR('Tabel 1 F'!C200<5,'Tabel 2 F'!D202<0.5),"-",IFERROR('Tabel 2 F'!D202/'Tabel 1 F'!C200*100,"-")) -> - | F202: =IF(OR('Tabel 1 F'!E200<5,'Tabel 2 F'!F202<0.5),"-",IFERROR('Tabel 2 F'!F202/'Tabel 1 F'!E200*100,"-")) -> 20 | G202: =IF(OR('Tabel 1 F'!E200<5,'Tabel 2 F'!G202<0.5),"-",IFERROR('Tabel 2 F'!G202/'Tabel 1 F'!E200*100,"-")) -> 16.18328863 | I202: =IF(OR('Tabel 1 F'!G200<5,'Tabel 2 F'!I202<0.5),"-",IFERROR('Tabel 2 F'!I202/'Tabel 1 F'!G200*100,"-")) -> 16.66666667 | J202: =IF(OR('Tabel 1 F'!G200<5,'Tabel 2 F'!J202<0.5),"-",IFERROR('Tabel 2 F'!J202/'Tabel 1 F'!G200*100,"-")) -> 13.48607386
A203: Bac. Nat. | C203: =IF(OR('Tabel 1 F'!C201<5,'Tabel 2 F'!C203<0.5),"-",IFERROR('Tabel 2 F'!C203/'Tabel 1 F'!C201*100,"-")) -> - | D203: =IF(OR('Tabel 1 F'!C201<5,'Tabel 2 F'!D203<0.5),"-",IFERROR('Tabel 2 F'!D203/'Tabel 1 F'!C201*100,"-")) -> - | F203: =IF(OR('Tabel 1 F'!E201<5,'Tabel 2 F'!F203<0.5),"-",IFERROR('Tabel 2 F'!F203/'Tabel 1 F'!E201*100,"-")) -> - | G203: =IF(OR('Tabel 1 F'!E201<5,'Tabel 2 F'!G203<0.5),"-",IFERROR('Tabel 2 F'!G203/'Tabel 1 F'!E201*100,"-")) -> - | I203: =IF(OR('Tabel 1 F'!G201<5,'Tabel 2 F'!I203<0.5),"-",IFERROR('Tabel 2 F'!I203/'Tabel 1 F'!G201*100,"-")) -> - | J203: =IF(OR('Tabel 1 F'!G201<5,'Tabel 2 F'!J203<0.5),"-",IFERROR('Tabel 2 F'!J203/'Tabel 1 F'!G201*100,"-")) -> -
A204: Andre | C204: =IF(OR('Tabel 1 F'!C202<5,'Tabel 2 F'!C204<0.5),"-",IFERROR('Tabel 2 F'!C204/'Tabel 1 F'!C202*100,"-")) -> 6.12244898 | D204: =IF(OR('Tabel 1 F'!C202<5,'Tabel 2 F'!D204<0.5),"-",IFERROR('Tabel 2 F'!D204/'Tabel 1 F'!C202*100,"-")) -> 5.179368573 | F204: =IF(OR('Tabel 1 F'!E202<5,'Tabel 2 F'!F204<0.5),"-",IFERROR('Tabel 2 F'!F204/'Tabel 1 F'!E202*100,"-")) -> 2.564102564 | G204: =IF(OR('Tabel 1 F'!E202<5,'Tabel 2 F'!G204<0.5),"-",IFERROR('Tabel 2 F'!G204/'Tabel 1 F'!E202*100,"-")) -> 2.563622784 | I204: =IF(OR('Tabel 1 F'!G202<5,'Tabel 2 F'!I204<0.5),"-",IFERROR('Tabel 2 F'!I204/'Tabel 1 F'!G202*100,"-")) -> 4.545454545 | J204: =IF(OR('Tabel 1 F'!G202<5,'Tabel 2 F'!J204<0.5),"-",IFERROR('Tabel 2 F'!J204/'Tabel 1 F'!G202*100,"-")) -> 4.020117598
A206: Total | C206: =IF(OR('Tabel 1 F'!C204<5,'Tabel 2 F'!C206<0.5),"-",IFERROR('Tabel 2 F'!C206/'Tabel 1 F'!C204*100,"-")) -> 4.870624049 | D206: =IF(OR('Tabel 1 F'!C204<5,'Tabel 2 F'!D206<0.5),"-",IFERROR('Tabel 2 F'!D206/'Tabel 1 F'!C204*100,"-")) -> 4.08840936 | F206: =IF(OR('Tabel 1 F'!E204<5,'Tabel 2 F'!F206<0.5),"-",IFERROR('Tabel 2 F'!F206/'Tabel 1 F'!E204*100,"-")) -> 6.62358643 | G206: =IF(OR('Tabel 1 F'!E204<5,'Tabel 2 F'!G206<0.5),"-",IFERROR('Tabel 2 F'!G206/'Tabel 1 F'!E204*100,"-")) -> 5.521225558 | I206: =IF(OR('Tabel 1 F'!G204<5,'Tabel 2 F'!I206<0.5),"-",IFERROR('Tabel 2 F'!I206/'Tabel 1 F'!G204*100,"-")) -> 5.721003135 | J206: =IF(OR('Tabel 1 F'!G204<5,'Tabel 2 F'!J206<0.5),"-",IFERROR('Tabel 2 F'!J206/'Tabel 1 F'!G204*100,"-")) -> 4.783482422
A208: Ingeniører i alt | C208: =IF(OR('Tabel 1 F'!C206<5,'Tabel 2 F'!C208<0.5),"-",IFERROR('Tabel 2 F'!C208/'Tabel 1 F'!C206*100,"-")) -> 1.754385965 | D208: =IF(OR('Tabel 1 F'!C206<5,'Tabel 2 F'!D208<0.5),"-",IFERROR('Tabel 2 F'!D208/'Tabel 1 F'!C206*100,"-")) -> 1.663017395 | F208: =IF(OR('Tabel 1 F'!E206<5,'Tabel 2 F'!F208<0.5),"-",IFERROR('Tabel 2 F'!F208/'Tabel 1 F'!E206*100,"-")) -> 2 | G208: =IF(OR('Tabel 1 F'!E206<5,'Tabel 2 F'!G208<0.5),"-",IFERROR('Tabel 2 F'!G208/'Tabel 1 F'!E206*100,"-")) -> 1.999625772 | I208: =IF(OR('Tabel 1 F'!G206<5,'Tabel 2 F'!I208<0.5),"-",IFERROR('Tabel 2 F'!I208/'Tabel 1 F'!G206*100,"-")) -> 1.791044776 | J208: =IF(OR('Tabel 1 F'!G206<5,'Tabel 2 F'!J208<0.5),"-",IFERROR('Tabel 2 F'!J208/'Tabel 1 F'!G206*100,"-")) -> 1.713257451
A209: Magistre i alt | C209: =IF(OR('Tabel 1 F'!C207<5,'Tabel 2 F'!C209<0.5),"-",IFERROR('Tabel 2 F'!C209/'Tabel 1 F'!C207*100,"-")) -> 9.90990991 | D209: =IF(OR('Tabel 1 F'!C207<5,'Tabel 2 F'!D209<0.5),"-",IFERROR('Tabel 2 F'!D209/'Tabel 1 F'!C207*100,"-")) -> 8.133000461 | F209: =IF(OR('Tabel 1 F'!E207<5,'Tabel 2 F'!F209<0.5),"-",IFERROR('Tabel 2 F'!F209/'Tabel 1 F'!E207*100,"-")) -> 10.49382716 | G209: =IF(OR('Tabel 1 F'!E207<5,'Tabel 2 F'!G209<0.5),"-",IFERROR('Tabel 2 F'!G209/'Tabel 1 F'!E207*100,"-")) -> 8.802446805 | I209: =IF(OR('Tabel 1 F'!G207<5,'Tabel 2 F'!I209<0.5),"-",IFERROR('Tabel 2 F'!I209/'Tabel 1 F'!G207*100,"-")) -> 10.25641026 | J209: =IF(OR('Tabel 1 F'!G207<5,'Tabel 2 F'!J209<0.5),"-",IFERROR('Tabel 2 F'!J209/'Tabel 1 F'!G207*100,"-")) -> 8.530254336
A210: DJØF'ere i alt | C210: =IF(OR('Tabel 1 F'!C208<5,'Tabel 2 F'!C210<0.5),"-",IFERROR('Tabel 2 F'!C210/'Tabel 1 F'!C208*100,"-")) -> 7.446808511 | D210: =IF(OR('Tabel 1 F'!C208<5,'Tabel 2 F'!D210<0.5),"-",IFERROR('Tabel 2 F'!D210/'Tabel 1 F'!C208*100,"-")) -> 6.610700537 | F210: =IF(OR('Tabel 1 F'!E208<5,'Tabel 2 F'!F210<0.5),"-",IFERROR('Tabel 2 F'!F210/'Tabel 1 F'!E208*100,"-")) -> 6.849315068 | G210: =IF(OR('Tabel 1 F'!E208<5,'Tabel 2 F'!G210<0.5),"-",IFERROR('Tabel 2 F'!G210/'Tabel 1 F'!E208*100,"-")) -> 5.606587099 | I210: =IF(OR('Tabel 1 F'!G208<5,'Tabel 2 F'!I210<0.5),"-",IFERROR('Tabel 2 F'!I210/'Tabel 1 F'!G208*100,"-")) -> 7.083333333 | J210: =IF(OR('Tabel 1 F'!G208<5,'Tabel 2 F'!J210<0.5),"-",IFERROR('Tabel 2 F'!J210/'Tabel 1 F'!G208*100,"-")) -> 5.999864862
A215: Kerteminde
C217: Mænd | F217: Kvinder | I217: I alt
C218: Ledigheds- berørte | D218: Gns. brutto- ledighed | F218: Ledigheds- berørte | G218: Gns. brutto- ledighed | I218: Ledigheds- berørte | J218: Gns. brutto- ledighed
A221: Civ. ing. | C221: =IF(OR('Tabel 1 F'!C219<5,'Tabel 2 F'!C221<0.5),"-",IFERROR('Tabel 2 F'!C221/'Tabel 1 F'!C219*100,"-")) -> 4.545454545 | D221: =IF(OR('Tabel 1 F'!C219<5,'Tabel 2 F'!D221<0.5),"-",IFERROR('Tabel 2 F'!D221/'Tabel 1 F'!C219*100,"-")) -> 3.84717883 | F221: =IF(OR('Tabel 1 F'!E219<5,'Tabel 2 F'!F221<0.5),"-",IFERROR('Tabel 2 F'!F221/'Tabel 1 F'!E219*100,"-")) -> - | G221: =IF(OR('Tabel 1 F'!E219<5,'Tabel 2 F'!G221<0.5),"-",IFERROR('Tabel 2 F'!G221/'Tabel 1 F'!E219*100,"-")) -> - | I221: =IF(OR('Tabel 1 F'!G219<5,'Tabel 2 F'!I221<0.5),"-",IFERROR('Tabel 2 F'!I221/'Tabel 1 F'!G219*100,"-")) -> 3.225806452 | J221: =IF(OR('Tabel 1 F'!G219<5,'Tabel 2 F'!J221<0.5),"-",IFERROR('Tabel 2 F'!J221/'Tabel 1 F'!G219*100,"-")) -> 2.730255944
A222: Diplom ing. | C222: =IF(OR('Tabel 1 F'!C220<5,'Tabel 2 F'!C222<0.5),"-",IFERROR('Tabel 2 F'!C222/'Tabel 1 F'!C220*100,"-")) -> 1.818181818 | D222: =IF(OR('Tabel 1 F'!C220<5,'Tabel 2 F'!D222<0.5),"-",IFERROR('Tabel 2 F'!D222/'Tabel 1 F'!C220*100,"-")) -> 1.189591921 | F222: =IF(OR('Tabel 1 F'!E220<5,'Tabel 2 F'!F222<0.5),"-",IFERROR('Tabel 2 F'!F222/'Tabel 1 F'!E220*100,"-")) -> 3.448275862 | G222: =IF(OR('Tabel 1 F'!E220<5,'Tabel 2 F'!G222<0.5),"-",IFERROR('Tabel 2 F'!G222/'Tabel 1 F'!E220*100,"-")) -> 3.447630641 | I222: =IF(OR('Tabel 1 F'!G220<5,'Tabel 2 F'!I222<0.5),"-",IFERROR('Tabel 2 F'!I222/'Tabel 1 F'!G220*100,"-")) -> 2.158273381 | J222: =IF(OR('Tabel 1 F'!G220<5,'Tabel 2 F'!J222<0.5),"-",IFERROR('Tabel 2 F'!J222/'Tabel 1 F'!G220*100,"-")) -> 1.660693525
A223: Cand. Scient. Tek. | C223: =IF(OR('Tabel 1 F'!C221<5,'Tabel 2 F'!C223<0.5),"-",IFERROR('Tabel 2 F'!C223/'Tabel 1 F'!C221*100,"-")) -> 7.142857143 | D223: =IF(OR('Tabel 1 F'!C221<5,'Tabel 2 F'!D223<0.5),"-",IFERROR('Tabel 2 F'!D223/'Tabel 1 F'!C221*100,"-")) -> 7.141520614 | F223: =IF(OR('Tabel 1 F'!E221<5,'Tabel 2 F'!F223<0.5),"-",IFERROR('Tabel 2 F'!F223/'Tabel 1 F'!E221*100,"-")) -> 8.333333333 | G223: =IF(OR('Tabel 1 F'!E221<5,'Tabel 2 F'!G223<0.5),"-",IFERROR('Tabel 2 F'!G223/'Tabel 1 F'!E221*100,"-")) -> 8.331774049 | I223: =IF(OR('Tabel 1 F'!G221<5,'Tabel 2 F'!I223<0.5),"-",IFERROR('Tabel 2 F'!I223/'Tabel 1 F'!G221*100,"-")) -> 7.692307692 | J223: =IF(OR('Tabel 1 F'!G221<5,'Tabel 2 F'!J223<0.5),"-",IFERROR('Tabel 2 F'!J223/'Tabel 1 F'!G221*100,"-")) -> 7.690868353
A224: MA. Hum. | C224: =IF(OR('Tabel 1 F'!C222<5,'Tabel 2 F'!C224<0.5),"-",IFERROR('Tabel 2 F'!C224/'Tabel 1 F'!C222*100,"-")) -> 8.695652174 | D224: =IF(OR('Tabel 1 F'!C222<5,'Tabel 2 F'!D224<0.5),"-",IFERROR('Tabel 2 F'!D224/'Tabel 1 F'!C222*100,"-")) -> 8.694025095 | F224: =IF(OR('Tabel 1 F'!E222<5,'Tabel 2 F'!F224<0.5),"-",IFERROR('Tabel 2 F'!F224/'Tabel 1 F'!E222*100,"-")) -> 6.25 | G224: =IF(OR('Tabel 1 F'!E222<5,'Tabel 2 F'!G224<0.5),"-",IFERROR('Tabel 2 F'!G224/'Tabel 1 F'!E222*100,"-")) -> 5.851213123 | I224: =IF(OR('Tabel 1 F'!G222<5,'Tabel 2 F'!I224<0.5),"-",IFERROR('Tabel 2 F'!I224/'Tabel 1 F'!G222*100,"-")) -> 6.896551724 | J224: =IF(OR('Tabel 1 F'!G222<5,'Tabel 2 F'!J224<0.5),"-",IFERROR('Tabel 2 F'!J224/'Tabel 1 F'!G222*100,"-")) -> 6.602761116
A225: MA. Nat. | C225: =IF(OR('Tabel 1 F'!C223<5,'Tabel 2 F'!C225<0.5),"-",IFERROR('Tabel 2 F'!C225/'Tabel 1 F'!C223*100,"-")) -> 5.882352941 | D225: =IF(OR('Tabel 1 F'!C223<5,'Tabel 2 F'!D225<0.5),"-",IFERROR('Tabel 2 F'!D225/'Tabel 1 F'!C223*100,"-")) -> 3.166263699 | F225: =IF(OR('Tabel 1 F'!E223<5,'Tabel 2 F'!F225<0.5),"-",IFERROR('Tabel 2 F'!F225/'Tabel 1 F'!E223*100,"-")) -> 6.666666667 | G225: =IF(OR('Tabel 1 F'!E223<5,'Tabel 2 F'!G225<0.5),"-",IFERROR('Tabel 2 F'!G225/'Tabel 1 F'!E223*100,"-")) -> 6.05002183 | I225: =IF(OR('Tabel 1 F'!G223<5,'Tabel 2 F'!I225<0.5),"-",IFERROR('Tabel 2 F'!I225/'Tabel 1 F'!G223*100,"-")) -> 6.25 | J225: =IF(OR('Tabel 1 F'!G223<5,'Tabel 2 F'!J225<0.5),"-",IFERROR('Tabel 2 F'!J225/'Tabel 1 F'!G223*100,"-")) -> 4.518025323
A226: MA. Ph.d. | C226: =IF(OR('Tabel 1 F'!C224<5,'Tabel 2 F'!C226<0.5),"-",IFERROR('Tabel 2 F'!C226/'Tabel 1 F'!C224*100,"-")) -> - | D226: =IF(OR('Tabel 1 F'!C224<5,'Tabel 2 F'!D226<0.5),"-",IFERROR('Tabel 2 F'!D226/'Tabel 1 F'!C224*100,"-")) -> - | F226: =IF(OR('Tabel 1 F'!E224<5,'Tabel 2 F'!F226<0.5),"-",IFERROR('Tabel 2 F'!F226/'Tabel 1 F'!E224*100,"-")) -> - | G226: =IF(OR('Tabel 1 F'!E224<5,'Tabel 2 F'!G226<0.5),"-",IFERROR('Tabel 2 F'!G226/'Tabel 1 F'!E224*100,"-")) -> - | I226: =IF(OR('Tabel 1 F'!G224<5,'Tabel 2 F'!I226<0.5),"-",IFERROR('Tabel 2 F'!I226/'Tabel 1 F'!G224*100,"-")) -> - | J226: =IF(OR('Tabel 1 F'!G224<5,'Tabel 2 F'!J226<0.5),"-",IFERROR('Tabel 2 F'!J226/'Tabel 1 F'!G224*100,"-")) -> -
A227: MA. Samf. | C227: =IF(OR('Tabel 1 F'!C225<5,'Tabel 2 F'!C227<0.5),"-",IFERROR('Tabel 2 F'!C227/'Tabel 1 F'!C225*100,"-")) -> - | D227: =IF(OR('Tabel 1 F'!C225<5,'Tabel 2 F'!D227<0.5),"-",IFERROR('Tabel 2 F'!D227/'Tabel 1 F'!C225*100,"-")) -> - | F227: =IF(OR('Tabel 1 F'!E225<5,'Tabel 2 F'!F227<0.5),"-",IFERROR('Tabel 2 F'!F227/'Tabel 1 F'!E225*100,"-")) -> - | G227: =IF(OR('Tabel 1 F'!E225<5,'Tabel 2 F'!G227<0.5),"-",IFERROR('Tabel 2 F'!G227/'Tabel 1 F'!E225*100,"-")) -> - | I227: =IF(OR('Tabel 1 F'!G225<5,'Tabel 2 F'!I227<0.5),"-",IFERROR('Tabel 2 F'!I227/'Tabel 1 F'!G225*100,"-")) -> - | J227: =IF(OR('Tabel 1 F'!G225<5,'Tabel 2 F'!J227<0.5),"-",IFERROR('Tabel 2 F'!J227/'Tabel 1 F'!G225*100,"-")) -> -
A228: Øvrige Mag. | C228: =IF(OR('Tabel 1 F'!C226<5,'Tabel 2 F'!C228<0.5),"-",IFERROR('Tabel 2 F'!C228/'Tabel 1 F'!C226*100,"-")) -> - | D228: =IF(OR('Tabel 1 F'!C226<5,'Tabel 2 F'!D228<0.5),"-",IFERROR('Tabel 2 F'!D228/'Tabel 1 F'!C226*100,"-")) -> - | F228: =IF(OR('Tabel 1 F'!E226<5,'Tabel 2 F'!F228<0.5),"-",IFERROR('Tabel 2 F'!F228/'Tabel 1 F'!E226*100,"-")) -> - | G228: =IF(OR('Tabel 1 F'!E226<5,'Tabel 2 F'!G228<0.5),"-",IFERROR('Tabel 2 F'!G228/'Tabel 1 F'!E226*100,"-")) -> - | I228: =IF(OR('Tabel 1 F'!G226<5,'Tabel 2 F'!I228<0.5),"-",IFERROR('Tabel 2 F'!I228/'Tabel 1 F'!G226*100,"-")) -> - | J228: =IF(OR('Tabel 1 F'!G226<5,'Tabel 2 F'!J228<0.5),"-",IFERROR('Tabel 2 F'!J228/'Tabel 1 F'!G226*100,"-")) -> -
A229: Agronom | C229: =IF(OR('Tabel 1 F'!C227<5,'Tabel 2 F'!C229<0.5),"-",IFERROR('Tabel 2 F'!C229/'Tabel 1 F'!C227*100,"-")) -> - | D229: =IF(OR('Tabel 1 F'!C227<5,'Tabel 2 F'!D229<0.5),"-",IFERROR('Tabel 2 F'!D229/'Tabel 1 F'!C227*100,"-")) -> - | F229: =IF(OR('Tabel 1 F'!E227<5,'Tabel 2 F'!F229<0.5),"-",IFERROR('Tabel 2 F'!F229/'Tabel 1 F'!E227*100,"-")) -> - | G229: =IF(OR('Tabel 1 F'!E227<5,'Tabel 2 F'!G229<0.5),"-",IFERROR('Tabel 2 F'!G229/'Tabel 1 F'!E227*100,"-")) -> - | I229: =IF(OR('Tabel 1 F'!G227<5,'Tabel 2 F'!I229<0.5),"-",IFERROR('Tabel 2 F'!I229/'Tabel 1 F'!G227*100,"-")) -> - | J229: =IF(OR('Tabel 1 F'!G227<5,'Tabel 2 F'!J229<0.5),"-",IFERROR('Tabel 2 F'!J229/'Tabel 1 F'!G227*100,"-")) -> -
A230: Landsk. Arkt. | C230: =IF(OR('Tabel 1 F'!C228<5,'Tabel 2 F'!C230<0.5),"-",IFERROR('Tabel 2 F'!C230/'Tabel 1 F'!C228*100,"-")) -> - | D230: =IF(OR('Tabel 1 F'!C228<5,'Tabel 2 F'!D230<0.5),"-",IFERROR('Tabel 2 F'!D230/'Tabel 1 F'!C228*100,"-")) -> - | F230: =IF(OR('Tabel 1 F'!E228<5,'Tabel 2 F'!F230<0.5),"-",IFERROR('Tabel 2 F'!F230/'Tabel 1 F'!E228*100,"-")) -> - | G230: =IF(OR('Tabel 1 F'!E228<5,'Tabel 2 F'!G230<0.5),"-",IFERROR('Tabel 2 F'!G230/'Tabel 1 F'!E228*100,"-")) -> - | I230: =IF(OR('Tabel 1 F'!G228<5,'Tabel 2 F'!I230<0.5),"-",IFERROR('Tabel 2 F'!I230/'Tabel 1 F'!G228*100,"-")) -> - | J230: =IF(OR('Tabel 1 F'!G228<5,'Tabel 2 F'!J230<0.5),"-",IFERROR('Tabel 2 F'!J230/'Tabel 1 F'!G228*100,"-")) -> -
A231: Hortonom | C231: =IF(OR('Tabel 1 F'!C229<5,'Tabel 2 F'!C231<0.5),"-",IFERROR('Tabel 2 F'!C231/'Tabel 1 F'!C229*100,"-")) -> - | D231: =IF(OR('Tabel 1 F'!C229<5,'Tabel 2 F'!D231<0.5),"-",IFERROR('Tabel 2 F'!D231/'Tabel 1 F'!C229*100,"-")) -> - | F231: =IF(OR('Tabel 1 F'!E229<5,'Tabel 2 F'!F231<0.5),"-",IFERROR('Tabel 2 F'!F231/'Tabel 1 F'!E229*100,"-")) -> - | G231: =IF(OR('Tabel 1 F'!E229<5,'Tabel 2 F'!G231<0.5),"-",IFERROR('Tabel 2 F'!G231/'Tabel 1 F'!E229*100,"-")) -> - | I231: =IF(OR('Tabel 1 F'!G229<5,'Tabel 2 F'!I231<0.5),"-",IFERROR('Tabel 2 F'!I231/'Tabel 1 F'!G229*100,"-")) -> - | J231: =IF(OR('Tabel 1 F'!G229<5,'Tabel 2 F'!J231<0.5),"-",IFERROR('Tabel 2 F'!J231/'Tabel 1 F'!G229*100,"-")) -> -
A232: Forstkand. | C232: =IF(OR('Tabel 1 F'!C230<5,'Tabel 2 F'!C232<0.5),"-",IFERROR('Tabel 2 F'!C232/'Tabel 1 F'!C230*100,"-")) -> - | D232: =IF(OR('Tabel 1 F'!C230<5,'Tabel 2 F'!D232<0.5),"-",IFERROR('Tabel 2 F'!D232/'Tabel 1 F'!C230*100,"-")) -> - | F232: =IF(OR('Tabel 1 F'!E230<5,'Tabel 2 F'!F232<0.5),"-",IFERROR('Tabel 2 F'!F232/'Tabel 1 F'!E230*100,"-")) -> - | G232: =IF(OR('Tabel 1 F'!E230<5,'Tabel 2 F'!G232<0.5),"-",IFERROR('Tabel 2 F'!G232/'Tabel 1 F'!E230*100,"-")) -> - | I232: =IF(OR('Tabel 1 F'!G230<5,'Tabel 2 F'!I232<0.5),"-",IFERROR('Tabel 2 F'!I232/'Tabel 1 F'!G230*100,"-")) -> - | J232: =IF(OR('Tabel 1 F'!G230<5,'Tabel 2 F'!J232<0.5),"-",IFERROR('Tabel 2 F'!J232/'Tabel 1 F'!G230*100,"-")) -> -
A233: Jordbrugsakad. | C233: =IF(OR('Tabel 1 F'!C231<5,'Tabel 2 F'!C233<0.5),"-",IFERROR('Tabel 2 F'!C233/'Tabel 1 F'!C231*100,"-")) -> - | D233: =IF(OR('Tabel 1 F'!C231<5,'Tabel 2 F'!D233<0.5),"-",IFERROR('Tabel 2 F'!D233/'Tabel 1 F'!C231*100,"-")) -> - | F233: =IF(OR('Tabel 1 F'!E231<5,'Tabel 2 F'!F233<0.5),"-",IFERROR('Tabel 2 F'!F233/'Tabel 1 F'!E231*100,"-")) -> - | G233: =IF(OR('Tabel 1 F'!E231<5,'Tabel 2 F'!G233<0.5),"-",IFERROR('Tabel 2 F'!G233/'Tabel 1 F'!E231*100,"-")) -> - | I233: =IF(OR('Tabel 1 F'!G231<5,'Tabel 2 F'!I233<0.5),"-",IFERROR('Tabel 2 F'!I233/'Tabel 1 F'!G231*100,"-")) -> - | J233: =IF(OR('Tabel 1 F'!G231<5,'Tabel 2 F'!J233<0.5),"-",IFERROR('Tabel 2 F'!J233/'Tabel 1 F'!G231*100,"-")) -> -
A234: Mejeriing. | C234: =IF(OR('Tabel 1 F'!C232<5,'Tabel 2 F'!C234<0.5),"-",IFERROR('Tabel 2 F'!C234/'Tabel 1 F'!C232*100,"-")) -> - | D234: =IF(OR('Tabel 1 F'!C232<5,'Tabel 2 F'!D234<0.5),"-",IFERROR('Tabel 2 F'!D234/'Tabel 1 F'!C232*100,"-")) -> - | F234: =IF(OR('Tabel 1 F'!E232<5,'Tabel 2 F'!F234<0.5),"-",IFERROR('Tabel 2 F'!F234/'Tabel 1 F'!E232*100,"-")) -> - | G234: =IF(OR('Tabel 1 F'!E232<5,'Tabel 2 F'!G234<0.5),"-",IFERROR('Tabel 2 F'!G234/'Tabel 1 F'!E232*100,"-")) -> - | I234: =IF(OR('Tabel 1 F'!G232<5,'Tabel 2 F'!I234<0.5),"-",IFERROR('Tabel 2 F'!I234/'Tabel 1 F'!G232*100,"-")) -> - | J234: =IF(OR('Tabel 1 F'!G232<5,'Tabel 2 F'!J234<0.5),"-",IFERROR('Tabel 2 F'!J234/'Tabel 1 F'!G232*100,"-")) -> -
A235: Levn.m.kand. | C235: =IF(OR('Tabel 1 F'!C233<5,'Tabel 2 F'!C235<0.5),"-",IFERROR('Tabel 2 F'!C235/'Tabel 1 F'!C233*100,"-")) -> - | D235: =IF(OR('Tabel 1 F'!C233<5,'Tabel 2 F'!D235<0.5),"-",IFERROR('Tabel 2 F'!D235/'Tabel 1 F'!C233*100,"-")) -> - | F235: =IF(OR('Tabel 1 F'!E233<5,'Tabel 2 F'!F235<0.5),"-",IFERROR('Tabel 2 F'!F235/'Tabel 1 F'!E233*100,"-")) -> - | G235: =IF(OR('Tabel 1 F'!E233<5,'Tabel 2 F'!G235<0.5),"-",IFERROR('Tabel 2 F'!G235/'Tabel 1 F'!E233*100,"-")) -> - | I235: =IF(OR('Tabel 1 F'!G233<5,'Tabel 2 F'!I235<0.5),"-",IFERROR('Tabel 2 F'!I235/'Tabel 1 F'!G233*100,"-")) -> - | J235: =IF(OR('Tabel 1 F'!G233<5,'Tabel 2 F'!J235<0.5),"-",IFERROR('Tabel 2 F'!J235/'Tabel 1 F'!G233*100,"-")) -> -
A236: Dyrlæge | C236: =IF(OR('Tabel 1 F'!C234<5,'Tabel 2 F'!C236<0.5),"-",IFERROR('Tabel 2 F'!C236/'Tabel 1 F'!C234*100,"-")) -> - | D236: =IF(OR('Tabel 1 F'!C234<5,'Tabel 2 F'!D236<0.5),"-",IFERROR('Tabel 2 F'!D236/'Tabel 1 F'!C234*100,"-")) -> - | F236: =IF(OR('Tabel 1 F'!E234<5,'Tabel 2 F'!F236<0.5),"-",IFERROR('Tabel 2 F'!F236/'Tabel 1 F'!E234*100,"-")) -> - | G236: =IF(OR('Tabel 1 F'!E234<5,'Tabel 2 F'!G236<0.5),"-",IFERROR('Tabel 2 F'!G236/'Tabel 1 F'!E234*100,"-")) -> - | I236: =IF(OR('Tabel 1 F'!G234<5,'Tabel 2 F'!I236<0.5),"-",IFERROR('Tabel 2 F'!I236/'Tabel 1 F'!G234*100,"-")) -> - | J236: =IF(OR('Tabel 1 F'!G234<5,'Tabel 2 F'!J236<0.5),"-",IFERROR('Tabel 2 F'!J236/'Tabel 1 F'!G234*100,"-")) -> -
A237: Farmaceut | C237: =IF(OR('Tabel 1 F'!C235<5,'Tabel 2 F'!C237<0.5),"-",IFERROR('Tabel 2 F'!C237/'Tabel 1 F'!C235*100,"-")) -> - | D237: =IF(OR('Tabel 1 F'!C235<5,'Tabel 2 F'!D237<0.5),"-",IFERROR('Tabel 2 F'!D237/'Tabel 1 F'!C235*100,"-")) -> - | F237: =IF(OR('Tabel 1 F'!E235<5,'Tabel 2 F'!F237<0.5),"-",IFERROR('Tabel 2 F'!F237/'Tabel 1 F'!E235*100,"-")) -> - | G237: =IF(OR('Tabel 1 F'!E235<5,'Tabel 2 F'!G237<0.5),"-",IFERROR('Tabel 2 F'!G237/'Tabel 1 F'!E235*100,"-")) -> - | I237: =IF(OR('Tabel 1 F'!G235<5,'Tabel 2 F'!I237<0.5),"-",IFERROR('Tabel 2 F'!I237/'Tabel 1 F'!G235*100,"-")) -> - | J237: =IF(OR('Tabel 1 F'!G235<5,'Tabel 2 F'!J237<0.5),"-",IFERROR('Tabel 2 F'!J237/'Tabel 1 F'!G235*100,"-")) -> -
A238: Læge | C238: =IF(OR('Tabel 1 F'!C236<5,'Tabel 2 F'!C238<0.5),"-",IFERROR('Tabel 2 F'!C238/'Tabel 1 F'!C236*100,"-")) -> - | D238: =IF(OR('Tabel 1 F'!C236<5,'Tabel 2 F'!D238<0.5),"-",IFERROR('Tabel 2 F'!D238/'Tabel 1 F'!C236*100,"-")) -> - | F238: =IF(OR('Tabel 1 F'!E236<5,'Tabel 2 F'!F238<0.5),"-",IFERROR('Tabel 2 F'!F238/'Tabel 1 F'!E236*100,"-")) -> - | G238: =IF(OR('Tabel 1 F'!E236<5,'Tabel 2 F'!G238<0.5),"-",IFERROR('Tabel 2 F'!G238/'Tabel 1 F'!E236*100,"-")) -> - | I238: =IF(OR('Tabel 1 F'!G236<5,'Tabel 2 F'!I238<0.5),"-",IFERROR('Tabel 2 F'!I238/'Tabel 1 F'!G236*100,"-")) -> - | J238: =IF(OR('Tabel 1 F'!G236<5,'Tabel 2 F'!J238<0.5),"-",IFERROR('Tabel 2 F'!J238/'Tabel 1 F'!G236*100,"-")) -> -
A239: Tandlæge | C239: =IF(OR('Tabel 1 F'!C237<5,'Tabel 2 F'!C239<0.5),"-",IFERROR('Tabel 2 F'!C239/'Tabel 1 F'!C237*100,"-")) -> - | D239: =IF(OR('Tabel 1 F'!C237<5,'Tabel 2 F'!D239<0.5),"-",IFERROR('Tabel 2 F'!D239/'Tabel 1 F'!C237*100,"-")) -> - | F239: =IF(OR('Tabel 1 F'!E237<5,'Tabel 2 F'!F239<0.5),"-",IFERROR('Tabel 2 F'!F239/'Tabel 1 F'!E237*100,"-")) -> - | G239: =IF(OR('Tabel 1 F'!E237<5,'Tabel 2 F'!G239<0.5),"-",IFERROR('Tabel 2 F'!G239/'Tabel 1 F'!E237*100,"-")) -> - | I239: =IF(OR('Tabel 1 F'!G237<5,'Tabel 2 F'!I239<0.5),"-",IFERROR('Tabel 2 F'!I239/'Tabel 1 F'!G237*100,"-")) -> - | J239: =IF(OR('Tabel 1 F'!G237<5,'Tabel 2 F'!J239<0.5),"-",IFERROR('Tabel 2 F'!J239/'Tabel 1 F'!G237*100,"-")) -> -
A240: Arkitekt | C240: =IF(OR('Tabel 1 F'!C238<5,'Tabel 2 F'!C240<0.5),"-",IFERROR('Tabel 2 F'!C240/'Tabel 1 F'!C238*100,"-")) -> - | D240: =IF(OR('Tabel 1 F'!C238<5,'Tabel 2 F'!D240<0.5),"-",IFERROR('Tabel 2 F'!D240/'Tabel 1 F'!C238*100,"-")) -> - | F240: =IF(OR('Tabel 1 F'!E238<5,'Tabel 2 F'!F240<0.5),"-",IFERROR('Tabel 2 F'!F240/'Tabel 1 F'!E238*100,"-")) -> - | G240: =IF(OR('Tabel 1 F'!E238<5,'Tabel 2 F'!G240<0.5),"-",IFERROR('Tabel 2 F'!G240/'Tabel 1 F'!E238*100,"-")) -> - | I240: =IF(OR('Tabel 1 F'!G238<5,'Tabel 2 F'!I240<0.5),"-",IFERROR('Tabel 2 F'!I240/'Tabel 1 F'!G238*100,"-")) -> - | J240: =IF(OR('Tabel 1 F'!G238<5,'Tabel 2 F'!J240<0.5),"-",IFERROR('Tabel 2 F'!J240/'Tabel 1 F'!G238*100,"-")) -> -
... 285 more rows

Sheet Tabel 4F F
A1: Tabel 4. Antal forsikrede - aldersfordelt
A3: Fyn
C5: Under 30 år | D5: 30 - 39 år | E5: 40 - 49 år | F5: 50 - 59 år | G5: Over 60 år | I5: I alt
A7: Civ. ing. | C7: 367 | D7: 431 | E7: 270 | F7: 152 | G7: 42 | I7: 1262
A8: Diplom ing. | C8: 330 | D8: 662 | E8: 802 | F8: 994 | G8: 285 | I8: 3073
A9: Cand. Scient. Tek. | C9: 488 | D9: 474 | E9: 120 | F9: 42 | G9: 6 | I9: 1130
A10: MA. Hum. | C10: 509 | D10: 975 | E10: 1064 | F10: 435 | G10: 190 | I10: 3173
A11: MA. Nat. | C11: 118 | D11: 278 | E11: 397 | F11: 265 | G11: 97 | I11: 1155
A12: MA. Ph.d. | C12: 2 | D12: 49 | E12: 62 | F12: 36 | G12: 8 | I12: 157
A13: MA. Samf. | C13: 54 | D13: 79 | E13: 24 | F13: 7 | G13: 1 | I13: 165
A14: Øvrige Mag. | C14: 19 | D14: 44 | E14: 64 | F14: 64 | G14: 32 | I14: 223
A15: Agronom | C15: 2 | D15: 17 | E15: 42 | F15: 67 | G15: 26 | I15: 154
A16: Landsk. Arkt. | C16: 1 | D16: 10 | E16: 9 | F16: 8 | G16: 0 | I16: 28
A17: Hortonom | C17: 0 | D17: 2 | E17: 6 | F17: 22 | G17: 12 | I17: 42
A18: Forstkand. | C18: 2 | D18: 5 | E18: 9 | F18: 5 | G18: 5 | I18: 26
A19: Jordbrugsakad. | C19: 5 | D19: 34 | E19: 66 | F19: 102 | G19: 43 | I19: 250
A20: Mejeriing. | C20: 0 | D20: 1 | E20: 6 | F20: 6 | G20: 1 | I20: 14
A21: Levn.m.kand. | C21: 2 | D21: 9 | E21: 2 | F21: 0 | G21: 0 | I21: 13
A22: Dyrlæge | C22: 17 | D22: 38 | E22: 36 | F22: 30 | G22: 3 | I22: 124
A23: Farmaceut | C23: 84 | D23: 77 | E23: 50 | F23: 23 | G23: 8 | I23: 242
A24: Læge | C24: 222 | D24: 534 | E24: 265 | F24: 164 | G24: 63 | I24: 1248
A25: Tandlæge | C25: 17 | D25: 34 | E25: 20 | F25: 23 | G25: 12 | I25: 106
A26: Arkitekt | C26: 17 | D26: 41 | E26: 48 | F26: 32 | G26: 22 | I26: 160
A27: Landinspek. | C27: 7 | D27: 8 | E27: 17 | F27: 19 | G27: 13 | I27: 64
A28: Bibliotekar | C28: 5 | D28: 47 | E28: 65 | F28: 57 | G28: 42 | I28: 216
A29: Musikudd. | C29: 1 | D29: 15 | E29: 21 | F29: 31 | G29: 25 | I29: 93
A30: Teolog | C30: 0 | D30: 24 | E30: 36 | F30: 43 | G30: 26 | I30: 129
A31: Psykolog | C31: 164 | D31: 156 | E31: 119 | F31: 64 | G31: 18 | I31: 521
A32: Jurist | C32: 117 | D32: 221 | E32: 136 | F32: 81 | G32: 32 | I32: 587
A33: Økonom | C33: 139 | D33: 137 | E33: 159 | F33: 107 | G33: 18 | I33: 560
A34: Samf. Adm. | C34: 253 | D34: 539 | E34: 349 | F34: 188 | G34: 48 | I34: 1377
A35: Cand. Merc. | C35: 437 | D35: 638 | E35: 347 | F35: 239 | G35: 47 | I35: 1708
A36: HA | C36: 106 | D36: 63 | E36: 65 | F36: 108 | G36: 39 | I36: 381
A37: HD | C37: 41 | D37: 50 | E37: 53 | F37: 118 | G37: 38 | I37: 300
A38: Komm. og Sprog | C38: 74 | D38: 118 | E38: 104 | F38: 89 | G38: 37 | I38: 422
A39: Cand. IT. | C39: 38 | D39: 69 | E39: 45 | F39: 4 | G39: 0 | I39: 156
A40: Bac. Samf. | C40: 11 | D40: 19 | E40: 14 | F40: 10 | G40: 2 | I40: 56
A41: Bac. Hum. | C41: 107 | D41: 78 | E41: 76 | F41: 48 | G41: 8 | I41: 317
A42: Bac. Nat. | C42: 52 | D42: 51 | E42: 16 | F42: 13 | G42: 1 | I42: 133
A43: Andre | C43: 208 | D43: 322 | E43: 298 | F43: 250 | G43: 117 | I43: 1195
A45: Total | C45: 4011 | D45: 6315 | E45: 5216 | F45: 3844 | G45: 1324 | I45: 20710
A47: Ingeniører i alt | C47: 697 | D47: 1093 | E47: 1072 | F47: 1146 | G47: 327 | I47: 4335
A48: Magistre i alt | C48: 702 | D48: 1425 | E48: 1611 | F48: 807 | G48: 328 | I48: 4873
A49: DJØF'ere i alt | C49: 1052 | D49: 1598 | E49: 1056 | F49: 723 | G49: 184 | I49: 4613
A56: Middelfart
C58: Under 30 år | D58: 30 - 39 år | E58: 40 - 49 år | F58: 50 - 59 år | G58: Over 60 år | I58: I alt
A60: Civ. ing. | C60: 7 | D60: 32 | E60: 34 | F60: 20 | G60: 7 | I60: 100
A61: Diplom ing. | C61: 12 | D61: 55 | E61: 77 | F61: 111 | G61: 33 | I61: 288
A62: Cand. Scient. Tek. | C62: 13 | D62: 20 | E62: 17 | F62: 3 | G62: 0 | I62: 53
A63: MA. Hum. | C63: 17 | D63: 50 | E63: 59 | F63: 23 | G63: 12 | I63: 161
A64: MA. Nat. | C64: 3 | D64: 11 | E64: 30 | F64: 14 | G64: 5 | I64: 63
A65: MA. Ph.d. | C65: 0 | D65: 2 | E65: 2 | F65: 2 | G65: 0 | I65: 6
A66: MA. Samf. | C66: 3 | D66: 6 | E66: 1 | F66: 1 | G66: 0 | I66: 11
A67: Øvrige Mag. | C67: 0 | D67: 2 | E67: 2 | F67: 2 | G67: 3 | I67: 9
A68: Agronom | C68: 0 | D68: 0 | E68: 9 | F68: 15 | G68: 5 | I68: 29
A69: Landsk. Arkt. | C69: 0 | D69: 0 | E69: 1 | F69: 1 | G69: 0 | I69: 2
A70: Hortonom | C70: 0 | D70: 0 | E70: 1 | F70: 3 | G70: 0 | I70: 4
A71: Forstkand. | C71: 0 | D71: 0 | E71: 1 | F71: 0 | G71: 0 | I71: 1
A72: Jordbrugsakad. | C72: 0 | D72: 0 | E72: 12 | F72: 19 | G72: 5 | I72: 36
A73: Mejeriing. | C73: 0 | D73: 0 | E73: 2 | F73: 1 | G73: 0 | I73: 3
A74: Levn.m.kand. | C74: 0 | D74: 1 | E74: 0 | F74: 0 | G74: 0 | I74: 1
A75: Dyrlæge | C75: 1 | D75: 9 | E75: 5 | F75: 2 | G75: 0 | I75: 17
A76: Farmaceut | C76: 3 | D76: 2 | E76: 3 | F76: 0 | G76: 1 | I76: 9
A77: Læge | C77: 7 | D77: 50 | E77: 28 | F77: 10 | G77: 6 | I77: 101
A78: Tandlæge | C78: 1 | D78: 1 | E78: 4 | F78: 3 | G78: 1 | I78: 10
A79: Arkitekt | C79: 1 | D79: 1 | E79: 6 | F79: 6 | G79: 0 | I79: 14
A80: Landinspek. | C80: 0 | D80: 1 | E80: 5 | F80: 5 | G80: 1 | I80: 12
A81: Bibliotekar | C81: 1 | D81: 6 | E81: 5 | F81: 3 | G81: 4 | I81: 19
A82: Musikudd. | C82: 0 | D82: 1 | E82: 1 | F82: 2 | G82: 2 | I82: 6
A83: Teolog | C83: 0 | D83: 4 | E83: 5 | F83: 4 | G83: 2 | I83: 15
A84: Psykolog | C84: 3 | D84: 9 | E84: 12 | F84: 11 | G84: 3 | I84: 38
A85: Jurist | C85: 6 | D85: 13 | E85: 8 | F85: 5 | G85: 2 | I85: 34
A86: Økonom | C86: 5 | D86: 13 | E86: 17 | F86: 9 | G86: 1 | I86: 45
A87: Samf. Adm. | C87: 8 | D87: 30 | E87: 33 | F87: 13 | G87: 1 | I87: 85
A88: Cand. Merc. | C88: 13 | D88: 51 | E88: 41 | F88: 24 | G88: 5 | I88: 134
A89: HA | C89: 1 | D89: 5 | E89: 10 | F89: 14 | G89: 3 | I89: 33
A90: HD | C90: 2 | D90: 1 | E90: 5 | F90: 6 | G90: 3 | I90: 17
A91: Komm. og Sprog | C91: 3 | D91: 5 | E91: 10 | F91: 8 | G91: 5 | I91: 31
A92: Cand. IT. | C92: 2 | D92: 5 | E92: 3 | F92: 0 | G92: 0 | I92: 10
A93: Bac. Samf. | C93: 1 | D93: 1 | E93: 1 | F93: 1 | G93: 1 | I93: 5
A94: Bac. Hum. | C94: 3 | D94: 2 | E94: 2 | F94: 3 | G94: 0 | I94: 10
A95: Bac. Nat. | C95: 1 | D95: 3 | E95: 1 | F95: 1 | G95: 0 | I95: 6
A96: Andre | C96: 9 | D96: 12 | E96: 28 | F96: 19 | G96: 11 | I96: 79
A98: Total | C98: 126 | D98: 404 | E98: 469 | F98: 345 | G98: 117 | I98: 1461
A100: Ingeniører i alt | C100: 19 | D100: 87 | E100: 111 | F100: 131 | G100: 40 | I100: 388
A101: Magistre i alt | C101: 23 | D101: 71 | E101: 94 | F101: 42 | G101: 20 | I101: 250
A102: DJØF'ere i alt | C102: 33 | D102: 112 | E102: 109 | F102: 65 | G102: 12 | I102: 331
A109: Assens
C111: Under 30 år | D111: 30 - 39 år | E111: 40 - 49 år | F111: 50 - 59 år | G111: Over 60 år | I111: I alt
A113: Civ. ing. | C113: 9 | D113: 18 | E113: 15 | F113: 16 | G113: 3 | I113: 61
A114: Diplom ing. | C114: 5 | D114: 34 | E114: 83 | F114: 89 | G114: 23 | I114: 234
A115: Cand. Scient. Tek. | C115: 7 | D115: 17 | E115: 7 | F115: 1 | G115: 2 | I115: 34
A116: MA. Hum. | C116: 11 | D116: 42 | E116: 63 | F116: 20 | G116: 6 | I116: 142
A117: MA. Nat. | C117: 0 | D117: 18 | E117: 21 | F117: 17 | G117: 4 | I117: 60
A118: MA. Ph.d. | C118: 0 | D118: 0 | E118: 2 | F118: 0 | G118: 0 | I118: 2
A119: MA. Samf. | C119: 0 | D119: 1 | E119: 2 | F119: 0 | G119: 0 | I119: 3
A120: Øvrige Mag. | C120: 1 | D120: 0 | E120: 2 | F120: 2 | G120: 1 | I120: 6
A121: Agronom | C121: 0 | D121: 2 | E121: 6 | F121: 7 | G121: 3 | I121: 18
A122: Landsk. Arkt. | C122: 0 | D122: 3 | E122: 1 | F122: 3 | G122: 0 | I122: 7
A123: Hortonom | C123: 0 | D123: 0 | E123: 0 | F123: 2 | G123: 2 | I123: 4
A124: Forstkand. | C124: 1 | D124: 1 | E124: 2 | F124: 1 | G124: 1 | I124: 6
A125: Jordbrugsakad. | C125: 1 | D125: 6 | E125: 9 | F125: 13 | G125: 6 | I125: 35
A126: Mejeriing. | C126: 0 | D126: 0 | E126: 1 | F126: 0 | G126: 1 | I126: 2
A127: Levn.m.kand. | C127: 0 | D127: 1 | E127: 0 | F127: 0 | G127: 0 | I127: 1
A128: Dyrlæge | C128: 1 | D128: 5 | E128: 6 | F128: 4 | G128: 0 | I128: 16
A129: Farmaceut | C129: 1 | D129: 5 | E129: 5 | F129: 0 | G129: 0 | I129: 11
A130: Læge | C130: 2 | D130: 16 | E130: 11 | F130: 5 | G130: 0 | I130: 34
A131: Tandlæge | C131: 0 | D131: 2 | E131: 1 | F131: 1 | G131: 0 | I131: 4
A132: Arkitekt | C132: 1 | D132: 0 | E132: 3 | F132: 0 | G132: 1 | I132: 5
A133: Landinspek. | C133: 0 | D133: 1 | E133: 1 | F133: 1 | G133: 0 | I133: 3
A134: Bibliotekar | C134: 0 | D134: 1 | E134: 7 | F134: 6 | G134: 1 | I134: 15
A135: Musikudd. | C135: 0 | D135: 1 | E135: 1 | F135: 8 | G135: 1 | I135: 11
A136: Teolog | C136: 0 | D136: 2 | E136: 4 | F136: 3 | G136: 4 | I136: 13
A137: Psykolog | C137: 3 | D137: 6 | E137: 8 | F137: 2 | G137: 3 | I137: 22
A138: Jurist | C138: 3 | D138: 6 | E138: 5 | F138: 6 | G138: 2 | I138: 22
A139: Økonom | C139: 2 | D139: 3 | E139: 8 | F139: 7 | G139: 0 | I139: 20
A140: Samf. Adm. | C140: 1 | D140: 16 | E140: 18 | F140: 16 | G140: 5 | I140: 56
A141: Cand. Merc. | C141: 7 | D141: 12 | E141: 16 | F141: 18 | G141: 4 | I141: 57
A142: HA | C142: 0 | D142: 3 | E142: 5 | F142: 8 | G142: 3 | I142: 19
A143: HD | C143: 1 | D143: 3 | E143: 6 | F143: 6 | G143: 2 | I143: 18
A144: Komm. og Sprog | C144: 2 | D144: 4 | E144: 5 | F144: 6 | G144: 4 | I144: 21
A145: Cand. IT. | C145: 3 | D145: 1 | E145: 1 | F145: 0 | G145: 0 | I145: 5
A146: Bac. Samf. | C146: 1 | D146: 1 | E146: 1 | F146: 1 | G146: 0 | I146: 4
A147: Bac. Hum. | C147: 2 | D147: 4 | E147: 3 | F147: 4 | G147: 0 | I147: 13
A148: Bac. Nat. | C148: 2 | D148: 2 | E148: 2 | F148: 0 | G148: 0 | I148: 6
A149: Andre | C149: 5 | D149: 18 | E149: 18 | F149: 15 | G149: 10 | I149: 66
A151: Total | C151: 71 | D151: 249 | E151: 340 | F151: 275 | G151: 86 | I151: 1021
A153: Ingeniører i alt | C153: 14 | D153: 52 | E153: 98 | F153: 105 | G153: 26 | I153: 295
A154: Magistre i alt | C154: 12 | D154: 61 | E154: 90 | F154: 39 | G154: 11 | I154: 213
A155: DJØF'ere i alt | C155: 13 | D155: 40 | E155: 52 | F155: 55 | G155: 14 | I155: 174
A162: Faaborg-Midtfyn
C164: Under 30 år | D164: 30 - 39 år | E164: 40 - 49 år | F164: 50 - 59 år | G164: Over 60 år | I164: I alt
A166: Civ. ing. | C166: 13 | D166: 30 | E166: 20 | F166: 7 | G166: 4 | I166: 74
A167: Diplom ing. | C167: 10 | D167: 60 | E167: 65 | F167: 96 | G167: 30 | I167: 261
A168: Cand. Scient. Tek. | C168: 9 | D168: 35 | E168: 5 | F168: 5 | G168: 0 | I168: 54
A169: MA. Hum. | C169: 18 | D169: 53 | E169: 67 | F169: 21 | G169: 14 | I169: 173
A170: MA. Nat. | C170: 3 | D170: 12 | E170: 33 | F170: 16 | G170: 5 | I170: 69
A171: MA. Ph.d. | C171: 0 | D171: 3 | E171: 2 | F171: 4 | G171: 0 | I171: 9
A172: MA. Samf. | C172: 2 | D172: 3 | E172: 1 | F172: 0 | G172: 0 | I172: 6
A173: Øvrige Mag. | C173: 2 | D173: 2 | E173: 3 | F173: 7 | G173: 2 | I173: 16
A174: Agronom | C174: 0 | D174: 3 | E174: 2 | F174: 13 | G174: 6 | I174: 24
A175: Landsk. Arkt. | C175: 0 | D175: 1 | E175: 2 | F175: 2 | G175: 0 | I175: 5
A176: Hortonom | C176: 0 | D176: 0 | E176: 0 | F176: 1 | G176: 4 | I176: 5
A177: Forstkand. | C177: 1 | D177: 2 | E177: 1 | F177: 3 | G177: 1 | I177: 8
A178: Jordbrugsakad. | C178: 1 | D178: 6 | E178: 5 | F178: 19 | G178: 11 | I178: 42
A179: Mejeriing. | C179: 0 | D179: 0 | E179: 1 | F179: 2 | G179: 0 | I179: 3
A180: Levn.m.kand. | C180: 1 | D180: 1 | E180: 0 | F180: 0 | G180: 0 | I180: 2
A181: Dyrlæge | C181: 1 | D181: 6 | E181: 5 | F181: 3 | G181: 0 | I181: 15
A182: Farmaceut | C182: 5 | D182: 6 | E182: 8 | F182: 1 | G182: 0 | I182: 20
A183: Læge | C183: 1 | D183: 21 | E183: 14 | F183: 6 | G183: 4 | I183: 46
A184: Tandlæge | C184: 0 | D184: 1 | E184: 1 | F184: 0 | G184: 1 | I184: 3
A185: Arkitekt | C185: 1 | D185: 1 | E185: 6 | F185: 3 | G185: 3 | I185: 14
A186: Landinspek. | C186: 1 | D186: 0 | E186: 0 | F186: 1 | G186: 1 | I186: 3
A187: Bibliotekar | C187: 0 | D187: 1 | E187: 5 | F187: 4 | G187: 4 | I187: 14
A188: Musikudd. | C188: 0 | D188: 2 | E188: 2 | F188: 1 | G188: 4 | I188: 9
A189: Teolog | C189: 0 | D189: 1 | E189: 5 | F189: 5 | G189: 5 | I189: 16
A190: Psykolog | C190: 0 | D190: 9 | E190: 7 | F190: 3 | G190: 1 | I190: 20
A191: Jurist | C191: 2 | D191: 9 | E191: 9 | F191: 7 | G191: 5 | I191: 32
A192: Økonom | C192: 1 | D192: 7 | E192: 9 | F192: 5 | G192: 3 | I192: 25
A193: Samf. Adm. | C193: 12 | D193: 25 | E193: 26 | F193: 19 | G193: 1 | I193: 83
A194: Cand. Merc. | C194: 12 | D194: 30 | E194: 17 | F194: 16 | G194: 1 | I194: 76
A195: HA | C195: 3 | D195: 3 | E195: 7 | F195: 9 | G195: 2 | I195: 24
A196: HD | C196: 1 | D196: 2 | E196: 3 | F196: 15 | G196: 6 | I196: 27
A197: Komm. og Sprog | C197: 0 | D197: 4 | E197: 5 | F197: 4 | G197: 2 | I197: 15
A198: Cand. IT. | C198: 0 | D198: 1 | E198: 6 | F198: 1 | G198: 0 | I198: 8
A199: Bac. Samf. | C199: 1 | D199: 2 | E199: 2 | F199: 1 | G199: 0 | I199: 6
A200: Bac. Hum. | C200: 3 | D200: 6 | E200: 5 | F200: 3 | G200: 1 | I200: 18
A201: Bac. Nat. | C201: 2 | D201: 2 | E201: 0 | F201: 1 | G201: 0 | I201: 5
A202: Andre | C202: 7 | D202: 27 | E202: 19 | F202: 30 | G202: 5 | I202: 88
A204: Total | C204: 112 | D204: 371 | E204: 363 | F204: 315 | G204: 115 | I204: 1276
A206: Ingeniører i alt | C206: 23 | D206: 90 | E206: 85 | F206: 103 | G206: 34 | I206: 335
A207: Magistre i alt | C207: 25 | D207: 73 | E207: 106 | F207: 48 | G207: 21 | I207: 273
A208: DJØF'ere i alt | C208: 30 | D208: 74 | E208: 68 | F208: 56 | G208: 12 | I208: 240
A215: Kerteminde
C217: Under 30 år | D217: 30 - 39 år | E217: 40 - 49 år | F217: 50 - 59 år | G217: Over 60 år | I217: I alt
A219: Civ. ing. | C219: 4 | D219: 7 | E219: 12 | F219: 8 | G219: 0 | I219: 31
A220: Diplom ing. | C220: 4 | D220: 20 | E220: 38 | F220: 57 | G220: 20 | I220: 139
A221: Cand. Scient. Tek. | C221: 7 | D221: 12 | E221: 3 | F221: 3 | G221: 1 | I221: 26
A222: MA. Hum. | C222: 6 | D222: 23 | E222: 35 | F222: 14 | G222: 9 | I222: 87
A223: MA. Nat. | C223: 1 | D223: 4 | E223: 12 | F223: 12 | G223: 3 | I223: 32
A224: MA. Ph.d. | C224: 0 | D224: 4 | E224: 2 | F224: 1 | G224: 0 | I224: 7
A225: MA. Samf. | C225: 1 | D225: 1 | E225: 0 | F225: 0 | G225: 0 | I225: 2
A226: Øvrige Mag. | C226: 0 | D226: 1 | E226: 0 | F226: 2 | G226: 3 | I226: 6
A227: Agronom | C227: 0 | D227: 0 | E227: 2 | F227: 2 | G227: 0 | I227: 4
A228: Landsk. Arkt. | C228: 0 | D228: 0 | E228: 0 | F228: 2 | G228: 0 | I228: 2
A229: Hortonom | C229: 0 | D229: 0 | E229: 1 | F229: 2 | G229: 0 | I229: 3
A230: Forstkand. | C230: 0 | D230: 0 | E230: 1 | F230: 0 | G230: 0 | I230: 1
A231: Jordbrugsakad. | C231: 0 | D231: 0 | E231: 4 | F231: 6 | G231: 0 | I231: 10
A232: Mejeriing. | C232: 0 | D232: 0 | E232: 0 | F232: 0 | G232: 0 | I232: 0
A233: Levn.m.kand. | C233: 0 | D233: 0 | E233: 0 | F233: 0 | G233: 0 | I233: 0
A234: Dyrlæge | C234: 0 | D234: 1 | E234: 1 | F234: 0 | G234: 0 | I234: 2
A235: Farmaceut | C235: 1 | D235: 1 | E235: 0 | F235: 1 | G235: 0 | I235: 3
A236: Læge | C236: 0 | D236: 6 | E236: 7 | F236: 4 | G236: 0 | I236: 17
A237: Tandlæge | C237: 0 | D237: 0 | E237: 2 | F237: 0 | G237: 1 | I237: 3
A238: Arkitekt | C238: 1 | D238: 0 | E238: 1 | F238: 1 | G238: 1 | I238: 4
A239: Landinspek. | C239: 1 | D239: 0 | E239: 1 | F239: 2 | G239: 0 | I239: 4
A240: Bibliotekar | C240: 0 | D240: 1 | E240: 2 | F240: 0 | G240: 0 | I240: 3
A241: Musikudd. | C241: 0 | D241: 1 | E241: 0 | F241: 2 | G241: 2 | I241: 5
A242: Teolog | C242: 0 | D242: 3 | E242: 1 | F242: 1 | G242: 0 | I242: 5
A243: Psykolog | C243: 2 | D243: 4 | E243: 5 | F243: 0 | G243: 0 | I243: 11
... 274 more rows

Sheet Tabel 4 F
A1: Tabel 4. Ledighedsberørte - aldersfordelt
A3: Fyn
C5: Under 30 år | D5: 30 - 39 år | E5: 40 - 49 år | F5: 50 - 59 år | G5: Over 60 år | I5: I alt
A7: Civ. ing. | C7: 76 | D7: 16 | E7: 6 | F7: 1 | G7: 0 | I7: 99
A8: Diplom ing. | C8: 31 | D8: 15 | E8: 11 | F8: 26 | G8: 4 | I8: 87
A9: Cand. Scient. Tek | C9: 132 | D9: 38 | E9: 4 | F9: 0 | G9: 0 | I9: 174
A10: MA. Hum. | C10: 170 | D10: 121 | E10: 58 | F10: 30 | G10: 15 | I10: 394
A11: MA. Nat. | C11: 28 | D11: 28 | E11: 3 | F11: 9 | G11: 5 | I11: 73
A12: MA. Ph.d. | C12: 0 | D12: 2 | E12: 3 | F12: 2 | G12: 0 | I12: 7
A13: MA. Samf. | C13: 10 | D13: 15 | E13: 3 | F13: 0 | G13: 0 | I13: 28
A14: Øvrige Mag. | C14: 4 | D14: 5 | E14: 4 | F14: 2 | G14: 4 | I14: 19
A15: Agronom | C15: 1 | D15: 1 | E15: 0 | F15: 2 | G15: 2 | I15: 6
A16: Landsk. Arkt. | C16: 1 | D16: 1 | E16: 0 | F16: 0 | G16: 0 | I16: 2
A17: Hortonom | C17: 0 | D17: 0 | E17: 0 | F17: 2 | G17: 0 | I17: 2
A18: Forstkand. | C18: 1 | D18: 0 | E18: 0 | F18: 0 | G18: 0 | I18: 1
A19: Jordbrugsakad. | C19: 3 | D19: 2 | E19: 0 | F19: 4 | G19: 2 | I19: 11
A20: Mejeriing. | C20: 0 | D20: 0 | E20: 0 | F20: 0 | G20: 0 | I20: 0
A21: Levn.m.kand. | C21: 1 | D21: 0 | E21: 1 | F21: 0 | G21: 0 | I21: 2
A22: Dyrlæge | C22: 2 | D22: 0 | E22: 1 | F22: 0 | G22: 0 | I22: 3
A23: Farmaceut | C23: 22 | D23: 8 | E23: 0 | F23: 0 | G23: 2 | I23: 32
A24: Læge | C24: 15 | D24: 2 | E24: 0 | F24: 0 | G24: 0 | I24: 17
A25: Tandlæge | C25: 0 | D25: 0 | E25: 0 | F25: 0 | G25: 0 | I25: 0
A26: Arkitekt | C26: 3 | D26: 7 | E26: 0 | F26: 2 | G26: 1 | I26: 13
A27: Landinspek. | C27: 0 | D27: 0 | E27: 0 | F27: 0 | G27: 0 | I27: 0
A28: Bibliotekar | C28: 1 | D28: 4 | E28: 3 | F28: 1 | G28: 2 | I28: 11
A29: Musikudd. | C29: 1 | D29: 1 | E29: 0 | F29: 0 | G29: 1 | I29: 3
A30: Teolog | C30: 0 | D30: 1 | E30: 1 | F30: 0 | G30: 1 | I30: 3
A31: Psykolog | C31: 50 | D31: 10 | E31: 3 | F31: 1 | G31: 1 | I31: 65
A32: Jurist | C32: 10 | D32: 6 | E32: 3 | F32: 2 | G32: 5 | I32: 26
A33: Økonom | C33: 19 | D33: 4 | E33: 1 | F33: 3 | G33: 1 | I33: 28
A34: Samf. Adm. | C34: 68 | D34: 43 | E34: 13 | F34: 6 | G34: 3 | I34: 133
A35: Cand. Merc. | C35: 83 | D35: 28 | E35: 7 | F35: 9 | G35: 1 | I35: 128
A36: HA | C36: 30 | D36: 8 | E36: 3 | F36: 4 | G36: 3 | I36: 48
A37: HD | C37: 16 | D37: 10 | E37: 0 | F37: 6 | G37: 5 | I37: 37
A38: Komm. og Sprog | C38: 21 | D38: 9 | E38: 3 | F38: 6 | G38: 0 | I38: 39
A39: Cand. IT. | C39: 9 | D39: 8 | E39: 0 | F39: 1 | G39: 0 | I39: 18
A40: Bac. Samf. | C40: 3 | D40: 1 | E40: 0 | F40: 1 | G40: 1 | I40: 6
A41: Bac. Hum. | C41: 29 | D41: 13 | E41: 4 | F41: 4 | G41: 2 | I41: 52
A42: Bac. Nat. | C42: 7 | D42: 1 | E42: 2 | F42: 0 | G42: 0 | I42: 10
A43: Andre | C43: 42 | D43: 27 | E43: 14 | F43: 10 | G43: 11 | I43: 104
A45: Total | C45: 886 | D45: 433 | E45: 151 | F45: 130 | G45: 70 | I45: 1670
A47: Ingeniører i alt | C47: 107 | D47: 31 | E47: 17 | F47: 27 | G47: 4 | I47: 186
A48: Magistre i alt | C48: 212 | D48: 171 | E48: 71 | F48: 43 | G48: 24 | I48: 521
A49: DJØF'ere i alt | C49: 210 | D49: 89 | E49: 27 | F49: 24 | G49: 13 | I49: 363
A56: Middelfart
C58: Under 30 år | D58: 30 - 39 år | E58: 40 - 49 år | F58: 50 - 59 år | G58: Over 60 år | I58: I alt
A60: Civ. ing. | C60: 1 | D60: 0 | E60: 0 | F60: 0 | G60: 0 | I60: 1
A61: Diplom ing. | C61: 0 | D61: 2 | E61: 3 | F61: 0 | G61: 1 | I61: 6
A62: Cand. Scient. Tek | C62: 0 | D62: 1 | E62: 1 | F62: 0 | G62: 0 | I62: 2
A63: MA. Hum. | C63: 4 | D63: 4 | E63: 3 | F63: 2 | G63: 0 | I63: 13
A64: MA. Nat. | C64: 0 | D64: 1 | E64: 1 | F64: 0 | G64: 0 | I64: 2
A65: MA. Ph.d. | C65: 0 | D65: 0 | E65: 1 | F65: 0 | G65: 0 | I65: 1
A66: MA. Samf. | C66: 0 | D66: 2 | E66: 1 | F66: 0 | G66: 0 | I66: 3
A67: Øvrige Mag. | C67: 0 | D67: 0 | E67: 0 | F67: 0 | G67: 0 | I67: 0
A68: Agronom | C68: 0 | D68: 0 | E68: 0 | F68: 0 | G68: 0 | I68: 0
A69: Landsk. Arkt. | C69: 0 | D69: 0 | E69: 0 | F69: 0 | G69: 0 | I69: 0
A70: Hortonom | C70: 0 | D70: 0 | E70: 0 | F70: 1 | G70: 0 | I70: 1
A71: Forstkand. | C71: 0 | D71: 0 | E71: 0 | F71: 0 | G71: 0 | I71: 0
A72: Jordbrugsakad. | C72: 0 | D72: 0 | E72: 0 | F72: 1 | G72: 0 | I72: 1
A73: Mejeriing. | C73: 0 | D73: 0 | E73: 0 | F73: 0 | G73: 0 | I73: 0
A74: Levn.m.kand. | C74: 0 | D74: 0 | E74: 0 | F74: 0 | G74: 0 | I74: 0
A75: Dyrlæge | C75: 0 | D75: 0 | E75: 0 | F75: 0 | G75: 0 | I75: 0
A76: Farmaceut | C76: 0 | D76: 0 | E76: 0 | F76: 0 | G76: 0 | I76: 0
A77: Læge | C77: 1 | D77: 0 | E77: 0 | F77: 0 | G77: 0 | I77: 1
A78: Tandlæge | C78: 0 | D78: 0 | E78: 0 | F78: 0 | G78: 0 | I78: 0
A79: Arkitekt | C79: 0 | D79: 0 | E79: 0 | F79: 1 | G79: 0 | I79: 1
A80: Landinspek. | C80: 0 | D80: 0 | E80: 0 | F80: 0 | G80: 0 | I80: 0
A81: Bibliotekar | C81: 0 | D81: 1 | E81: 0 | F81: 0 | G81: 0 | I81: 1
A82: Musikudd. | C82: 0 | D82: 0 | E82: 0 | F82: 0 | G82: 0 | I82: 0
A83: Teolog | C83: 0 | D83: 0 | E83: 1 | F83: 0 | G83: 1 | I83: 2
A84: Psykolog | C84: 2 | D84: 0 | E84: 0 | F84: 0 | G84: 0 | I84: 2
A85: Jurist | C85: 0 | D85: 0 | E85: 0 | F85: 0 | G85: 0 | I85: 0
A86: Økonom | C86: 0 | D86: 0 | E86: 0 | F86: 0 | G86: 0 | I86: 0
A87: Samf. Adm. | C87: 1 | D87: 0 | E87: 0 | F87: 0 | G87: 0 | I87: 1
A88: Cand. Merc. | C88: 0 | D88: 0 | E88: 2 | F88: 0 | G88: 0 | I88: 2
A89: HA | C89: 0 | D89: 0 | E89: 2 | F89: 1 | G89: 0 | I89: 3
A90: HD | C90: 0 | D90: 0 | E90: 0 | F90: 2 | G90: 0 | I90: 2
A91: Komm. og Sprog | C91: 0 | D91: 0 | E91: 1 | F91: 0 | G91: 0 | I91: 1
A92: Cand. IT. | C92: 0 | D92: 0 | E92: 0 | F92: 0 | G92: 0 | I92: 0
A93: Bac. Samf. | C93: 0 | D93: 0 | E93: 0 | F93: 0 | G93: 0 | I93: 0
A94: Bac. Hum. | C94: 0 | D94: 1 | E94: 0 | F94: 0 | G94: 0 | I94: 1
A95: Bac. Nat. | C95: 0 | D95: 0 | E95: 1 | F95: 0 | G95: 0 | I95: 1
A96: Andre | C96: 1 | D96: 0 | E96: 0 | F96: 2 | G96: 1 | I96: 4
A98: Total | C98: 10 | D98: 12 | E98: 17 | F98: 9 | G98: 3 | I98: 51
A100: Ingeniører i alt | C100: 1 | D100: 2 | E100: 3 | F100: 0 | G100: 1 | I100: 7
A101: Magistre i alt | C101: 4 | D101: 7 | E101: 6 | F101: 2 | G101: 0 | I101: 19
A102: DJØF'ere i alt | C102: 1 | D102: 0 | E102: 4 | F102: 1 | G102: 0 | I102: 6
A109: Assens
C111: Under 30 år | D111: 30 - 39 år | E111: 40 - 49 år | F111: 50 - 59 år | G111: Over 60 år | I111: I alt
A113: Civ. ing. | C113: 2 | D113: 1 | E113: 0 | F113: 0 | G113: 0 | I113: 3
A114: Diplom ing. | C114: 0 | D114: 0 | E114: 3 | F114: 2 | G114: 0 | I114: 5
A115: Cand. Scient. Tek | C115: 2 | D115: 0 | E115: 0 | F115: 0 | G115: 0 | I115: 2
A116: MA. Hum. | C116: 2 | D116: 6 | E116: 4 | F116: 0 | G116: 0 | I116: 12
A117: MA. Nat. | C117: 0 | D117: 5 | E117: 0 | F117: 0 | G117: 0 | I117: 5
A118: MA. Ph.d. | C118: 0 | D118: 0 | E118: 0 | F118: 0 | G118: 0 | I118: 0
A119: MA. Samf. | C119: 0 | D119: 0 | E119: 0 | F119: 0 | G119: 0 | I119: 0
A120: Øvrige Mag. | C120: 0 | D120: 0 | E120: 0 | F120: 0 | G120: 0 | I120: 0
A121: Agronom | C121: 0 | D121: 0 | E121: 0 | F121: 0 | G121: 0 | I121: 0
A122: Landsk. Arkt. | C122: 0 | D122: 0 | E122: 0 | F122: 0 | G122: 0 | I122: 0
A123: Hortonom | C123: 0 | D123: 0 | E123: 0 | F123: 0 | G123: 0 | I123: 0
A124: Forstkand. | C124: 1 | D124: 0 | E124: 0 | F124: 0 | G124: 0 | I124: 1
A125: Jordbrugsakad. | C125: 1 | D125: 0 | E125: 0 | F125: 0 | G125: 0 | I125: 1
A126: Mejeriing. | C126: 0 | D126: 0 | E126: 0 | F126: 0 | G126: 0 | I126: 0
A127: Levn.m.kand. | C127: 0 | D127: 0 | E127: 0 | F127: 0 | G127: 0 | I127: 0
A128: Dyrlæge | C128: 0 | D128: 0 | E128: 0 | F128: 0 | G128: 0 | I128: 0
A129: Farmaceut | C129: 1 | D129: 0 | E129: 0 | F129: 0 | G129: 0 | I129: 1
A130: Læge | C130: 0 | D130: 0 | E130: 0 | F130: 0 | G130: 0 | I130: 0
A131: Tandlæge | C131: 0 | D131: 0 | E131: 0 | F131: 0 | G131: 0 | I131: 0
A132: Arkitekt | C132: 1 | D132: 0 | E132: 0 | F132: 0 | G132: 0 | I132: 1
A133: Landinspek. | C133: 0 | D133: 0 | E133: 0 | F133: 0 | G133: 0 | I133: 0
A134: Bibliotekar | C134: 0 | D134: 0 | E134: 0 | F134: 0 | G134: 0 | I134: 0
A135: Musikudd. | C135: 0 | D135: 0 | E135: 0 | F135: 0 | G135: 1 | I135: 1
A136: Teolog | C136: 0 | D136: 0 | E136: 0 | F136: 0 | G136: 0 | I136: 0
A137: Psykolog | C137: 0 | D137: 1 | E137: 0 | F137: 0 | G137: 0 | I137: 1
A138: Jurist | C138: 0 | D138: 0 | E138: 0 | F138: 1 | G138: 1 | I138: 2
A139: Økonom | C139: 0 | D139: 0 | E139: 0 | F139: 0 | G139: 0 | I139: 0
A140: Samf. Adm. | C140: 0 | D140: 1 | E140: 1 | F140: 0 | G140: 0 | I140: 2
A141: Cand. Merc. | C141: 2 | D141: 0 | E141: 1 | F141: 1 | G141: 0 | I141: 4
A142: HA | C142: 0 | D142: 0 | E142: 0 | F142: 0 | G142: 0 | I142: 0
A143: HD | C143: 0 | D143: 0 | E143: 0 | F143: 0 | G143: 1 | I143: 1
A144: Komm. og Sprog | C144: 0 | D144: 0 | E144: 0 | F144: 1 | G144: 0 | I144: 1
A145: Cand. IT. | C145: 1 | D145: 0 | E145: 0 | F145: 0 | G145: 0 | I145: 1
A146: Bac. Samf. | C146: 0 | D146: 0 | E146: 0 | F146: 0 | G146: 0 | I146: 0
A147: Bac. Hum. | C147: 0 | D147: 0 | E147: 0 | F147: 0 | G147: 0 | I147: 0
A148: Bac. Nat. | C148: 0 | D148: 0 | E148: 1 | F148: 0 | G148: 0 | I148: 1
A149: Andre | C149: 0 | D149: 4 | E149: 0 | F149: 0 | G149: 0 | I149: 4
A151: Total | C151: 12 | D151: 18 | E151: 10 | F151: 5 | G151: 3 | I151: 48
A153: Ingeniører i alt | C153: 2 | D153: 1 | E153: 3 | F153: 2 | G153: 0 | I153: 8
A154: Magistre i alt | C154: 2 | D154: 11 | E154: 4 | F154: 0 | G154: 0 | I154: 17
A155: DJØF'ere i alt | C155: 2 | D155: 1 | E155: 2 | F155: 2 | G155: 1 | I155: 8
A162: Faaborg-Midtfyn
C164: Under 30 år | D164: 30 - 39 år | E164: 40 - 49 år | F164: 50 - 59 år | G164: Over 60 år | I164: I alt
A166: Civ. ing. | C166: 2 | D166: 1 | E166: 0 | F166: 0 | G166: 0 | I166: 3
A167: Diplom ing. | C167: 1 | D167: 0 | E167: 1 | F167: 0 | G167: 1 | I167: 3
A168: Cand. Scient. Tek | C168: 1 | D168: 2 | E168: 0 | F168: 0 | G168: 0 | I168: 3
A169: MA. Hum. | C169: 5 | D169: 9 | E169: 5 | F169: 1 | G169: 1 | I169: 21
A170: MA. Nat. | C170: 1 | D170: 1 | E170: 0 | F170: 1 | G170: 1 | I170: 4
A171: MA. Ph.d. | C171: 0 | D171: 0 | E171: 0 | F171: 0 | G171: 0 | I171: 0
A172: MA. Samf. | C172: 0 | D172: 0 | E172: 0 | F172: 0 | G172: 0 | I172: 0
A173: Øvrige Mag. | C173: 0 | D173: 2 | E173: 0 | F173: 1 | G173: 0 | I173: 3
A174: Agronom | C174: 0 | D174: 0 | E174: 0 | F174: 1 | G174: 1 | I174: 2
A175: Landsk. Arkt. | C175: 0 | D175: 0 | E175: 0 | F175: 0 | G175: 0 | I175: 0
A176: Hortonom | C176: 0 | D176: 0 | E176: 0 | F176: 0 | G176: 0 | I176: 0
A177: Forstkand. | C177: 0 | D177: 0 | E177: 0 | F177: 0 | G177: 0 | I177: 0
A178: Jordbrugsakad. | C178: 0 | D178: 0 | E178: 0 | F178: 1 | G178: 1 | I178: 2
A179: Mejeriing. | C179: 0 | D179: 0 | E179: 0 | F179: 0 | G179: 0 | I179: 0
A180: Levn.m.kand. | C180: 0 | D180: 0 | E180: 0 | F180: 0 | G180: 0 | I180: 0
A181: Dyrlæge | C181: 0 | D181: 0 | E181: 0 | F181: 0 | G181: 0 | I181: 0
A182: Farmaceut | C182: 3 | D182: 0 | E182: 0 | F182: 0 | G182: 0 | I182: 3
A183: Læge | C183: 0 | D183: 0 | E183: 0 | F183: 0 | G183: 0 | I183: 0
A184: Tandlæge | C184: 0 | D184: 0 | E184: 0 | F184: 0 | G184: 0 | I184: 0
A185: Arkitekt | C185: 0 | D185: 0 | E185: 0 | F185: 1 | G185: 1 | I185: 2
A186: Landinspek. | C186: 0 | D186: 0 | E186: 0 | F186: 0 | G186: 0 | I186: 0
A187: Bibliotekar | C187: 0 | D187: 0 | E187: 0 | F187: 1 | G187: 1 | I187: 2
A188: Musikudd. | C188: 0 | D188: 0 | E188: 0 | F188: 0 | G188: 0 | I188: 0
A189: Teolog | C189: 0 | D189: 0 | E189: 0 | F189: 0 | G189: 0 | I189: 0
A190: Psykolog | C190: 0 | D190: 0 | E190: 0 | F190: 0 | G190: 0 | I190: 0
A191: Jurist | C191: 0 | D191: 0 | E191: 0 | F191: 0 | G191: 0 | I191: 0
A192: Økonom | C192: 1 | D192: 0 | E192: 0 | F192: 0 | G192: 0 | I192: 1
A193: Samf. Adm. | C193: 5 | D193: 4 | E193: 2 | F193: 3 | G193: 0 | I193: 14
A194: Cand. Merc. | C194: 0 | D194: 0 | E194: 0 | F194: 1 | G194: 0 | I194: 1
A195: HA | C195: 0 | D195: 0 | E195: 0 | F195: 0 | G195: 1 | I195: 1
A196: HD | C196: 0 | D196: 1 | E196: 0 | F196: 0 | G196: 1 | I196: 2
A197: Komm. og Sprog | C197: 0 | D197: 1 | E197: 0 | F197: 0 | G197: 0 | I197: 1
A198: Cand. IT. | C198: 0 | D198: 0 | E198: 0 | F198: 0 | G198: 0 | I198: 0
A199: Bac. Samf. | C199: 0 | D199: 0 | E199: 0 | F199: 0 | G199: 0 | I199: 0
A200: Bac. Hum. | C200: 1 | D200: 1 | E200: 0 | F200: 0 | G200: 1 | I200: 3
A201: Bac. Nat. | C201: 0 | D201: 0 | E201: 0 | F201: 0 | G201: 0 | I201: 0
A202: Andre | C202: 1 | D202: 2 | E202: 0 | F202: 1 | G202: 0 | I202: 4
A204: Total | C204: 21 | D204: 24 | E204: 8 | F204: 11 | G204: 9 | I204: 73
A206: Ingeniører i alt | C206: 3 | D206: 1 | E206: 1 | F206: 0 | G206: 1 | I206: 6
A207: Magistre i alt | C207: 6 | D207: 12 | E207: 5 | F207: 3 | G207: 2 | I207: 28
A208: DJØF'ere i alt | C208: 6 | D208: 4 | E208: 2 | F208: 4 | G208: 1 | I208: 17
A215: Kerteminde
C217: Under 30 år | D217: 30 - 39 år | E217: 40 - 49 år | F217: 50 - 59 år | G217: Over 60 år | I217: I alt
A219: Civ. ing. | C219: 1 | D219: 0 | E219: 0 | F219: 0 | G219: 0 | I219: 1
A220: Diplom ing. | C220: 0 | D220: 1 | E220: 0 | F220: 2 | G220: 0 | I220: 3
A221: Cand. Scient. Tek | C221: 2 | D221: 0 | E221: 0 | F221: 0 | G221: 0 | I221: 2
A222: MA. Hum. | C222: 0 | D222: 2 | E222: 2 | F222: 1 | G222: 1 | I222: 6
A223: MA. Nat. | C223: 1 | D223: 0 | E223: 0 | F223: 0 | G223: 1 | I223: 2
A224: MA. Ph.d. | C224: 0 | D224: 0 | E224: 0 | F224: 0 | G224: 0 | I224: 0
A225: MA. Samf. | C225: 0 | D225: 0 | E225: 0 | F225: 0 | G225: 0 | I225: 0
A226: Øvrige Mag. | C226: 0 | D226: 0 | E226: 0 | F226: 0 | G226: 0 | I226: 0
A227: Agronom | C227: 0 | D227: 0 | E227: 0 | F227: 0 | G227: 0 | I227: 0
A228: Landsk. Arkt. | C228: 0 | D228: 0 | E228: 0 | F228: 0 | G228: 0 | I228: 0
A229: Hortonom | C229: 0 | D229: 0 | E229: 0 | F229: 0 | G229: 0 | I229: 0
A230: Forstkand. | C230: 0 | D230: 0 | E230: 0 | F230: 0 | G230: 0 | I230: 0
A231: Jordbrugsakad. | C231: 0 | D231: 0 | E231: 0 | F231: 0 | G231: 0 | I231: 0
A232: Mejeriing. | C232: 0 | D232: 0 | E232: 0 | F232: 0 | G232: 0 | I232: 0
A233: Levn.m.kand. | C233: 0 | D233: 0 | E233: 0 | F233: 0 | G233: 0 | I233: 0
A234: Dyrlæge | C234: 0 | D234: 0 | E234: 0 | F234: 0 | G234: 0 | I234: 0
A235: Farmaceut | C235: 0 | D235: 0 | E235: 0 | F235: 0 | G235: 0 | I235: 0
A236: Læge | C236: 0 | D236: 0 | E236: 0 | F236: 0 | G236: 0 | I236: 0
A237: Tandlæge | C237: 0 | D237: 0 | E237: 0 | F237: 0 | G237: 0 | I237: 0
A238: Arkitekt | C238: 0 | D238: 0 | E238: 0 | F238: 0 | G238: 0 | I238: 0
A239: Landinspek. | C239: 0 | D239: 0 | E239: 0 | F239: 0 | G239: 0 | I239: 0
A240: Bibliotekar | C240: 0 | D240: 0 | E240: 0 | F240: 0 | G240: 0 | I240: 0
A241: Musikudd. | C241: 0 | D241: 0 | E241: 0 | F241: 0 | G241: 0 | I241: 0
A242: Teolog | C242: 0 | D242: 0 | E242: 0 | F242: 0 | G242: 0 | I242: 0
A243: Psykolog | C243: 1 | D243: 0 | E243: 0 | F243: 0 | G243: 0 | I243: 1
... 274 more rows

Sheet Tabel 4(Br) F
A1: Tabel 4. Ledighedsberørte - aldersfordelt
A3: Fyn
C5: Under 30 år | D5: 30 - 39 år | E5: 40 - 49 år | F5: 50 - 59 år | G5: Over 60 år | I5: I alt
A7: Civ. ing. | C7: 70.55697624 | D7: 12.50982349 | E7: 5.814258093 | F7: 0.9998128859 | G7: 0 | I7: 89.8808707
A8: Diplom ing. | C8: 26.98871078 | D8: 14.02544751 | E8: 8.269818499 | F8: 23.17782074 | G8: 3.906941932 | I8: 76.36873947
A9: Cand. Scient. Tek | C9: 120.226408 | D9: 34.63107341 | E9: 2.8591031 | F9: 0 | G9: 0 | I9: 157.7165845
A10: MA. Hum. | C10: 152.6882056 | D10: 105.1942868 | E10: 50.91374041 | F10: 25.60157176 | G10: 11.90731616 | I10: 346.3051207
A11: MA. Nat. | C11: 26.38682717 | D11: 23.30942431 | E11: 2.937067299 | F11: 8.267947359 | G11: 3.432919603 | I11: 64.33418574
A12: MA. Ph.d. | C12: 0 | D12: 1.839955093 | E12: 2.06698684 | F12: 1.999625772 | G12: 0 | I12: 5.906567704
A13: MA. Samf. | C13: 9.998128859 | D13: 13.99176698 | E13: 2.999438658 | F13: 0 | G13: 0 | I13: 26.9893345
A14: Øvrige Mag. | C14: 3.603193414 | D14: 4.952909624 | E14: 3.999251544 | F14: 1.553670554 | G14: 3.565770598 | I14: 17.67479573
A15: Agronom | C15: 0.2151811888 | D15: 0.9998128859 | E15: 0 | F15: 1.630387326 | G15: 1.039106842 | I15: 3.884488243
A16: Landsk. Arkt. | C16: 0.9998128859 | D16: 0.3998004117 | E16: 0 | F16: 0 | G16: 0 | I16: 1.399613298
A17: Hortonom | C17: 0 | D17: 0 | E17: 0 | F17: 1.70398553 | G17: 0 | I17: 1.70398553
A18: Forstkand. | C18: 0.9998128859 | D18: 0 | E18: 0 | F18: 0 | G18: 0 | I18: 0.9998128859
A19: Jordbrugsakad. | C19: 2.214806961 | D19: 1.399613298 | E19: 0 | F19: 3.334372856 | G19: 1.039106842 | I19: 7.987899956
A20: Mejeriing. | C20: 0 | D20: 0 | E20: 0 | F20: 0 | G20: 0 | I20: 0
A21: Levn.m.kand. | C21: 0.9998128859 | D21: 0 | E21: 0.8613484688 | F21: 0 | G21: 0 | I21: 1.861161355
A22: Dyrlæge | C22: 0.9842200462 | D22: 0 | E22: 0.9998128859 | F22: 0 | G22: 0 | I22: 1.984032932
A23: Farmaceut | C23: 18.27792678 | D23: 6.198465665 | E23: 0 | F23: 0 | G23: 1.353458492 | I23: 25.82985093
A24: Læge | C24: 12.689453 | D24: 1.399613298 | E24: 0 | F24: 0 | G24: 0 | I24: 14.0890663
A25: Tandlæge | C25: 0 | D25: 0 | E25: 0 | F25: 0 | G25: 0 | I25: 0
A26: Arkitekt | C26: 2.999438658 | D26: 6.25148132 | E26: 0 | F26: 1.468221793 | G26: 0.8894155804 | I26: 11.60855735
A27: Landinspek. | C27: 0 | D27: 0 | E27: 0 | F27: 0 | G27: 0 | I27: 0
A28: Bibliotekar | C28: 0.9998128859 | D28: 3.399239069 | E28: 2.907129046 | F28: 0.9998128859 | G28: 1.505020894 | I28: 9.811014782
A29: Musikudd. | C29: 0.9998128859 | D29: 0.6262084451 | E29: 0 | F29: 0 | G29: 0.4528160669 | I29: 2.078837398
A30: Teolog | C30: 0 | D30: 0.9998128859 | E30: 0.2787999751 | F30: 0 | G30: 0.3536456059 | I30: 1.632258467
A31: Psykolog | C31: 45.17807023 | D31: 9.282105657 | E31: 2.806087445 | F31: 0.539512256 | G31: 0.8613484688 | I31: 58.66712406
A32: Jurist | C32: 7.782698185 | D32: 5.475581613 | E32: 2.643921911 | F32: 1.999625772 | G32: 4.814445207 | I32: 22.71627269
A33: Økonom | C33: 15.79866525 | D33: 3.999251544 | E33: 0.9998128859 | F33: 2.118755068 | G33: 0.9075032745 | I33: 23.82398802
A34: Samf. Adm. | C34: 57.05981413 | D34: 33.13104223 | E34: 11.84369737 | F34: 5.309050084 | G34: 2.887170211 | I34: 110.230774
A35: Cand. Merc. | C35: 71.67903699 | D35: 23.09112456 | E35: 6.671240566 | F35: 8.6920726 | G35: 0.9998128859 | I35: 111.1332876
A36: HA | C36: 26.72051394 | D36: 6.302002121 | E36: 2.999438658 | F36: 3.906941932 | G36: 2.784881183 | I36: 42.71377783
A37: HD | C37: 14.74895528 | D37: 8.284163912 | E37: 0 | F37: 5.16247739 | G37: 4.210066737 | I37: 32.40566332
A38: Komm. og Sprog | C38: 19.05382648 | D38: 8.121374665 | E38: 2.468658392 | F38: 5.62963887 | G38: 0 | I38: 35.27349841
A39: Cand. IT. | C39: 8.998315973 | D39: 6.344414645 | E39: 0 | F39: 0.9998128859 | G39: 0 | I39: 16.3425435
A40: Bac. Samf. | C40: 2.291523732 | D40: 0.09293332502 | E40: 0 | F40: 0.9998128859 | G40: 0.9998128859 | I40: 4.384082829
A41: Bac. Hum. | C41: 24.77951725 | D41: 11.72207322 | E41: 2.115012786 | F41: 3.56265203 | G41: 1.999625772 | I41: 44.17888106
A42: Bac. Nat. | C42: 6.00137217 | D42: 0.9998128859 | E42: 1.195658953 | F42: 0 | G42: 0 | I42: 8.196844009
A43: Andre | C43: 38.97898085 | D43: 22.97449011 | E43: 12.42998815 | F43: 8.059627019 | G43: 7.741533088 | I43: 90.18461922
A45: Total | C45: 789.6850246 | D45: 370.5494917 | E45: 131.0802719 | F45: 114.3828354 | G45: 56.61261149 | I45: 1462.310235
A47: Ingeniører i alt | C47: 97.54568702 | D47: 26.535271 | E47: 14.08407659 | F47: 24.17763363 | G47: 3.906941932 | I47: 166.2496102
A48: Magistre i alt | C48: 192.676355 | D48: 149.2883428 | E48: 62.91648475 | F48: 37.42281544 | G48: 18.90600636 | I48: 461.2100044
A49: DJØF'ere i alt | C49: 179.0407285 | D49: 71.99900206 | E49: 25.1581114 | F49: 22.02644546 | G49: 12.39381276 | I49: 310.6181002
A56: Middelfart
C58: Under 30 år | D58: 30 - 39 år | E58: 40 - 49 år | F58: 50 - 59 år | G58: Over 60 år | I58: I alt
A60: Civ. ing. | C60: 0.9998128859 | D60: 0 | E60: 0 | F60: 0 | G60: 0 | I60: 0.9998128859
A61: Diplom ing. | C61: 0 | D61: 1.999625772 | E61: 1.614794486 | F61: 0 | G61: 0.9998128859 | I61: 4.614233144
A62: Cand. Scient. Tek | C62: 0 | D62: 0.9075032745 | E62: 0.6779766731 | F62: 0 | G62: 0 | I62: 1.585479948
A63: MA. Hum. | C63: 3.814632321 | D63: 2.539761741 | E63: 2.307740286 | F63: 1.861161355 | G63: 0 | I63: 10.5232957
A64: MA. Nat. | C64: 0 | D64: 0.9998128859 | E64: 0.9374415269 | F64: 0 | G64: 0 | I64: 1.937254413
A65: MA. Ph.d. | C65: 0 | D65: 0 | E65: 0.7596831535 | F65: 0 | G65: 0 | I65: 0.7596831535
A66: MA. Samf. | C66: 0 | D66: 1.90731616 | E66: 0.9998128859 | F66: 0 | G66: 0 | I66: 2.907129046
A67: Øvrige Mag. | C67: 0 | D67: 0 | E67: 0 | F67: 0 | G67: 0 | I67: 0
A68: Agronom | C68: 0 | D68: 0 | E68: 0 | F68: 0 | G68: 0 | I68: 0
A69: Landsk. Arkt. | C69: 0 | D69: 0 | E69: 0 | F69: 0 | G69: 0 | I69: 0
A70: Hortonom | C70: 0 | D70: 0 | E70: 0 | F70: 0.9998128859 | G70: 0 | I70: 0.9998128859
A71: Forstkand. | C71: 0 | D71: 0 | E71: 0 | F71: 0 | G71: 0 | I71: 0
A72: Jordbrugsakad. | C72: 0 | D72: 0 | E72: 0 | F72: 0.9998128859 | G72: 0 | I72: 0.9998128859
A73: Mejeriing. | C73: 0 | D73: 0 | E73: 0 | F73: 0 | G73: 0 | I73: 0
A74: Levn.m.kand. | C74: 0 | D74: 0 | E74: 0 | F74: 0 | G74: 0 | I74: 0
A75: Dyrlæge | C75: 0 | D75: 0 | E75: 0 | F75: 0 | G75: 0 | I75: 0
A76: Farmaceut | C76: 0 | D76: 0 | E76: 0 | F76: 0 | G76: 0 | I76: 0
A77: Læge | C77: 0.4921100231 | D77: 0 | E77: 0 | F77: 0 | G77: 0 | I77: 0.4921100231
A78: Tandlæge | C78: 0 | D78: 0 | E78: 0 | F78: 0 | G78: 0 | I78: 0
A79: Arkitekt | C79: 0 | D79: 0 | E79: 0 | F79: 0.9998128859 | G79: 0 | I79: 0.9998128859
A80: Landinspek. | C80: 0 | D80: 0 | E80: 0 | F80: 0 | G80: 0 | I80: 0
A81: Bibliotekar | C81: 0 | D81: 0.9998128859 | E81: 0 | F81: 0 | G81: 0 | I81: 0.9998128859
A82: Musikudd. | C82: 0 | D82: 0 | E82: 0 | F82: 0 | G82: 0 | I82: 0
A83: Teolog | C83: 0 | D83: 0 | E83: 0.2787999751 | F83: 0 | G83: 0.3536456059 | I83: 0.632445581
A84: Psykolog | C84: 1.475706356 | D84: 0 | E84: 0 | F84: 0 | G84: 0 | I84: 1.475706356
A85: Jurist | C85: 0 | D85: 0 | E85: 0 | F85: 0 | G85: 0 | I85: 0
A86: Økonom | C86: 0 | D86: 0 | E86: 0 | F86: 0 | G86: 0 | I86: 0
A87: Samf. Adm. | C87: 0.9998128859 | D87: 0 | E87: 0 | F87: 0 | G87: 0 | I87: 0.9998128859
A88: Cand. Merc. | C88: 0 | D88: 0 | E88: 1.999625772 | F88: 0 | G88: 0 | I88: 1.999625772
A89: HA | C89: 0 | D89: 0 | E89: 1.999625772 | F89: 0.9998128859 | G89: 0 | I89: 2.999438658
A90: HD | C90: 0 | D90: 0 | E90: 0 | F90: 1.999625772 | G90: 0 | I90: 1.999625772
A91: Komm. og Sprog | C91: 0 | D91: 0 | E91: 0.8482504834 | F91: 0 | G91: 0 | I91: 0.8482504834
A92: Cand. IT. | C92: 0 | D92: 0 | E92: 0 | F92: 0 | G92: 0 | I92: 0
A93: Bac. Samf. | C93: 0 | D93: 0 | E93: 0 | F93: 0 | G93: 0 | I93: 0
A94: Bac. Hum. | C94: 0 | D94: 0.9998128859 | E94: 0 | F94: 0 | G94: 0 | I94: 0.9998128859
A95: Bac. Nat. | C95: 0 | D95: 0 | E95: 0.9998128859 | F95: 0 | G95: 0 | I95: 0.9998128859
A96: Andre | C96: 0.9998128859 | D96: 0 | E96: 0 | F96: 1.999625772 | G96: 0.3074908002 | I96: 3.306929458
A98: Total | C98: 8.781887357 | D98: 10.35364561 | E98: 13.4235639 | F98: 8.859851556 | G98: 1.660949292 | I98: 43.07989771
A100: Ingeniører i alt | C100: 0.9998128859 | D100: 1.999625772 | E100: 1.614794486 | F100: 0 | G100: 0.9998128859 | I100: 5.61404603
A101: Magistre i alt | C101: 3.814632321 | D101: 5.446890788 | E101: 5.004677852 | F101: 1.861161355 | G101: 0 | I101: 16.12736232
A102: DJØF'ere i alt | C102: 0.9998128859 | D102: 0 | E102: 3.999251544 | F102: 0.9998128859 | G102: 0 | I102: 5.998877316
A109: Assens
C111: Under 30 år | D111: 30 - 39 år | E111: 40 - 49 år | F111: 50 - 59 år | G111: Over 60 år | I111: I alt
A113: Civ. ing. | C113: 1.491922909 | D113: 0.9536580802 | E113: 0 | F113: 0 | G113: 0 | I113: 2.445580989
A114: Diplom ing. | C114: 0 | D114: 0 | E114: 1.748269195 | F114: 0.7946111146 | G114: 0 | I114: 2.542880309
A115: Cand. Scient. Tek | C115: 1.999625772 | D115: 0 | E115: 0 | F115: 0 | G115: 0 | I115: 1.999625772
A116: MA. Hum. | C116: 1.881743903 | D116: 5.860412898 | E116: 3.267635502 | F116: 0 | G116: 0 | I116: 11.0097923
A117: MA. Nat. | C117: 0 | D117: 3.803405476 | E117: 0 | F117: 0 | G117: 0 | I117: 3.803405476
A118: MA. Ph.d. | C118: 0 | D118: 0 | E118: 0 | F118: 0 | G118: 0 | I118: 0
A119: MA. Samf. | C119: 0 | D119: 0 | E119: 0 | F119: 0 | G119: 0 | I119: 0
A120: Øvrige Mag. | C120: 0 | D120: 0 | E120: 0 | F120: 0 | G120: 0 | I120: 0
A121: Agronom | C121: 0 | D121: 0 | E121: 0 | F121: 0 | G121: 0 | I121: 0
A122: Landsk. Arkt. | C122: 0 | D122: 0 | E122: 0 | F122: 0 | G122: 0 | I122: 0
A123: Hortonom | C123: 0 | D123: 0 | E123: 0 | F123: 0 | G123: 0 | I123: 0
A124: Forstkand. | C124: 0.9998128859 | D124: 0 | E124: 0 | F124: 0 | G124: 0 | I124: 0.9998128859
A125: Jordbrugsakad. | C125: 0.9998128859 | D125: 0 | E125: 0 | F125: 0 | G125: 0 | I125: 0.9998128859
A126: Mejeriing. | C126: 0 | D126: 0 | E126: 0 | F126: 0 | G126: 0 | I126: 0
A127: Levn.m.kand. | C127: 0 | D127: 0 | E127: 0 | F127: 0 | G127: 0 | I127: 0
A128: Dyrlæge | C128: 0 | D128: 0 | E128: 0 | F128: 0 | G128: 0 | I128: 0
A129: Farmaceut | C129: 0.9998128859 | D129: 0 | E129: 0 | F129: 0 | G129: 0 | I129: 0.9998128859
A130: Læge | C130: 0 | D130: 0 | E130: 0 | F130: 0 | G130: 0 | I130: 0
A131: Tandlæge | C131: 0 | D131: 0 | E131: 0 | F131: 0 | G131: 0 | I131: 0
A132: Arkitekt | C132: 0.9998128859 | D132: 0 | E132: 0 | F132: 0 | G132: 0 | I132: 0.9998128859
A133: Landinspek. | C133: 0 | D133: 0 | E133: 0 | F133: 0 | G133: 0 | I133: 0
A134: Bibliotekar | C134: 0 | D134: 0 | E134: 0 | F134: 0 | G134: 0 | I134: 0
A135: Musikudd. | C135: 0 | D135: 0 | E135: 0 | F135: 0 | G135: 0.4528160669 | I135: 0.4528160669
A136: Teolog | C136: 0 | D136: 0 | E136: 0 | F136: 0 | G136: 0 | I136: 0
A137: Psykolog | C137: 0 | D137: 0.9312043909 | E137: 0 | F137: 0 | G137: 0 | I137: 0.9312043909
A138: Jurist | C138: 0 | D138: 0 | E138: 0 | F138: 0.9998128859 | G138: 0.9998128859 | I138: 1.999625772
A139: Økonom | C139: 0 | D139: 0 | E139: 0 | F139: 0 | G139: 0 | I139: 0
A140: Samf. Adm. | C140: 0 | D140: 0.9998128859 | E140: 0.9998128859 | F140: 0 | G140: 0 | I140: 1.999625772
A141: Cand. Merc. | C141: 0.9492920851 | D141: 0 | E141: 0.9998128859 | F141: 0.9704983472 | G141: 0 | I141: 2.919603318
A142: HA | C142: 0 | D142: 0 | E142: 0 | F142: 0 | G142: 0 | I142: 0
A143: HD | C143: 0 | D143: 0 | E143: 0 | F143: 0 | G143: 0.9998128859 | I143: 0.9998128859
A144: Komm. og Sprog | C144: 0 | D144: 0 | E144: 0 | F144: 0.9998128859 | G144: 0 | I144: 0.9998128859
A145: Cand. IT. | C145: 0.9998128859 | D145: 0 | E145: 0 | F145: 0 | G145: 0 | I145: 0.9998128859
A146: Bac. Samf. | C146: 0 | D146: 0 | E146: 0 | F146: 0 | G146: 0 | I146: 0
A147: Bac. Hum. | C147: 0 | D147: 0 | E147: 0 | F147: 0 | G147: 0 | I147: 0
A148: Bac. Nat. | C148: 0 | D148: 0 | E148: 0.1958460675 | F148: 0 | G148: 0 | I148: 0.1958460675
A149: Andre | C149: 0 | D149: 3.399239069 | E149: 0 | F149: 0 | G149: 0 | I149: 3.399239069
A151: Total | C151: 10.32183621 | D151: 15.9477328 | E151: 7.211376536 | F151: 3.764735234 | G151: 2.452441839 | I151: 39.69812262
A153: Ingeniører i alt | C153: 1.491922909 | D153: 0.9536580802 | E153: 1.748269195 | F153: 0.7946111146 | G153: 0 | I153: 4.988461299
A154: Magistre i alt | C154: 1.881743903 | D154: 9.663818375 | E154: 3.267635502 | F154: 0 | G154: 0 | I154: 14.81319778
A155: DJØF'ere i alt | C155: 0.9492920851 | D155: 0.9998128859 | E155: 1.999625772 | F155: 1.970311233 | G155: 0.9998128859 | I155: 6.918854862
A162: Faaborg-Midtfyn
C164: Under 30 år | D164: 30 - 39 år | E164: 40 - 49 år | F164: 50 - 59 år | G164: Over 60 år | I164: I alt
A166: Civ. ing. | C166: 1.924780141 | D166: 0.9998128859 | E166: 0 | F166: 0 | G166: 0 | I166: 2.924593027
A167: Diplom ing. | C167: 0.9998128859 | D167: 0 | E167: 0.9075032745 | F167: 0 | G167: 0.9075032745 | I167: 2.814819435
A168: Cand. Scient. Tek | C168: 0.9998128859 | D168: 1.999625772 | E168: 0 | F168: 0 | G168: 0 | I168: 2.999438658
A169: MA. Hum. | C169: 4.165783072 | D169: 6.483502776 | E169: 4.445206761 | F169: 0.9998128859 | G169: 0.9998128859 | I169: 17.09411838
A170: MA. Nat. | C170: 0.9998128859 | D170: 0.4921100231 | E170: 0 | F170: 0.9998128859 | G170: 0.7484563089 | I170: 3.240192104
A171: MA. Ph.d. | C171: 0 | D171: 0 | E171: 0 | F171: 0 | G171: 0 | I171: 0
A172: MA. Samf. | C172: 0 | D172: 0 | E172: 0 | F172: 0 | G172: 0 | I172: 0
A173: Øvrige Mag. | C173: 0 | D173: 1.953470966 | E173: 0 | F173: 0.9998128859 | G173: 0 | I173: 2.953283852
A174: Agronom | C174: 0 | D174: 0 | E174: 0 | F174: 0.6305744402 | G174: 0.5008420133 | I174: 1.131416454
A175: Landsk. Arkt. | C175: 0 | D175: 0 | E175: 0 | F175: 0 | G175: 0 | I175: 0
A176: Hortonom | C176: 0 | D176: 0 | E176: 0 | F176: 0 | G176: 0 | I176: 0
A177: Forstkand. | C177: 0 | D177: 0 | E177: 0 | F177: 0 | G177: 0 | I177: 0
A178: Jordbrugsakad. | C178: 0 | D178: 0 | E178: 0 | F178: 0.6305744402 | G178: 0.5008420133 | I178: 1.131416454
A179: Mejeriing. | C179: 0 | D179: 0 | E179: 0 | F179: 0 | G179: 0 | I179: 0
A180: Levn.m.kand. | C180: 0 | D180: 0 | E180: 0 | F180: 0 | G180: 0 | I180: 0
A181: Dyrlæge | C181: 0 | D181: 0 | E181: 0 | F181: 0 | G181: 0 | I181: 0
A182: Farmaceut | C182: 2.353271378 | D182: 0 | E182: 0 | F182: 0 | G182: 0 | I182: 2.353271378
A183: Læge | C183: 0 | D183: 0 | E183: 0 | F183: 0 | G183: 0 | I183: 0
A184: Tandlæge | C184: 0 | D184: 0 | E184: 0 | F184: 0 | G184: 0 | I184: 0
A185: Arkitekt | C185: 0 | D185: 0 | E185: 0 | F185: 0.4684089066 | G185: 0.8894155804 | I185: 1.357824487
A186: Landinspek. | C186: 0 | D186: 0 | E186: 0 | F186: 0 | G186: 0 | I186: 0
A187: Bibliotekar | C187: 0 | D187: 0 | E187: 0 | F187: 0.9998128859 | G187: 0.5426308239 | I187: 1.54244371
A188: Musikudd. | C188: 0 | D188: 0 | E188: 0 | F188: 0 | G188: 0 | I188: 0
A189: Teolog | C189: 0 | D189: 0 | E189: 0 | F189: 0 | G189: 0 | I189: 0
A190: Psykolog | C190: 0 | D190: 0 | E190: 0 | F190: 0 | G190: 0 | I190: 0
A191: Jurist | C191: 0 | D191: 0 | E191: 0 | F191: 0 | G191: 0 | I191: 0
A192: Økonom | C192: 0.9075032745 | D192: 0 | E192: 0 | F192: 0 | G192: 0 | I192: 0.9075032745
A193: Samf. Adm. | C193: 4.583671178 | D193: 2.368864218 | E193: 1.999625772 | F193: 2.540385455 | G193: 0 | I193: 11.49254662
A194: Cand. Merc. | C194: 0 | D194: 0 | E194: 0 | F194: 0.9998128859 | G194: 0 | I194: 0.9998128859
A195: HA | C195: 0 | D195: 0 | E195: 0 | F195: 0 | G195: 0.9998128859 | I195: 0.9998128859
A196: HD | C196: 0 | D196: 0.4921100231 | E196: 0 | F196: 0 | G196: 0.7690388574 | I196: 1.26114888
A197: Komm. og Sprog | C197: 0 | D197: 0.9998128859 | E197: 0 | F197: 0 | G197: 0 | I197: 0.9998128859
A198: Cand. IT. | C198: 0 | D198: 0 | E198: 0 | F198: 0 | G198: 0 | I198: 0
A199: Bac. Samf. | C199: 0 | D199: 0 | E199: 0 | F199: 0 | G199: 0 | I199: 0
A200: Bac. Hum. | C200: 0.714775775 | D200: 0.7129046342 | E200: 0 | F200: 0 | G200: 0.9998128859 | I200: 2.427493295
A201: Bac. Nat. | C201: 0 | D201: 0 | E201: 0 | F201: 0 | G201: 0 | I201: 0
A202: Andre | C202: 0.9998128859 | D202: 1.999625772 | E202: 0 | F202: 0.5382648288 | G202: 0 | I202: 3.537703487
A204: Total | C204: 18.64903636 | D204: 18.50183996 | E204: 7.352335807 | F204: 9.17669806 | G204: 7.357325516 | I204: 61.0372357
A206: Ingeniører i alt | C206: 2.924593027 | D206: 0.9998128859 | E206: 0.9075032745 | F206: 0 | G206: 0.9075032745 | I206: 5.739412462
A207: Magistre i alt | C207: 5.165595958 | D207: 8.929083765 | E207: 4.445206761 | F207: 2.999438658 | G207: 1.748269195 | I207: 23.28759434
A208: DJØF'ere i alt | C208: 5.491174453 | D208: 2.368864218 | E208: 1.999625772 | F208: 3.540198341 | G208: 0.9998128859 | I208: 14.39967567
A215: Kerteminde
C217: Under 30 år | D217: 30 - 39 år | E217: 40 - 49 år | F217: 50 - 59 år | G217: Over 60 år | I217: I alt
A219: Civ. ing. | C219: 0.8463793426 | D219: 0 | E219: 0 | F219: 0 | G219: 0 | I219: 0.8463793426
A220: Diplom ing. | C220: 0 | D220: 0.4584294892 | E220: 0 | F220: 1.84993451 | G220: 0 | I220: 2.308363999
A221: Cand. Scient. Tek | C221: 1.999625772 | D221: 0 | E221: 0 | F221: 0 | G221: 0 | I221: 1.999625772
A222: MA. Hum. | C222: 0 | D222: 1.745150627 | E222: 1.999625772 | F222: 0.9998128859 | G222: 0.9998128859 | I222: 5.744402171
A223: MA. Nat. | C223: 0.9075032745 | D223: 0 | E223: 0 | F223: 0 | G223: 0.5382648288 | I223: 1.445768103
A224: MA. Ph.d. | C224: 0 | D224: 0 | E224: 0 | F224: 0 | G224: 0 | I224: 0
A225: MA. Samf. | C225: 0 | D225: 0 | E225: 0 | F225: 0 | G225: 0 | I225: 0
A226: Øvrige Mag. | C226: 0 | D226: 0 | E226: 0 | F226: 0 | G226: 0 | I226: 0
A227: Agronom | C227: 0 | D227: 0 | E227: 0 | F227: 0 | G227: 0 | I227: 0
A228: Landsk. Arkt. | C228: 0 | D228: 0 | E228: 0 | F228: 0 | G228: 0 | I228: 0
A229: Hortonom | C229: 0 | D229: 0 | E229: 0 | F229: 0 | G229: 0 | I229: 0
A230: Forstkand. | C230: 0 | D230: 0 | E230: 0 | F230: 0 | G230: 0 | I230: 0
A231: Jordbrugsakad. | C231: 0 | D231: 0 | E231: 0 | F231: 0 | G231: 0 | I231: 0
A232: Mejeriing. | C232: 0 | D232: 0 | E232: 0 | F232: 0 | G232: 0 | I232: 0
A233: Levn.m.kand. | C233: 0 | D233: 0 | E233: 0 | F233: 0 | G233: 0 | I233: 0
A234: Dyrlæge | C234: 0 | D234: 0 | E234: 0 | F234: 0 | G234: 0 | I234: 0
A235: Farmaceut | C235: 0 | D235: 0 | E235: 0 | F235: 0 | G235: 0 | I235: 0
A236: Læge | C236: 0 | D236: 0 | E236: 0 | F236: 0 | G236: 0 | I236: 0
A237: Tandlæge | C237: 0 | D237: 0 | E237: 0 | F237: 0 | G237: 0 | I237: 0
A238: Arkitekt | C238: 0 | D238: 0 | E238: 0 | F238: 0 | G238: 0 | I238: 0
A239: Landinspek. | C239: 0 | D239: 0 | E239: 0 | F239: 0 | G239: 0 | I239: 0
A240: Bibliotekar | C240: 0 | D240: 0 | E240: 0 | F240: 0 | G240: 0 | I240: 0
A241: Musikudd. | C241: 0 | D241: 0 | E241: 0 | F241: 0 | G241: 0 | I241: 0
A242: Teolog | C242: 0 | D242: 0 | E242: 0 | F242: 0 | G242: 0 | I242: 0
A243: Psykolog | C243: 0.9998128859 | D243: 0 | E243: 0 | F243: 0 | G243: 0 | I243: 0.9998128859
... 274 more rows

Sheet Tabel 4P F
A1: Tabel 4. Ledighedsberørte - aldersfordelt
A3: Fyn
C5: Under 30 år | D5: 30 - 39 år | E5: 40 - 49 år | F5: 50 - 59 år | G5: Over 60 år | I5: I alt
A7: Civ. ing. | C7: =IF(OR('Tabel 4F F'!C7<5,'Tabel 4 F'!C7<0.5),"-",IFERROR('Tabel 4 F'!C7/'Tabel 4F F'!C7*100,"-")) -> 20.70844687 | D7: =IF(OR('Tabel 4F F'!D7<5,'Tabel 4 F'!D7<0.5),"-",IFERROR('Tabel 4 F'!D7/'Tabel 4F F'!D7*100,"-")) -> 3.712296984 | E7: =IF(OR('Tabel 4F F'!E7<5,'Tabel 4 F'!E7<0.5),"-",IFERROR('Tabel 4 F'!E7/'Tabel 4F F'!E7*100,"-")) -> 2.222222222 | F7: =IF(OR('Tabel 4F F'!F7<5,'Tabel 4 F'!F7<0.5),"-",IFERROR('Tabel 4 F'!F7/'Tabel 4F F'!F7*100,"-")) -> 0.6578947368 | G7: =IF(OR('Tabel 4F F'!G7<5,'Tabel 4 F'!G7<0.5),"-",IFERROR('Tabel 4 F'!G7/'Tabel 4F F'!G7*100,"-")) -> - | I7: =IF(OR('Tabel 4F F'!I7<5,'Tabel 4 F'!I7<0.5),"-",IFERROR('Tabel 4 F'!I7/'Tabel 4F F'!I7*100,"-")) -> 7.844690967
A8: Diplom ing. | C8: =IF(OR('Tabel 4F F'!C8<5,'Tabel 4 F'!C8<0.5),"-",IFERROR('Tabel 4 F'!C8/'Tabel 4F F'!C8*100,"-")) -> 9.393939394 | D8: =IF(OR('Tabel 4F F'!D8<5,'Tabel 4 F'!D8<0.5),"-",IFERROR('Tabel 4 F'!D8/'Tabel 4F F'!D8*100,"-")) -> 2.265861027 | E8: =IF(OR('Tabel 4F F'!E8<5,'Tabel 4 F'!E8<0.5),"-",IFERROR('Tabel 4 F'!E8/'Tabel 4F F'!E8*100,"-")) -> 1.371571072 | F8: =IF(OR('Tabel 4F F'!F8<5,'Tabel 4 F'!F8<0.5),"-",IFERROR('Tabel 4 F'!F8/'Tabel 4F F'!F8*100,"-")) -> 2.615694165 | G8: =IF(OR('Tabel 4F F'!G8<5,'Tabel 4 F'!G8<0.5),"-",IFERROR('Tabel 4 F'!G8/'Tabel 4F F'!G8*100,"-")) -> 1.403508772 | I8: =IF(OR('Tabel 4F F'!I8<5,'Tabel 4 F'!I8<0.5),"-",IFERROR('Tabel 4 F'!I8/'Tabel 4F F'!I8*100,"-")) -> 2.831109665
A9: Cand. Scient. Tek | C9: =IF(OR('Tabel 4F F'!C9<5,'Tabel 4 F'!C9<0.5),"-",IFERROR('Tabel 4 F'!C9/'Tabel 4F F'!C9*100,"-")) -> 27.04918033 | D9: =IF(OR('Tabel 4F F'!D9<5,'Tabel 4 F'!D9<0.5),"-",IFERROR('Tabel 4 F'!D9/'Tabel 4F F'!D9*100,"-")) -> 8.016877637 | E9: =IF(OR('Tabel 4F F'!E9<5,'Tabel 4 F'!E9<0.5),"-",IFERROR('Tabel 4 F'!E9/'Tabel 4F F'!E9*100,"-")) -> 3.333333333 | F9: =IF(OR('Tabel 4F F'!F9<5,'Tabel 4 F'!F9<0.5),"-",IFERROR('Tabel 4 F'!F9/'Tabel 4F F'!F9*100,"-")) -> - | G9: =IF(OR('Tabel 4F F'!G9<5,'Tabel 4 F'!G9<0.5),"-",IFERROR('Tabel 4 F'!G9/'Tabel 4F F'!G9*100,"-")) -> - | I9: =IF(OR('Tabel 4F F'!I9<5,'Tabel 4 F'!I9<0.5),"-",IFERROR('Tabel 4 F'!I9/'Tabel 4F F'!I9*100,"-")) -> 15.39823009
A10: MA. Hum. | C10: =IF(OR('Tabel 4F F'!C10<5,'Tabel 4 F'!C10<0.5),"-",IFERROR('Tabel 4 F'!C10/'Tabel 4F F'!C10*100,"-")) -> 33.39882122 | D10: =IF(OR('Tabel 4F F'!D10<5,'Tabel 4 F'!D10<0.5),"-",IFERROR('Tabel 4 F'!D10/'Tabel 4F F'!D10*100,"-")) -> 12.41025641 | E10: =IF(OR('Tabel 4F F'!E10<5,'Tabel 4 F'!E10<0.5),"-",IFERROR('Tabel 4 F'!E10/'Tabel 4F F'!E10*100,"-")) -> 5.45112782 | F10: =IF(OR('Tabel 4F F'!F10<5,'Tabel 4 F'!F10<0.5),"-",IFERROR('Tabel 4 F'!F10/'Tabel 4F F'!F10*100,"-")) -> 6.896551724 | G10: =IF(OR('Tabel 4F F'!G10<5,'Tabel 4 F'!G10<0.5),"-",IFERROR('Tabel 4 F'!G10/'Tabel 4F F'!G10*100,"-")) -> 7.894736842 | I10: =IF(OR('Tabel 4F F'!I10<5,'Tabel 4 F'!I10<0.5),"-",IFERROR('Tabel 4 F'!I10/'Tabel 4F F'!I10*100,"-")) -> 12.41727072
A11: MA. Nat. | C11: =IF(OR('Tabel 4F F'!C11<5,'Tabel 4 F'!C11<0.5),"-",IFERROR('Tabel 4 F'!C11/'Tabel 4F F'!C11*100,"-")) -> 23.72881356 | D11: =IF(OR('Tabel 4F F'!D11<5,'Tabel 4 F'!D11<0.5),"-",IFERROR('Tabel 4 F'!D11/'Tabel 4F F'!D11*100,"-")) -> 10.07194245 | E11: =IF(OR('Tabel 4F F'!E11<5,'Tabel 4 F'!E11<0.5),"-",IFERROR('Tabel 4 F'!E11/'Tabel 4F F'!E11*100,"-")) -> 0.7556675063 | F11: =IF(OR('Tabel 4F F'!F11<5,'Tabel 4 F'!F11<0.5),"-",IFERROR('Tabel 4 F'!F11/'Tabel 4F F'!F11*100,"-")) -> 3.396226415 | G11: =IF(OR('Tabel 4F F'!G11<5,'Tabel 4 F'!G11<0.5),"-",IFERROR('Tabel 4 F'!G11/'Tabel 4F F'!G11*100,"-")) -> 5.154639175 | I11: =IF(OR('Tabel 4F F'!I11<5,'Tabel 4 F'!I11<0.5),"-",IFERROR('Tabel 4 F'!I11/'Tabel 4F F'!I11*100,"-")) -> 6.32034632
A12: MA. Ph.d. | C12: =IF(OR('Tabel 4F F'!C12<5,'Tabel 4 F'!C12<0.5),"-",IFERROR('Tabel 4 F'!C12/'Tabel 4F F'!C12*100,"-")) -> - | D12: =IF(OR('Tabel 4F F'!D12<5,'Tabel 4 F'!D12<0.5),"-",IFERROR('Tabel 4 F'!D12/'Tabel 4F F'!D12*100,"-")) -> 4.081632653 | E12: =IF(OR('Tabel 4F F'!E12<5,'Tabel 4 F'!E12<0.5),"-",IFERROR('Tabel 4 F'!E12/'Tabel 4F F'!E12*100,"-")) -> 4.838709677 | F12: =IF(OR('Tabel 4F F'!F12<5,'Tabel 4 F'!F12<0.5),"-",IFERROR('Tabel 4 F'!F12/'Tabel 4F F'!F12*100,"-")) -> 5.555555556 | G12: =IF(OR('Tabel 4F F'!G12<5,'Tabel 4 F'!G12<0.5),"-",IFERROR('Tabel 4 F'!G12/'Tabel 4F F'!G12*100,"-")) -> - | I12: =IF(OR('Tabel 4F F'!I12<5,'Tabel 4 F'!I12<0.5),"-",IFERROR('Tabel 4 F'!I12/'Tabel 4F F'!I12*100,"-")) -> 4.458598726
A13: MA. Samf. | C13: =IF(OR('Tabel 4F F'!C13<5,'Tabel 4 F'!C13<0.5),"-",IFERROR('Tabel 4 F'!C13/'Tabel 4F F'!C13*100,"-")) -> 18.51851852 | D13: =IF(OR('Tabel 4F F'!D13<5,'Tabel 4 F'!D13<0.5),"-",IFERROR('Tabel 4 F'!D13/'Tabel 4F F'!D13*100,"-")) -> 18.98734177 | E13: =IF(OR('Tabel 4F F'!E13<5,'Tabel 4 F'!E13<0.5),"-",IFERROR('Tabel 4 F'!E13/'Tabel 4F F'!E13*100,"-")) -> 12.5 | F13: =IF(OR('Tabel 4F F'!F13<5,'Tabel 4 F'!F13<0.5),"-",IFERROR('Tabel 4 F'!F13/'Tabel 4F F'!F13*100,"-")) -> - | G13: =IF(OR('Tabel 4F F'!G13<5,'Tabel 4 F'!G13<0.5),"-",IFERROR('Tabel 4 F'!G13/'Tabel 4F F'!G13*100,"-")) -> - | I13: =IF(OR('Tabel 4F F'!I13<5,'Tabel 4 F'!I13<0.5),"-",IFERROR('Tabel 4 F'!I13/'Tabel 4F F'!I13*100,"-")) -> 16.96969697
A14: Øvrige Mag. | C14: =IF(OR('Tabel 4F F'!C14<5,'Tabel 4 F'!C14<0.5),"-",IFERROR('Tabel 4 F'!C14/'Tabel 4F F'!C14*100,"-")) -> 21.05263158 | D14: =IF(OR('Tabel 4F F'!D14<5,'Tabel 4 F'!D14<0.5),"-",IFERROR('Tabel 4 F'!D14/'Tabel 4F F'!D14*100,"-")) -> 11.36363636 | E14: =IF(OR('Tabel 4F F'!E14<5,'Tabel 4 F'!E14<0.5),"-",IFERROR('Tabel 4 F'!E14/'Tabel 4F F'!E14*100,"-")) -> 6.25 | F14: =IF(OR('Tabel 4F F'!F14<5,'Tabel 4 F'!F14<0.5),"-",IFERROR('Tabel 4 F'!F14/'Tabel 4F F'!F14*100,"-")) -> 3.125 | G14: =IF(OR('Tabel 4F F'!G14<5,'Tabel 4 F'!G14<0.5),"-",IFERROR('Tabel 4 F'!G14/'Tabel 4F F'!G14*100,"-")) -> 12.5 | I14: =IF(OR('Tabel 4F F'!I14<5,'Tabel 4 F'!I14<0.5),"-",IFERROR('Tabel 4 F'!I14/'Tabel 4F F'!I14*100,"-")) -> 8.520179372
A15: Agronom | C15: =IF(OR('Tabel 4F F'!C15<5,'Tabel 4 F'!C15<0.5),"-",IFERROR('Tabel 4 F'!C15/'Tabel 4F F'!C15*100,"-")) -> - | D15: =IF(OR('Tabel 4F F'!D15<5,'Tabel 4 F'!D15<0.5),"-",IFERROR('Tabel 4 F'!D15/'Tabel 4F F'!D15*100,"-")) -> 5.882352941 | E15: =IF(OR('Tabel 4F F'!E15<5,'Tabel 4 F'!E15<0.5),"-",IFERROR('Tabel 4 F'!E15/'Tabel 4F F'!E15*100,"-")) -> - | F15: =IF(OR('Tabel 4F F'!F15<5,'Tabel 4 F'!F15<0.5),"-",IFERROR('Tabel 4 F'!F15/'Tabel 4F F'!F15*100,"-")) -> 2.985074627 | G15: =IF(OR('Tabel 4F F'!G15<5,'Tabel 4 F'!G15<0.5),"-",IFERROR('Tabel 4 F'!G15/'Tabel 4F F'!G15*100,"-")) -> 7.692307692 | I15: =IF(OR('Tabel 4F F'!I15<5,'Tabel 4 F'!I15<0.5),"-",IFERROR('Tabel 4 F'!I15/'Tabel 4F F'!I15*100,"-")) -> 3.896103896
A16: Landsk. Arkt. | C16: =IF(OR('Tabel 4F F'!C16<5,'Tabel 4 F'!C16<0.5),"-",IFERROR('Tabel 4 F'!C16/'Tabel 4F F'!C16*100,"-")) -> - | D16: =IF(OR('Tabel 4F F'!D16<5,'Tabel 4 F'!D16<0.5),"-",IFERROR('Tabel 4 F'!D16/'Tabel 4F F'!D16*100,"-")) -> 10 | E16: =IF(OR('Tabel 4F F'!E16<5,'Tabel 4 F'!E16<0.5),"-",IFERROR('Tabel 4 F'!E16/'Tabel 4F F'!E16*100,"-")) -> - | F16: =IF(OR('Tabel 4F F'!F16<5,'Tabel 4 F'!F16<0.5),"-",IFERROR('Tabel 4 F'!F16/'Tabel 4F F'!F16*100,"-")) -> - | G16: =IF(OR('Tabel 4F F'!G16<5,'Tabel 4 F'!G16<0.5),"-",IFERROR('Tabel 4 F'!G16/'Tabel 4F F'!G16*100,"-")) -> - | I16: =IF(OR('Tabel 4F F'!I16<5,'Tabel 4 F'!I16<0.5),"-",IFERROR('Tabel 4 F'!I16/'Tabel 4F F'!I16*100,"-")) -> 7.142857143
A17: Hortonom | C17: =IF(OR('Tabel 4F F'!C17<5,'Tabel 4 F'!C17<0.5),"-",IFERROR('Tabel 4 F'!C17/'Tabel 4F F'!C17*100,"-")) -> - | D17: =IF(OR('Tabel 4F F'!D17<5,'Tabel 4 F'!D17<0.5),"-",IFERROR('Tabel 4 F'!D17/'Tabel 4F F'!D17*100,"-")) -> - | E17: =IF(OR('Tabel 4F F'!E17<5,'Tabel 4 F'!E17<0.5),"-",IFERROR('Tabel 4 F'!E17/'Tabel 4F F'!E17*100,"-")) -> - | F17: =IF(OR('Tabel 4F F'!F17<5,'Tabel 4 F'!F17<0.5),"-",IFERROR('Tabel 4 F'!F17/'Tabel 4F F'!F17*100,"-")) -> 9.090909091 | G17: =IF(OR('Tabel 4F F'!G17<5,'Tabel 4 F'!G17<0.5),"-",IFERROR('Tabel 4 F'!G17/'Tabel 4F F'!G17*100,"-")) -> - | I17: =IF(OR('Tabel 4F F'!I17<5,'Tabel 4 F'!I17<0.5),"-",IFERROR('Tabel 4 F'!I17/'Tabel 4F F'!I17*100,"-")) -> 4.761904762
A18: Forstkand. | C18: =IF(OR('Tabel 4F F'!C18<5,'Tabel 4 F'!C18<0.5),"-",IFERROR('Tabel 4 F'!C18/'Tabel 4F F'!C18*100,"-")) -> - | D18: =IF(OR('Tabel 4F F'!D18<5,'Tabel 4 F'!D18<0.5),"-",IFERROR('Tabel 4 F'!D18/'Tabel 4F F'!D18*100,"-")) -> - | E18: =IF(OR('Tabel 4F F'!E18<5,'Tabel 4 F'!E18<0.5),"-",IFERROR('Tabel 4 F'!E18/'Tabel 4F F'!E18*100,"-")) -> - | F18: =IF(OR('Tabel 4F F'!F18<5,'Tabel 4 F'!F18<0.5),"-",IFERROR('Tabel 4 F'!F18/'Tabel 4F F'!F18*100,"-")) -> - | G18: =IF(OR('Tabel 4F F'!G18<5,'Tabel 4 F'!G18<0.5),"-",IFERROR('Tabel 4 F'!G18/'Tabel 4F F'!G18*100,"-")) -> - | I18: =IF(OR('Tabel 4F F'!I18<5,'Tabel 4 F'!I18<0.5),"-",IFERROR('Tabel 4 F'!I18/'Tabel 4F F'!I18*100,"-")) -> 3.846153846
A19: Jordbrugsakad. | C19: =IF(OR('Tabel 4F F'!C19<5,'Tabel 4 F'!C19<0.5),"-",IFERROR('Tabel 4 F'!C19/'Tabel 4F F'!C19*100,"-")) -> 60 | D19: =IF(OR('Tabel 4F F'!D19<5,'Tabel 4 F'!D19<0.5),"-",IFERROR('Tabel 4 F'!D19/'Tabel 4F F'!D19*100,"-")) -> 5.882352941 | E19: =IF(OR('Tabel 4F F'!E19<5,'Tabel 4 F'!E19<0.5),"-",IFERROR('Tabel 4 F'!E19/'Tabel 4F F'!E19*100,"-")) -> - | F19: =IF(OR('Tabel 4F F'!F19<5,'Tabel 4 F'!F19<0.5),"-",IFERROR('Tabel 4 F'!F19/'Tabel 4F F'!F19*100,"-")) -> 3.921568627 | G19: =IF(OR('Tabel 4F F'!G19<5,'Tabel 4 F'!G19<0.5),"-",IFERROR('Tabel 4 F'!G19/'Tabel 4F F'!G19*100,"-")) -> 4.651162791 | I19: =IF(OR('Tabel 4F F'!I19<5,'Tabel 4 F'!I19<0.5),"-",IFERROR('Tabel 4 F'!I19/'Tabel 4F F'!I19*100,"-")) -> 4.4
A20: Mejeriing. | C20: =IF(OR('Tabel 4F F'!C20<5,'Tabel 4 F'!C20<0.5),"-",IFERROR('Tabel 4 F'!C20/'Tabel 4F F'!C20*100,"-")) -> - | D20: =IF(OR('Tabel 4F F'!D20<5,'Tabel 4 F'!D20<0.5),"-",IFERROR('Tabel 4 F'!D20/'Tabel 4F F'!D20*100,"-")) -> - | E20: =IF(OR('Tabel 4F F'!E20<5,'Tabel 4 F'!E20<0.5),"-",IFERROR('Tabel 4 F'!E20/'Tabel 4F F'!E20*100,"-")) -> - | F20: =IF(OR('Tabel 4F F'!F20<5,'Tabel 4 F'!F20<0.5),"-",IFERROR('Tabel 4 F'!F20/'Tabel 4F F'!F20*100,"-")) -> - | G20: =IF(OR('Tabel 4F F'!G20<5,'Tabel 4 F'!G20<0.5),"-",IFERROR('Tabel 4 F'!G20/'Tabel 4F F'!G20*100,"-")) -> - | I20: =IF(OR('Tabel 4F F'!I20<5,'Tabel 4 F'!I20<0.5),"-",IFERROR('Tabel 4 F'!I20/'Tabel 4F F'!I20*100,"-")) -> -
A21: Levn.m.kand. | C21: =IF(OR('Tabel 4F F'!C21<5,'Tabel 4 F'!C21<0.5),"-",IFERROR('Tabel 4 F'!C21/'Tabel 4F F'!C21*100,"-")) -> - | D21: =IF(OR('Tabel 4F F'!D21<5,'Tabel 4 F'!D21<0.5),"-",IFERROR('Tabel 4 F'!D21/'Tabel 4F F'!D21*100,"-")) -> - | E21: =IF(OR('Tabel 4F F'!E21<5,'Tabel 4 F'!E21<0.5),"-",IFERROR('Tabel 4 F'!E21/'Tabel 4F F'!E21*100,"-")) -> - | F21: =IF(OR('Tabel 4F F'!F21<5,'Tabel 4 F'!F21<0.5),"-",IFERROR('Tabel 4 F'!F21/'Tabel 4F F'!F21*100,"-")) -> - | G21: =IF(OR('Tabel 4F F'!G21<5,'Tabel 4 F'!G21<0.5),"-",IFERROR('Tabel 4 F'!G21/'Tabel 4F F'!G21*100,"-")) -> - | I21: =IF(OR('Tabel 4F F'!I21<5,'Tabel 4 F'!I21<0.5),"-",IFERROR('Tabel 4 F'!I21/'Tabel 4F F'!I21*100,"-")) -> 15.38461538
A22: Dyrlæge | C22: =IF(OR('Tabel 4F F'!C22<5,'Tabel 4 F'!C22<0.5),"-",IFERROR('Tabel 4 F'!C22/'Tabel 4F F'!C22*100,"-")) -> 11.76470588 | D22: =IF(OR('Tabel 4F F'!D22<5,'Tabel 4 F'!D22<0.5),"-",IFERROR('Tabel 4 F'!D22/'Tabel 4F F'!D22*100,"-")) -> - | E22: =IF(OR('Tabel 4F F'!E22<5,'Tabel 4 F'!E22<0.5),"-",IFERROR('Tabel 4 F'!E22/'Tabel 4F F'!E22*100,"-")) -> 2.777777778 | F22: =IF(OR('Tabel 4F F'!F22<5,'Tabel 4 F'!F22<0.5),"-",IFERROR('Tabel 4 F'!F22/'Tabel 4F F'!F22*100,"-")) -> - | G22: =IF(OR('Tabel 4F F'!G22<5,'Tabel 4 F'!G22<0.5),"-",IFERROR('Tabel 4 F'!G22/'Tabel 4F F'!G22*100,"-")) -> - | I22: =IF(OR('Tabel 4F F'!I22<5,'Tabel 4 F'!I22<0.5),"-",IFERROR('Tabel 4 F'!I22/'Tabel 4F F'!I22*100,"-")) -> 2.419354839
A23: Farmaceut | C23: =IF(OR('Tabel 4F F'!C23<5,'Tabel 4 F'!C23<0.5),"-",IFERROR('Tabel 4 F'!C23/'Tabel 4F F'!C23*100,"-")) -> 26.19047619 | D23: =IF(OR('Tabel 4F F'!D23<5,'Tabel 4 F'!D23<0.5),"-",IFERROR('Tabel 4 F'!D23/'Tabel 4F F'!D23*100,"-")) -> 10.38961039 | E23: =IF(OR('Tabel 4F F'!E23<5,'Tabel 4 F'!E23<0.5),"-",IFERROR('Tabel 4 F'!E23/'Tabel 4F F'!E23*100,"-")) -> - | F23: =IF(OR('Tabel 4F F'!F23<5,'Tabel 4 F'!F23<0.5),"-",IFERROR('Tabel 4 F'!F23/'Tabel 4F F'!F23*100,"-")) -> - | G23: =IF(OR('Tabel 4F F'!G23<5,'Tabel 4 F'!G23<0.5),"-",IFERROR('Tabel 4 F'!G23/'Tabel 4F F'!G23*100,"-")) -> 25 | I23: =IF(OR('Tabel 4F F'!I23<5,'Tabel 4 F'!I23<0.5),"-",IFERROR('Tabel 4 F'!I23/'Tabel 4F F'!I23*100,"-")) -> 13.2231405
A24: Læge | C24: =IF(OR('Tabel 4F F'!C24<5,'Tabel 4 F'!C24<0.5),"-",IFERROR('Tabel 4 F'!C24/'Tabel 4F F'!C24*100,"-")) -> 6.756756757 | D24: =IF(OR('Tabel 4F F'!D24<5,'Tabel 4 F'!D24<0.5),"-",IFERROR('Tabel 4 F'!D24/'Tabel 4F F'!D24*100,"-")) -> 0.3745318352 | E24: =IF(OR('Tabel 4F F'!E24<5,'Tabel 4 F'!E24<0.5),"-",IFERROR('Tabel 4 F'!E24/'Tabel 4F F'!E24*100,"-")) -> - | F24: =IF(OR('Tabel 4F F'!F24<5,'Tabel 4 F'!F24<0.5),"-",IFERROR('Tabel 4 F'!F24/'Tabel 4F F'!F24*100,"-")) -> - | G24: =IF(OR('Tabel 4F F'!G24<5,'Tabel 4 F'!G24<0.5),"-",IFERROR('Tabel 4 F'!G24/'Tabel 4F F'!G24*100,"-")) -> - | I24: =IF(OR('Tabel 4F F'!I24<5,'Tabel 4 F'!I24<0.5),"-",IFERROR('Tabel 4 F'!I24/'Tabel 4F F'!I24*100,"-")) -> 1.362179487
A25: Tandlæge | C25: =IF(OR('Tabel 4F F'!C25<5,'Tabel 4 F'!C25<0.5),"-",IFERROR('Tabel 4 F'!C25/'Tabel 4F F'!C25*100,"-")) -> - | D25: =IF(OR('Tabel 4F F'!D25<5,'Tabel 4 F'!D25<0.5),"-",IFERROR('Tabel 4 F'!D25/'Tabel 4F F'!D25*100,"-")) -> - | E25: =IF(OR('Tabel 4F F'!E25<5,'Tabel 4 F'!E25<0.5),"-",IFERROR('Tabel 4 F'!E25/'Tabel 4F F'!E25*100,"-")) -> - | F25: =IF(OR('Tabel 4F F'!F25<5,'Tabel 4 F'!F25<0.5),"-",IFERROR('Tabel 4 F'!F25/'Tabel 4F F'!F25*100,"-")) -> - | G25: =IF(OR('Tabel 4F F'!G25<5,'Tabel 4 F'!G25<0.5),"-",IFERROR('Tabel 4 F'!G25/'Tabel 4F F'!G25*100,"-")) -> - | I25: =IF(OR('Tabel 4F F'!I25<5,'Tabel 4 F'!I25<0.5),"-",IFERROR('Tabel 4 F'!I25/'Tabel 4F F'!I25*100,"-")) -> -
A26: Arkitekt | C26: =IF(OR('Tabel 4F F'!C26<5,'Tabel 4 F'!C26<0.5),"-",IFERROR('Tabel 4 F'!C26/'Tabel 4F F'!C26*100,"-")) -> 17.64705882 | D26: =IF(OR('Tabel 4F F'!D26<5,'Tabel 4 F'!D26<0.5),"-",IFERROR('Tabel 4 F'!D26/'Tabel 4F F'!D26*100,"-")) -> 17.07317073 | E26: =IF(OR('Tabel 4F F'!E26<5,'Tabel 4 F'!E26<0.5),"-",IFERROR('Tabel 4 F'!E26/'Tabel 4F F'!E26*100,"-")) -> - | F26: =IF(OR('Tabel 4F F'!F26<5,'Tabel 4 F'!F26<0.5),"-",IFERROR('Tabel 4 F'!F26/'Tabel 4F F'!F26*100,"-")) -> 6.25 | G26: =IF(OR('Tabel 4F F'!G26<5,'Tabel 4 F'!G26<0.5),"-",IFERROR('Tabel 4 F'!G26/'Tabel 4F F'!G26*100,"-")) -> 4.545454545 | I26: =IF(OR('Tabel 4F F'!I26<5,'Tabel 4 F'!I26<0.5),"-",IFERROR('Tabel 4 F'!I26/'Tabel 4F F'!I26*100,"-")) -> 8.125
A27: Landinspek. | C27: =IF(OR('Tabel 4F F'!C27<5,'Tabel 4 F'!C27<0.5),"-",IFERROR('Tabel 4 F'!C27/'Tabel 4F F'!C27*100,"-")) -> - | D27: =IF(OR('Tabel 4F F'!D27<5,'Tabel 4 F'!D27<0.5),"-",IFERROR('Tabel 4 F'!D27/'Tabel 4F F'!D27*100,"-")) -> - | E27: =IF(OR('Tabel 4F F'!E27<5,'Tabel 4 F'!E27<0.5),"-",IFERROR('Tabel 4 F'!E27/'Tabel 4F F'!E27*100,"-")) -> - | F27: =IF(OR('Tabel 4F F'!F27<5,'Tabel 4 F'!F27<0.5),"-",IFERROR('Tabel 4 F'!F27/'Tabel 4F F'!F27*100,"-")) -> - | G27: =IF(OR('Tabel 4F F'!G27<5,'Tabel 4 F'!G27<0.5),"-",IFERROR('Tabel 4 F'!G27/'Tabel 4F F'!G27*100,"-")) -> - | I27: =IF(OR('Tabel 4F F'!I27<5,'Tabel 4 F'!I27<0.5),"-",IFERROR('Tabel 4 F'!I27/'Tabel 4F F'!I27*100,"-")) -> -
A28: Bibliotekar | C28: =IF(OR('Tabel 4F F'!C28<5,'Tabel 4 F'!C28<0.5),"-",IFERROR('Tabel 4 F'!C28/'Tabel 4F F'!C28*100,"-")) -> 20 | D28: =IF(OR('Tabel 4F F'!D28<5,'Tabel 4 F'!D28<0.5),"-",IFERROR('Tabel 4 F'!D28/'Tabel 4F F'!D28*100,"-")) -> 8.510638298 | E28: =IF(OR('Tabel 4F F'!E28<5,'Tabel 4 F'!E28<0.5),"-",IFERROR('Tabel 4 F'!E28/'Tabel 4F F'!E28*100,"-")) -> 4.615384615 | F28: =IF(OR('Tabel 4F F'!F28<5,'Tabel 4 F'!F28<0.5),"-",IFERROR('Tabel 4 F'!F28/'Tabel 4F F'!F28*100,"-")) -> 1.754385965 | G28: =IF(OR('Tabel 4F F'!G28<5,'Tabel 4 F'!G28<0.5),"-",IFERROR('Tabel 4 F'!G28/'Tabel 4F F'!G28*100,"-")) -> 4.761904762 | I28: =IF(OR('Tabel 4F F'!I28<5,'Tabel 4 F'!I28<0.5),"-",IFERROR('Tabel 4 F'!I28/'Tabel 4F F'!I28*100,"-")) -> 5.092592593
A29: Musikudd. | C29: =IF(OR('Tabel 4F F'!C29<5,'Tabel 4 F'!C29<0.5),"-",IFERROR('Tabel 4 F'!C29/'Tabel 4F F'!C29*100,"-")) -> - | D29: =IF(OR('Tabel 4F F'!D29<5,'Tabel 4 F'!D29<0.5),"-",IFERROR('Tabel 4 F'!D29/'Tabel 4F F'!D29*100,"-")) -> 6.666666667 | E29: =IF(OR('Tabel 4F F'!E29<5,'Tabel 4 F'!E29<0.5),"-",IFERROR('Tabel 4 F'!E29/'Tabel 4F F'!E29*100,"-")) -> - | F29: =IF(OR('Tabel 4F F'!F29<5,'Tabel 4 F'!F29<0.5),"-",IFERROR('Tabel 4 F'!F29/'Tabel 4F F'!F29*100,"-")) -> - | G29: =IF(OR('Tabel 4F F'!G29<5,'Tabel 4 F'!G29<0.5),"-",IFERROR('Tabel 4 F'!G29/'Tabel 4F F'!G29*100,"-")) -> 4 | I29: =IF(OR('Tabel 4F F'!I29<5,'Tabel 4 F'!I29<0.5),"-",IFERROR('Tabel 4 F'!I29/'Tabel 4F F'!I29*100,"-")) -> 3.225806452
A30: Teolog | C30: =IF(OR('Tabel 4F F'!C30<5,'Tabel 4 F'!C30<0.5),"-",IFERROR('Tabel 4 F'!C30/'Tabel 4F F'!C30*100,"-")) -> - | D30: =IF(OR('Tabel 4F F'!D30<5,'Tabel 4 F'!D30<0.5),"-",IFERROR('Tabel 4 F'!D30/'Tabel 4F F'!D30*100,"-")) -> 4.166666667 | E30: =IF(OR('Tabel 4F F'!E30<5,'Tabel 4 F'!E30<0.5),"-",IFERROR('Tabel 4 F'!E30/'Tabel 4F F'!E30*100,"-")) -> 2.777777778 | F30: =IF(OR('Tabel 4F F'!F30<5,'Tabel 4 F'!F30<0.5),"-",IFERROR('Tabel 4 F'!F30/'Tabel 4F F'!F30*100,"-")) -> - | G30: =IF(OR('Tabel 4F F'!G30<5,'Tabel 4 F'!G30<0.5),"-",IFERROR('Tabel 4 F'!G30/'Tabel 4F F'!G30*100,"-")) -> 3.846153846 | I30: =IF(OR('Tabel 4F F'!I30<5,'Tabel 4 F'!I30<0.5),"-",IFERROR('Tabel 4 F'!I30/'Tabel 4F F'!I30*100,"-")) -> 2.325581395
A31: Psykolog | C31: =IF(OR('Tabel 4F F'!C31<5,'Tabel 4 F'!C31<0.5),"-",IFERROR('Tabel 4 F'!C31/'Tabel 4F F'!C31*100,"-")) -> 30.48780488 | D31: =IF(OR('Tabel 4F F'!D31<5,'Tabel 4 F'!D31<0.5),"-",IFERROR('Tabel 4 F'!D31/'Tabel 4F F'!D31*100,"-")) -> 6.41025641 | E31: =IF(OR('Tabel 4F F'!E31<5,'Tabel 4 F'!E31<0.5),"-",IFERROR('Tabel 4 F'!E31/'Tabel 4F F'!E31*100,"-")) -> 2.521008403 | F31: =IF(OR('Tabel 4F F'!F31<5,'Tabel 4 F'!F31<0.5),"-",IFERROR('Tabel 4 F'!F31/'Tabel 4F F'!F31*100,"-")) -> 1.5625 | G31: =IF(OR('Tabel 4F F'!G31<5,'Tabel 4 F'!G31<0.5),"-",IFERROR('Tabel 4 F'!G31/'Tabel 4F F'!G31*100,"-")) -> 5.555555556 | I31: =IF(OR('Tabel 4F F'!I31<5,'Tabel 4 F'!I31<0.5),"-",IFERROR('Tabel 4 F'!I31/'Tabel 4F F'!I31*100,"-")) -> 12.47600768
A32: Jurist | C32: =IF(OR('Tabel 4F F'!C32<5,'Tabel 4 F'!C32<0.5),"-",IFERROR('Tabel 4 F'!C32/'Tabel 4F F'!C32*100,"-")) -> 8.547008547 | D32: =IF(OR('Tabel 4F F'!D32<5,'Tabel 4 F'!D32<0.5),"-",IFERROR('Tabel 4 F'!D32/'Tabel 4F F'!D32*100,"-")) -> 2.714932127 | E32: =IF(OR('Tabel 4F F'!E32<5,'Tabel 4 F'!E32<0.5),"-",IFERROR('Tabel 4 F'!E32/'Tabel 4F F'!E32*100,"-")) -> 2.205882353 | F32: =IF(OR('Tabel 4F F'!F32<5,'Tabel 4 F'!F32<0.5),"-",IFERROR('Tabel 4 F'!F32/'Tabel 4F F'!F32*100,"-")) -> 2.469135802 | G32: =IF(OR('Tabel 4F F'!G32<5,'Tabel 4 F'!G32<0.5),"-",IFERROR('Tabel 4 F'!G32/'Tabel 4F F'!G32*100,"-")) -> 15.625 | I32: =IF(OR('Tabel 4F F'!I32<5,'Tabel 4 F'!I32<0.5),"-",IFERROR('Tabel 4 F'!I32/'Tabel 4F F'!I32*100,"-")) -> 4.429301533
A33: Økonom | C33: =IF(OR('Tabel 4F F'!C33<5,'Tabel 4 F'!C33<0.5),"-",IFERROR('Tabel 4 F'!C33/'Tabel 4F F'!C33*100,"-")) -> 13.66906475 | D33: =IF(OR('Tabel 4F F'!D33<5,'Tabel 4 F'!D33<0.5),"-",IFERROR('Tabel 4 F'!D33/'Tabel 4F F'!D33*100,"-")) -> 2.919708029 | E33: =IF(OR('Tabel 4F F'!E33<5,'Tabel 4 F'!E33<0.5),"-",IFERROR('Tabel 4 F'!E33/'Tabel 4F F'!E33*100,"-")) -> 0.6289308176 | F33: =IF(OR('Tabel 4F F'!F33<5,'Tabel 4 F'!F33<0.5),"-",IFERROR('Tabel 4 F'!F33/'Tabel 4F F'!F33*100,"-")) -> 2.803738318 | G33: =IF(OR('Tabel 4F F'!G33<5,'Tabel 4 F'!G33<0.5),"-",IFERROR('Tabel 4 F'!G33/'Tabel 4F F'!G33*100,"-")) -> 5.555555556 | I33: =IF(OR('Tabel 4F F'!I33<5,'Tabel 4 F'!I33<0.5),"-",IFERROR('Tabel 4 F'!I33/'Tabel 4F F'!I33*100,"-")) -> 5
A34: Samf. Adm. | C34: =IF(OR('Tabel 4F F'!C34<5,'Tabel 4 F'!C34<0.5),"-",IFERROR('Tabel 4 F'!C34/'Tabel 4F F'!C34*100,"-")) -> 26.87747036 | D34: =IF(OR('Tabel 4F F'!D34<5,'Tabel 4 F'!D34<0.5),"-",IFERROR('Tabel 4 F'!D34/'Tabel 4F F'!D34*100,"-")) -> 7.977736549 | E34: =IF(OR('Tabel 4F F'!E34<5,'Tabel 4 F'!E34<0.5),"-",IFERROR('Tabel 4 F'!E34/'Tabel 4F F'!E34*100,"-")) -> 3.724928367 | F34: =IF(OR('Tabel 4F F'!F34<5,'Tabel 4 F'!F34<0.5),"-",IFERROR('Tabel 4 F'!F34/'Tabel 4F F'!F34*100,"-")) -> 3.191489362 | G34: =IF(OR('Tabel 4F F'!G34<5,'Tabel 4 F'!G34<0.5),"-",IFERROR('Tabel 4 F'!G34/'Tabel 4F F'!G34*100,"-")) -> 6.25 | I34: =IF(OR('Tabel 4F F'!I34<5,'Tabel 4 F'!I34<0.5),"-",IFERROR('Tabel 4 F'!I34/'Tabel 4F F'!I34*100,"-")) -> 9.658678286
A35: Cand. Merc. | C35: =IF(OR('Tabel 4F F'!C35<5,'Tabel 4 F'!C35<0.5),"-",IFERROR('Tabel 4 F'!C35/'Tabel 4F F'!C35*100,"-")) -> 18.99313501 | D35: =IF(OR('Tabel 4F F'!D35<5,'Tabel 4 F'!D35<0.5),"-",IFERROR('Tabel 4 F'!D35/'Tabel 4F F'!D35*100,"-")) -> 4.388714734 | E35: =IF(OR('Tabel 4F F'!E35<5,'Tabel 4 F'!E35<0.5),"-",IFERROR('Tabel 4 F'!E35/'Tabel 4F F'!E35*100,"-")) -> 2.017291066 | F35: =IF(OR('Tabel 4F F'!F35<5,'Tabel 4 F'!F35<0.5),"-",IFERROR('Tabel 4 F'!F35/'Tabel 4F F'!F35*100,"-")) -> 3.765690377 | G35: =IF(OR('Tabel 4F F'!G35<5,'Tabel 4 F'!G35<0.5),"-",IFERROR('Tabel 4 F'!G35/'Tabel 4F F'!G35*100,"-")) -> 2.127659574 | I35: =IF(OR('Tabel 4F F'!I35<5,'Tabel 4 F'!I35<0.5),"-",IFERROR('Tabel 4 F'!I35/'Tabel 4F F'!I35*100,"-")) -> 7.494145199
A36: HA | C36: =IF(OR('Tabel 4F F'!C36<5,'Tabel 4 F'!C36<0.5),"-",IFERROR('Tabel 4 F'!C36/'Tabel 4F F'!C36*100,"-")) -> 28.30188679 | D36: =IF(OR('Tabel 4F F'!D36<5,'Tabel 4 F'!D36<0.5),"-",IFERROR('Tabel 4 F'!D36/'Tabel 4F F'!D36*100,"-")) -> 12.6984127 | E36: =IF(OR('Tabel 4F F'!E36<5,'Tabel 4 F'!E36<0.5),"-",IFERROR('Tabel 4 F'!E36/'Tabel 4F F'!E36*100,"-")) -> 4.615384615 | F36: =IF(OR('Tabel 4F F'!F36<5,'Tabel 4 F'!F36<0.5),"-",IFERROR('Tabel 4 F'!F36/'Tabel 4F F'!F36*100,"-")) -> 3.703703704 | G36: =IF(OR('Tabel 4F F'!G36<5,'Tabel 4 F'!G36<0.5),"-",IFERROR('Tabel 4 F'!G36/'Tabel 4F F'!G36*100,"-")) -> 7.692307692 | I36: =IF(OR('Tabel 4F F'!I36<5,'Tabel 4 F'!I36<0.5),"-",IFERROR('Tabel 4 F'!I36/'Tabel 4F F'!I36*100,"-")) -> 12.5984252
A37: HD | C37: =IF(OR('Tabel 4F F'!C37<5,'Tabel 4 F'!C37<0.5),"-",IFERROR('Tabel 4 F'!C37/'Tabel 4F F'!C37*100,"-")) -> 39.02439024 | D37: =IF(OR('Tabel 4F F'!D37<5,'Tabel 4 F'!D37<0.5),"-",IFERROR('Tabel 4 F'!D37/'Tabel 4F F'!D37*100,"-")) -> 20 | E37: =IF(OR('Tabel 4F F'!E37<5,'Tabel 4 F'!E37<0.5),"-",IFERROR('Tabel 4 F'!E37/'Tabel 4F F'!E37*100,"-")) -> - | F37: =IF(OR('Tabel 4F F'!F37<5,'Tabel 4 F'!F37<0.5),"-",IFERROR('Tabel 4 F'!F37/'Tabel 4F F'!F37*100,"-")) -> 5.084745763 | G37: =IF(OR('Tabel 4F F'!G37<5,'Tabel 4 F'!G37<0.5),"-",IFERROR('Tabel 4 F'!G37/'Tabel 4F F'!G37*100,"-")) -> 13.15789474 | I37: =IF(OR('Tabel 4F F'!I37<5,'Tabel 4 F'!I37<0.5),"-",IFERROR('Tabel 4 F'!I37/'Tabel 4F F'!I37*100,"-")) -> 12.33333333
A38: Komm. og Sprog | C38: =IF(OR('Tabel 4F F'!C38<5,'Tabel 4 F'!C38<0.5),"-",IFERROR('Tabel 4 F'!C38/'Tabel 4F F'!C38*100,"-")) -> 28.37837838 | D38: =IF(OR('Tabel 4F F'!D38<5,'Tabel 4 F'!D38<0.5),"-",IFERROR('Tabel 4 F'!D38/'Tabel 4F F'!D38*100,"-")) -> 7.627118644 | E38: =IF(OR('Tabel 4F F'!E38<5,'Tabel 4 F'!E38<0.5),"-",IFERROR('Tabel 4 F'!E38/'Tabel 4F F'!E38*100,"-")) -> 2.884615385 | F38: =IF(OR('Tabel 4F F'!F38<5,'Tabel 4 F'!F38<0.5),"-",IFERROR('Tabel 4 F'!F38/'Tabel 4F F'!F38*100,"-")) -> 6.741573034 | G38: =IF(OR('Tabel 4F F'!G38<5,'Tabel 4 F'!G38<0.5),"-",IFERROR('Tabel 4 F'!G38/'Tabel 4F F'!G38*100,"-")) -> - | I38: =IF(OR('Tabel 4F F'!I38<5,'Tabel 4 F'!I38<0.5),"-",IFERROR('Tabel 4 F'!I38/'Tabel 4F F'!I38*100,"-")) -> 9.241706161
A39: Cand. IT. | C39: =IF(OR('Tabel 4F F'!C39<5,'Tabel 4 F'!C39<0.5),"-",IFERROR('Tabel 4 F'!C39/'Tabel 4F F'!C39*100,"-")) -> 23.68421053 | D39: =IF(OR('Tabel 4F F'!D39<5,'Tabel 4 F'!D39<0.5),"-",IFERROR('Tabel 4 F'!D39/'Tabel 4F F'!D39*100,"-")) -> 11.5942029 | E39: =IF(OR('Tabel 4F F'!E39<5,'Tabel 4 F'!E39<0.5),"-",IFERROR('Tabel 4 F'!E39/'Tabel 4F F'!E39*100,"-")) -> - | F39: =IF(OR('Tabel 4F F'!F39<5,'Tabel 4 F'!F39<0.5),"-",IFERROR('Tabel 4 F'!F39/'Tabel 4F F'!F39*100,"-")) -> - | G39: =IF(OR('Tabel 4F F'!G39<5,'Tabel 4 F'!G39<0.5),"-",IFERROR('Tabel 4 F'!G39/'Tabel 4F F'!G39*100,"-")) -> - | I39: =IF(OR('Tabel 4F F'!I39<5,'Tabel 4 F'!I39<0.5),"-",IFERROR('Tabel 4 F'!I39/'Tabel 4F F'!I39*100,"-")) -> 11.53846154
A40: Bac. Samf. | C40: =IF(OR('Tabel 4F F'!C40<5,'Tabel 4 F'!C40<0.5),"-",IFERROR('Tabel 4 F'!C40/'Tabel 4F F'!C40*100,"-")) -> 27.27272727 | D40: =IF(OR('Tabel 4F F'!D40<5,'Tabel 4 F'!D40<0.5),"-",IFERROR('Tabel 4 F'!D40/'Tabel 4F F'!D40*100,"-")) -> 5.263157895 | E40: =IF(OR('Tabel 4F F'!E40<5,'Tabel 4 F'!E40<0.5),"-",IFERROR('Tabel 4 F'!E40/'Tabel 4F F'!E40*100,"-")) -> - | F40: =IF(OR('Tabel 4F F'!F40<5,'Tabel 4 F'!F40<0.5),"-",IFERROR('Tabel 4 F'!F40/'Tabel 4F F'!F40*100,"-")) -> 10 | G40: =IF(OR('Tabel 4F F'!G40<5,'Tabel 4 F'!G40<0.5),"-",IFERROR('Tabel 4 F'!G40/'Tabel 4F F'!G40*100,"-")) -> - | I40: =IF(OR('Tabel 4F F'!I40<5,'Tabel 4 F'!I40<0.5),"-",IFERROR('Tabel 4 F'!I40/'Tabel 4F F'!I40*100,"-")) -> 10.71428571
A41: Bac. Hum. | C41: =IF(OR('Tabel 4F F'!C41<5,'Tabel 4 F'!C41<0.5),"-",IFERROR('Tabel 4 F'!C41/'Tabel 4F F'!C41*100,"-")) -> 27.10280374 | D41: =IF(OR('Tabel 4F F'!D41<5,'Tabel 4 F'!D41<0.5),"-",IFERROR('Tabel 4 F'!D41/'Tabel 4F F'!D41*100,"-")) -> 16.66666667 | E41: =IF(OR('Tabel 4F F'!E41<5,'Tabel 4 F'!E41<0.5),"-",IFERROR('Tabel 4 F'!E41/'Tabel 4F F'!E41*100,"-")) -> 5.263157895 | F41: =IF(OR('Tabel 4F F'!F41<5,'Tabel 4 F'!F41<0.5),"-",IFERROR('Tabel 4 F'!F41/'Tabel 4F F'!F41*100,"-")) -> 8.333333333 | G41: =IF(OR('Tabel 4F F'!G41<5,'Tabel 4 F'!G41<0.5),"-",IFERROR('Tabel 4 F'!G41/'Tabel 4F F'!G41*100,"-")) -> 25 | I41: =IF(OR('Tabel 4F F'!I41<5,'Tabel 4 F'!I41<0.5),"-",IFERROR('Tabel 4 F'!I41/'Tabel 4F F'!I41*100,"-")) -> 16.40378549
A42: Bac. Nat. | C42: =IF(OR('Tabel 4F F'!C42<5,'Tabel 4 F'!C42<0.5),"-",IFERROR('Tabel 4 F'!C42/'Tabel 4F F'!C42*100,"-")) -> 13.46153846 | D42: =IF(OR('Tabel 4F F'!D42<5,'Tabel 4 F'!D42<0.5),"-",IFERROR('Tabel 4 F'!D42/'Tabel 4F F'!D42*100,"-")) -> 1.960784314 | E42: =IF(OR('Tabel 4F F'!E42<5,'Tabel 4 F'!E42<0.5),"-",IFERROR('Tabel 4 F'!E42/'Tabel 4F F'!E42*100,"-")) -> 12.5 | F42: =IF(OR('Tabel 4F F'!F42<5,'Tabel 4 F'!F42<0.5),"-",IFERROR('Tabel 4 F'!F42/'Tabel 4F F'!F42*100,"-")) -> - | G42: =IF(OR('Tabel 4F F'!G42<5,'Tabel 4 F'!G42<0.5),"-",IFERROR('Tabel 4 F'!G42/'Tabel 4F F'!G42*100,"-")) -> - | I42: =IF(OR('Tabel 4F F'!I42<5,'Tabel 4 F'!I42<0.5),"-",IFERROR('Tabel 4 F'!I42/'Tabel 4F F'!I42*100,"-")) -> 7.518796992
A43: Andre | C43: =IF(OR('Tabel 4F F'!C43<5,'Tabel 4 F'!C43<0.5),"-",IFERROR('Tabel 4 F'!C43/'Tabel 4F F'!C43*100,"-")) -> 20.19230769 | D43: =IF(OR('Tabel 4F F'!D43<5,'Tabel 4 F'!D43<0.5),"-",IFERROR('Tabel 4 F'!D43/'Tabel 4F F'!D43*100,"-")) -> 8.385093168 | E43: =IF(OR('Tabel 4F F'!E43<5,'Tabel 4 F'!E43<0.5),"-",IFERROR('Tabel 4 F'!E43/'Tabel 4F F'!E43*100,"-")) -> 4.697986577 | F43: =IF(OR('Tabel 4F F'!F43<5,'Tabel 4 F'!F43<0.5),"-",IFERROR('Tabel 4 F'!F43/'Tabel 4F F'!F43*100,"-")) -> 4 | G43: =IF(OR('Tabel 4F F'!G43<5,'Tabel 4 F'!G43<0.5),"-",IFERROR('Tabel 4 F'!G43/'Tabel 4F F'!G43*100,"-")) -> 9.401709402 | I43: =IF(OR('Tabel 4F F'!I43<5,'Tabel 4 F'!I43<0.5),"-",IFERROR('Tabel 4 F'!I43/'Tabel 4F F'!I43*100,"-")) -> 8.70292887
A45: Total | C45: =IF(OR('Tabel 4F F'!C45<5,'Tabel 4 F'!C45<0.5),"-",IFERROR('Tabel 4 F'!C45/'Tabel 4F F'!C45*100,"-")) -> 22.08925455 | D45: =IF(OR('Tabel 4F F'!D45<5,'Tabel 4 F'!D45<0.5),"-",IFERROR('Tabel 4 F'!D45/'Tabel 4F F'!D45*100,"-")) -> 6.85669042 | E45: =IF(OR('Tabel 4F F'!E45<5,'Tabel 4 F'!E45<0.5),"-",IFERROR('Tabel 4 F'!E45/'Tabel 4F F'!E45*100,"-")) -> 2.89493865 | F45: =IF(OR('Tabel 4F F'!F45<5,'Tabel 4 F'!F45<0.5),"-",IFERROR('Tabel 4 F'!F45/'Tabel 4F F'!F45*100,"-")) -> 3.381893861 | G45: =IF(OR('Tabel 4F F'!G45<5,'Tabel 4 F'!G45<0.5),"-",IFERROR('Tabel 4 F'!G45/'Tabel 4F F'!G45*100,"-")) -> 5.287009063 | I45: =IF(OR('Tabel 4F F'!I45<5,'Tabel 4 F'!I45<0.5),"-",IFERROR('Tabel 4 F'!I45/'Tabel 4F F'!I45*100,"-")) -> 8.063737325
A47: Ingeniører i alt | C47: =IF(OR('Tabel 4F F'!C47<5,'Tabel 4 F'!C47<0.5),"-",IFERROR('Tabel 4 F'!C47/'Tabel 4F F'!C47*100,"-")) -> 15.35150646 | D47: =IF(OR('Tabel 4F F'!D47<5,'Tabel 4 F'!D47<0.5),"-",IFERROR('Tabel 4 F'!D47/'Tabel 4F F'!D47*100,"-")) -> 2.836230558 | E47: =IF(OR('Tabel 4F F'!E47<5,'Tabel 4 F'!E47<0.5),"-",IFERROR('Tabel 4 F'!E47/'Tabel 4F F'!E47*100,"-")) -> 1.585820896 | F47: =IF(OR('Tabel 4F F'!F47<5,'Tabel 4 F'!F47<0.5),"-",IFERROR('Tabel 4 F'!F47/'Tabel 4F F'!F47*100,"-")) -> 2.356020942 | G47: =IF(OR('Tabel 4F F'!G47<5,'Tabel 4 F'!G47<0.5),"-",IFERROR('Tabel 4 F'!G47/'Tabel 4F F'!G47*100,"-")) -> 1.22324159 | I47: =IF(OR('Tabel 4F F'!I47<5,'Tabel 4 F'!I47<0.5),"-",IFERROR('Tabel 4 F'!I47/'Tabel 4F F'!I47*100,"-")) -> 4.290657439
A48: Magistre i alt | C48: =IF(OR('Tabel 4F F'!C48<5,'Tabel 4 F'!C48<0.5),"-",IFERROR('Tabel 4 F'!C48/'Tabel 4F F'!C48*100,"-")) -> 30.1994302 | D48: =IF(OR('Tabel 4F F'!D48<5,'Tabel 4 F'!D48<0.5),"-",IFERROR('Tabel 4 F'!D48/'Tabel 4F F'!D48*100,"-")) -> 12 | E48: =IF(OR('Tabel 4F F'!E48<5,'Tabel 4 F'!E48<0.5),"-",IFERROR('Tabel 4 F'!E48/'Tabel 4F F'!E48*100,"-")) -> 4.407200497 | F48: =IF(OR('Tabel 4F F'!F48<5,'Tabel 4 F'!F48<0.5),"-",IFERROR('Tabel 4 F'!F48/'Tabel 4F F'!F48*100,"-")) -> 5.328376704 | G48: =IF(OR('Tabel 4F F'!G48<5,'Tabel 4 F'!G48<0.5),"-",IFERROR('Tabel 4 F'!G48/'Tabel 4F F'!G48*100,"-")) -> 7.317073171 | I48: =IF(OR('Tabel 4F F'!I48<5,'Tabel 4 F'!I48<0.5),"-",IFERROR('Tabel 4 F'!I48/'Tabel 4F F'!I48*100,"-")) -> 10.69156577
A49: DJØF'ere i alt | C49: =IF(OR('Tabel 4F F'!C49<5,'Tabel 4 F'!C49<0.5),"-",IFERROR('Tabel 4 F'!C49/'Tabel 4F F'!C49*100,"-")) -> 19.96197719 | D49: =IF(OR('Tabel 4F F'!D49<5,'Tabel 4 F'!D49<0.5),"-",IFERROR('Tabel 4 F'!D49/'Tabel 4F F'!D49*100,"-")) -> 5.569461827 | E49: =IF(OR('Tabel 4F F'!E49<5,'Tabel 4 F'!E49<0.5),"-",IFERROR('Tabel 4 F'!E49/'Tabel 4F F'!E49*100,"-")) -> 2.556818182 | F49: =IF(OR('Tabel 4F F'!F49<5,'Tabel 4 F'!F49<0.5),"-",IFERROR('Tabel 4 F'!F49/'Tabel 4F F'!F49*100,"-")) -> 3.319502075 | G49: =IF(OR('Tabel 4F F'!G49<5,'Tabel 4 F'!G49<0.5),"-",IFERROR('Tabel 4 F'!G49/'Tabel 4F F'!G49*100,"-")) -> 7.065217391 | I49: =IF(OR('Tabel 4F F'!I49<5,'Tabel 4 F'!I49<0.5),"-",IFERROR('Tabel 4 F'!I49/'Tabel 4F F'!I49*100,"-")) -> 7.869065684
A56: Middelfart
C58: Under 30 år | D58: 30 - 39 år | E58: 40 - 49 år | F58: 50 - 59 år | G58: Over 60 år | I58: I alt
A60: Civ. ing. | C60: =IF(OR('Tabel 4F F'!C60<5,'Tabel 4 F'!C60<0.5),"-",IFERROR('Tabel 4 F'!C60/'Tabel 4F F'!C60*100,"-")) -> 14.28571429 | D60: =IF(OR('Tabel 4F F'!D60<5,'Tabel 4 F'!D60<0.5),"-",IFERROR('Tabel 4 F'!D60/'Tabel 4F F'!D60*100,"-")) -> - | E60: =IF(OR('Tabel 4F F'!E60<5,'Tabel 4 F'!E60<0.5),"-",IFERROR('Tabel 4 F'!E60/'Tabel 4F F'!E60*100,"-")) -> - | F60: =IF(OR('Tabel 4F F'!F60<5,'Tabel 4 F'!F60<0.5),"-",IFERROR('Tabel 4 F'!F60/'Tabel 4F F'!F60*100,"-")) -> - | G60: =IF(OR('Tabel 4F F'!G60<5,'Tabel 4 F'!G60<0.5),"-",IFERROR('Tabel 4 F'!G60/'Tabel 4F F'!G60*100,"-")) -> - | I60: =IF(OR('Tabel 4F F'!I60<5,'Tabel 4 F'!I60<0.5),"-",IFERROR('Tabel 4 F'!I60/'Tabel 4F F'!I60*100,"-")) -> 1
A61: Diplom ing. | C61: =IF(OR('Tabel 4F F'!C61<5,'Tabel 4 F'!C61<0.5),"-",IFERROR('Tabel 4 F'!C61/'Tabel 4F F'!C61*100,"-")) -> - | D61: =IF(OR('Tabel 4F F'!D61<5,'Tabel 4 F'!D61<0.5),"-",IFERROR('Tabel 4 F'!D61/'Tabel 4F F'!D61*100,"-")) -> 3.636363636 | E61: =IF(OR('Tabel 4F F'!E61<5,'Tabel 4 F'!E61<0.5),"-",IFERROR('Tabel 4 F'!E61/'Tabel 4F F'!E61*100,"-")) -> 3.896103896 | F61: =IF(OR('Tabel 4F F'!F61<5,'Tabel 4 F'!F61<0.5),"-",IFERROR('Tabel 4 F'!F61/'Tabel 4F F'!F61*100,"-")) -> - | G61: =IF(OR('Tabel 4F F'!G61<5,'Tabel 4 F'!G61<0.5),"-",IFERROR('Tabel 4 F'!G61/'Tabel 4F F'!G61*100,"-")) -> 3.03030303 | I61: =IF(OR('Tabel 4F F'!I61<5,'Tabel 4 F'!I61<0.5),"-",IFERROR('Tabel 4 F'!I61/'Tabel 4F F'!I61*100,"-")) -> 2.083333333
A62: Cand. Scient. Tek | C62: =IF(OR('Tabel 4F F'!C62<5,'Tabel 4 F'!C62<0.5),"-",IFERROR('Tabel 4 F'!C62/'Tabel 4F F'!C62*100,"-")) -> - | D62: =IF(OR('Tabel 4F F'!D62<5,'Tabel 4 F'!D62<0.5),"-",IFERROR('Tabel 4 F'!D62/'Tabel 4F F'!D62*100,"-")) -> 5 | E62: =IF(OR('Tabel 4F F'!E62<5,'Tabel 4 F'!E62<0.5),"-",IFERROR('Tabel 4 F'!E62/'Tabel 4F F'!E62*100,"-")) -> 5.882352941 | F62: =IF(OR('Tabel 4F F'!F62<5,'Tabel 4 F'!F62<0.5),"-",IFERROR('Tabel 4 F'!F62/'Tabel 4F F'!F62*100,"-")) -> - | G62: =IF(OR('Tabel 4F F'!G62<5,'Tabel 4 F'!G62<0.5),"-",IFERROR('Tabel 4 F'!G62/'Tabel 4F F'!G62*100,"-")) -> - | I62: =IF(OR('Tabel 4F F'!I62<5,'Tabel 4 F'!I62<0.5),"-",IFERROR('Tabel 4 F'!I62/'Tabel 4F F'!I62*100,"-")) -> 3.773584906
A63: MA. Hum. | C63: =IF(OR('Tabel 4F F'!C63<5,'Tabel 4 F'!C63<0.5),"-",IFERROR('Tabel 4 F'!C63/'Tabel 4F F'!C63*100,"-")) -> 23.52941176 | D63: =IF(OR('Tabel 4F F'!D63<5,'Tabel 4 F'!D63<0.5),"-",IFERROR('Tabel 4 F'!D63/'Tabel 4F F'!D63*100,"-")) -> 8 | E63: =IF(OR('Tabel 4F F'!E63<5,'Tabel 4 F'!E63<0.5),"-",IFERROR('Tabel 4 F'!E63/'Tabel 4F F'!E63*100,"-")) -> 5.084745763 | F63: =IF(OR('Tabel 4F F'!F63<5,'Tabel 4 F'!F63<0.5),"-",IFERROR('Tabel 4 F'!F63/'Tabel 4F F'!F63*100,"-")) -> 8.695652174 | G63: =IF(OR('Tabel 4F F'!G63<5,'Tabel 4 F'!G63<0.5),"-",IFERROR('Tabel 4 F'!G63/'Tabel 4F F'!G63*100,"-")) -> - | I63: =IF(OR('Tabel 4F F'!I63<5,'Tabel 4 F'!I63<0.5),"-",IFERROR('Tabel 4 F'!I63/'Tabel 4F F'!I63*100,"-")) -> 8.074534161
A64: MA. Nat. | C64: =IF(OR('Tabel 4F F'!C64<5,'Tabel 4 F'!C64<0.5),"-",IFERROR('Tabel 4 F'!C64/'Tabel 4F F'!C64*100,"-")) -> - | D64: =IF(OR('Tabel 4F F'!D64<5,'Tabel 4 F'!D64<0.5),"-",IFERROR('Tabel 4 F'!D64/'Tabel 4F F'!D64*100,"-")) -> 9.090909091 | E64: =IF(OR('Tabel 4F F'!E64<5,'Tabel 4 F'!E64<0.5),"-",IFERROR('Tabel 4 F'!E64/'Tabel 4F F'!E64*100,"-")) -> 3.333333333 | F64: =IF(OR('Tabel 4F F'!F64<5,'Tabel 4 F'!F64<0.5),"-",IFERROR('Tabel 4 F'!F64/'Tabel 4F F'!F64*100,"-")) -> - | G64: =IF(OR('Tabel 4F F'!G64<5,'Tabel 4 F'!G64<0.5),"-",IFERROR('Tabel 4 F'!G64/'Tabel 4F F'!G64*100,"-")) -> - | I64: =IF(OR('Tabel 4F F'!I64<5,'Tabel 4 F'!I64<0.5),"-",IFERROR('Tabel 4 F'!I64/'Tabel 4F F'!I64*100,"-")) -> 3.174603175
A65: MA. Ph.d. | C65: =IF(OR('Tabel 4F F'!C65<5,'Tabel 4 F'!C65<0.5),"-",IFERROR('Tabel 4 F'!C65/'Tabel 4F F'!C65*100,"-")) -> - | D65: =IF(OR('Tabel 4F F'!D65<5,'Tabel 4 F'!D65<0.5),"-",IFERROR('Tabel 4 F'!D65/'Tabel 4F F'!D65*100,"-")) -> - | E65: =IF(OR('Tabel 4F F'!E65<5,'Tabel 4 F'!E65<0.5),"-",IFERROR('Tabel 4 F'!E65/'Tabel 4F F'!E65*100,"-")) -> - | F65: =IF(OR('Tabel 4F F'!F65<5,'Tabel 4 F'!F65<0.5),"-",IFERROR('Tabel 4 F'!F65/'Tabel 4F F'!F65*100,"-")) -> - | G65: =IF(OR('Tabel 4F F'!G65<5,'Tabel 4 F'!G65<0.5),"-",IFERROR('Tabel 4 F'!G65/'Tabel 4F F'!G65*100,"-")) -> - | I65: =IF(OR('Tabel 4F F'!I65<5,'Tabel 4 F'!I65<0.5),"-",IFERROR('Tabel 4 F'!I65/'Tabel 4F F'!I65*100,"-")) -> 16.66666667
A66: MA. Samf. | C66: =IF(OR('Tabel 4F F'!C66<5,'Tabel 4 F'!C66<0.5),"-",IFERROR('Tabel 4 F'!C66/'Tabel 4F F'!C66*100,"-")) -> - | D66: =IF(OR('Tabel 4F F'!D66<5,'Tabel 4 F'!D66<0.5),"-",IFERROR('Tabel 4 F'!D66/'Tabel 4F F'!D66*100,"-")) -> 33.33333333 | E66: =IF(OR('Tabel 4F F'!E66<5,'Tabel 4 F'!E66<0.5),"-",IFERROR('Tabel 4 F'!E66/'Tabel 4F F'!E66*100,"-")) -> - | F66: =IF(OR('Tabel 4F F'!F66<5,'Tabel 4 F'!F66<0.5),"-",IFERROR('Tabel 4 F'!F66/'Tabel 4F F'!F66*100,"-")) -> - | G66: =IF(OR('Tabel 4F F'!G66<5,'Tabel 4 F'!G66<0.5),"-",IFERROR('Tabel 4 F'!G66/'Tabel 4F F'!G66*100,"-")) -> - | I66: =IF(OR('Tabel 4F F'!I66<5,'Tabel 4 F'!I66<0.5),"-",IFERROR('Tabel 4 F'!I66/'Tabel 4F F'!I66*100,"-")) -> 27.27272727
A67: Øvrige Mag. | C67: =IF(OR('Tabel 4F F'!C67<5,'Tabel 4 F'!C67<0.5),"-",IFERROR('Tabel 4 F'!C67/'Tabel 4F F'!C67*100,"-")) -> - | D67: =IF(OR('Tabel 4F F'!D67<5,'Tabel 4 F'!D67<0.5),"-",IFERROR('Tabel 4 F'!D67/'Tabel 4F F'!D67*100,"-")) -> - | E67: =IF(OR('Tabel 4F F'!E67<5,'Tabel 4 F'!E67<0.5),"-",IFERROR('Tabel 4 F'!E67/'Tabel 4F F'!E67*100,"-")) -> - | F67: =IF(OR('Tabel 4F F'!F67<5,'Tabel 4 F'!F67<0.5),"-",IFERROR('Tabel 4 F'!F67/'Tabel 4F F'!F67*100,"-")) -> - | G67: =IF(OR('Tabel 4F F'!G67<5,'Tabel 4 F'!G67<0.5),"-",IFERROR('Tabel 4 F'!G67/'Tabel 4F F'!G67*100,"-")) -> - | I67: =IF(OR('Tabel 4F F'!I67<5,'Tabel 4 F'!I67<0.5),"-",IFERROR('Tabel 4 F'!I67/'Tabel 4F F'!I67*100,"-")) -> -
A68: Agronom | C68: =IF(OR('Tabel 4F F'!C68<5,'Tabel 4 F'!C68<0.5),"-",IFERROR('Tabel 4 F'!C68/'Tabel 4F F'!C68*100,"-")) -> - | D68: =IF(OR('Tabel 4F F'!D68<5,'Tabel 4 F'!D68<0.5),"-",IFERROR('Tabel 4 F'!D68/'Tabel 4F F'!D68*100,"-")) -> - | E68: =IF(OR('Tabel 4F F'!E68<5,'Tabel 4 F'!E68<0.5),"-",IFERROR('Tabel 4 F'!E68/'Tabel 4F F'!E68*100,"-")) -> - | F68: =IF(OR('Tabel 4F F'!F68<5,'Tabel 4 F'!F68<0.5),"-",IFERROR('Tabel 4 F'!F68/'Tabel 4F F'!F68*100,"-")) -> - | G68: =IF(OR('Tabel 4F F'!G68<5,'Tabel 4 F'!G68<0.5),"-",IFERROR('Tabel 4 F'!G68/'Tabel 4F F'!G68*100,"-")) -> - | I68: =IF(OR('Tabel 4F F'!I68<5,'Tabel 4 F'!I68<0.5),"-",IFERROR('Tabel 4 F'!I68/'Tabel 4F F'!I68*100,"-")) -> -
A69: Landsk. Arkt. | C69: =IF(OR('Tabel 4F F'!C69<5,'Tabel 4 F'!C69<0.5),"-",IFERROR('Tabel 4 F'!C69/'Tabel 4F F'!C69*100,"-")) -> - | D69: =IF(OR('Tabel 4F F'!D69<5,'Tabel 4 F'!D69<0.5),"-",IFERROR('Tabel 4 F'!D69/'Tabel 4F F'!D69*100,"-")) -> - | E69: =IF(OR('Tabel 4F F'!E69<5,'Tabel 4 F'!E69<0.5),"-",IFERROR('Tabel 4 F'!E69/'Tabel 4F F'!E69*100,"-")) -> - | F69: =IF(OR('Tabel 4F F'!F69<5,'Tabel 4 F'!F69<0.5),"-",IFERROR('Tabel 4 F'!F69/'Tabel 4F F'!F69*100,"-")) -> - | G69: =IF(OR('Tabel 4F F'!G69<5,'Tabel 4 F'!G69<0.5),"-",IFERROR('Tabel 4 F'!G69/'Tabel 4F F'!G69*100,"-")) -> - | I69: =IF(OR('Tabel 4F F'!I69<5,'Tabel 4 F'!I69<0.5),"-",IFERROR('Tabel 4 F'!I69/'Tabel 4F F'!I69*100,"-")) -> -
A70: Hortonom | C70: =IF(OR('Tabel 4F F'!C70<5,'Tabel 4 F'!C70<0.5),"-",IFERROR('Tabel 4 F'!C70/'Tabel 4F F'!C70*100,"-")) -> - | D70: =IF(OR('Tabel 4F F'!D70<5,'Tabel 4 F'!D70<0.5),"-",IFERROR('Tabel 4 F'!D70/'Tabel 4F F'!D70*100,"-")) -> - | E70: =IF(OR('Tabel 4F F'!E70<5,'Tabel 4 F'!E70<0.5),"-",IFERROR('Tabel 4 F'!E70/'Tabel 4F F'!E70*100,"-")) -> - | F70: =IF(OR('Tabel 4F F'!F70<5,'Tabel 4 F'!F70<0.5),"-",IFERROR('Tabel 4 F'!F70/'Tabel 4F F'!F70*100,"-")) -> - | G70: =IF(OR('Tabel 4F F'!G70<5,'Tabel 4 F'!G70<0.5),"-",IFERROR('Tabel 4 F'!G70/'Tabel 4F F'!G70*100,"-")) -> - | I70: =IF(OR('Tabel 4F F'!I70<5,'Tabel 4 F'!I70<0.5),"-",IFERROR('Tabel 4 F'!I70/'Tabel 4F F'!I70*100,"-")) -> -
A71: Forstkand. | C71: =IF(OR('Tabel 4F F'!C71<5,'Tabel 4 F'!C71<0.5),"-",IFERROR('Tabel 4 F'!C71/'Tabel 4F F'!C71*100,"-")) -> - | D71: =IF(OR('Tabel 4F F'!D71<5,'Tabel 4 F'!D71<0.5),"-",IFERROR('Tabel 4 F'!D71/'Tabel 4F F'!D71*100,"-")) -> - | E71: =IF(OR('Tabel 4F F'!E71<5,'Tabel 4 F'!E71<0.5),"-",IFERROR('Tabel 4 F'!E71/'Tabel 4F F'!E71*100,"-")) -> - | F71: =IF(OR('Tabel 4F F'!F71<5,'Tabel 4 F'!F71<0.5),"-",IFERROR('Tabel 4 F'!F71/'Tabel 4F F'!F71*100,"-")) -> - | G71: =IF(OR('Tabel 4F F'!G71<5,'Tabel 4 F'!G71<0.5),"-",IFERROR('Tabel 4 F'!G71/'Tabel 4F F'!G71*100,"-")) -> - | I71: =IF(OR('Tabel 4F F'!I71<5,'Tabel 4 F'!I71<0.5),"-",IFERROR('Tabel 4 F'!I71/'Tabel 4F F'!I71*100,"-")) -> -
A72: Jordbrugsakad. | C72: =IF(OR('Tabel 4F F'!C72<5,'Tabel 4 F'!C72<0.5),"-",IFERROR('Tabel 4 F'!C72/'Tabel 4F F'!C72*100,"-")) -> - | D72: =IF(OR('Tabel 4F F'!D72<5,'Tabel 4 F'!D72<0.5),"-",IFERROR('Tabel 4 F'!D72/'Tabel 4F F'!D72*100,"-")) -> - | E72: =IF(OR('Tabel 4F F'!E72<5,'Tabel 4 F'!E72<0.5),"-",IFERROR('Tabel 4 F'!E72/'Tabel 4F F'!E72*100,"-")) -> - | F72: =IF(OR('Tabel 4F F'!F72<5,'Tabel 4 F'!F72<0.5),"-",IFERROR('Tabel 4 F'!F72/'Tabel 4F F'!F72*100,"-")) -> 5.263157895 | G72: =IF(OR('Tabel 4F F'!G72<5,'Tabel 4 F'!G72<0.5),"-",IFERROR('Tabel 4 F'!G72/'Tabel 4F F'!G72*100,"-")) -> - | I72: =IF(OR('Tabel 4F F'!I72<5,'Tabel 4 F'!I72<0.5),"-",IFERROR('Tabel 4 F'!I72/'Tabel 4F F'!I72*100,"-")) -> 2.777777778
A73: Mejeriing. | C73: =IF(OR('Tabel 4F F'!C73<5,'Tabel 4 F'!C73<0.5),"-",IFERROR('Tabel 4 F'!C73/'Tabel 4F F'!C73*100,"-")) -> - | D73: =IF(OR('Tabel 4F F'!D73<5,'Tabel 4 F'!D73<0.5),"-",IFERROR('Tabel 4 F'!D73/'Tabel 4F F'!D73*100,"-")) -> - | E73: =IF(OR('Tabel 4F F'!E73<5,'Tabel 4 F'!E73<0.5),"-",IFERROR('Tabel 4 F'!E73/'Tabel 4F F'!E73*100,"-")) -> - | F73: =IF(OR('Tabel 4F F'!F73<5,'Tabel 4 F'!F73<0.5),"-",IFERROR('Tabel 4 F'!F73/'Tabel 4F F'!F73*100,"-")) -> - | G73: =IF(OR('Tabel 4F F'!G73<5,'Tabel 4 F'!G73<0.5),"-",IFERROR('Tabel 4 F'!G73/'Tabel 4F F'!G73*100,"-")) -> - | I73: =IF(OR('Tabel 4F F'!I73<5,'Tabel 4 F'!I73<0.5),"-",IFERROR('Tabel 4 F'!I73/'Tabel 4F F'!I73*100,"-")) -> -
A74: Levn.m.kand. | C74: =IF(OR('Tabel 4F F'!C74<5,'Tabel 4 F'!C74<0.5),"-",IFERROR('Tabel 4 F'!C74/'Tabel 4F F'!C74*100,"-")) -> - | D74: =IF(OR('Tabel 4F F'!D74<5,'Tabel 4 F'!D74<0.5),"-",IFERROR('Tabel 4 F'!D74/'Tabel 4F F'!D74*100,"-")) -> - | E74: =IF(OR('Tabel 4F F'!E74<5,'Tabel 4 F'!E74<0.5),"-",IFERROR('Tabel 4 F'!E74/'Tabel 4F F'!E74*100,"-")) -> - | F74: =IF(OR('Tabel 4F F'!F74<5,'Tabel 4 F'!F74<0.5),"-",IFERROR('Tabel 4 F'!F74/'Tabel 4F F'!F74*100,"-")) -> - | G74: =IF(OR('Tabel 4F F'!G74<5,'Tabel 4 F'!G74<0.5),"-",IFERROR('Tabel 4 F'!G74/'Tabel 4F F'!G74*100,"-")) -> - | I74: =IF(OR('Tabel 4F F'!I74<5,'Tabel 4 F'!I74<0.5),"-",IFERROR('Tabel 4 F'!I74/'Tabel 4F F'!I74*100,"-")) -> -
A75: Dyrlæge | C75: =IF(OR('Tabel 4F F'!C75<5,'Tabel 4 F'!C75<0.5),"-",IFERROR('Tabel 4 F'!C75/'Tabel 4F F'!C75*100,"-")) -> - | D75: =IF(OR('Tabel 4F F'!D75<5,'Tabel 4 F'!D75<0.5),"-",IFERROR('Tabel 4 F'!D75/'Tabel 4F F'!D75*100,"-")) -> - | E75: =IF(OR('Tabel 4F F'!E75<5,'Tabel 4 F'!E75<0.5),"-",IFERROR('Tabel 4 F'!E75/'Tabel 4F F'!E75*100,"-")) -> - | F75: =IF(OR('Tabel 4F F'!F75<5,'Tabel 4 F'!F75<0.5),"-",IFERROR('Tabel 4 F'!F75/'Tabel 4F F'!F75*100,"-")) -> - | G75: =IF(OR('Tabel 4F F'!G75<5,'Tabel 4 F'!G75<0.5),"-",IFERROR('Tabel 4 F'!G75/'Tabel 4F F'!G75*100,"-")) -> - | I75: =IF(OR('Tabel 4F F'!I75<5,'Tabel 4 F'!I75<0.5),"-",IFERROR('Tabel 4 F'!I75/'Tabel 4F F'!I75*100,"-")) -> -
A76: Farmaceut | C76: =IF(OR('Tabel 4F F'!C76<5,'Tabel 4 F'!C76<0.5),"-",IFERROR('Tabel 4 F'!C76/'Tabel 4F F'!C76*100,"-")) -> - | D76: =IF(OR('Tabel 4F F'!D76<5,'Tabel 4 F'!D76<0.5),"-",IFERROR('Tabel 4 F'!D76/'Tabel 4F F'!D76*100,"-")) -> - | E76: =IF(OR('Tabel 4F F'!E76<5,'Tabel 4 F'!E76<0.5),"-",IFERROR('Tabel 4 F'!E76/'Tabel 4F F'!E76*100,"-")) -> - | F76: =IF(OR('Tabel 4F F'!F76<5,'Tabel 4 F'!F76<0.5),"-",IFERROR('Tabel 4 F'!F76/'Tabel 4F F'!F76*100,"-")) -> - | G76: =IF(OR('Tabel 4F F'!G76<5,'Tabel 4 F'!G76<0.5),"-",IFERROR('Tabel 4 F'!G76/'Tabel 4F F'!G76*100,"-")) -> - | I76: =IF(OR('Tabel 4F F'!I76<5,'Tabel 4 F'!I76<0.5),"-",IFERROR('Tabel 4 F'!I76/'Tabel 4F F'!I76*100,"-")) -> -
A77: Læge | C77: =IF(OR('Tabel 4F F'!C77<5,'Tabel 4 F'!C77<0.5),"-",IFERROR('Tabel 4 F'!C77/'Tabel 4F F'!C77*100,"-")) -> 14.28571429 | D77: =IF(OR('Tabel 4F F'!D77<5,'Tabel 4 F'!D77<0.5),"-",IFERROR('Tabel 4 F'!D77/'Tabel 4F F'!D77*100,"-")) -> - | E77: =IF(OR('Tabel 4F F'!E77<5,'Tabel 4 F'!E77<0.5),"-",IFERROR('Tabel 4 F'!E77/'Tabel 4F F'!E77*100,"-")) -> - | F77: =IF(OR('Tabel 4F F'!F77<5,'Tabel 4 F'!F77<0.5),"-",IFERROR('Tabel 4 F'!F77/'Tabel 4F F'!F77*100,"-")) -> - | G77: =IF(OR('Tabel 4F F'!G77<5,'Tabel 4 F'!G77<0.5),"-",IFERROR('Tabel 4 F'!G77/'Tabel 4F F'!G77*100,"-")) -> - | I77: =IF(OR('Tabel 4F F'!I77<5,'Tabel 4 F'!I77<0.5),"-",IFERROR('Tabel 4 F'!I77/'Tabel 4F F'!I77*100,"-")) -> 0.9900990099
A78: Tandlæge | C78: =IF(OR('Tabel 4F F'!C78<5,'Tabel 4 F'!C78<0.5),"-",IFERROR('Tabel 4 F'!C78/'Tabel 4F F'!C78*100,"-")) -> - | D78: =IF(OR('Tabel 4F F'!D78<5,'Tabel 4 F'!D78<0.5),"-",IFERROR('Tabel 4 F'!D78/'Tabel 4F F'!D78*100,"-")) -> - | E78: =IF(OR('Tabel 4F F'!E78<5,'Tabel 4 F'!E78<0.5),"-",IFERROR('Tabel 4 F'!E78/'Tabel 4F F'!E78*100,"-")) -> - | F78: =IF(OR('Tabel 4F F'!F78<5,'Tabel 4 F'!F78<0.5),"-",IFERROR('Tabel 4 F'!F78/'Tabel 4F F'!F78*100,"-")) -> - | G78: =IF(OR('Tabel 4F F'!G78<5,'Tabel 4 F'!G78<0.5),"-",IFERROR('Tabel 4 F'!G78/'Tabel 4F F'!G78*100,"-")) -> - | I78: =IF(OR('Tabel 4F F'!I78<5,'Tabel 4 F'!I78<0.5),"-",IFERROR('Tabel 4 F'!I78/'Tabel 4F F'!I78*100,"-")) -> -
A79: Arkitekt | C79: =IF(OR('Tabel 4F F'!C79<5,'Tabel 4 F'!C79<0.5),"-",IFERROR('Tabel 4 F'!C79/'Tabel 4F F'!C79*100,"-")) -> - | D79: =IF(OR('Tabel 4F F'!D79<5,'Tabel 4 F'!D79<0.5),"-",IFERROR('Tabel 4 F'!D79/'Tabel 4F F'!D79*100,"-")) -> - | E79: =IF(OR('Tabel 4F F'!E79<5,'Tabel 4 F'!E79<0.5),"-",IFERROR('Tabel 4 F'!E79/'Tabel 4F F'!E79*100,"-")) -> - | F79: =IF(OR('Tabel 4F F'!F79<5,'Tabel 4 F'!F79<0.5),"-",IFERROR('Tabel 4 F'!F79/'Tabel 4F F'!F79*100,"-")) -> 16.66666667 | G79: =IF(OR('Tabel 4F F'!G79<5,'Tabel 4 F'!G79<0.5),"-",IFERROR('Tabel 4 F'!G79/'Tabel 4F F'!G79*100,"-")) -> - | I79: =IF(OR('Tabel 4F F'!I79<5,'Tabel 4 F'!I79<0.5),"-",IFERROR('Tabel 4 F'!I79/'Tabel 4F F'!I79*100,"-")) -> 7.142857143
A80: Landinspek. | C80: =IF(OR('Tabel 4F F'!C80<5,'Tabel 4 F'!C80<0.5),"-",IFERROR('Tabel 4 F'!C80/'Tabel 4F F'!C80*100,"-")) -> - | D80: =IF(OR('Tabel 4F F'!D80<5,'Tabel 4 F'!D80<0.5),"-",IFERROR('Tabel 4 F'!D80/'Tabel 4F F'!D80*100,"-")) -> - | E80: =IF(OR('Tabel 4F F'!E80<5,'Tabel 4 F'!E80<0.5),"-",IFERROR('Tabel 4 F'!E80/'Tabel 4F F'!E80*100,"-")) -> - | F80: =IF(OR('Tabel 4F F'!F80<5,'Tabel 4 F'!F80<0.5),"-",IFERROR('Tabel 4 F'!F80/'Tabel 4F F'!F80*100,"-")) -> - | G80: =IF(OR('Tabel 4F F'!G80<5,'Tabel 4 F'!G80<0.5),"-",IFERROR('Tabel 4 F'!G80/'Tabel 4F F'!G80*100,"-")) -> - | I80: =IF(OR('Tabel 4F F'!I80<5,'Tabel 4 F'!I80<0.5),"-",IFERROR('Tabel 4 F'!I80/'Tabel 4F F'!I80*100,"-")) -> -
A81: Bibliotekar | C81: =IF(OR('Tabel 4F F'!C81<5,'Tabel 4 F'!C81<0.5),"-",IFERROR('Tabel 4 F'!C81/'Tabel 4F F'!C81*100,"-")) -> - | D81: =IF(OR('Tabel 4F F'!D81<5,'Tabel 4 F'!D81<0.5),"-",IFERROR('Tabel 4 F'!D81/'Tabel 4F F'!D81*100,"-")) -> 16.66666667 | E81: =IF(OR('Tabel 4F F'!E81<5,'Tabel 4 F'!E81<0.5),"-",IFERROR('Tabel 4 F'!E81/'Tabel 4F F'!E81*100,"-")) -> - | F81: =IF(OR('Tabel 4F F'!F81<5,'Tabel 4 F'!F81<0.5),"-",IFERROR('Tabel 4 F'!F81/'Tabel 4F F'!F81*100,"-")) -> - | G81: =IF(OR('Tabel 4F F'!G81<5,'Tabel 4 F'!G81<0.5),"-",IFERROR('Tabel 4 F'!G81/'Tabel 4F F'!G81*100,"-")) -> - | I81: =IF(OR('Tabel 4F F'!I81<5,'Tabel 4 F'!I81<0.5),"-",IFERROR('Tabel 4 F'!I81/'Tabel 4F F'!I81*100,"-")) -> 5.263157895
A82: Musikudd. | C82: =IF(OR('Tabel 4F F'!C82<5,'Tabel 4 F'!C82<0.5),"-",IFERROR('Tabel 4 F'!C82/'Tabel 4F F'!C82*100,"-")) -> - | D82: =IF(OR('Tabel 4F F'!D82<5,'Tabel 4 F'!D82<0.5),"-",IFERROR('Tabel 4 F'!D82/'Tabel 4F F'!D82*100,"-")) -> - | E82: =IF(OR('Tabel 4F F'!E82<5,'Tabel 4 F'!E82<0.5),"-",IFERROR('Tabel 4 F'!E82/'Tabel 4F F'!E82*100,"-")) -> - | F82: =IF(OR('Tabel 4F F'!F82<5,'Tabel 4 F'!F82<0.5),"-",IFERROR('Tabel 4 F'!F82/'Tabel 4F F'!F82*100,"-")) -> - | G82: =IF(OR('Tabel 4F F'!G82<5,'Tabel 4 F'!G82<0.5),"-",IFERROR('Tabel 4 F'!G82/'Tabel 4F F'!G82*100,"-")) -> - | I82: =IF(OR('Tabel 4F F'!I82<5,'Tabel 4 F'!I82<0.5),"-",IFERROR('Tabel 4 F'!I82/'Tabel 4F F'!I82*100,"-")) -> -
A83: Teolog | C83: =IF(OR('Tabel 4F F'!C83<5,'Tabel 4 F'!C83<0.5),"-",IFERROR('Tabel 4 F'!C83/'Tabel 4F F'!C83*100,"-")) -> - | D83: =IF(OR('Tabel 4F F'!D83<5,'Tabel 4 F'!D83<0.5),"-",IFERROR('Tabel 4 F'!D83/'Tabel 4F F'!D83*100,"-")) -> - | E83: =IF(OR('Tabel 4F F'!E83<5,'Tabel 4 F'!E83<0.5),"-",IFERROR('Tabel 4 F'!E83/'Tabel 4F F'!E83*100,"-")) -> 20 | F83: =IF(OR('Tabel 4F F'!F83<5,'Tabel 4 F'!F83<0.5),"-",IFERROR('Tabel 4 F'!F83/'Tabel 4F F'!F83*100,"-")) -> - | G83: =IF(OR('Tabel 4F F'!G83<5,'Tabel 4 F'!G83<0.5),"-",IFERROR('Tabel 4 F'!G83/'Tabel 4F F'!G83*100,"-")) -> - | I83: =IF(OR('Tabel 4F F'!I83<5,'Tabel 4 F'!I83<0.5),"-",IFERROR('Tabel 4 F'!I83/'Tabel 4F F'!I83*100,"-")) -> 13.33333333
A84: Psykolog | C84: =IF(OR('Tabel 4F F'!C84<5,'Tabel 4 F'!C84<0.5),"-",IFERROR('Tabel 4 F'!C84/'Tabel 4F F'!C84*100,"-")) -> - | D84: =IF(OR('Tabel 4F F'!D84<5,'Tabel 4 F'!D84<0.5),"-",IFERROR('Tabel 4 F'!D84/'Tabel 4F F'!D84*100,"-")) -> - | E84: =IF(OR('Tabel 4F F'!E84<5,'Tabel 4 F'!E84<0.5),"-",IFERROR('Tabel 4 F'!E84/'Tabel 4F F'!E84*100,"-")) -> - | F84: =IF(OR('Tabel 4F F'!F84<5,'Tabel 4 F'!F84<0.5),"-",IFERROR('Tabel 4 F'!F84/'Tabel 4F F'!F84*100,"-")) -> - | G84: =IF(OR('Tabel 4F F'!G84<5,'Tabel 4 F'!G84<0.5),"-",IFERROR('Tabel 4 F'!G84/'Tabel 4F F'!G84*100,"-")) -> - | I84: =IF(OR('Tabel 4F F'!I84<5,'Tabel 4 F'!I84<0.5),"-",IFERROR('Tabel 4 F'!I84/'Tabel 4F F'!I84*100,"-")) -> 5.263157895
A85: Jurist | C85: =IF(OR('Tabel 4F F'!C85<5,'Tabel 4 F'!C85<0.5),"-",IFERROR('Tabel 4 F'!C85/'Tabel 4F F'!C85*100,"-")) -> - | D85: =IF(OR('Tabel 4F F'!D85<5,'Tabel 4 F'!D85<0.5),"-",IFERROR('Tabel 4 F'!D85/'Tabel 4F F'!D85*100,"-")) -> - | E85: =IF(OR('Tabel 4F F'!E85<5,'Tabel 4 F'!E85<0.5),"-",IFERROR('Tabel 4 F'!E85/'Tabel 4F F'!E85*100,"-")) -> - | F85: =IF(OR('Tabel 4F F'!F85<5,'Tabel 4 F'!F85<0.5),"-",IFERROR('Tabel 4 F'!F85/'Tabel 4F F'!F85*100,"-")) -> - | G85: =IF(OR('Tabel 4F F'!G85<5,'Tabel 4 F'!G85<0.5),"-",IFERROR('Tabel 4 F'!G85/'Tabel 4F F'!G85*100,"-")) -> - | I85: =IF(OR('Tabel 4F F'!I85<5,'Tabel 4 F'!I85<0.5),"-",IFERROR('Tabel 4 F'!I85/'Tabel 4F F'!I85*100,"-")) -> -
A86: Økonom | C86: =IF(OR('Tabel 4F F'!C86<5,'Tabel 4 F'!C86<0.5),"-",IFERROR('Tabel 4 F'!C86/'Tabel 4F F'!C86*100,"-")) -> - | D86: =IF(OR('Tabel 4F F'!D86<5,'Tabel 4 F'!D86<0.5),"-",IFERROR('Tabel 4 F'!D86/'Tabel 4F F'!D86*100,"-")) -> - | E86: =IF(OR('Tabel 4F F'!E86<5,'Tabel 4 F'!E86<0.5),"-",IFERROR('Tabel 4 F'!E86/'Tabel 4F F'!E86*100,"-")) -> - | F86: =IF(OR('Tabel 4F F'!F86<5,'Tabel 4 F'!F86<0.5),"-",IFERROR('Tabel 4 F'!F86/'Tabel 4F F'!F86*100,"-")) -> - | G86: =IF(OR('Tabel 4F F'!G86<5,'Tabel 4 F'!G86<0.5),"-",IFERROR('Tabel 4 F'!G86/'Tabel 4F F'!G86*100,"-")) -> - | I86: =IF(OR('Tabel 4F F'!I86<5,'Tabel 4 F'!I86<0.5),"-",IFERROR('Tabel 4 F'!I86/'Tabel 4F F'!I86*100,"-")) -> -
A87: Samf. Adm. | C87: =IF(OR('Tabel 4F F'!C87<5,'Tabel 4 F'!C87<0.5),"-",IFERROR('Tabel 4 F'!C87/'Tabel 4F F'!C87*100,"-")) -> 12.5 | D87: =IF(OR('Tabel 4F F'!D87<5,'Tabel 4 F'!D87<0.5),"-",IFERROR('Tabel 4 F'!D87/'Tabel 4F F'!D87*100,"-")) -> - | E87: =IF(OR('Tabel 4F F'!E87<5,'Tabel 4 F'!E87<0.5),"-",IFERROR('Tabel 4 F'!E87/'Tabel 4F F'!E87*100,"-")) -> - | F87: =IF(OR('Tabel 4F F'!F87<5,'Tabel 4 F'!F87<0.5),"-",IFERROR('Tabel 4 F'!F87/'Tabel 4F F'!F87*100,"-")) -> - | G87: =IF(OR('Tabel 4F F'!G87<5,'Tabel 4 F'!G87<0.5),"-",IFERROR('Tabel 4 F'!G87/'Tabel 4F F'!G87*100,"-")) -> - | I87: =IF(OR('Tabel 4F F'!I87<5,'Tabel 4 F'!I87<0.5),"-",IFERROR('Tabel 4 F'!I87/'Tabel 4F F'!I87*100,"-")) -> 1.176470588
A88: Cand. Merc. | C88: =IF(OR('Tabel 4F F'!C88<5,'Tabel 4 F'!C88<0.5),"-",IFERROR('Tabel 4 F'!C88/'Tabel 4F F'!C88*100,"-")) -> - | D88: =IF(OR('Tabel 4F F'!D88<5,'Tabel 4 F'!D88<0.5),"-",IFERROR('Tabel 4 F'!D88/'Tabel 4F F'!D88*100,"-")) -> - | E88: =IF(OR('Tabel 4F F'!E88<5,'Tabel 4 F'!E88<0.5),"-",IFERROR('Tabel 4 F'!E88/'Tabel 4F F'!E88*100,"-")) -> 4.87804878 | F88: =IF(OR('Tabel 4F F'!F88<5,'Tabel 4 F'!F88<0.5),"-",IFERROR('Tabel 4 F'!F88/'Tabel 4F F'!F88*100,"-")) -> - | G88: =IF(OR('Tabel 4F F'!G88<5,'Tabel 4 F'!G88<0.5),"-",IFERROR('Tabel 4 F'!G88/'Tabel 4F F'!G88*100,"-")) -> - | I88: =IF(OR('Tabel 4F F'!I88<5,'Tabel 4 F'!I88<0.5),"-",IFERROR('Tabel 4 F'!I88/'Tabel 4F F'!I88*100,"-")) -> 1.492537313
A89: HA | C89: =IF(OR('Tabel 4F F'!C89<5,'Tabel 4 F'!C89<0.5),"-",IFERROR('Tabel 4 F'!C89/'Tabel 4F F'!C89*100,"-")) -> - | D89: =IF(OR('Tabel 4F F'!D89<5,'Tabel 4 F'!D89<0.5),"-",IFERROR('Tabel 4 F'!D89/'Tabel 4F F'!D89*100,"-")) -> - | E89: =IF(OR('Tabel 4F F'!E89<5,'Tabel 4 F'!E89<0.5),"-",IFERROR('Tabel 4 F'!E89/'Tabel 4F F'!E89*100,"-")) -> 20 | F89: =IF(OR('Tabel 4F F'!F89<5,'Tabel 4 F'!F89<0.5),"-",IFERROR('Tabel 4 F'!F89/'Tabel 4F F'!F89*100,"-")) -> 7.142857143 | G89: =IF(OR('Tabel 4F F'!G89<5,'Tabel 4 F'!G89<0.5),"-",IFERROR('Tabel 4 F'!G89/'Tabel 4F F'!G89*100,"-")) -> - | I89: =IF(OR('Tabel 4F F'!I89<5,'Tabel 4 F'!I89<0.5),"-",IFERROR('Tabel 4 F'!I89/'Tabel 4F F'!I89*100,"-")) -> 9.090909091
A90: HD | C90: =IF(OR('Tabel 4F F'!C90<5,'Tabel 4 F'!C90<0.5),"-",IFERROR('Tabel 4 F'!C90/'Tabel 4F F'!C90*100,"-")) -> - | D90: =IF(OR('Tabel 4F F'!D90<5,'Tabel 4 F'!D90<0.5),"-",IFERROR('Tabel 4 F'!D90/'Tabel 4F F'!D90*100,"-")) -> - | E90: =IF(OR('Tabel 4F F'!E90<5,'Tabel 4 F'!E90<0.5),"-",IFERROR('Tabel 4 F'!E90/'Tabel 4F F'!E90*100,"-")) -> - | F90: =IF(OR('Tabel 4F F'!F90<5,'Tabel 4 F'!F90<0.5),"-",IFERROR('Tabel 4 F'!F90/'Tabel 4F F'!F90*100,"-")) -> 33.33333333 | G90: =IF(OR('Tabel 4F F'!G90<5,'Tabel 4 F'!G90<0.5),"-",IFERROR('Tabel 4 F'!G90/'Tabel 4F F'!G90*100,"-")) -> - | I90: =IF(OR('Tabel 4F F'!I90<5,'Tabel 4 F'!I90<0.5),"-",IFERROR('Tabel 4 F'!I90/'Tabel 4F F'!I90*100,"-")) -> 11.76470588
A91: Komm. og Sprog | C91: =IF(OR('Tabel 4F F'!C91<5,'Tabel 4 F'!C91<0.5),"-",IFERROR('Tabel 4 F'!C91/'Tabel 4F F'!C91*100,"-")) -> - | D91: =IF(OR('Tabel 4F F'!D91<5,'Tabel 4 F'!D91<0.5),"-",IFERROR('Tabel 4 F'!D91/'Tabel 4F F'!D91*100,"-")) -> - | E91: =IF(OR('Tabel 4F F'!E91<5,'Tabel 4 F'!E91<0.5),"-",IFERROR('Tabel 4 F'!E91/'Tabel 4F F'!E91*100,"-")) -> 10 | F91: =IF(OR('Tabel 4F F'!F91<5,'Tabel 4 F'!F91<0.5),"-",IFERROR('Tabel 4 F'!F91/'Tabel 4F F'!F91*100,"-")) -> - | G91: =IF(OR('Tabel 4F F'!G91<5,'Tabel 4 F'!G91<0.5),"-",IFERROR('Tabel 4 F'!G91/'Tabel 4F F'!G91*100,"-")) -> - | I91: =IF(OR('Tabel 4F F'!I91<5,'Tabel 4 F'!I91<0.5),"-",IFERROR('Tabel 4 F'!I91/'Tabel 4F F'!I91*100,"-")) -> 3.225806452
A92: Cand. IT. | C92: =IF(OR('Tabel 4F F'!C92<5,'Tabel 4 F'!C92<0.5),"-",IFERROR('Tabel 4 F'!C92/'Tabel 4F F'!C92*100,"-")) -> - | D92: =IF(OR('Tabel 4F F'!D92<5,'Tabel 4 F'!D92<0.5),"-",IFERROR('Tabel 4 F'!D92/'Tabel 4F F'!D92*100,"-")) -> - | E92: =IF(OR('Tabel 4F F'!E92<5,'Tabel 4 F'!E92<0.5),"-",IFERROR('Tabel 4 F'!E92/'Tabel 4F F'!E92*100,"-")) -> - | F92: =IF(OR('Tabel 4F F'!F92<5,'Tabel 4 F'!F92<0.5),"-",IFERROR('Tabel 4 F'!F92/'Tabel 4F F'!F92*100,"-")) -> - | G92: =IF(OR('Tabel 4F F'!G92<5,'Tabel 4 F'!G92<0.5),"-",IFERROR('Tabel 4 F'!G92/'Tabel 4F F'!G92*100,"-")) -> - | I92: =IF(OR('Tabel 4F F'!I92<5,'Tabel 4 F'!I92<0.5),"-",IFERROR('Tabel 4 F'!I92/'Tabel 4F F'!I92*100,"-")) -> -
A93: Bac. Samf. | C93: =IF(OR('Tabel 4F F'!C93<5,'Tabel 4 F'!C93<0.5),"-",IFERROR('Tabel 4 F'!C93/'Tabel 4F F'!C93*100,"-")) -> - | D93: =IF(OR('Tabel 4F F'!D93<5,'Tabel 4 F'!D93<0.5),"-",IFERROR('Tabel 4 F'!D93/'Tabel 4F F'!D93*100,"-")) -> - | E93: =IF(OR('Tabel 4F F'!E93<5,'Tabel 4 F'!E93<0.5),"-",IFERROR('Tabel 4 F'!E93/'Tabel 4F F'!E93*100,"-")) -> - | F93: =IF(OR('Tabel 4F F'!F93<5,'Tabel 4 F'!F93<0.5),"-",IFERROR('Tabel 4 F'!F93/'Tabel 4F F'!F93*100,"-")) -> - | G93: =IF(OR('Tabel 4F F'!G93<5,'Tabel 4 F'!G93<0.5),"-",IFERROR('Tabel 4 F'!G93/'Tabel 4F F'!G93*100,"-")) -> - | I93: =IF(OR('Tabel 4F F'!I93<5,'Tabel 4 F'!I93<0.5),"-",IFERROR('Tabel 4 F'!I93/'Tabel 4F F'!I93*100,"-")) -> -
A94: Bac. Hum. | C94: =IF(OR('Tabel 4F F'!C94<5,'Tabel 4 F'!C94<0.5),"-",IFERROR('Tabel 4 F'!C94/'Tabel 4F F'!C94*100,"-")) -> - | D94: =IF(OR('Tabel 4F F'!D94<5,'Tabel 4 F'!D94<0.5),"-",IFERROR('Tabel 4 F'!D94/'Tabel 4F F'!D94*100,"-")) -> - | E94: =IF(OR('Tabel 4F F'!E94<5,'Tabel 4 F'!E94<0.5),"-",IFERROR('Tabel 4 F'!E94/'Tabel 4F F'!E94*100,"-")) -> - | F94: =IF(OR('Tabel 4F F'!F94<5,'Tabel 4 F'!F94<0.5),"-",IFERROR('Tabel 4 F'!F94/'Tabel 4F F'!F94*100,"-")) -> - | G94: =IF(OR('Tabel 4F F'!G94<5,'Tabel 4 F'!G94<0.5),"-",IFERROR('Tabel 4 F'!G94/'Tabel 4F F'!G94*100,"-")) -> - | I94: =IF(OR('Tabel 4F F'!I94<5,'Tabel 4 F'!I94<0.5),"-",IFERROR('Tabel 4 F'!I94/'Tabel 4F F'!I94*100,"-")) -> 10
A95: Bac. Nat. | C95: =IF(OR('Tabel 4F F'!C95<5,'Tabel 4 F'!C95<0.5),"-",IFERROR('Tabel 4 F'!C95/'Tabel 4F F'!C95*100,"-")) -> - | D95: =IF(OR('Tabel 4F F'!D95<5,'Tabel 4 F'!D95<0.5),"-",IFERROR('Tabel 4 F'!D95/'Tabel 4F F'!D95*100,"-")) -> - | E95: =IF(OR('Tabel 4F F'!E95<5,'Tabel 4 F'!E95<0.5),"-",IFERROR('Tabel 4 F'!E95/'Tabel 4F F'!E95*100,"-")) -> - | F95: =IF(OR('Tabel 4F F'!F95<5,'Tabel 4 F'!F95<0.5),"-",IFERROR('Tabel 4 F'!F95/'Tabel 4F F'!F95*100,"-")) -> - | G95: =IF(OR('Tabel 4F F'!G95<5,'Tabel 4 F'!G95<0.5),"-",IFERROR('Tabel 4 F'!G95/'Tabel 4F F'!G95*100,"-")) -> - | I95: =IF(OR('Tabel 4F F'!I95<5,'Tabel 4 F'!I95<0.5),"-",IFERROR('Tabel 4 F'!I95/'Tabel 4F F'!I95*100,"-")) -> 16.66666667
A96: Andre | C96: =IF(OR('Tabel 4F F'!C96<5,'Tabel 4 F'!C96<0.5),"-",IFERROR('Tabel 4 F'!C96/'Tabel 4F F'!C96*100,"-")) -> 11.11111111 | D96: =IF(OR('Tabel 4F F'!D96<5,'Tabel 4 F'!D96<0.5),"-",IFERROR('Tabel 4 F'!D96/'Tabel 4F F'!D96*100,"-")) -> - | E96: =IF(OR('Tabel 4F F'!E96<5,'Tabel 4 F'!E96<0.5),"-",IFERROR('Tabel 4 F'!E96/'Tabel 4F F'!E96*100,"-")) -> - | F96: =IF(OR('Tabel 4F F'!F96<5,'Tabel 4 F'!F96<0.5),"-",IFERROR('Tabel 4 F'!F96/'Tabel 4F F'!F96*100,"-")) -> 10.52631579 | G96: =IF(OR('Tabel 4F F'!G96<5,'Tabel 4 F'!G96<0.5),"-",IFERROR('Tabel 4 F'!G96/'Tabel 4F F'!G96*100,"-")) -> 9.090909091 | I96: =IF(OR('Tabel 4F F'!I96<5,'Tabel 4 F'!I96<0.5),"-",IFERROR('Tabel 4 F'!I96/'Tabel 4F F'!I96*100,"-")) -> 5.063291139
A98: Total | C98: =IF(OR('Tabel 4F F'!C98<5,'Tabel 4 F'!C98<0.5),"-",IFERROR('Tabel 4 F'!C98/'Tabel 4F F'!C98*100,"-")) -> 7.936507937 | D98: =IF(OR('Tabel 4F F'!D98<5,'Tabel 4 F'!D98<0.5),"-",IFERROR('Tabel 4 F'!D98/'Tabel 4F F'!D98*100,"-")) -> 2.97029703 | E98: =IF(OR('Tabel 4F F'!E98<5,'Tabel 4 F'!E98<0.5),"-",IFERROR('Tabel 4 F'!E98/'Tabel 4F F'!E98*100,"-")) -> 3.624733475 | F98: =IF(OR('Tabel 4F F'!F98<5,'Tabel 4 F'!F98<0.5),"-",IFERROR('Tabel 4 F'!F98/'Tabel 4F F'!F98*100,"-")) -> 2.608695652 | G98: =IF(OR('Tabel 4F F'!G98<5,'Tabel 4 F'!G98<0.5),"-",IFERROR('Tabel 4 F'!G98/'Tabel 4F F'!G98*100,"-")) -> 2.564102564 | I98: =IF(OR('Tabel 4F F'!I98<5,'Tabel 4 F'!I98<0.5),"-",IFERROR('Tabel 4 F'!I98/'Tabel 4F F'!I98*100,"-")) -> 3.490759754
A100: Ingeniører i alt | C100: =IF(OR('Tabel 4F F'!C100<5,'Tabel 4 F'!C100<0.5),"-",IFERROR('Tabel 4 F'!C100/'Tabel 4F F'!C100*100,"-")) -> 5.263157895 | D100: =IF(OR('Tabel 4F F'!D100<5,'Tabel 4 F'!D100<0.5),"-",IFERROR('Tabel 4 F'!D100/'Tabel 4F F'!D100*100,"-")) -> 2.298850575 | E100: =IF(OR('Tabel 4F F'!E100<5,'Tabel 4 F'!E100<0.5),"-",IFERROR('Tabel 4 F'!E100/'Tabel 4F F'!E100*100,"-")) -> 2.702702703 | F100: =IF(OR('Tabel 4F F'!F100<5,'Tabel 4 F'!F100<0.5),"-",IFERROR('Tabel 4 F'!F100/'Tabel 4F F'!F100*100,"-")) -> - | G100: =IF(OR('Tabel 4F F'!G100<5,'Tabel 4 F'!G100<0.5),"-",IFERROR('Tabel 4 F'!G100/'Tabel 4F F'!G100*100,"-")) -> 2.5 | I100: =IF(OR('Tabel 4F F'!I100<5,'Tabel 4 F'!I100<0.5),"-",IFERROR('Tabel 4 F'!I100/'Tabel 4F F'!I100*100,"-")) -> 1.804123711
A101: Magistre i alt | C101: =IF(OR('Tabel 4F F'!C101<5,'Tabel 4 F'!C101<0.5),"-",IFERROR('Tabel 4 F'!C101/'Tabel 4F F'!C101*100,"-")) -> 17.39130435 | D101: =IF(OR('Tabel 4F F'!D101<5,'Tabel 4 F'!D101<0.5),"-",IFERROR('Tabel 4 F'!D101/'Tabel 4F F'!D101*100,"-")) -> 9.85915493 | E101: =IF(OR('Tabel 4F F'!E101<5,'Tabel 4 F'!E101<0.5),"-",IFERROR('Tabel 4 F'!E101/'Tabel 4F F'!E101*100,"-")) -> 6.382978723 | F101: =IF(OR('Tabel 4F F'!F101<5,'Tabel 4 F'!F101<0.5),"-",IFERROR('Tabel 4 F'!F101/'Tabel 4F F'!F101*100,"-")) -> 4.761904762 | G101: =IF(OR('Tabel 4F F'!G101<5,'Tabel 4 F'!G101<0.5),"-",IFERROR('Tabel 4 F'!G101/'Tabel 4F F'!G101*100,"-")) -> - | I101: =IF(OR('Tabel 4F F'!I101<5,'Tabel 4 F'!I101<0.5),"-",IFERROR('Tabel 4 F'!I101/'Tabel 4F F'!I101*100,"-")) -> 7.6
A102: DJØF'ere i alt | C102: =IF(OR('Tabel 4F F'!C102<5,'Tabel 4 F'!C102<0.5),"-",IFERROR('Tabel 4 F'!C102/'Tabel 4F F'!C102*100,"-")) -> 3.03030303 | D102: =IF(OR('Tabel 4F F'!D102<5,'Tabel 4 F'!D102<0.5),"-",IFERROR('Tabel 4 F'!D102/'Tabel 4F F'!D102*100,"-")) -> - | E102: =IF(OR('Tabel 4F F'!E102<5,'Tabel 4 F'!E102<0.5),"-",IFERROR('Tabel 4 F'!E102/'Tabel 4F F'!E102*100,"-")) -> 3.669724771 | F102: =IF(OR('Tabel 4F F'!F102<5,'Tabel 4 F'!F102<0.5),"-",IFERROR('Tabel 4 F'!F102/'Tabel 4F F'!F102*100,"-")) -> 1.538461538 | G102: =IF(OR('Tabel 4F F'!G102<5,'Tabel 4 F'!G102<0.5),"-",IFERROR('Tabel 4 F'!G102/'Tabel 4F F'!G102*100,"-")) -> - | I102: =IF(OR('Tabel 4F F'!I102<5,'Tabel 4 F'!I102<0.5),"-",IFERROR('Tabel 4 F'!I102/'Tabel 4F F'!I102*100,"-")) -> 1.812688822
A109: Assens
C111: Under 30 år | D111: 30 - 39 år | E111: 40 - 49 år | F111: 50 - 59 år | G111: Over 60 år | I111: I alt
A113: Civ. ing. | C113: =IF(OR('Tabel 4F F'!C113<5,'Tabel 4 F'!C113<0.5),"-",IFERROR('Tabel 4 F'!C113/'Tabel 4F F'!C113*100,"-")) -> 22.22222222 | D113: =IF(OR('Tabel 4F F'!D113<5,'Tabel 4 F'!D113<0.5),"-",IFERROR('Tabel 4 F'!D113/'Tabel 4F F'!D113*100,"-")) -> 5.555555556 | E113: =IF(OR('Tabel 4F F'!E113<5,'Tabel 4 F'!E113<0.5),"-",IFERROR('Tabel 4 F'!E113/'Tabel 4F F'!E113*100,"-")) -> - | F113: =IF(OR('Tabel 4F F'!F113<5,'Tabel 4 F'!F113<0.5),"-",IFERROR('Tabel 4 F'!F113/'Tabel 4F F'!F113*100,"-")) -> - | G113: =IF(OR('Tabel 4F F'!G113<5,'Tabel 4 F'!G113<0.5),"-",IFERROR('Tabel 4 F'!G113/'Tabel 4F F'!G113*100,"-")) -> - | I113: =IF(OR('Tabel 4F F'!I113<5,'Tabel 4 F'!I113<0.5),"-",IFERROR('Tabel 4 F'!I113/'Tabel 4F F'!I113*100,"-")) -> 4.918032787
A114: Diplom ing. | C114: =IF(OR('Tabel 4F F'!C114<5,'Tabel 4 F'!C114<0.5),"-",IFERROR('Tabel 4 F'!C114/'Tabel 4F F'!C114*100,"-")) -> - | D114: =IF(OR('Tabel 4F F'!D114<5,'Tabel 4 F'!D114<0.5),"-",IFERROR('Tabel 4 F'!D114/'Tabel 4F F'!D114*100,"-")) -> - | E114: =IF(OR('Tabel 4F F'!E114<5,'Tabel 4 F'!E114<0.5),"-",IFERROR('Tabel 4 F'!E114/'Tabel 4F F'!E114*100,"-")) -> 3.614457831 | F114: =IF(OR('Tabel 4F F'!F114<5,'Tabel 4 F'!F114<0.5),"-",IFERROR('Tabel 4 F'!F114/'Tabel 4F F'!F114*100,"-")) -> 2.247191011 | G114: =IF(OR('Tabel 4F F'!G114<5,'Tabel 4 F'!G114<0.5),"-",IFERROR('Tabel 4 F'!G114/'Tabel 4F F'!G114*100,"-")) -> - | I114: =IF(OR('Tabel 4F F'!I114<5,'Tabel 4 F'!I114<0.5),"-",IFERROR('Tabel 4 F'!I114/'Tabel 4F F'!I114*100,"-")) -> 2.136752137
A115: Cand. Scient. Tek | C115: =IF(OR('Tabel 4F F'!C115<5,'Tabel 4 F'!C115<0.5),"-",IFERROR('Tabel 4 F'!C115/'Tabel 4F F'!C115*100,"-")) -> 28.57142857 | D115: =IF(OR('Tabel 4F F'!D115<5,'Tabel 4 F'!D115<0.5),"-",IFERROR('Tabel 4 F'!D115/'Tabel 4F F'!D115*100,"-")) -> - | E115: =IF(OR('Tabel 4F F'!E115<5,'Tabel 4 F'!E115<0.5),"-",IFERROR('Tabel 4 F'!E115/'Tabel 4F F'!E115*100,"-")) -> - | F115: =IF(OR('Tabel 4F F'!F115<5,'Tabel 4 F'!F115<0.5),"-",IFERROR('Tabel 4 F'!F115/'Tabel 4F F'!F115*100,"-")) -> - | G115: =IF(OR('Tabel 4F F'!G115<5,'Tabel 4 F'!G115<0.5),"-",IFERROR('Tabel 4 F'!G115/'Tabel 4F F'!G115*100,"-")) -> - | I115: =IF(OR('Tabel 4F F'!I115<5,'Tabel 4 F'!I115<0.5),"-",IFERROR('Tabel 4 F'!I115/'Tabel 4F F'!I115*100,"-")) -> 5.882352941
A116: MA. Hum. | C116: =IF(OR('Tabel 4F F'!C116<5,'Tabel 4 F'!C116<0.5),"-",IFERROR('Tabel 4 F'!C116/'Tabel 4F F'!C116*100,"-")) -> 18.18181818 | D116: =IF(OR('Tabel 4F F'!D116<5,'Tabel 4 F'!D116<0.5),"-",IFERROR('Tabel 4 F'!D116/'Tabel 4F F'!D116*100,"-")) -> 14.28571429 | E116: =IF(OR('Tabel 4F F'!E116<5,'Tabel 4 F'!E116<0.5),"-",IFERROR('Tabel 4 F'!E116/'Tabel 4F F'!E116*100,"-")) -> 6.349206349 | F116: =IF(OR('Tabel 4F F'!F116<5,'Tabel 4 F'!F116<0.5),"-",IFERROR('Tabel 4 F'!F116/'Tabel 4F F'!F116*100,"-")) -> - | G116: =IF(OR('Tabel 4F F'!G116<5,'Tabel 4 F'!G116<0.5),"-",IFERROR('Tabel 4 F'!G116/'Tabel 4F F'!G116*100,"-")) -> - | I116: =IF(OR('Tabel 4F F'!I116<5,'Tabel 4 F'!I116<0.5),"-",IFERROR('Tabel 4 F'!I116/'Tabel 4F F'!I116*100,"-")) -> 8.450704225
A117: MA. Nat. | C117: =IF(OR('Tabel 4F F'!C117<5,'Tabel 4 F'!C117<0.5),"-",IFERROR('Tabel 4 F'!C117/'Tabel 4F F'!C117*100,"-")) -> - | D117: =IF(OR('Tabel 4F F'!D117<5,'Tabel 4 F'!D117<0.5),"-",IFERROR('Tabel 4 F'!D117/'Tabel 4F F'!D117*100,"-")) -> 27.77777778 | E117: =IF(OR('Tabel 4F F'!E117<5,'Tabel 4 F'!E117<0.5),"-",IFERROR('Tabel 4 F'!E117/'Tabel 4F F'!E117*100,"-")) -> - | F117: =IF(OR('Tabel 4F F'!F117<5,'Tabel 4 F'!F117<0.5),"-",IFERROR('Tabel 4 F'!F117/'Tabel 4F F'!F117*100,"-")) -> - | G117: =IF(OR('Tabel 4F F'!G117<5,'Tabel 4 F'!G117<0.5),"-",IFERROR('Tabel 4 F'!G117/'Tabel 4F F'!G117*100,"-")) -> - | I117: =IF(OR('Tabel 4F F'!I117<5,'Tabel 4 F'!I117<0.5),"-",IFERROR('Tabel 4 F'!I117/'Tabel 4F F'!I117*100,"-")) -> 8.333333333
A118: MA. Ph.d. | C118: =IF(OR('Tabel 4F F'!C118<5,'Tabel 4 F'!C118<0.5),"-",IFERROR('Tabel 4 F'!C118/'Tabel 4F F'!C118*100,"-")) -> - | D118: =IF(OR('Tabel 4F F'!D118<5,'Tabel 4 F'!D118<0.5),"-",IFERROR('Tabel 4 F'!D118/'Tabel 4F F'!D118*100,"-")) -> - | E118: =IF(OR('Tabel 4F F'!E118<5,'Tabel 4 F'!E118<0.5),"-",IFERROR('Tabel 4 F'!E118/'Tabel 4F F'!E118*100,"-")) -> - | F118: =IF(OR('Tabel 4F F'!F118<5,'Tabel 4 F'!F118<0.5),"-",IFERROR('Tabel 4 F'!F118/'Tabel 4F F'!F118*100,"-")) -> - | G118: =IF(OR('Tabel 4F F'!G118<5,'Tabel 4 F'!G118<0.5),"-",IFERROR('Tabel 4 F'!G118/'Tabel 4F F'!G118*100,"-")) -> - | I118: =IF(OR('Tabel 4F F'!I118<5,'Tabel 4 F'!I118<0.5),"-",IFERROR('Tabel 4 F'!I118/'Tabel 4F F'!I118*100,"-")) -> -
A119: MA. Samf. | C119: =IF(OR('Tabel 4F F'!C119<5,'Tabel 4 F'!C119<0.5),"-",IFERROR('Tabel 4 F'!C119/'Tabel 4F F'!C119*100,"-")) -> - | D119: =IF(OR('Tabel 4F F'!D119<5,'Tabel 4 F'!D119<0.5),"-",IFERROR('Tabel 4 F'!D119/'Tabel 4F F'!D119*100,"-")) -> - | E119: =IF(OR('Tabel 4F F'!E119<5,'Tabel 4 F'!E119<0.5),"-",IFERROR('Tabel 4 F'!E119/'Tabel 4F F'!E119*100,"-")) -> - | F119: =IF(OR('Tabel 4F F'!F119<5,'Tabel 4 F'!F119<0.5),"-",IFERROR('Tabel 4 F'!F119/'Tabel 4F F'!F119*100,"-")) -> - | G119: =IF(OR('Tabel 4F F'!G119<5,'Tabel 4 F'!G119<0.5),"-",IFERROR('Tabel 4 F'!G119/'Tabel 4F F'!G119*100,"-")) -> - | I119: =IF(OR('Tabel 4F F'!I119<5,'Tabel 4 F'!I119<0.5),"-",IFERROR('Tabel 4 F'!I119/'Tabel 4F F'!I119*100,"-")) -> -
A120: Øvrige Mag. | C120: =IF(OR('Tabel 4F F'!C120<5,'Tabel 4 F'!C120<0.5),"-",IFERROR('Tabel 4 F'!C120/'Tabel 4F F'!C120*100,"-")) -> - | D120: =IF(OR('Tabel 4F F'!D120<5,'Tabel 4 F'!D120<0.5),"-",IFERROR('Tabel 4 F'!D120/'Tabel 4F F'!D120*100,"-")) -> - | E120: =IF(OR('Tabel 4F F'!E120<5,'Tabel 4 F'!E120<0.5),"-",IFERROR('Tabel 4 F'!E120/'Tabel 4F F'!E120*100,"-")) -> - | F120: =IF(OR('Tabel 4F F'!F120<5,'Tabel 4 F'!F120<0.5),"-",IFERROR('Tabel 4 F'!F120/'Tabel 4F F'!F120*100,"-")) -> - | G120: =IF(OR('Tabel 4F F'!G120<5,'Tabel 4 F'!G120<0.5),"-",IFERROR('Tabel 4 F'!G120/'Tabel 4F F'!G120*100,"-")) -> - | I120: =IF(OR('Tabel 4F F'!I120<5,'Tabel 4 F'!I120<0.5),"-",IFERROR('Tabel 4 F'!I120/'Tabel 4F F'!I120*100,"-")) -> -
A121: Agronom | C121: =IF(OR('Tabel 4F F'!C121<5,'Tabel 4 F'!C121<0.5),"-",IFERROR('Tabel 4 F'!C121/'Tabel 4F F'!C121*100,"-")) -> - | D121: =IF(OR('Tabel 4F F'!D121<5,'Tabel 4 F'!D121<0.5),"-",IFERROR('Tabel 4 F'!D121/'Tabel 4F F'!D121*100,"-")) -> - | E121: =IF(OR('Tabel 4F F'!E121<5,'Tabel 4 F'!E121<0.5),"-",IFERROR('Tabel 4 F'!E121/'Tabel 4F F'!E121*100,"-")) -> - | F121: =IF(OR('Tabel 4F F'!F121<5,'Tabel 4 F'!F121<0.5),"-",IFERROR('Tabel 4 F'!F121/'Tabel 4F F'!F121*100,"-")) -> - | G121: =IF(OR('Tabel 4F F'!G121<5,'Tabel 4 F'!G121<0.5),"-",IFERROR('Tabel 4 F'!G121/'Tabel 4F F'!G121*100,"-")) -> - | I121: =IF(OR('Tabel 4F F'!I121<5,'Tabel 4 F'!I121<0.5),"-",IFERROR('Tabel 4 F'!I121/'Tabel 4F F'!I121*100,"-")) -> -
A122: Landsk. Arkt. | C122: =IF(OR('Tabel 4F F'!C122<5,'Tabel 4 F'!C122<0.5),"-",IFERROR('Tabel 4 F'!C122/'Tabel 4F F'!C122*100,"-")) -> - | D122: =IF(OR('Tabel 4F F'!D122<5,'Tabel 4 F'!D122<0.5),"-",IFERROR('Tabel 4 F'!D122/'Tabel 4F F'!D122*100,"-")) -> - | E122: =IF(OR('Tabel 4F F'!E122<5,'Tabel 4 F'!E122<0.5),"-",IFERROR('Tabel 4 F'!E122/'Tabel 4F F'!E122*100,"-")) -> - | F122: =IF(OR('Tabel 4F F'!F122<5,'Tabel 4 F'!F122<0.5),"-",IFERROR('Tabel 4 F'!F122/'Tabel 4F F'!F122*100,"-")) -> - | G122: =IF(OR('Tabel 4F F'!G122<5,'Tabel 4 F'!G122<0.5),"-",IFERROR('Tabel 4 F'!G122/'Tabel 4F F'!G122*100,"-")) -> - | I122: =IF(OR('Tabel 4F F'!I122<5,'Tabel 4 F'!I122<0.5),"-",IFERROR('Tabel 4 F'!I122/'Tabel 4F F'!I122*100,"-")) -> -
A123: Hortonom | C123: =IF(OR('Tabel 4F F'!C123<5,'Tabel 4 F'!C123<0.5),"-",IFERROR('Tabel 4 F'!C123/'Tabel 4F F'!C123*100,"-")) -> - | D123: =IF(OR('Tabel 4F F'!D123<5,'Tabel 4 F'!D123<0.5),"-",IFERROR('Tabel 4 F'!D123/'Tabel 4F F'!D123*100,"-")) -> - | E123: =IF(OR('Tabel 4F F'!E123<5,'Tabel 4 F'!E123<0.5),"-",IFERROR('Tabel 4 F'!E123/'Tabel 4F F'!E123*100,"-")) -> - | F123: =IF(OR('Tabel 4F F'!F123<5,'Tabel 4 F'!F123<0.5),"-",IFERROR('Tabel 4 F'!F123/'Tabel 4F F'!F123*100,"-")) -> - | G123: =IF(OR('Tabel 4F F'!G123<5,'Tabel 4 F'!G123<0.5),"-",IFERROR('Tabel 4 F'!G123/'Tabel 4F F'!G123*100,"-")) -> - | I123: =IF(OR('Tabel 4F F'!I123<5,'Tabel 4 F'!I123<0.5),"-",IFERROR('Tabel 4 F'!I123/'Tabel 4F F'!I123*100,"-")) -> -
A124: Forstkand. | C124: =IF(OR('Tabel 4F F'!C124<5,'Tabel 4 F'!C124<0.5),"-",IFERROR('Tabel 4 F'!C124/'Tabel 4F F'!C124*100,"-")) -> - | D124: =IF(OR('Tabel 4F F'!D124<5,'Tabel 4 F'!D124<0.5),"-",IFERROR('Tabel 4 F'!D124/'Tabel 4F F'!D124*100,"-")) -> - | E124: =IF(OR('Tabel 4F F'!E124<5,'Tabel 4 F'!E124<0.5),"-",IFERROR('Tabel 4 F'!E124/'Tabel 4F F'!E124*100,"-")) -> - | F124: =IF(OR('Tabel 4F F'!F124<5,'Tabel 4 F'!F124<0.5),"-",IFERROR('Tabel 4 F'!F124/'Tabel 4F F'!F124*100,"-")) -> - | G124: =IF(OR('Tabel 4F F'!G124<5,'Tabel 4 F'!G124<0.5),"-",IFERROR('Tabel 4 F'!G124/'Tabel 4F F'!G124*100,"-")) -> - | I124: =IF(OR('Tabel 4F F'!I124<5,'Tabel 4 F'!I124<0.5),"-",IFERROR('Tabel 4 F'!I124/'Tabel 4F F'!I124*100,"-")) -> 16.66666667
A125: Jordbrugsakad. | C125: =IF(OR('Tabel 4F F'!C125<5,'Tabel 4 F'!C125<0.5),"-",IFERROR('Tabel 4 F'!C125/'Tabel 4F F'!C125*100,"-")) -> - | D125: =IF(OR('Tabel 4F F'!D125<5,'Tabel 4 F'!D125<0.5),"-",IFERROR('Tabel 4 F'!D125/'Tabel 4F F'!D125*100,"-")) -> - | E125: =IF(OR('Tabel 4F F'!E125<5,'Tabel 4 F'!E125<0.5),"-",IFERROR('Tabel 4 F'!E125/'Tabel 4F F'!E125*100,"-")) -> - | F125: =IF(OR('Tabel 4F F'!F125<5,'Tabel 4 F'!F125<0.5),"-",IFERROR('Tabel 4 F'!F125/'Tabel 4F F'!F125*100,"-")) -> - | G125: =IF(OR('Tabel 4F F'!G125<5,'Tabel 4 F'!G125<0.5),"-",IFERROR('Tabel 4 F'!G125/'Tabel 4F F'!G125*100,"-")) -> - | I125: =IF(OR('Tabel 4F F'!I125<5,'Tabel 4 F'!I125<0.5),"-",IFERROR('Tabel 4 F'!I125/'Tabel 4F F'!I125*100,"-")) -> 2.857142857
A126: Mejeriing. | C126: =IF(OR('Tabel 4F F'!C126<5,'Tabel 4 F'!C126<0.5),"-",IFERROR('Tabel 4 F'!C126/'Tabel 4F F'!C126*100,"-")) -> - | D126: =IF(OR('Tabel 4F F'!D126<5,'Tabel 4 F'!D126<0.5),"-",IFERROR('Tabel 4 F'!D126/'Tabel 4F F'!D126*100,"-")) -> - | E126: =IF(OR('Tabel 4F F'!E126<5,'Tabel 4 F'!E126<0.5),"-",IFERROR('Tabel 4 F'!E126/'Tabel 4F F'!E126*100,"-")) -> - | F126: =IF(OR('Tabel 4F F'!F126<5,'Tabel 4 F'!F126<0.5),"-",IFERROR('Tabel 4 F'!F126/'Tabel 4F F'!F126*100,"-")) -> - | G126: =IF(OR('Tabel 4F F'!G126<5,'Tabel 4 F'!G126<0.5),"-",IFERROR('Tabel 4 F'!G126/'Tabel 4F F'!G126*100,"-")) -> - | I126: =IF(OR('Tabel 4F F'!I126<5,'Tabel 4 F'!I126<0.5),"-",IFERROR('Tabel 4 F'!I126/'Tabel 4F F'!I126*100,"-")) -> -
A127: Levn.m.kand. | C127: =IF(OR('Tabel 4F F'!C127<5,'Tabel 4 F'!C127<0.5),"-",IFERROR('Tabel 4 F'!C127/'Tabel 4F F'!C127*100,"-")) -> - | D127: =IF(OR('Tabel 4F F'!D127<5,'Tabel 4 F'!D127<0.5),"-",IFERROR('Tabel 4 F'!D127/'Tabel 4F F'!D127*100,"-")) -> - | E127: =IF(OR('Tabel 4F F'!E127<5,'Tabel 4 F'!E127<0.5),"-",IFERROR('Tabel 4 F'!E127/'Tabel 4F F'!E127*100,"-")) -> - | F127: =IF(OR('Tabel 4F F'!F127<5,'Tabel 4 F'!F127<0.5),"-",IFERROR('Tabel 4 F'!F127/'Tabel 4F F'!F127*100,"-")) -> - | G127: =IF(OR('Tabel 4F F'!G127<5,'Tabel 4 F'!G127<0.5),"-",IFERROR('Tabel 4 F'!G127/'Tabel 4F F'!G127*100,"-")) -> - | I127: =IF(OR('Tabel 4F F'!I127<5,'Tabel 4 F'!I127<0.5),"-",IFERROR('Tabel 4 F'!I127/'Tabel 4F F'!I127*100,"-")) -> -
A128: Dyrlæge | C128: =IF(OR('Tabel 4F F'!C128<5,'Tabel 4 F'!C128<0.5),"-",IFERROR('Tabel 4 F'!C128/'Tabel 4F F'!C128*100,"-")) -> - | D128: =IF(OR('Tabel 4F F'!D128<5,'Tabel 4 F'!D128<0.5),"-",IFERROR('Tabel 4 F'!D128/'Tabel 4F F'!D128*100,"-")) -> - | E128: =IF(OR('Tabel 4F F'!E128<5,'Tabel 4 F'!E128<0.5),"-",IFERROR('Tabel 4 F'!E128/'Tabel 4F F'!E128*100,"-")) -> - | F128: =IF(OR('Tabel 4F F'!F128<5,'Tabel 4 F'!F128<0.5),"-",IFERROR('Tabel 4 F'!F128/'Tabel 4F F'!F128*100,"-")) -> - | G128: =IF(OR('Tabel 4F F'!G128<5,'Tabel 4 F'!G128<0.5),"-",IFERROR('Tabel 4 F'!G128/'Tabel 4F F'!G128*100,"-")) -> - | I128: =IF(OR('Tabel 4F F'!I128<5,'Tabel 4 F'!I128<0.5),"-",IFERROR('Tabel 4 F'!I128/'Tabel 4F F'!I128*100,"-")) -> -
A129: Farmaceut | C129: =IF(OR('Tabel 4F F'!C129<5,'Tabel 4 F'!C129<0.5),"-",IFERROR('Tabel 4 F'!C129/'Tabel 4F F'!C129*100,"-")) -> - | D129: =IF(OR('Tabel 4F F'!D129<5,'Tabel 4 F'!D129<0.5),"-",IFERROR('Tabel 4 F'!D129/'Tabel 4F F'!D129*100,"-")) -> - | E129: =IF(OR('Tabel 4F F'!E129<5,'Tabel 4 F'!E129<0.5),"-",IFERROR('Tabel 4 F'!E129/'Tabel 4F F'!E129*100,"-")) -> - | F129: =IF(OR('Tabel 4F F'!F129<5,'Tabel 4 F'!F129<0.5),"-",IFERROR('Tabel 4 F'!F129/'Tabel 4F F'!F129*100,"-")) -> - | G129: =IF(OR('Tabel 4F F'!G129<5,'Tabel 4 F'!G129<0.5),"-",IFERROR('Tabel 4 F'!G129/'Tabel 4F F'!G129*100,"-")) -> - | I129: =IF(OR('Tabel 4F F'!I129<5,'Tabel 4 F'!I129<0.5),"-",IFERROR('Tabel 4 F'!I129/'Tabel 4F F'!I129*100,"-")) -> 9.090909091
A130: Læge | C130: =IF(OR('Tabel 4F F'!C130<5,'Tabel 4 F'!C130<0.5),"-",IFERROR('Tabel 4 F'!C130/'Tabel 4F F'!C130*100,"-")) -> - | D130: =IF(OR('Tabel 4F F'!D130<5,'Tabel 4 F'!D130<0.5),"-",IFERROR('Tabel 4 F'!D130/'Tabel 4F F'!D130*100,"-")) -> - | E130: =IF(OR('Tabel 4F F'!E130<5,'Tabel 4 F'!E130<0.5),"-",IFERROR('Tabel 4 F'!E130/'Tabel 4F F'!E130*100,"-")) -> - | F130: =IF(OR('Tabel 4F F'!F130<5,'Tabel 4 F'!F130<0.5),"-",IFERROR('Tabel 4 F'!F130/'Tabel 4F F'!F130*100,"-")) -> - | G130: =IF(OR('Tabel 4F F'!G130<5,'Tabel 4 F'!G130<0.5),"-",IFERROR('Tabel 4 F'!G130/'Tabel 4F F'!G130*100,"-")) -> - | I130: =IF(OR('Tabel 4F F'!I130<5,'Tabel 4 F'!I130<0.5),"-",IFERROR('Tabel 4 F'!I130/'Tabel 4F F'!I130*100,"-")) -> -
A131: Tandlæge | C131: =IF(OR('Tabel 4F F'!C131<5,'Tabel 4 F'!C131<0.5),"-",IFERROR('Tabel 4 F'!C131/'Tabel 4F F'!C131*100,"-")) -> - | D131: =IF(OR('Tabel 4F F'!D131<5,'Tabel 4 F'!D131<0.5),"-",IFERROR('Tabel 4 F'!D131/'Tabel 4F F'!D131*100,"-")) -> - | E131: =IF(OR('Tabel 4F F'!E131<5,'Tabel 4 F'!E131<0.5),"-",IFERROR('Tabel 4 F'!E131/'Tabel 4F F'!E131*100,"-")) -> - | F131: =IF(OR('Tabel 4F F'!F131<5,'Tabel 4 F'!F131<0.5),"-",IFERROR('Tabel 4 F'!F131/'Tabel 4F F'!F131*100,"-")) -> - | G131: =IF(OR('Tabel 4F F'!G131<5,'Tabel 4 F'!G131<0.5),"-",IFERROR('Tabel 4 F'!G131/'Tabel 4F F'!G131*100,"-")) -> - | I131: =IF(OR('Tabel 4F F'!I131<5,'Tabel 4 F'!I131<0.5),"-",IFERROR('Tabel 4 F'!I131/'Tabel 4F F'!I131*100,"-")) -> -
A132: Arkitekt | C132: =IF(OR('Tabel 4F F'!C132<5,'Tabel 4 F'!C132<0.5),"-",IFERROR('Tabel 4 F'!C132/'Tabel 4F F'!C132*100,"-")) -> - | D132: =IF(OR('Tabel 4F F'!D132<5,'Tabel 4 F'!D132<0.5),"-",IFERROR('Tabel 4 F'!D132/'Tabel 4F F'!D132*100,"-")) -> - | E132: =IF(OR('Tabel 4F F'!E132<5,'Tabel 4 F'!E132<0.5),"-",IFERROR('Tabel 4 F'!E132/'Tabel 4F F'!E132*100,"-")) -> - | F132: =IF(OR('Tabel 4F F'!F132<5,'Tabel 4 F'!F132<0.5),"-",IFERROR('Tabel 4 F'!F132/'Tabel 4F F'!F132*100,"-")) -> - | G132: =IF(OR('Tabel 4F F'!G132<5,'Tabel 4 F'!G132<0.5),"-",IFERROR('Tabel 4 F'!G132/'Tabel 4F F'!G132*100,"-")) -> - | I132: =IF(OR('Tabel 4F F'!I132<5,'Tabel 4 F'!I132<0.5),"-",IFERROR('Tabel 4 F'!I132/'Tabel 4F F'!I132*100,"-")) -> 20
A133: Landinspek. | C133: =IF(OR('Tabel 4F F'!C133<5,'Tabel 4 F'!C133<0.5),"-",IFERROR('Tabel 4 F'!C133/'Tabel 4F F'!C133*100,"-")) -> - | D133: =IF(OR('Tabel 4F F'!D133<5,'Tabel 4 F'!D133<0.5),"-",IFERROR('Tabel 4 F'!D133/'Tabel 4F F'!D133*100,"-")) -> - | E133: =IF(OR('Tabel 4F F'!E133<5,'Tabel 4 F'!E133<0.5),"-",IFERROR('Tabel 4 F'!E133/'Tabel 4F F'!E133*100,"-")) -> - | F133: =IF(OR('Tabel 4F F'!F133<5,'Tabel 4 F'!F133<0.5),"-",IFERROR('Tabel 4 F'!F133/'Tabel 4F F'!F133*100,"-")) -> - | G133: =IF(OR('Tabel 4F F'!G133<5,'Tabel 4 F'!G133<0.5),"-",IFERROR('Tabel 4 F'!G133/'Tabel 4F F'!G133*100,"-")) -> - | I133: =IF(OR('Tabel 4F F'!I133<5,'Tabel 4 F'!I133<0.5),"-",IFERROR('Tabel 4 F'!I133/'Tabel 4F F'!I133*100,"-")) -> -
A134: Bibliotekar | C134: =IF(OR('Tabel 4F F'!C134<5,'Tabel 4 F'!C134<0.5),"-",IFERROR('Tabel 4 F'!C134/'Tabel 4F F'!C134*100,"-")) -> - | D134: =IF(OR('Tabel 4F F'!D134<5,'Tabel 4 F'!D134<0.5),"-",IFERROR('Tabel 4 F'!D134/'Tabel 4F F'!D134*100,"-")) -> - | E134: =IF(OR('Tabel 4F F'!E134<5,'Tabel 4 F'!E134<0.5),"-",IFERROR('Tabel 4 F'!E134/'Tabel 4F F'!E134*100,"-")) -> - | F134: =IF(OR('Tabel 4F F'!F134<5,'Tabel 4 F'!F134<0.5),"-",IFERROR('Tabel 4 F'!F134/'Tabel 4F F'!F134*100,"-")) -> - | G134: =IF(OR('Tabel 4F F'!G134<5,'Tabel 4 F'!G134<0.5),"-",IFERROR('Tabel 4 F'!G134/'Tabel 4F F'!G134*100,"-")) -> - | I134: =IF(OR('Tabel 4F F'!I134<5,'Tabel 4 F'!I134<0.5),"-",IFERROR('Tabel 4 F'!I134/'Tabel 4F F'!I134*100,"-")) -> -
A135: Musikudd. | C135: =IF(OR('Tabel 4F F'!C135<5,'Tabel 4 F'!C135<0.5),"-",IFERROR('Tabel 4 F'!C135/'Tabel 4F F'!C135*100,"-")) -> - | D135: =IF(OR('Tabel 4F F'!D135<5,'Tabel 4 F'!D135<0.5),"-",IFERROR('Tabel 4 F'!D135/'Tabel 4F F'!D135*100,"-")) -> - | E135: =IF(OR('Tabel 4F F'!E135<5,'Tabel 4 F'!E135<0.5),"-",IFERROR('Tabel 4 F'!E135/'Tabel 4F F'!E135*100,"-")) -> - | F135: =IF(OR('Tabel 4F F'!F135<5,'Tabel 4 F'!F135<0.5),"-",IFERROR('Tabel 4 F'!F135/'Tabel 4F F'!F135*100,"-")) -> - | G135: =IF(OR('Tabel 4F F'!G135<5,'Tabel 4 F'!G135<0.5),"-",IFERROR('Tabel 4 F'!G135/'Tabel 4F F'!G135*100,"-")) -> - | I135: =IF(OR('Tabel 4F F'!I135<5,'Tabel 4 F'!I135<0.5),"-",IFERROR('Tabel 4 F'!I135/'Tabel 4F F'!I135*100,"-")) -> 9.090909091
A136: Teolog | C136: =IF(OR('Tabel 4F F'!C136<5,'Tabel 4 F'!C136<0.5),"-",IFERROR('Tabel 4 F'!C136/'Tabel 4F F'!C136*100,"-")) -> - | D136: =IF(OR('Tabel 4F F'!D136<5,'Tabel 4 F'!D136<0.5),"-",IFERROR('Tabel 4 F'!D136/'Tabel 4F F'!D136*100,"-")) -> - | E136: =IF(OR('Tabel 4F F'!E136<5,'Tabel 4 F'!E136<0.5),"-",IFERROR('Tabel 4 F'!E136/'Tabel 4F F'!E136*100,"-")) -> - | F136: =IF(OR('Tabel 4F F'!F136<5,'Tabel 4 F'!F136<0.5),"-",IFERROR('Tabel 4 F'!F136/'Tabel 4F F'!F136*100,"-")) -> - | G136: =IF(OR('Tabel 4F F'!G136<5,'Tabel 4 F'!G136<0.5),"-",IFERROR('Tabel 4 F'!G136/'Tabel 4F F'!G136*100,"-")) -> - | I136: =IF(OR('Tabel 4F F'!I136<5,'Tabel 4 F'!I136<0.5),"-",IFERROR('Tabel 4 F'!I136/'Tabel 4F F'!I136*100,"-")) -> -
A137: Psykolog | C137: =IF(OR('Tabel 4F F'!C137<5,'Tabel 4 F'!C137<0.5),"-",IFERROR('Tabel 4 F'!C137/'Tabel 4F F'!C137*100,"-")) -> - | D137: =IF(OR('Tabel 4F F'!D137<5,'Tabel 4 F'!D137<0.5),"-",IFERROR('Tabel 4 F'!D137/'Tabel 4F F'!D137*100,"-")) -> 16.66666667 | E137: =IF(OR('Tabel 4F F'!E137<5,'Tabel 4 F'!E137<0.5),"-",IFERROR('Tabel 4 F'!E137/'Tabel 4F F'!E137*100,"-")) -> - | F137: =IF(OR('Tabel 4F F'!F137<5,'Tabel 4 F'!F137<0.5),"-",IFERROR('Tabel 4 F'!F137/'Tabel 4F F'!F137*100,"-")) -> - | G137: =IF(OR('Tabel 4F F'!G137<5,'Tabel 4 F'!G137<0.5),"-",IFERROR('Tabel 4 F'!G137/'Tabel 4F F'!G137*100,"-")) -> - | I137: =IF(OR('Tabel 4F F'!I137<5,'Tabel 4 F'!I137<0.5),"-",IFERROR('Tabel 4 F'!I137/'Tabel 4F F'!I137*100,"-")) -> 4.545454545
A138: Jurist | C138: =IF(OR('Tabel 4F F'!C138<5,'Tabel 4 F'!C138<0.5),"-",IFERROR('Tabel 4 F'!C138/'Tabel 4F F'!C138*100,"-")) -> - | D138: =IF(OR('Tabel 4F F'!D138<5,'Tabel 4 F'!D138<0.5),"-",IFERROR('Tabel 4 F'!D138/'Tabel 4F F'!D138*100,"-")) -> - | E138: =IF(OR('Tabel 4F F'!E138<5,'Tabel 4 F'!E138<0.5),"-",IFERROR('Tabel 4 F'!E138/'Tabel 4F F'!E138*100,"-")) -> - | F138: =IF(OR('Tabel 4F F'!F138<5,'Tabel 4 F'!F138<0.5),"-",IFERROR('Tabel 4 F'!F138/'Tabel 4F F'!F138*100,"-")) -> 16.66666667 | G138: =IF(OR('Tabel 4F F'!G138<5,'Tabel 4 F'!G138<0.5),"-",IFERROR('Tabel 4 F'!G138/'Tabel 4F F'!G138*100,"-")) -> - | I138: =IF(OR('Tabel 4F F'!I138<5,'Tabel 4 F'!I138<0.5),"-",IFERROR('Tabel 4 F'!I138/'Tabel 4F F'!I138*100,"-")) -> 9.090909091
A139: Økonom | C139: =IF(OR('Tabel 4F F'!C139<5,'Tabel 4 F'!C139<0.5),"-",IFERROR('Tabel 4 F'!C139/'Tabel 4F F'!C139*100,"-")) -> - | D139: =IF(OR('Tabel 4F F'!D139<5,'Tabel 4 F'!D139<0.5),"-",IFERROR('Tabel 4 F'!D139/'Tabel 4F F'!D139*100,"-")) -> - | E139: =IF(OR('Tabel 4F F'!E139<5,'Tabel 4 F'!E139<0.5),"-",IFERROR('Tabel 4 F'!E139/'Tabel 4F F'!E139*100,"-")) -> - | F139: =IF(OR('Tabel 4F F'!F139<5,'Tabel 4 F'!F139<0.5),"-",IFERROR('Tabel 4 F'!F139/'Tabel 4F F'!F139*100,"-")) -> - | G139: =IF(OR('Tabel 4F F'!G139<5,'Tabel 4 F'!G139<0.5),"-",IFERROR('Tabel 4 F'!G139/'Tabel 4F F'!G139*100,"-")) -> - | I139: =IF(OR('Tabel 4F F'!I139<5,'Tabel 4 F'!I139<0.5),"-",IFERROR('Tabel 4 F'!I139/'Tabel 4F F'!I139*100,"-")) -> -
A140: Samf. Adm. | C140: =IF(OR('Tabel 4F F'!C140<5,'Tabel 4 F'!C140<0.5),"-",IFERROR('Tabel 4 F'!C140/'Tabel 4F F'!C140*100,"-")) -> - | D140: =IF(OR('Tabel 4F F'!D140<5,'Tabel 4 F'!D140<0.5),"-",IFERROR('Tabel 4 F'!D140/'Tabel 4F F'!D140*100,"-")) -> 6.25 | E140: =IF(OR('Tabel 4F F'!E140<5,'Tabel 4 F'!E140<0.5),"-",IFERROR('Tabel 4 F'!E140/'Tabel 4F F'!E140*100,"-")) -> 5.555555556 | F140: =IF(OR('Tabel 4F F'!F140<5,'Tabel 4 F'!F140<0.5),"-",IFERROR('Tabel 4 F'!F140/'Tabel 4F F'!F140*100,"-")) -> - | G140: =IF(OR('Tabel 4F F'!G140<5,'Tabel 4 F'!G140<0.5),"-",IFERROR('Tabel 4 F'!G140/'Tabel 4F F'!G140*100,"-")) -> - | I140: =IF(OR('Tabel 4F F'!I140<5,'Tabel 4 F'!I140<0.5),"-",IFERROR('Tabel 4 F'!I140/'Tabel 4F F'!I140*100,"-")) -> 3.571428571
A141: Cand. Merc. | C141: =IF(OR('Tabel 4F F'!C141<5,'Tabel 4 F'!C141<0.5),"-",IFERROR('Tabel 4 F'!C141/'Tabel 4F F'!C141*100,"-")) -> 28.57142857 | D141: =IF(OR('Tabel 4F F'!D141<5,'Tabel 4 F'!D141<0.5),"-",IFERROR('Tabel 4 F'!D141/'Tabel 4F F'!D141*100,"-")) -> - | E141: =IF(OR('Tabel 4F F'!E141<5,'Tabel 4 F'!E141<0.5),"-",IFERROR('Tabel 4 F'!E141/'Tabel 4F F'!E141*100,"-")) -> 6.25 | F141: =IF(OR('Tabel 4F F'!F141<5,'Tabel 4 F'!F141<0.5),"-",IFERROR('Tabel 4 F'!F141/'Tabel 4F F'!F141*100,"-")) -> 5.555555556 | G141: =IF(OR('Tabel 4F F'!G141<5,'Tabel 4 F'!G141<0.5),"-",IFERROR('Tabel 4 F'!G141/'Tabel 4F F'!G141*100,"-")) -> - | I141: =IF(OR('Tabel 4F F'!I141<5,'Tabel 4 F'!I141<0.5),"-",IFERROR('Tabel 4 F'!I141/'Tabel 4F F'!I141*100,"-")) -> 7.01754386
A142: HA | C142: =IF(OR('Tabel 4F F'!C142<5,'Tabel 4 F'!C142<0.5),"-",IFERROR('Tabel 4 F'!C142/'Tabel 4F F'!C142*100,"-")) -> - | D142: =IF(OR('Tabel 4F F'!D142<5,'Tabel 4 F'!D142<0.5),"-",IFERROR('Tabel 4 F'!D142/'Tabel 4F F'!D142*100,"-")) -> - | E142: =IF(OR('Tabel 4F F'!E142<5,'Tabel 4 F'!E142<0.5),"-",IFERROR('Tabel 4 F'!E142/'Tabel 4F F'!E142*100,"-")) -> - | F142: =IF(OR('Tabel 4F F'!F142<5,'Tabel 4 F'!F142<0.5),"-",IFERROR('Tabel 4 F'!F142/'Tabel 4F F'!F142*100,"-")) -> - | G142: =IF(OR('Tabel 4F F'!G142<5,'Tabel 4 F'!G142<0.5),"-",IFERROR('Tabel 4 F'!G142/'Tabel 4F F'!G142*100,"-")) -> - | I142: =IF(OR('Tabel 4F F'!I142<5,'Tabel 4 F'!I142<0.5),"-",IFERROR('Tabel 4 F'!I142/'Tabel 4F F'!I142*100,"-")) -> -
A143: HD | C143: =IF(OR('Tabel 4F F'!C143<5,'Tabel 4 F'!C143<0.5),"-",IFERROR('Tabel 4 F'!C143/'Tabel 4F F'!C143*100,"-")) -> - | D143: =IF(OR('Tabel 4F F'!D143<5,'Tabel 4 F'!D143<0.5),"-",IFERROR('Tabel 4 F'!D143/'Tabel 4F F'!D143*100,"-")) -> - | E143: =IF(OR('Tabel 4F F'!E143<5,'Tabel 4 F'!E143<0.5),"-",IFERROR('Tabel 4 F'!E143/'Tabel 4F F'!E143*100,"-")) -> - | F143: =IF(OR('Tabel 4F F'!F143<5,'Tabel 4 F'!F143<0.5),"-",IFERROR('Tabel 4 F'!F143/'Tabel 4F F'!F143*100,"-")) -> - | G143: =IF(OR('Tabel 4F F'!G143<5,'Tabel 4 F'!G143<0.5),"-",IFERROR('Tabel 4 F'!G143/'Tabel 4F F'!G143*100,"-")) -> - | I143: =IF(OR('Tabel 4F F'!I143<5,'Tabel 4 F'!I143<0.5),"-",IFERROR('Tabel 4 F'!I143/'Tabel 4F F'!I143*100,"-")) -> 5.555555556
A144: Komm. og Sprog | C144: =IF(OR('Tabel 4F F'!C144<5,'Tabel 4 F'!C144<0.5),"-",IFERROR('Tabel 4 F'!C144/'Tabel 4F F'!C144*100,"-")) -> - | D144: =IF(OR('Tabel 4F F'!D144<5,'Tabel 4 F'!D144<0.5),"-",IFERROR('Tabel 4 F'!D144/'Tabel 4F F'!D144*100,"-")) -> - | E144: =IF(OR('Tabel 4F F'!E144<5,'Tabel 4 F'!E144<0.5),"-",IFERROR('Tabel 4 F'!E144/'Tabel 4F F'!E144*100,"-")) -> - | F144: =IF(OR('Tabel 4F F'!F144<5,'Tabel 4 F'!F144<0.5),"-",IFERROR('Tabel 4 F'!F144/'Tabel 4F F'!F144*100,"-")) -> 16.66666667 | G144: =IF(OR('Tabel 4F F'!G144<5,'Tabel 4 F'!G144<0.5),"-",IFERROR('Tabel 4 F'!G144/'Tabel 4F F'!G144*100,"-")) -> - | I144: =IF(OR('Tabel 4F F'!I144<5,'Tabel 4 F'!I144<0.5),"-",IFERROR('Tabel 4 F'!I144/'Tabel 4F F'!I144*100,"-")) -> 4.761904762
A145: Cand. IT. | C145: =IF(OR('Tabel 4F F'!C145<5,'Tabel 4 F'!C145<0.5),"-",IFERROR('Tabel 4 F'!C145/'Tabel 4F F'!C145*100,"-")) -> - | D145: =IF(OR('Tabel 4F F'!D145<5,'Tabel 4 F'!D145<0.5),"-",IFERROR('Tabel 4 F'!D145/'Tabel 4F F'!D145*100,"-")) -> - | E145: =IF(OR('Tabel 4F F'!E145<5,'Tabel 4 F'!E145<0.5),"-",IFERROR('Tabel 4 F'!E145/'Tabel 4F F'!E145*100,"-")) -> - | F145: =IF(OR('Tabel 4F F'!F145<5,'Tabel 4 F'!F145<0.5),"-",IFERROR('Tabel 4 F'!F145/'Tabel 4F F'!F145*100,"-")) -> - | G145: =IF(OR('Tabel 4F F'!G145<5,'Tabel 4 F'!G145<0.5),"-",IFERROR('Tabel 4 F'!G145/'Tabel 4F F'!G145*100,"-")) -> - | I145: =IF(OR('Tabel 4F F'!I145<5,'Tabel 4 F'!I145<0.5),"-",IFERROR('Tabel 4 F'!I145/'Tabel 4F F'!I145*100,"-")) -> 20
A146: Bac. Samf. | C146: =IF(OR('Tabel 4F F'!C146<5,'Tabel 4 F'!C146<0.5),"-",IFERROR('Tabel 4 F'!C146/'Tabel 4F F'!C146*100,"-")) -> - | D146: =IF(OR('Tabel 4F F'!D146<5,'Tabel 4 F'!D146<0.5),"-",IFERROR('Tabel 4 F'!D146/'Tabel 4F F'!D146*100,"-")) -> - | E146: =IF(OR('Tabel 4F F'!E146<5,'Tabel 4 F'!E146<0.5),"-",IFERROR('Tabel 4 F'!E146/'Tabel 4F F'!E146*100,"-")) -> - | F146: =IF(OR('Tabel 4F F'!F146<5,'Tabel 4 F'!F146<0.5),"-",IFERROR('Tabel 4 F'!F146/'Tabel 4F F'!F146*100,"-")) -> - | G146: =IF(OR('Tabel 4F F'!G146<5,'Tabel 4 F'!G146<0.5),"-",IFERROR('Tabel 4 F'!G146/'Tabel 4F F'!G146*100,"-")) -> - | I146: =IF(OR('Tabel 4F F'!I146<5,'Tabel 4 F'!I146<0.5),"-",IFERROR('Tabel 4 F'!I146/'Tabel 4F F'!I146*100,"-")) -> -
A147: Bac. Hum. | C147: =IF(OR('Tabel 4F F'!C147<5,'Tabel 4 F'!C147<0.5),"-",IFERROR('Tabel 4 F'!C147/'Tabel 4F F'!C147*100,"-")) -> - | D147: =IF(OR('Tabel 4F F'!D147<5,'Tabel 4 F'!D147<0.5),"-",IFERROR('Tabel 4 F'!D147/'Tabel 4F F'!D147*100,"-")) -> - | E147: =IF(OR('Tabel 4F F'!E147<5,'Tabel 4 F'!E147<0.5),"-",IFERROR('Tabel 4 F'!E147/'Tabel 4F F'!E147*100,"-")) -> - | F147: =IF(OR('Tabel 4F F'!F147<5,'Tabel 4 F'!F147<0.5),"-",IFERROR('Tabel 4 F'!F147/'Tabel 4F F'!F147*100,"-")) -> - | G147: =IF(OR('Tabel 4F F'!G147<5,'Tabel 4 F'!G147<0.5),"-",IFERROR('Tabel 4 F'!G147/'Tabel 4F F'!G147*100,"-")) -> - | I147: =IF(OR('Tabel 4F F'!I147<5,'Tabel 4 F'!I147<0.5),"-",IFERROR('Tabel 4 F'!I147/'Tabel 4F F'!I147*100,"-")) -> -
A148: Bac. Nat. | C148: =IF(OR('Tabel 4F F'!C148<5,'Tabel 4 F'!C148<0.5),"-",IFERROR('Tabel 4 F'!C148/'Tabel 4F F'!C148*100,"-")) -> - | D148: =IF(OR('Tabel 4F F'!D148<5,'Tabel 4 F'!D148<0.5),"-",IFERROR('Tabel 4 F'!D148/'Tabel 4F F'!D148*100,"-")) -> - | E148: =IF(OR('Tabel 4F F'!E148<5,'Tabel 4 F'!E148<0.5),"-",IFERROR('Tabel 4 F'!E148/'Tabel 4F F'!E148*100,"-")) -> - | F148: =IF(OR('Tabel 4F F'!F148<5,'Tabel 4 F'!F148<0.5),"-",IFERROR('Tabel 4 F'!F148/'Tabel 4F F'!F148*100,"-")) -> - | G148: =IF(OR('Tabel 4F F'!G148<5,'Tabel 4 F'!G148<0.5),"-",IFERROR('Tabel 4 F'!G148/'Tabel 4F F'!G148*100,"-")) -> - | I148: =IF(OR('Tabel 4F F'!I148<5,'Tabel 4 F'!I148<0.5),"-",IFERROR('Tabel 4 F'!I148/'Tabel 4F F'!I148*100,"-")) -> 16.66666667
A149: Andre | C149: =IF(OR('Tabel 4F F'!C149<5,'Tabel 4 F'!C149<0.5),"-",IFERROR('Tabel 4 F'!C149/'Tabel 4F F'!C149*100,"-")) -> - | D149: =IF(OR('Tabel 4F F'!D149<5,'Tabel 4 F'!D149<0.5),"-",IFERROR('Tabel 4 F'!D149/'Tabel 4F F'!D149*100,"-")) -> 22.22222222 | E149: =IF(OR('Tabel 4F F'!E149<5,'Tabel 4 F'!E149<0.5),"-",IFERROR('Tabel 4 F'!E149/'Tabel 4F F'!E149*100,"-")) -> - | F149: =IF(OR('Tabel 4F F'!F149<5,'Tabel 4 F'!F149<0.5),"-",IFERROR('Tabel 4 F'!F149/'Tabel 4F F'!F149*100,"-")) -> - | G149: =IF(OR('Tabel 4F F'!G149<5,'Tabel 4 F'!G149<0.5),"-",IFERROR('Tabel 4 F'!G149/'Tabel 4F F'!G149*100,"-")) -> - | I149: =IF(OR('Tabel 4F F'!I149<5,'Tabel 4 F'!I149<0.5),"-",IFERROR('Tabel 4 F'!I149/'Tabel 4F F'!I149*100,"-")) -> 6.060606061
